Workbook

Sheet List of Sheets
C3: Sheet Tab | D3: Description | E3: Author
B4: 1 | C4: Table of Contents
B5: 2 | C5: Summary Output
B6: 3 | C6: Valuation Analysis
B7: 4 | C7: Tornado Chart
B8: 5 | C8: Master Scenario
B9: 6 | C9: Revenue and General Assumptions
B10: 7 | C10: Cap Exp and Op Exp Assumptions
B11: 8 | C11: Tax Assumptions
B12: 9 | C12: Finance and Value Assumptions
B13: 10 | C13: Capital Expenditure
B14: 11 | C14: EBITDA
B15: 12 | C15: Project Financing
B16: 13 | C16: Annual Summary
B17: 14 | C17: Audit Sheet
B18: 15 | C18: Time SA
B20: File Name: | D20: C:\Users\Monika\Documents\Courses\Chapter 1. Models and Analysis\2. Project Finance Models and Exercises\Featured Project Finance Models\Revised Model Finished.xlsm
B22: Colour Codes
B24: Last Save Date | D24: 2014-03-05T22:51:54
B25: Last Save By | D25: Monika Lewinski

Sheet Dashboard
F1: Model Test | I1: =Integrity!E15 -> Computed DSCR Test
A2: Inputs
B3: Bid Price (US/MWH) | C3: ='Timing, Infl, Rev Assumptions'!G21 -> 69.235 | H3: Returns | J3: Nominal | K3: Real | L3: Risk Premium
B4: Capacity (MW) | C4: ='Cap Exp and Op Exp Assumptions'!G6 -> 12.5 | E4: Custom Case Inputs | I4: Pre-tax Project Cash Flow | J4: ='Debt and Cash Waterfall (SA)'!E29 -> 0.09248891175 | K4: ='Debt and Cash Waterfall (SA)'!E36 -> 0.06990294158 | L4: ='Debt and Cash Waterfall (SA)'!H38 -> 12027238.28
B5: Capacity Factor | C5: =EBITDA!H105 -> 0.3191192887 | I5: Senior Debt Pre-tax | J5: ='Debt and Cash Waterfall (SA)'!E439 -> 0.04087291062 | K5: ='Debt and Cash Waterfall (SA)'!E440 -> 0.01785149276 | R5: 1
B6: Levelised O&M Cost per MWH | C6: =EBITDA!I262 -> 17.61245014 | D6: ='Cockpit Page'!$F$38 -> 1 | I6: Subdebt Pre-tax
B7: Levelised O&M Cost per kW Yr | C7: =EBITDA!I263 -> 49.16569896 | D7: ='Cockpit Page'!F38 -> 1
B8: Plant Cost Sensitivity (USD/kW) | C8: =L19 -> 2148.476844 | D8: ='Cockpit Page'!$E$38 -> 1 | I8: After tax Project IRR | J8: ='Debt and Cash Waterfall (SA)'!E76 -> 0.08679157794 | K8: ='Debt and Cash Waterfall (SA)'!E79 -> 0.0617521137
B9: Market Electiricy Price | C9: =EBITDA!I264 -> 77.62535703 | I9: Senior Debt After tax | J9: ='Debt and Cash Waterfall (SA)'!E443 -> 0.03639189899 | K9: ='Debt and Cash Waterfall (SA)'!E444 -> 0.01343529522
A10: Structuring | I10: Subdebt After tax | J10: ='Debt and Cash Waterfall (SA)'!E448 -> 0.05494352281 | K10: ='Debt and Cash Waterfall (SA)'!E449 -> 0.03069485128
B11: Target DSCR | C11: ='Finance and Value Assumptions'!$F$4 -> 1.34 | I11: Equity Cash Flow | J11: ='Debt and Cash Waterfall (SA)'!E410 -> 0.2084272087 | K11: ='Debt and Cash Waterfall (SA)'!E411 -> 0.1810754359
B12: Gearing Ratio | C12: ='Finance and Value Assumptions'!$F$5 -> 0.7
B13: Size from Gearing Ratio | C13: ='Finance and Value Assumptions'!F6 -> FALSE | H13: Senior Debt Coverage | J13: MIN | K13: Average
B14: Debt Tenor | C14: ='Finance and Value Assumptions'!$F$14 -> 17 | I14: Annual Debt Service Cover Ratio | J14: ='Debt and Cash Waterfall (SA)'!F416 -> 1.34 | K14: ='Debt and Cash Waterfall (SA)'!H416 -> 1.340417891
B15: DSRA Months | C15: ='Finance and Value Assumptions'!F33 -> 0 | I15: Project Life Cover Ratio | J15: ='Debt and Cash Waterfall (SA)'!E426 -> 2.119271048
B16: Repayment | I16: Loan life Cover Ratio | J16: ='Debt and Cash Waterfall (SA)'!E422 -> 1.34
H18: Total Uses of Funds | J18: Amount | K18: Percent | L18: Euro/kW
I19: Total CapEx | J19: ='Debt and Cash Waterfall (SA)'!G123 -> 26855960.55 | K19: =J19/$J$26 -> 0.9014382301 | L19: =J19/$C$4/1000 -> 2148.476844
I20: Total VAT | J20: ='Debt and Cash Waterfall (SA)'!G124-'Debt and Cash Waterfall (SA)'!G125 -> 0 | K20: 0 | L20: =J20/$C$4/1000 -> 0
I21: Development Fees | J21: ='Debt and Cash Waterfall (SA)'!G126 -> 1600000 | K21: 0.05370506728 | L21: 128
I22: Total IDC (Interest during Construct.) | J22: =SUM('Debt and Cash Waterfall (SA)'!G128:G129)+'Debt and Cash Waterfall (SA)'!G131 -> 810024.2495 | K22: =J22/$J$26 -> 0.02718900426 | L22: =J22/$C$4/1000 -> 64.80193996
I23: Total Fees (on undrawn Debt) | J23: ='Debt and Cash Waterfall (SA)'!G130 -> 526362.201 | K23: 0.01766769838 | L23: 42.10897608
I24: Debt Service Reserve A/C | J24: ='Debt and Cash Waterfall (SA)'!G132 -> 0 | K24: 0 | L24: 0
I25: Subtotal Transactional Cost related to Debt | J25: ='Debt and Cash Waterfall (SA)'!G133 -> 1336386.451 | K25: 0.04485670265 | L25: 106.910916 | N25: Other Structuring Features
I26: Total Project Cost | J26: ='Debt and Cash Waterfall (SA)'!G134 -> 29792347 | K26: 1 | L26: 2383.38776 | N26: Cash Sweep Percent | P26: ='Finance and Value Assumptions'!F37 -> 0
N27: Cash Trap Covenant | P27: ='Finance and Value Assumptions'!F36 -> 1.15
H28: Total Sources of Funds
I29: VAT Facility | J29: ='Debt and Cash Waterfall (SA)'!G137 -> 0 | K29: =J29/$J$33 -> 0 | N29: Development Fee | P29: ='Finance and Value Assumptions'!$F$55 -> 1600000
I30: Senior Debt | J30: ='Debt and Cash Waterfall (SA)'!G138 -> 25387307.19 | K30: =J30/$J$33 -> 0.8521419005
I31: Sub-Debt (assumed to be Equity) | J31: ='Debt and Cash Waterfall (SA)'!G139 -> 297923.47 | K31: =J31/$J$33 -> 0.01 | N31: Funding Method
I32: Equity | J32: ='Debt and Cash Waterfall (SA)'!G140 -> 4107116.339 | K32: =J32/$J$33 -> 0.1378580995
I33: Total | J33: ='Debt and Cash Waterfall (SA)'!G141 -> 29792347 | K33: =J33/$J$33 -> 1 | N33: Capitalize Int and Fees

Sheet Cockpit Page
C4: Master Scenario Number | E4: 1
C5: DSCR Target | E5: ='Finance and Value Assumptions'!F4 -> 1.34
C6: Debt Leverage | E6: =Dashboard!C12 -> 0.7 | L6: scenario sheet | M6: =sheet_name(M11) -> Cockpit Page
C7: Debt Tenor | E7: =Dashboard!C14 -> 17
C8: Re-Financing
M11: Equity IRR | N11: Pre-tax IRR | O11: Project IRR | P11: DSCR | Q11: LLCR | R11: PLCR
D12: Capacity Factor | E12: Cap Exp Sensitivity | F12: O&M Senstivity | G12: Sem Price | H12: Price Years 1-15 | I12: Price Post Year 15 | J12: Price Escalation Code | K12: Cost Esclation Code | M12: =IFERROR('Debt and Cash Waterfall (SA)'!E410,"") -> 0.2084272087 | N12: =IFERROR('Debt and Cash Waterfall (SA)'!E29,"") -> 0.09248891175 | O12: =IFERROR('Debt and Cash Waterfall (SA)'!E76,"") -> 0.08679157794 | P12: =IFERROR('Debt and Cash Waterfall (SA)'!F416,"") -> 1.34 | Q12: =IFERROR(Dashboard!J16,"") -> 1.34 | R12: =IFERROR(Dashboard!J15,"") -> 2.119271048
C13: Base Case | D13: 2 | E13: 1 | F13: 1 | G13: 2 | H13: 1 | I13: 1 | J13: 2 | K13: 2 | L13: 1 | M13: 0.2084272087 | N13: 0.09248891175 | O13: 0.08679157794 | P13: 1.34 | Q13: 1.34 | R13: 2.119271048
C14: Bear Scenario | D14: 3 | E14: 1.2 | F14: 1.2 | G14: 1 | H14: 2 | I14: 1 | J14: 1 | K14: 3 | L14: =L13+1 -> 2 | M14: 0.003091868758 | N14: 0.01230107844 | O14: 0.01097741425 | P14: 1.34 | Q14: 1.34 | R14: 2.178250712
C15: Bull Scenario | D15: 1 | E15: 0.9 | F15: 0.9 | G15: 3 | H15: 1 | I15: 2 | J15: 3 | K15: 1 | L15: =L14+1 -> 3 | M15: 2.980232239e-09 | N15: 0.1306803048 | O15: 0.1233158648 | P15: 1.34 | Q15: 1.34 | R15: 2.168422027
C16: Long-term PPA Case | D16: 1 | E16: 1 | F16: 1 | G16: 2 | H16: 1 | I16: 1 | J16: 1 | K16: 1 | L16: 4 | M16: 0.1620396078 | N16: 0.08431327641 | O16: 0.07885217965 | P16: 1.34 | Q16: 1.34 | R16: 1.956660591
L17: 5
C18: =TRANSPOSE(D12:K12)&" "&$C$14 -> Capacity Factor Bear Scenario | D18: =D14 -> 3 | E18: =E$13 -> 1 | F18: =F$13 -> 1 | G18: 2 | H18: 1 | I18: 1 | J18: 2 | K18: 2 | L18: 6 | M18: 0.1543111861 | N18: 0.08608857691 | O18: 0.08067156374 | P18: 1.34 | Q18: 1.34 | R18: 2.116748618
C19: Cap Exp Sensitivity Bear Scenario | D19: =D$13 -> 2 | E19: =E14 -> 1.2 | F19: 1 | G19: 2 | H19: 1 | I19: 1 | J19: 2 | K19: 2 | L19: 7 | M19: 0.1104459941 | N19: 0.07619394958 | O19: 0.07120883763 | P19: 1.34 | Q19: 1.34 | R19: 2.110350199
C20: O&M Senstivity Bear Scenario | D20: 2 | E20: =E$13 -> 1 | F20: =F14 -> 1.2 | G20: 2 | H20: 1 | I20: 1 | J20: 2 | K20: 2 | L20: 8 | M20: 0.1624421299 | N20: 0.08760927618 | O20: 0.08213702142 | P20: 1.34 | Q20: 1.34 | R20: 2.129121618
C21: Sem Price Bear Scenario | D21: 2 | E21: 1 | F21: 1 | G21: =G14 -> 1 | H21: 1 | I21: 1 | J21: 2 | K21: 2 | L21: 9 | M21: 0.1413558304 | N21: 0.08229011595 | O21: 0.07698367536 | P21: 1.34 | Q21: 1.34 | R21: 2.019599588
C22: Price Years 1-15 Bear Scenario | D22: 2 | E22: 1 | F22: 1 | G22: 2 | H22: =H14 -> 2 | I22: 1 | J22: 2 | K22: 2 | L22: 10 | M22: 0.122077769 | N22: 0.08139081895 | O22: 0.07625285089 | P22: 1.34 | Q22: 1.34 | R22: 2.244759641
C23: Price Post Year 15 Bear Scenario | D23: 2 | E23: 1 | F23: 1 | G23: 2 | H23: 1 | I23: =I14 -> 1 | J23: 2 | K23: 2 | L23: 11 | M23: 0.2084272087 | N23: 0.09248891175 | O23: 0.08679157794 | P23: 1.34 | Q23: 1.34 | R23: 2.119271048
C24: Price Escalation Code Bear Scenario | D24: 2 | E24: 1 | F24: 1 | G24: 2 | H24: 1 | I24: 1 | J24: =J14 -> 1 | K24: 2 | L24: 12 | M24: 0.1077939332 | N24: 0.07285558879 | O24: 0.06791649163 | P24: 1.34 | Q24: 1.34 | R24: 1.927550907
C25: Cost Esclation Code Bear Scenario | D25: 2 | E25: 1 | F25: 1 | G25: 2 | H25: 1 | I25: 1 | J25: 2 | K25: =K14 -> 3 | L25: 13 | M25: 0.1971847951 | N25: 0.09149342477 | O25: 0.08583988249 | P25: 1.34 | Q25: 1.34 | R25: 2.117268858
L26: 14
C27: =TRANSPOSE(D12:K12)&" "&$C$15 -> Capacity Factor Bull Scenario | D27: =D15 -> 1 | E27: =E$13 -> 1 | F27: =F$13 -> 1 | G27: 2 | H27: 1 | I27: 1 | J27: 2 | K27: 2 | L27: 15 | M27: 0.4332848847 | N27: 0.09976167083 | O27: 0.09374507368 | P27: 1.34 | Q27: 1.34 | R27: 2.121935751
C28: Cap Exp Sensitivity Bull Scenario | D28: =D$13 -> 2 | E28: =E15 -> 0.9 | F28: 1 | G28: 2 | H28: 1 | I28: 1 | J28: 2 | K28: 2 | L28: 16 | M28: 1.644751608 | N28: 0.102523154 | O28: 0.09638727307 | P28: 1.34 | Q28: 1.34 | R28: 2.124009578
C29: O&M Senstivity Bull Scenario | D29: 2 | E29: =E$13 -> 1 | F29: =F15 -> 0.9 | G29: 2 | H29: 1 | I29: 1 | J29: 2 | K29: 2 | L29: 17 | M29: 0.2469323337 | N29: 0.09488845766 | O29: 0.08908065856 | P29: 1.34 | Q29: 1.34 | R29: 2.114720028
C30: Sem Price Bull Scenario | D30: 2 | E30: 1 | F30: 1 | G30: =G15 -> 3 | H30: 1 | I30: 1 | J30: 2 | K30: 2 | L30: 18 | M30: 1.282468355 | N30: 0.1024439037 | O30: 0.09631633162 | P30: 1.34 | Q30: 1.34 | R30: 2.13108209
C31: Price Years 1-15 Bull Scenario | D31: 2 | E31: 1 | F31: 1 | G31: 2 | H31: =H15 -> 1 | I31: 1 | J31: 2 | K31: 2 | L31: 19 | M31: 0.2084272087 | N31: 0.09248891175 | O31: 0.08679157794 | P31: 1.34 | Q31: 1.34 | R31: 2.119271048
C32: Price Post Year 15 Bull Scenario | D32: 2 | E32: 1 | F32: 1 | G32: 2 | H32: 1 | I32: =I15 -> 2 | J32: 2 | K32: 2 | L32: 20 | M32: 0.2084272087 | N32: 0.09248891175 | O32: 0.08679157794 | P32: 1.34 | Q32: 1.34 | R32: 2.119271048
C33: Price Escalation Code Bull Scenario | D33: 2 | E33: 1 | F33: 1 | G33: 2 | H33: 1 | I33: 1 | J33: =J15 -> 3 | K33: 2 | L33: 21 | M33: 0.2938720286 | N33: 0.0972676456 | O33: 0.09137803018 | P33: 1.34 | Q33: 1.34 | R33: 2.143007806
C34: Cost Esclation Code Bull Scenario | D34: 2 | E34: 1 | F34: 1 | G34: 2 | H34: 1 | I34: 1 | J34: 2 | K34: =K15 -> 1 | L34: 22 | M34: 0.2571879923 | N34: 0.09576479495 | O34: 0.08993416131 | P34: 1.34 | Q34: 1.34 | R34: 2.136350132
L35: 23
C36: Custom Case | D36: =D44 -> 2 | E36: =E44/E42 -> 1 | F36: =F44/F42 -> 1 | G36: =G44/G42 -> 2 | H36: =H44/H42 -> 1 | I36: 1 | J36: 2 | K36: 2 | L36: 24 | M36: 0.2084272087 | N36: 0.09248891175 | O36: 0.08679157794 | P36: 1.34 | Q36: 1.34 | R36: 2.119271048
C38: =INDEX(C13:C36,E4) -> Base Case | D38: =INDEX(D13:D36,$E$4) -> 2 | E38: 1 | F38: 1 | G38: 2 | H38: 1 | I38: 1 | J38: 2 | K38: 2
C39: Scenario Description | D39: =INDEX(C67:C70,D38) -> P75 | G39: =INDEX(C73:C75,G38) -> Central | H39: =INDEX(C78:C79,H38) -> Price (DSCR PPA Price) | J39: =INDEX($C$86:$C$88,J38) -> Expected Case | K39: =INDEX('Cockpit Page'!C86:C88,'Cockpit Page'!K38) -> Expected Case
C41: Copied Data | D41: 2 | E41: 1 | F41: 1 | G41: 2 | H41: 1 | I41: 1 | J41: 2 | K41: 2
C42: Multiplier | D42: 1 | E42: 100 | F42: 100 | G42: 1 | H42: 1 | I42: 1 | J42: 1 | K42: 1
C43: Adjusted | D43: =D41*D42 -> 2 | E43: =E41*E42 -> 100 | F43: 100 | G43: 2 | H43: 1 | I43: 1 | J43: 2 | K43: 2
C44: Spinner Row | D44: 2 | E44: 100 | F44: 100 | G44: 2 | H44: 1 | I44: 1 | J44: 2 | K44: 2
M47: Low versus Base | N47: High versus Base
L48: =TRANSPOSE(D12:K12) -> Capacity Factor | M48: =O18-$O$13 -> -0.006120014191 | N48: =O27-$O$13 -> 0.006953495741
L49: Cap Exp Sensitivity | M49: =O19-$O$13 -> -0.01558274031 | N49: =O28-$O$13 -> 0.009595695138
C50: Custom Case Row | D50: =MATCH(C36,C13:C36,0) -> 24 | L50: O&M Senstivity | M50: -0.004654556513 | N50: 0.00228908062
L51: Sem Price | M51: -0.009807902575 | N51: 0.00952475369
L52: Price Years 1-15 | M52: -0.01053872705 | N52: 0
L53: Price Post Year 15 | M53: 0 | N53: 0
L54: Price Escalation Code | M54: -0.01887508631 | N54: 0.004586452246
L55: Cost Esclation Code | M55: -0.0009516954422 | N55: 0.00314258337
D66: =M12 -> 0.2084272087 | E66: 0.9 | F66: 1 | G66: 1.2
B67: 1 | C67: P50 | D67: 1
B68: 2 | C68: P75 | D68: 2
B69: 3 | C69: P90 | D69: 3
B70: 4 | C70: P99 | D70: 4
E72: =M12 -> 0.2084272087 | F72: =O12 -> 0.08679157794
B73: 1 | C73: Low | D73: 1
B74: 2 | C74: Central | D74: 2
B75: 3 | C75: High | D75: 3
B78: 1 | C78: Price (DSCR PPA Price)
B79: 2 | C79: Price (SEM) after discount years
C82: P50 (yes=1) P75 (Yes=2) P90 (Yes=3) P99 (Yes=4)
C83: Sem (1=low,2=central,3=high)
C84: Sculpted case =1 Base case =2 | E84: 2
B86: 1 | C86: Low Inflation
B87: 2 | C87: Expected Case
B88: 3 | C88: High Inflation Case

Sheet Timing, Infl, Rev Assumptions
A1: Timing
B2: Project Dates
D3: Model Start | E3: Date | G3: 2015-01-01
D4: Beginning of Construction | E4: Date | G4: 2015-10-01
D5: End of Construction | E5: Date | G5: =EDATE($G$4,G9)-1 -> 2017-05-31
D6: Commercial Operation Date | E6: Date | G6: =EDATE(G5,G74)+1 -> 2017-06-01
D7: Decommissioning | E7: Date | G7: =EDATE(G6,$G$76*G10)-1 -> 2042-05-31
D9: Construction Period | E9: Months | G9: 20
D10: Operating Life | E10: Years | G10: 25
D11: Months in Period after COD | E11: Months | G11: 6
D12: Periods per Year after COD | E12: Periods | G12: =12/G11 -> 2
A14: Purchase Price Agreement Assumptions
BD15: =AS15+1 -> 1 | BE15: =BD15+1 -> 2 | BF15: 3 | BG15: 4 | BH15: 5 | BI15: 6 | BJ15: 7 | BK15: 8
D16: No of years PPA is applicable | E16: Years | G16: 15
D18: PPA Start Date (COD) | E18: Date | G18: =G6 -> 2017-06-01
D19: PPA End Date | E19: Date | G19: =EDATE(G18,G16*G76)-1 -> 2032-05-31
D21: Initial Bid Price | E21: (USD/MWH) | G21: 69.235
D22: Bonus for refit 1 (€/mwh) | E22: % | G22: 0.15
D23: Share of Bonus after Discount years 1-15 for Refit 1 | E23: % | G23: 1
BD24: 1.029470191 | BE24: 1.030061852 | BF24: 1.030665345 | BG24: 1.031280909 | BH24: 1.031280909 | BI24: 1.031280909 | BJ24: 1.031280909 | BK24: 1.031280909
C25: TLAF
D26: Charge | G26: 0.02
D27: End of charge | G27: =G7 -> 2042-05-31
C29: TUoS
D30: Charge (€/MW/Month) | G30: 0
D31: End of charge | G31: =G27 -> 2042-05-31
A33: Merchant Period Assumptions
D34: Share of SEM after Discount from years 16-34 | E34: % | G34: 1
C36: Market Clearing Prices | I36: 2013-01-01 | J36: 2013-07-01 | K36: 2014-01-01 | L36: 2014-07-01 | M36: 2015-01-01 | N36: 2015-07-01 | O36: 2016-01-01 | P36: 2016-07-01 | Q36: 2017-01-01 | R36: 2017-07-01 | S36: 2018-01-01 | T36: 2018-07-01 | U36: 2019-01-01 | V36: 2019-07-01 | W36: 2020-01-01 | X36: 2020-07-01 | Y36: 2021-01-01 | Z36: 2021-07-01 | AA36: 2022-01-01 | AB36: 2022-07-01 | AC36: 2023-01-01 | AD36: 2023-07-01 | AE36: 2024-01-01 | AF36: 2024-07-01 | AG36: 2025-01-01 | AH36: 2025-07-01 | AI36: 2026-01-01 | AJ36: 2026-07-01 | AK36: 2027-01-01 | AL36: 2027-07-01 | AM36: 2028-01-01 | AN36: 2028-07-01 | AO36: 2029-01-01 | AP36: 2029-07-01 | AQ36: 2030-01-01 | AR36: 2030-07-01 | AS36: 2031-01-01 | AT36: 2031-07-01 | AU36: 2032-01-01 | AV36: 2032-07-01 | AW36: 2033-01-01 | AX36: 2033-07-01 | AY36: 2034-01-01 | AZ36: 2034-07-01 | BA36: 2035-01-01 | BB36: 2035-07-01 | BC36: 2036-01-01 | BD36: 2036-07-01 | BE36: 2037-01-01 | BF36: 2037-07-01 | BG36: 2038-01-01 | BH36: 2038-07-01 | BI36: 2039-01-01 | BJ36: 2039-07-01 | BK36: 2040-01-01 | BL36: 2040-07-01 | BM36: 2041-01-01 | BN36: 2041-07-01 | BO36: 2042-01-01 | BP36: 2042-07-01
D37: Low SMP (€/mwh) | E37: (€/mwh) | I37: =I38*0.9 -> 54.17274566 | J37: =J38*0.9 -> 54.17274566 | K37: 55.87533946 | L37: 55.87533946 | M37: 55.30556999 | N37: 55.30556999 | O37: 55.6928181 | P37: 55.6928181 | Q37: 55.2988131 | R37: 55.2988131 | S37: 54.40814392 | T37: 54.40814392 | U37: 56.20560021 | V37: 56.20560021 | W37: 56.66168854 | X37: 56.66168854 | Y37: 57.69297758 | Z37: 57.69297758 | AA37: 58.13018757 | AB37: 58.13018757 | AC37: 59.29088682 | AD37: 59.29088682 | AE37: 60.91675265 | AF37: 60.91675265 | AG37: 61.66197663 | AH37: 61.66197663 | AI37: 62.44261243 | AJ37: 62.44261243 | AK37: 62.92331386 | AL37: 62.92331386 | AM37: 63.04612619 | AN37: 63.04612619 | AO37: 64.01755022 | AP37: 64.01755022 | AQ37: 65.04358285 | AR37: 65.04358285 | AS37: 65.61462742 | AT37: 65.61462742 | AU37: 66.80469424 | AV37: 66.80469424 | AW37: 68.78744349 | AX37: 68.78744349 | AY37: 70.3504137 | AZ37: 70.3504137 | BA37: 72.6213031 | BB37: 72.6213031 | BC37: 74.37030153 | BD37: 74.37030153 | BE37: 77.30395797 | BF37: 77.30395797 | BG37: 88.52617419 | BH37: 88.52617419 | BI37: 88.52617419 | BJ37: 88.52617419 | BK37: 88.52617419 | BL37: 88.52617419 | BM37: 88.52617419 | BN37: 88.52617419 | BO37: 88.52617419 | BP37: 88.52617419
D38: Central SMP (€/mwh) | E38: (€/mwh) | I38: 60.19193963 | J38: 60.19193963 | K38: 62.08371051 | L38: 62.08371051 | M38: 61.45063332 | N38: 61.45063332 | O38: 61.880909 | P38: 61.880909 | Q38: 61.44312567 | R38: 61.44312567 | S38: 60.45349324 | T38: 60.45349324 | U38: 62.45066689 | V38: 62.45066689 | W38: 62.95743171 | X38: 62.95743171 | Y38: 64.10330842 | Z38: 64.10330842 | AA38: 64.5890973 | AB38: 64.5890973 | AC38: 65.87876313 | AD38: 65.87876313 | AE38: 67.68528073 | AF38: 67.68528073 | AG38: 68.51330737 | AH38: 68.51330737 | AI38: 69.38068047 | AJ38: 69.38068047 | AK38: 69.91479318 | AL38: 69.91479318 | AM38: 70.05125132 | AN38: 70.05125132 | AO38: 71.13061135 | AP38: 71.13061135 | AQ38: 72.27064761 | AR38: 72.27064761 | AS38: 72.90514158 | AT38: 72.90514158 | AU38: 74.22743805 | AV38: 74.22743805 | AW38: 76.43049277 | AX38: 76.43049277 | AY38: 78.16712633 | AZ38: 78.16712633 | BA38: 80.69033678 | BB38: 80.69033678 | BC38: 82.63366837 | BD38: 82.63366837 | BE38: 85.89328663 | BF38: 85.89328663 | BG38: 98.36241576 | BH38: 98.36241576 | BI38: 98.36241576 | BJ38: 98.36241576 | BK38: 98.36241576 | BL38: 98.36241576 | BM38: 98.36241576 | BN38: 98.36241576 | BO38: 98.36241576 | BP38: 98.36241576
D39: High SMP (€/mwh) | E39: (€/mwh) | I39: =I38*1.1 -> 66.21113359 | J39: =J38*1.1 -> 66.21113359 | K39: 68.29208156 | L39: 68.29208156 | M39: 67.59569666 | N39: 67.59569666 | O39: 68.0689999 | P39: 68.0689999 | Q39: 67.58743823 | R39: 67.58743823 | S39: 66.49884256 | T39: 66.49884256 | U39: 68.69573358 | V39: 68.69573358 | W39: 69.25317488 | X39: 69.25317488 | Y39: 70.51363926 | Z39: 70.51363926 | AA39: 71.04800702 | AB39: 71.04800702 | AC39: 72.46663944 | AD39: 72.46663944 | AE39: 74.4538088 | AF39: 74.4538088 | AG39: 75.3646381 | AH39: 75.3646381 | AI39: 76.31874852 | AJ39: 76.31874852 | AK39: 76.9062725 | AL39: 76.9062725 | AM39: 77.05637645 | AN39: 77.05637645 | AO39: 78.24367249 | AP39: 78.24367249 | AQ39: 79.49771237 | AR39: 79.49771237 | AS39: 80.19565573 | AT39: 80.19565573 | AU39: 81.65018185 | AV39: 81.65018185 | AW39: 84.07354205 | AX39: 84.07354205 | AY39: 85.98383896 | AZ39: 85.98383896 | BA39: 88.75937045 | BB39: 88.75937045 | BC39: 90.8970352 | BD39: 90.8970352 | BE39: 94.4826153 | BF39: 94.4826153 | BG39: 108.1986573 | BH39: 108.1986573 | BI39: 108.1986573 | BJ39: 108.1986573 | BK39: 108.1986573 | BL39: 108.1986573 | BM39: 108.1986573 | BN39: 108.1986573 | BO39: 108.1986573 | BP39: 108.1986573
D41: Low Capacity (€/mwh) | E41: (€/mwh) | I41: 0 | J41: 0 | K41: 0 | L41: 0 | M41: 0 | N41: 0 | O41: 0 | P41: 0 | Q41: 0 | R41: 0 | S41: 0 | T41: 0 | U41: 0 | V41: 0 | W41: 0 | X41: 0 | Y41: 0 | Z41: 0 | AA41: 0 | AB41: 0 | AC41: 0 | AD41: 0 | AE41: 0 | AF41: 0 | AG41: 0 | AH41: 0 | AI41: 0 | AJ41: 0 | AK41: 0 | AL41: 0 | AM41: 0 | AN41: 0 | AO41: 0 | AP41: 0 | AQ41: 0 | AR41: 0 | AS41: 0 | AT41: 0 | AU41: 0 | AV41: 0 | AW41: 0 | AX41: 0 | AY41: 0 | AZ41: 0 | BA41: 0 | BB41: 0 | BC41: 0 | BD41: 0 | BE41: 0 | BF41: 0 | BG41: 0 | BH41: 0 | BI41: 0 | BJ41: 0 | BK41: 0 | BL41: 0 | BM41: 0 | BN41: 0 | BO41: 0 | BP41: 0
D42: Central Capacity (€/mwh) | E42: (€/mwh) | I42: 6.396538599 | J42: 6.396538599 | K42: 6.20049659 | L42: 6.20049659 | M42: 6.284250896 | N42: 6.284250896 | O42: 6.587131594 | P42: 6.587131594 | Q42: 6.626549522 | R42: 6.626549522 | S42: 6.629514019 | T42: 6.629514019 | U42: 6.647738814 | V42: 6.647738814 | W42: 6.915666891 | X42: 6.915666891 | Y42: 7.128805009 | Z42: 7.128805009 | AA42: 7.258532507 | AB42: 7.258532507 | AC42: 7.126471922 | AD42: 7.126471922 | AE42: 7.148294224 | AF42: 7.148294224 | AG42: 7.231009106 | AH42: 7.231009106 | AI42: 7.030252437 | AJ42: 7.030252437 | AK42: 7.080592206 | AL42: 7.080592206 | AM42: 7.095921671 | AN42: 7.095921671 | AO42: 7.185022741 | AP42: 7.185022741 | AQ42: 7.288069321 | AR42: 7.288069321 | AS42: 7.288069321 | AT42: 7.288069321 | AU42: 7.288069321 | AV42: 7.288069321 | AW42: 7.288069321 | AX42: 7.288069321 | AY42: 7.288069321 | AZ42: 7.288069321 | BA42: 7.288069321 | BB42: 7.288069321 | BC42: 7.288069321 | BD42: 7.288069321 | BE42: 7.288069321 | BF42: 7.288069321 | BG42: 7.288069321 | BH42: 7.288069321 | BI42: 7.288069321 | BJ42: 7.288069321 | BK42: 7.288069321 | BL42: 7.288069321 | BM42: 7.288069321 | BN42: 7.288069321 | BO42: 7.288069321 | BP42: 7.288069321
D43: High Capacity (€/mwh) | E43: (€/mwh) | I43: =I42*1.1 -> 7.036192458 | J43: =J42*1.1 -> 7.036192458 | K43: 6.820546249 | L43: 6.820546249 | M43: 6.912675986 | N43: 6.912675986 | O43: 7.245844753 | P43: 7.245844753 | Q43: 7.289204474 | R43: 7.289204474 | S43: 7.292465421 | T43: 7.292465421 | U43: 7.312512695 | V43: 7.312512695 | W43: 7.60723358 | X43: 7.60723358 | Y43: 7.84168551 | Z43: 7.84168551 | AA43: 7.984385757 | AB43: 7.984385757 | AC43: 7.839119114 | AD43: 7.839119114 | AE43: 7.863123646 | AF43: 7.863123646 | AG43: 7.954110016 | AH43: 7.954110016 | AI43: 7.73327768 | AJ43: 7.73327768 | AK43: 7.788651427 | AL43: 7.788651427 | AM43: 7.805513838 | AN43: 7.805513838 | AO43: 7.903525015 | AP43: 7.903525015 | AQ43: 8.016876253 | AR43: 8.016876253 | AS43: 8.016876253 | AT43: 8.016876253 | AU43: 8.016876253 | AV43: 8.016876253 | AW43: 8.016876253 | AX43: 8.016876253 | AY43: 8.016876253 | AZ43: 8.016876253 | BA43: 8.016876253 | BB43: 8.016876253 | BC43: 8.016876253 | BD43: 8.016876253 | BE43: 8.016876253 | BF43: 8.016876253 | BG43: 8.016876253 | BH43: 8.016876253 | BI43: 8.016876253 | BJ43: 8.016876253 | BK43: 8.016876253 | BL43: 8.016876253 | BM43: 8.016876253 | BN43: 8.016876253 | BO43: 8.016876253 | BP43: 8.016876253
A45: Working Capital Assumptions
C46: Working Capital
D47: Debtors | G47: 30
D48: Creditors | G48: 30
D49: Total days in semi annual period | G49: 182.5
A51: General Economic Variables
B52: Inflation Rates
D53: Start of inflation | E53: Date | G53: 2015-01-01
D54: No of month in a year where inflation is applied (January) | E54: Date | G54: 1 | H54: 2013-07-01 | I54: 2014-01-01 | J54: 2014-07-01 | K54: 2015-01-01 | L54: 2015-07-01 | M54: 2016-01-01 | N54: 2016-07-01 | O54: 2017-01-01 | P54: 2017-07-01 | Q54: 2018-01-01 | R54: 2018-07-01 | S54: 2019-01-01 | T54: 2019-07-01 | U54: 2020-01-01 | V54: 2020-07-01 | W54: 2021-01-01 | X54: 2021-07-01 | Y54: 2022-01-01 | Z54: 2022-07-01 | AA54: 2023-01-01 | AB54: 2023-07-01 | AC54: 2024-01-01 | AD54: 2024-07-01 | AE54: 2025-01-01 | AF54: 2025-07-01 | AG54: 2026-01-01 | AH54: 2026-07-01 | AI54: 2027-01-01 | AJ54: 2027-07-01 | AK54: 2028-01-01 | AL54: 2028-07-01 | AM54: 2029-01-01 | AN54: 2029-07-01 | AO54: 2030-01-01 | AP54: 2030-07-01 | AQ54: 2031-01-01 | AR54: 2031-07-01 | AS54: 2032-01-01 | AT54: 2032-07-01 | AU54: 2033-01-01 | AV54: 2033-07-01 | AW54: 2034-01-01 | AX54: 2034-07-01 | AY54: 2035-01-01 | AZ54: 2035-07-01 | BA54: 2036-01-01 | BB54: 2036-07-01 | BC54: 2037-01-01 | BD54: 2037-07-01 | BE54: 2038-01-01 | BF54: 2038-07-01 | BG54: 2039-01-01 | BH54: 2039-07-01 | BI54: 2040-01-01 | BJ54: 2040-07-01 | BK54: 2041-01-01 | BL54: 2041-07-01 | BM54: 2042-01-01 | BN54: 2042-07-01
C56: Cost Inflation Rate | E56: Code Number | F56: ='Cockpit Page'!K38 -> 2
C57: 1 | D57: Low Inflation | E57: % | G57: 0.01 | H57: 0.01 | I57: 0.01 | J57: 0.01 | K57: 0.01 | L57: 0.01 | M57: 0.01 | N57: 0.01 | O57: 0.01 | P57: 0.01 | Q57: 0.01 | R57: 0.01 | S57: 0.01 | T57: 0.01 | U57: 0.01 | V57: 0.01 | W57: 0.01 | X57: 0.01 | Y57: 0.01 | Z57: 0.01 | AA57: 0.01 | AB57: 0.01 | AC57: 0.01 | AD57: 0.01 | AE57: 0.01 | AF57: 0.01 | AG57: 0.01 | AH57: 0.01 | AI57: 0.01 | AJ57: 0.01 | AK57: 0.01 | AL57: 0.01 | AM57: 0.01 | AN57: 0.01 | AO57: 0.01 | AP57: 0.01 | AQ57: 0.01 | AR57: 0.01 | AS57: 0.01 | AT57: 0.01 | AU57: 0.01 | AV57: 0.01 | AW57: 0.01 | AX57: 0.01 | AY57: 0.01 | AZ57: 0.01 | BA57: 0.01 | BB57: 0.01 | BC57: 0.01 | BD57: 0.01 | BE57: 0.01 | BF57: 0.01 | BG57: 0.01 | BH57: 0.01 | BI57: 0.01 | BJ57: 0.01 | BK57: 0.01 | BL57: 0.01 | BM57: 0.01 | BN57: 0.01
C58: 2 | D58: Expected Case | E58: % | G58: =1.73%+2.6% -> 0.0433 | H58: =1.73%+2.6% -> 0.0433 | I58: 0.0195 | J58: 0.0195 | K58: 0.0206 | L58: 0.0206 | M58: 0.0206 | N58: 0.0206 | O58: 0.0206 | P58: 0.0206 | Q58: 0.02101425658 | R58: 0.02101425658 | S58: 0.02143679829 | T58: 0.02143679829 | U58: 0.02186779083 | V58: 0.02186779083 | W58: 0.02230740323 | X58: 0.02230740323 | Y58: 0.02275580787 | Z58: 0.02275580787 | AA58: 0.0232131806 | AB58: 0.0232131806 | AC58: 0.02367970079 | AD58: 0.02367970079 | AE58: 0.02415555139 | AF58: 0.02415555139 | AG58: 0.02464091899 | AH58: 0.02464091899 | AI58: 0.02513599395 | AJ58: 0.02513599395 | AK58: 0.02564097041 | AL58: 0.02564097041 | AM58: 0.02615604639 | AN58: 0.02615604639 | AO58: 0.0266814239 | AP58: 0.0266814239 | AQ58: 0.02721730895 | AR58: 0.02721730895 | AS58: 0.02776391171 | AT58: 0.02776391171 | AU58: 0.02832144652 | AV58: 0.02832144652 | AW58: 0.02889013203 | AX58: 0.02889013203 | AY58: 0.02947019125 | AZ58: 0.02947019125 | BA58: 0.03006185165 | BB58: 0.03006185165 | BC58: 0.03066534526 | BD58: 0.03066534526 | BE58: 0.03128090874 | BF58: 0.03128090874 | BG58: 0.03128090874 | BH58: 0.03128090874 | BI58: 0.03128090874 | BJ58: 0.03128090874 | BK58: 0.03128090874 | BL58: 0.03128090874 | BM58: 0.03128090874 | BN58: 0.03128090874
C59: 3 | D59: High Inflation Case | E59: % | G59: =1.73%+2.6% -> 0.0433 | H59: =1.73%+2.6% -> 0.0433 | I59: 0.025 | J59: 0.025 | K59: 0.025 | L59: 0.025 | M59: 0.025 | N59: 0.025 | O59: 0.025 | P59: 0.025 | Q59: 0.025 | R59: 0.025 | S59: 0.025 | T59: 0.025 | U59: 0.025 | V59: 0.025 | W59: 0.025 | X59: 0.025 | Y59: 0.025 | Z59: 0.025 | AA59: 0.025 | AB59: 0.025 | AC59: 0.025 | AD59: 0.025 | AE59: 0.03 | AF59: 0.03 | AG59: 0.03 | AH59: 0.03 | AI59: 0.03 | AJ59: 0.03 | AK59: 0.03 | AL59: 0.03 | AM59: 0.03 | AN59: 0.03 | AO59: 0.03 | AP59: 0.03 | AQ59: 0.03 | AR59: 0.03 | AS59: 0.03 | AT59: 0.03 | AU59: 0.03 | AV59: 0.03 | AW59: 0.03 | AX59: 0.03 | AY59: 0.03 | AZ59: 0.03 | BA59: 0.03 | BB59: 0.03 | BC59: 0.03 | BD59: 0.03 | BE59: 0.03 | BF59: 0.03 | BG59: 0.03 | BH59: 0.03 | BI59: 0.03 | BJ59: 0.03 | BK59: 0.03 | BL59: 0.03 | BM59: 0.03 | BN59: 0.03
D60: =INDEX(D57:D59,$F$56) -> Expected Case | E60: % | G60: =INDEX(G57:G59,$F$56) -> 0.0433 | H60: 0.0433 | I60: 0.0195 | J60: 0.0195 | K60: 0.0206 | L60: 0.0206 | M60: 0.0206 | N60: 0.0206 | O60: 0.0206 | P60: 0.0206 | Q60: 0.02101425658 | R60: 0.02101425658 | S60: 0.02143679829 | T60: 0.02143679829 | U60: 0.02186779083 | V60: 0.02186779083 | W60: 0.02230740323 | X60: 0.02230740323 | Y60: 0.02275580787 | Z60: 0.02275580787 | AA60: 0.0232131806 | AB60: 0.0232131806 | AC60: 0.02367970079 | AD60: 0.02367970079 | AE60: 0.02415555139 | AF60: 0.02415555139 | AG60: 0.02464091899 | AH60: 0.02464091899 | AI60: 0.02513599395 | AJ60: 0.02513599395 | AK60: 0.02564097041 | AL60: 0.02564097041 | AM60: =INDEX(AM57:AM59,$F$56) -> 0.02615604639 | AN60: 0.02615604639 | AO60: 0.0266814239 | AP60: 0.0266814239 | AQ60: 0.02721730895 | AR60: 0.02721730895 | AS60: 0.02776391171 | AT60: 0.02776391171 | AU60: 0.02832144652 | AV60: 0.02832144652 | AW60: 0.02889013203 | AX60: 0.02889013203 | AY60: 0.02947019125 | AZ60: 0.02947019125 | BA60: 0.03006185165 | BB60: 0.03006185165 | BC60: 0.03066534526 | BD60: 0.03066534526 | BE60: 0.03128090874 | BF60: 0.03128090874 | BG60: 0.03128090874 | BH60: 0.03128090874 | BI60: 0.03128090874 | BJ60: 0.03128090874 | BK60: 0.03128090874 | BL60: 0.03128090874 | BM60: 0.03128090874 | BN60: 0.03128090874
C62: Revenue Inflation Rate | E62: Code Number | F62: ='Cockpit Page'!J38 -> 2
C63: 1 | D63: Low Inflation | E63: % | G63: 0.01 | H63: 0.01 | I63: 0.01 | J63: 0.01 | K63: 0.01 | L63: 0.01 | M63: 0.01 | N63: 0.01 | O63: 0.01 | P63: 0.01 | Q63: 0.01 | R63: 0.01 | S63: 0.01 | T63: 0.01 | U63: 0.01 | V63: 0.01 | W63: 0.01 | X63: 0.01 | Y63: 0.01 | Z63: 0.01 | AA63: 0.01 | AB63: 0.01 | AC63: 0.01 | AD63: 0.01 | AE63: 0.01 | AF63: 0.01 | AG63: 0.01 | AH63: 0.01 | AI63: 0.01 | AJ63: 0.01 | AK63: 0.01 | AL63: 0.01 | AM63: 0.01 | AN63: 0.01 | AO63: 0.01 | AP63: 0.01 | AQ63: 0.01 | AR63: 0.01 | AS63: 0.01 | AT63: 0.01 | AU63: 0.01 | AV63: 0.01 | AW63: 0.01 | AX63: 0.01 | AY63: 0.01 | AZ63: 0.01 | BA63: 0.01 | BB63: 0.01 | BC63: 0.01 | BD63: 0.01 | BE63: 0.01 | BF63: 0.01 | BG63: 0.01 | BH63: 0.01 | BI63: 0.01 | BJ63: 0.01 | BK63: 0.01 | BL63: 0.01 | BM63: 0.01 | BN63: 0.01
C64: 2 | D64: Expected Case | E64: % | G64: =1.73%+2.6% -> 0.0433 | H64: =1.73%+2.6% -> 0.0433 | I64: 0.0195 | J64: 0.0195 | K64: 0.0206 | L64: 0.0206 | M64: 0.0206 | N64: 0.0206 | O64: 0.0206 | P64: 0.0206 | Q64: 0.02101425658 | R64: 0.02101425658 | S64: 0.02143679829 | T64: 0.02143679829 | U64: 0.02186779083 | V64: 0.02186779083 | W64: 0.02230740323 | X64: 0.02230740323 | Y64: 0.02275580787 | Z64: 0.02275580787 | AA64: 0.0232131806 | AB64: 0.0232131806 | AC64: 0.02367970079 | AD64: 0.02367970079 | AE64: 0.02415555139 | AF64: 0.02415555139 | AG64: 0.02464091899 | AH64: 0.02464091899 | AI64: 0.02513599395 | AJ64: 0.02513599395 | AK64: 0.02564097041 | AL64: 0.02564097041 | AM64: 0.02615604639 | AN64: 0.02615604639 | AO64: 0.0266814239 | AP64: 0.0266814239 | AQ64: 0.02721730895 | AR64: 0.02721730895 | AS64: 0.02776391171 | AT64: 0.02776391171 | AU64: 0.02832144652 | AV64: 0.02832144652 | AW64: 0.02889013203 | AX64: 0.02889013203 | AY64: 0.02947019125 | AZ64: 0.02947019125 | BA64: 0.03006185165 | BB64: 0.03006185165 | BC64: 0.03066534526 | BD64: 0.03066534526 | BE64: 0.03128090874 | BF64: 0.03128090874 | BG64: 0.03128090874 | BH64: 0.03128090874 | BI64: 0.03128090874 | BJ64: 0.03128090874 | BK64: 0.03128090874 | BL64: 0.03128090874 | BM64: 0.03128090874 | BN64: 0.03128090874
C65: 3 | D65: High Inflation Case | E65: % | G65: =1.73%+2.6% -> 0.0433 | H65: =1.73%+2.6% -> 0.0433 | I65: =I59 -> 0.025 | J65: 0.025 | K65: 0.025 | L65: 0.025 | M65: 0.025 | N65: 0.025 | O65: 0.025 | P65: 0.025 | Q65: 0.025 | R65: 0.025 | S65: 0.025 | T65: 0.025 | U65: 0.025 | V65: 0.025 | W65: 0.025 | X65: 0.025 | Y65: 0.025 | Z65: 0.025 | AA65: 0.025 | AB65: 0.025 | AC65: 0.025 | AD65: 0.025 | AE65: 0.03 | AF65: 0.03 | AG65: 0.03 | AH65: 0.03 | AI65: 0.03 | AJ65: 0.03 | AK65: 0.03 | AL65: 0.03 | AM65: 0.03 | AN65: 0.03 | AO65: =AO59 -> 0.03 | AP65: 0.03 | AQ65: 0.03 | AR65: 0.03 | AS65: 0.03 | AT65: 0.03 | AU65: 0.03 | AV65: 0.03 | AW65: 0.03 | AX65: 0.03 | AY65: 0.03 | AZ65: 0.03 | BA65: 0.03 | BB65: 0.03 | BC65: 0.03 | BD65: 0.03 | BE65: 0.03 | BF65: 0.03 | BG65: 0.03 | BH65: 0.03 | BI65: 0.03 | BJ65: 0.03 | BK65: 0.03 | BL65: 0.03 | BM65: 0.03 | BN65: 0.03
D66: Revenue Inflation Applied | E66: % | G66: =INDEX(G63:G65,$F$62) -> 0.0433 | H66: 0.0433 | I66: 0.0195 | J66: 0.0195 | K66: 0.0206 | L66: 0.0206 | M66: 0.0206 | N66: 0.0206 | O66: 0.0206 | P66: 0.0206 | Q66: 0.02101425658 | R66: 0.02101425658 | S66: 0.02143679829 | T66: 0.02143679829 | U66: 0.02186779083 | V66: 0.02186779083 | W66: 0.02230740323 | X66: 0.02230740323 | Y66: 0.02275580787 | Z66: 0.02275580787 | AA66: 0.0232131806 | AB66: 0.0232131806 | AC66: 0.02367970079 | AD66: 0.02367970079 | AE66: 0.02415555139 | AF66: 0.02415555139 | AG66: 0.02464091899 | AH66: 0.02464091899 | AI66: 0.02513599395 | AJ66: 0.02513599395 | AK66: 0.02564097041 | AL66: 0.02564097041 | AM66: =INDEX(AM63:AM65,$F$62) -> 0.02615604639 | AN66: 0.02615604639 | AO66: 0.0266814239 | AP66: 0.0266814239 | AQ66: 0.02721730895 | AR66: 0.02721730895 | AS66: 0.02776391171 | AT66: 0.02776391171 | AU66: 0.02832144652 | AV66: 0.02832144652 | AW66: 0.02889013203 | AX66: 0.02889013203 | AY66: 0.02947019125 | AZ66: 0.02947019125 | BA66: 0.03006185165 | BB66: 0.03006185165 | BC66: 0.03066534526 | BD66: 0.03066534526 | BE66: 0.03128090874 | BF66: 0.03128090874 | BG66: 0.03128090874 | BH66: 0.03128090874 | BI66: 0.03128090874 | BJ66: 0.03128090874 | BK66: 0.03128090874 | BL66: 0.03128090874 | BM66: 0.03128090874 | BN66: 0.03128090874
D73: half a period | E73: % | G73: 0.5
D74: Operational delay in months | E74: Months | G74: 0
D75: Last day of 1st Period in model | E75: Date
D76: No of Months in year | E76: Months | G76: 12
D77: Refit 2 (€/mwh) | E77: (€/mwh)
D79: Start of SEM | E79: Date | G79: =G19+1 -> 2032-06-01
D80: End of SEM | E80: Date | G80: =G7 -> 2042-05-31
D81: Bonus for refit 2 (€/mwh) | E81: % | G81: 0.1379 | H81: =G77*G81 -> 0
D82: Share of Bonus after Discount years 1-15 for Refit 2 | E82: % | G82: 0.707

Sheet Cap Exp and Op Exp Assumptions
G1: 1 | I1: 1 | K1: 2 | M1: 3 | N1: 4
G2: =CHOOSE($G$1,I2,K2,M2,N2) -> Nordex E82/92 3/2.3MW | I2: Nordex E82/92 3/2.3MW
A3: Output
B4: Size of Turbine (MW) | G4: =CHOOSE($G$1,I4,K4,M4,N4) -> 2.5 | I4: 2.5
B5: No of Turbines | G5: =CHOOSE($G$1,I5,K5,M5,N5) -> 5 | I5: 5
B6: Size of Windfarm | G6: =CHOOSE($G$1,I6,K6,M6,N6) -> 12.5 | I6: =I4*I5 -> 12.5
B7: Refit 1 | G7: =CHOOSE($G$1,I7,K7,M7,N7) -> 12.5 | I7: 12.5
B8: Refit 2 | G8: =CHOOSE($G$1,I8,K8,M8,N8) -> 0 | I8: 0
A10: Construction Costs
B11: Development costs (€) | G11: =CHOOSE($G$1,I11,K11,M11,N11) -> 2536094 | I11: 2536094
B13: Turbine Supply Contract (in euros) | G13: =CHOOSE($G$1,I13,K13,M13,N13) -> 11285000 | I13: 11285000
B15: Finance/Legal / Banking (€) | G15: =CHOOSE($G$1,I15,K15,M15,N15) -> 200000 | I15: 200000
B16: Acquisition Cost | G16: 2599122 | I16: 2599122
B17: Construction Monitoring Summary | G17: 0 | I17: 0
B18: Project Management & Co-ordination | G18: 0 | I18: 0
B19: Water monitoring (€) | G19: 0 | I19: 0
B20: Independent engineers (€) | G20: 0 | I20: 0
B21: Insurances (€) | G21: 0 | I21: 0
B22: Electrical engineering infrastructure (€) | G22: 1635000 | I22: 1635000
B23: Electrical engineering consultant (€) | G23: 0 | I23: 0
B24: Grid Connection supply (€) | G24: 422850 | I24: 422850
B25: Civil works contract (€) | G25: 1670000 | I25: 1670000
B26: Telecommunications (€) | G26: 0 | I26: 0
B27: land purchase (access) | G27: 2234000 | I27: 2234000
B28: Miscellaneous | G28: 3118807 | I28: 3118807
A30: Refit 1 Production
B31: P50 (mwh) semi annual | G31: =CHOOSE($G$1,I31,K31,M31,N31) -> 19400 | I31: =38800/2 -> 19400
B32: P75 (mwh) semi annual | G32: =CHOOSE($G$1,I32,K32,M32,N32) -> 18100 | I32: =36200/2 -> 18100
B33: P90 (mwh) semi annual | G33: =CHOOSE($G$1,I33,K33,M33,N33) -> 17000 | I33: =34000/2 -> 17000
B34: P99 (mwh) semi annual | G34: =CHOOSE($G$1,I34,K34,M34,N34) -> 15300 | I34: =I33*0.9 -> 15300
A36: Refit 2 Production
B37: P50 (mwh) semi annual | G37: =CHOOSE($G$1,I37,K37,M37,N37) -> 0 | I37: 0
B38: P75 (mwh) semi annual | G38: =CHOOSE($G$1,I38,K38,M38,N38) -> 0 | I38: 0
B39: P90 (mwh) semi annual | G39: =CHOOSE($G$1,I39,K39,M39,N39) -> 0 | I39: 0
B40: P99 (mwh) semi annual | G40: =CHOOSE($G$1,I40,K40,M40,N40) -> 0 | I40: 0
A42: Rent | E42: From | F42: To
B43: Rent years 1-5 | E43: 2015-01-01 | F43: 00:00:00 | G43: =CHOOSE($G$1,I43,K43,M43,N43) -> 0 | I43: 0
B44: Rent years 6-10 | E44: 00:00:00 | F44: 00:00:00 | G44: =CHOOSE($G$1,I44,K44,M44,N44) -> 0 | I44: 0
B45: Rent post year 10 | E45: 00:00:00 | F45: 00:00:00 | G45: =CHOOSE($G$1,I45,K45,M45,N45) -> 0 | I45: 0
A47: Service & Availability | E47: From | F47: To | G47: Price
B48: Price per period 1 | E48: 2015-01-01 | F48: 2019-12-31 | G48: =CHOOSE($G$1,I48,K48,M48,N48) -> 8.367040369 | I48: 8.367040369
B49: Price per period 2 | E49: 2020-01-01 | F49: 2024-12-31 | G49: =CHOOSE($G$1,I49,K49,M49,N49) -> 10 | I49: 10
B50: Price per period 3 | E50: 2025-01-01 | F50: 2029-12-31 | G50: =CHOOSE($G$1,I50,K50,M50,N50) -> 12 | I50: 12
B51: Price per period 4 | E51: 2030-01-01 | F51: 2034-12-31 | G51: =CHOOSE($G$1,I51,K51,M51,N51) -> 12 | I51: 12
B52: Price per period 5 | E52: 2035-01-01 | F52: 2039-12-31 | G52: =CHOOSE($G$1,I52,K52,M52,N52) -> 12 | I52: 12
A54: Maintenance & services | E54: From | F54: To
B55: Price for Maintenance & services - Phase I | E55: ='Timing, Infl, Rev Assumptions'!$G$6 -> 2017-06-01 | F55: =EDATE(E55,'Timing, Infl, Rev Assumptions'!$G$76*3)-1 -> 2020-05-31 | G55: =CHOOSE($G$1,I55,K55,M55,N55) -> 0 | I55: 0
B56: Price for Maintenance & services - Phase II | E56: =F55+1 -> 2020-06-01 | F56: =EDATE(E56,'Timing, Infl, Rev Assumptions'!$G$76*7)-1 -> 2027-05-31 | G56: =CHOOSE($G$1,I56,K56,M56,N56) -> 0 | I56: 0
B57: Price for Maintenance & services - Phase III | E57: =F56+1 -> 2027-06-01 | F57: =EDATE(E57,'Timing, Infl, Rev Assumptions'!$G$76*10)-1 -> 2037-05-31 | G57: =CHOOSE($G$1,I57,K57,M57,N57) -> 0 | I57: 0
A59: Operation and Maintenance
B60: Annual BOP Maintenance cost per MW in euros | G60: =CHOOSE($G$1,I60,K60,M60,N60) -> 6000 | I60: 6000
B61: Annual Metering and Electrical input charge per MW in euros | G61: 0 | I61: 0
B62: Annual Insurance per MW in euros | G62: 2000 | I62: 2000
B63: Annual Bank agency fees per MW in euros | G63: 0 | I63: 0
B64: Annual Business rates per MW in euros | G64: 6600 | I64: 6600
B65: Annual SPV fee per MW in euros | G65: 0 | I65: 0
B66: Annual Consultant fees per MW in euros | G66: 0 | I66: 0
B67: Annual Other costs per MW in euros | G67: 0 | I67: 0
B68: Annual Tax, Audit & Accounting costs per MW in euros | G68: 0 | I68: 0
B69: Annual Line O & M per MW in euros | G69: 4500 | I69: 4500
B70: Annual Contingency costs per MW in euros | G70: 573 | I70: =SUM(I60:I69)*I71 -> 573
B71: Contingency percentage | I71: 0.03
B72: Annual Community Fund per MW euros | G72: =CHOOSE($G$1,I72,K72,M72,N72) -> 1000 | I72: 1000
A75: Curtailment | G75: Refit 1 | H75: Refit 1 | I75: Refit 2 | J75: Refit 2
G76: Gate 2 | H76: Gate 2 | I76: Gate 3 | J76: Gate 3
G77: P90 | H77: P50 | I77: P50 | J77: P50
E78: From | F78: To | G78: P99 | H78: P75 | I78: P99 | J78: P75
E80: ='Timing, Infl, Rev Assumptions'!G3 -> 2015-01-01 | F80: 2015-12-31 | G80: 0.0495 | H80: 0.0495 | I80: 0 | J80: 0
E81: =F80+1 -> 2016-01-01 | F81: 2016-12-31 | G81: 0.057 | H81: 0.057 | I81: 0 | J81: 0
E82: 2017-01-01 | F82: 2017-12-31 | G82: 0.02 | H82: 0.02 | I82: 0 | J82: 0
E83: 2018-01-01 | F83: 2018-12-31 | G83: 0.031 | H83: 0.0315 | I83: 0 | J83: 0
E84: 2019-01-01 | F84: 2019-12-31 | G84: 0.031 | H84: 0.0315 | I84: 0 | J84: 0
E85: 2020-01-01 | F85: 2020-12-31 | G85: 0.037 | H85: 0.0365 | I85: 0 | J85: 0
E86: 2021-01-01 | F86: 2021-12-31 | G86: 0.037 | H86: 0.0365 | I86: 0 | J86: 0
E87: 2022-01-01 | F87: 2022-12-31 | G87: 0.037 | H87: 0.0365 | I87: 0 | J87: 0
E88: 2023-01-01 | F88: 2039-12-31 | G88: 0.037 | H88: 0.0365 | I88: 0 | J88: 0
B226: Curtailment for Gate 2 at P90 | I226: Gate 2 P90 | K226: Gate 2 P50 | M226: Gate 2 App Rate
B227: Charge | E227: 2015-12-31 | G227: =CHOOSE($G$1,I227,#REF!,M227,N227) -> 0.0495 | I227: 0.0495 | K227: 0.0495 | P227: =CHOOSE($G$1,K227,K247,M247,N247) -> 0.0495
B228: End of charge | E228: 2016-12-31 | G228: =CHOOSE($G$1,I228,K229,M229,N229) -> 0.057 | I228: 0.057 | K228: 0.057
B229: Charge | E229: 2017-12-31 | G229: 0.02 | I229: 0.02
B230: End of charge | E230: =CHOOSE($G$1,I234,K234,M234,N234) -> 2018-12-31 | G230: 0.031 | I230: 0.0315
B231: Charge | E231: =CHOOSE($G$1,I236,K236,M236,N236) -> 2019-12-31 | G231: 0.031
B232: End of charge | E232: =CHOOSE($G$1,I238,K238,M238,N238) -> 2020-12-31 | G232: 0.037
B233: Charge | E233: =CHOOSE($G$1,I240,K240,M240,N240) -> 2021-12-31 | G233: 0.037
B234: End of charge | E234: =CHOOSE($G$1,I242,K242,M242,N242) -> 2022-12-31 | G234: 0.037 | I234: 2018-12-31
B235: Charge | E235: =CHOOSE($G$1,I244,K244,M244,N244) -> 2039-12-31 | G235: 0.037 | I235: 0.031 | K235: 0.0315
B236: End of charge | I236: 2019-12-31
B237: Charge | I237: 0.037 | K237: 0.0365
B238: End of charge | I238: 2020-12-31
B239: Charge | I239: 0.037 | K239: 0.0365
B240: End of charge | I240: 2021-12-31
B241: Charge | I241: 0.037 | K241: 0.0365
B242: End of charge | I242: 2022-12-31
B243: Charge | I243: 0.037 | K243: 0.0365
B244: End of charge | I244: 2039-12-31
B246: Curtailment or Gate 2 at P50
B247: Charge
B248: End of charge | G248: =CHOOSE($G$1,I248,K248,M248,N248) -> 2015-12-31 | I248: 2015-12-31
B249: Charge | G249: 0.057
B250: End of charge | G250: =CHOOSE($G$1,I250,K250,M250,N250) -> 2016-12-31 | I250: 2016-12-31
B251: Charge | G251: 0.02
B252: End of charge | G252: =CHOOSE($G$1,I252,K252,M252,N252) -> 2017-12-31 | I252: 2017-12-31
B253: Charge | G253: 0.032
B254: End of charge | G254: =CHOOSE($G$1,I254,K254,M254,N254) -> 2018-12-31 | I254: 2018-12-31
B255: Charge | G255: 0.032
B256: End of charge | G256: =CHOOSE($G$1,I256,K256,M256,N256) -> 2019-12-31 | I256: 2019-12-31
B257: Charge | G257: 0.037
B258: End of charge | G258: =CHOOSE($G$1,I258,K258,M258,N258) -> 2020-12-31 | I258: 2020-12-31
B259: Charge | G259: 0.04
B260: End of charge | G260: =CHOOSE($G$1,I260,K260,M260,N260) -> 2021-12-31 | I260: 2021-12-31
B261: Charge | G261: 0.04
B262: End of charge | G262: =CHOOSE($G$1,I262,K262,M262,N262) -> 2024-12-31 | I262: 2024-12-31
B263: Charge | G263: 0.04
B264: End of charge | G264: =CHOOSE($G$1,I264,K264,M264,N264) -> 2039-12-31 | I264: 2039-12-31
B266: Curtailment for Gate 2 at Applicable rate
B267: Charge | G267: 0.05 | I267: =IF('Cockpit Page'!$D$38=3,'Cap Exp and Op Exp Assumptions'!I227,'Cap Exp and Op Exp Assumptions'!K227) -> 0.0495 | K267: =IF('Cockpit Page'!$D$38=3,'Cap Exp and Op Exp Assumptions'!#REF!,'Cap Exp and Op Exp Assumptions'!K247) -> 0 | M267: =IF('Cockpit Page'!$D$38=3,'Cap Exp and Op Exp Assumptions'!M227,'Cap Exp and Op Exp Assumptions'!M247) -> 0 | N267: =IF('Cockpit Page'!$D$38=3,'Cap Exp and Op Exp Assumptions'!N227,'Cap Exp and Op Exp Assumptions'!N247) -> 0
B268: End of charge | G268: =CHOOSE($G$1,I268,K268,M268,N268) -> 2015-12-31 | I268: =IF('Cockpit Page'!$D$38=3,'Cap Exp and Op Exp Assumptions'!#REF!,'Cap Exp and Op Exp Assumptions'!I248) -> 2015-12-31 | K268: =IF('Cockpit Page'!$D$38=3,'Cap Exp and Op Exp Assumptions'!#REF!,'Cap Exp and Op Exp Assumptions'!K248) -> 00:00:00 | M268: =IF('Cockpit Page'!$D$38=3,'Cap Exp and Op Exp Assumptions'!M228,'Cap Exp and Op Exp Assumptions'!M248) -> 00:00:00 | N268: =IF('Cockpit Page'!$D$38=3,'Cap Exp and Op Exp Assumptions'!N228,'Cap Exp and Op Exp Assumptions'!N248) -> 00:00:00
B269: Charge | G269: 0.06 | I269: =IF('Cockpit Page'!$D$38=3,'Cap Exp and Op Exp Assumptions'!I228,'Cap Exp and Op Exp Assumptions'!K228) -> 0.057 | K269: =IF('Cockpit Page'!$D$38=3,'Cap Exp and Op Exp Assumptions'!K229,'Cap Exp and Op Exp Assumptions'!K249) -> 0 | M269: =IF('Cockpit Page'!$D$38=3,'Cap Exp and Op Exp Assumptions'!M229,'Cap Exp and Op Exp Assumptions'!M249) -> 0 | N269: =IF('Cockpit Page'!$D$38=3,'Cap Exp and Op Exp Assumptions'!N229,'Cap Exp and Op Exp Assumptions'!N249) -> 0
B270: End of charge | G270: =CHOOSE($G$1,I270,K270,M270,N270) -> 2016-12-31 | I270: =IF('Cockpit Page'!$D$38=3,'Cap Exp and Op Exp Assumptions'!E228,'Cap Exp and Op Exp Assumptions'!I250) -> 2016-12-31 | K270: =IF('Cockpit Page'!$D$38=3,'Cap Exp and Op Exp Assumptions'!K230,'Cap Exp and Op Exp Assumptions'!K250) -> 00:00:00 | M270: =IF('Cockpit Page'!$D$38=3,'Cap Exp and Op Exp Assumptions'!M230,'Cap Exp and Op Exp Assumptions'!M250) -> 00:00:00 | N270: =IF('Cockpit Page'!$D$38=3,'Cap Exp and Op Exp Assumptions'!N230,'Cap Exp and Op Exp Assumptions'!N250) -> 00:00:00
B271: Charge | G271: 0.02 | I271: =IF('Cockpit Page'!$D$38=3,'Cap Exp and Op Exp Assumptions'!G229,'Cap Exp and Op Exp Assumptions'!I229) -> 0.02 | K271: =IF('Cockpit Page'!$D$38=3,'Cap Exp and Op Exp Assumptions'!#REF!,'Cap Exp and Op Exp Assumptions'!K251) -> 0 | M271: =IF('Cockpit Page'!$D$38=3,'Cap Exp and Op Exp Assumptions'!M231,'Cap Exp and Op Exp Assumptions'!M251) -> 0 | N271: =IF('Cockpit Page'!$D$38=3,'Cap Exp and Op Exp Assumptions'!N231,'Cap Exp and Op Exp Assumptions'!N251) -> 0
B272: End of charge | G272: =CHOOSE($G$1,I272,K272,M272,N272) -> 2017-12-31 | I272: =IF('Cockpit Page'!$D$38=3,'Cap Exp and Op Exp Assumptions'!E229,'Cap Exp and Op Exp Assumptions'!I252) -> 2017-12-31 | K272: =IF('Cockpit Page'!$D$38=3,'Cap Exp and Op Exp Assumptions'!K232,'Cap Exp and Op Exp Assumptions'!K252) -> 00:00:00 | M272: =IF('Cockpit Page'!$D$38=3,'Cap Exp and Op Exp Assumptions'!M232,'Cap Exp and Op Exp Assumptions'!M252) -> 00:00:00 | N272: =IF('Cockpit Page'!$D$38=3,'Cap Exp and Op Exp Assumptions'!N232,'Cap Exp and Op Exp Assumptions'!N252) -> 00:00:00
B273: Charge | G273: 0.032 | I273: =IF('Cockpit Page'!$D$38=3,'Cap Exp and Op Exp Assumptions'!G230,'Cap Exp and Op Exp Assumptions'!I230) -> 0.0315 | K273: =IF('Cockpit Page'!$D$38=3,'Cap Exp and Op Exp Assumptions'!#REF!,'Cap Exp and Op Exp Assumptions'!K253) -> 0 | M273: =IF('Cockpit Page'!$D$38=3,'Cap Exp and Op Exp Assumptions'!M233,'Cap Exp and Op Exp Assumptions'!M253) -> 0 | N273: =IF('Cockpit Page'!$D$38=3,'Cap Exp and Op Exp Assumptions'!N233,'Cap Exp and Op Exp Assumptions'!N253) -> 0
B274: End of charge | G274: =CHOOSE($G$1,I274,K274,M274,N274) -> 2018-12-31 | I274: =IF('Cockpit Page'!$D$38=3,'Cap Exp and Op Exp Assumptions'!I234,'Cap Exp and Op Exp Assumptions'!I254) -> 2018-12-31 | K274: =IF('Cockpit Page'!$D$38=3,'Cap Exp and Op Exp Assumptions'!K234,'Cap Exp and Op Exp Assumptions'!K254) -> 00:00:00 | M274: =IF('Cockpit Page'!$D$38=3,'Cap Exp and Op Exp Assumptions'!M234,'Cap Exp and Op Exp Assumptions'!M254) -> 00:00:00 | N274: =IF('Cockpit Page'!$D$38=3,'Cap Exp and Op Exp Assumptions'!N234,'Cap Exp and Op Exp Assumptions'!N254) -> 00:00:00
B275: Charge | G275: 0.032 | I275: =IF('Cockpit Page'!$D$38=3,'Cap Exp and Op Exp Assumptions'!I235,'Cap Exp and Op Exp Assumptions'!K235) -> 0.0315 | K275: =IF('Cockpit Page'!$D$38=3,'Cap Exp and Op Exp Assumptions'!#REF!,'Cap Exp and Op Exp Assumptions'!K255) -> 0 | M275: =IF('Cockpit Page'!$D$38=3,'Cap Exp and Op Exp Assumptions'!M235,'Cap Exp and Op Exp Assumptions'!M255) -> 0 | N275: =IF('Cockpit Page'!$D$38=3,'Cap Exp and Op Exp Assumptions'!N235,'Cap Exp and Op Exp Assumptions'!N255) -> 0
B276: End of charge | G276: =CHOOSE($G$1,I276,K276,M276,N276) -> 2019-12-31 | I276: =IF('Cockpit Page'!$D$38=3,'Cap Exp and Op Exp Assumptions'!I236,'Cap Exp and Op Exp Assumptions'!I256) -> 2019-12-31 | K276: =IF('Cockpit Page'!$D$38=3,'Cap Exp and Op Exp Assumptions'!K236,'Cap Exp and Op Exp Assumptions'!K256) -> 00:00:00 | M276: =IF('Cockpit Page'!$D$38=3,'Cap Exp and Op Exp Assumptions'!M236,'Cap Exp and Op Exp Assumptions'!M256) -> 00:00:00 | N276: =IF('Cockpit Page'!$D$38=3,'Cap Exp and Op Exp Assumptions'!N236,'Cap Exp and Op Exp Assumptions'!N256) -> 00:00:00
B277: Charge | G277: 0.037 | I277: =IF('Cockpit Page'!$D$38=3,'Cap Exp and Op Exp Assumptions'!I237,'Cap Exp and Op Exp Assumptions'!K237) -> 0.0365 | K277: =IF('Cockpit Page'!$D$38=3,'Cap Exp and Op Exp Assumptions'!#REF!,'Cap Exp and Op Exp Assumptions'!K257) -> 0 | M277: =IF('Cockpit Page'!$D$38=3,'Cap Exp and Op Exp Assumptions'!M237,'Cap Exp and Op Exp Assumptions'!M257) -> 0 | N277: =IF('Cockpit Page'!$D$38=3,'Cap Exp and Op Exp Assumptions'!N237,'Cap Exp and Op Exp Assumptions'!N257) -> 0
B278: End of charge | G278: =CHOOSE($G$1,I278,K278,M278,N278) -> 2020-12-31 | I278: =IF('Cockpit Page'!$D$38=3,'Cap Exp and Op Exp Assumptions'!I238,'Cap Exp and Op Exp Assumptions'!I258) -> 2020-12-31 | K278: =IF('Cockpit Page'!$D$38=3,'Cap Exp and Op Exp Assumptions'!K238,'Cap Exp and Op Exp Assumptions'!K258) -> 00:00:00 | M278: =IF('Cockpit Page'!$D$38=3,'Cap Exp and Op Exp Assumptions'!M238,'Cap Exp and Op Exp Assumptions'!M258) -> 00:00:00 | N278: =IF('Cockpit Page'!$D$38=3,'Cap Exp and Op Exp Assumptions'!N238,'Cap Exp and Op Exp Assumptions'!N258) -> 00:00:00
B279: Charge | G279: 0.04 | I279: =IF('Cockpit Page'!$D$38=3,'Cap Exp and Op Exp Assumptions'!I239,'Cap Exp and Op Exp Assumptions'!K239) -> 0.0365 | K279: =IF('Cockpit Page'!$D$38=3,'Cap Exp and Op Exp Assumptions'!#REF!,'Cap Exp and Op Exp Assumptions'!K259) -> 0 | M279: =IF('Cockpit Page'!$D$38=3,'Cap Exp and Op Exp Assumptions'!M239,'Cap Exp and Op Exp Assumptions'!M259) -> 0 | N279: =IF('Cockpit Page'!$D$38=3,'Cap Exp and Op Exp Assumptions'!N239,'Cap Exp and Op Exp Assumptions'!N259) -> 0
B280: End of charge | G280: =CHOOSE($G$1,I280,K280,M280,N280) -> 2021-12-31 | I280: =IF('Cockpit Page'!$D$38=3,'Cap Exp and Op Exp Assumptions'!I240,'Cap Exp and Op Exp Assumptions'!I260) -> 2021-12-31 | K280: =IF('Cockpit Page'!$D$38=3,'Cap Exp and Op Exp Assumptions'!K240,'Cap Exp and Op Exp Assumptions'!K260) -> 00:00:00 | M280: =IF('Cockpit Page'!$D$38=3,'Cap Exp and Op Exp Assumptions'!M240,'Cap Exp and Op Exp Assumptions'!M260) -> 00:00:00 | N280: =IF('Cockpit Page'!$D$38=3,'Cap Exp and Op Exp Assumptions'!N240,'Cap Exp and Op Exp Assumptions'!N260) -> 00:00:00
B281: Charge | G281: 0.037 | I281: =IF('Cockpit Page'!$D$38=3,'Cap Exp and Op Exp Assumptions'!I241,'Cap Exp and Op Exp Assumptions'!K241) -> 0.0365 | K281: =IF('Cockpit Page'!$D$38=3,'Cap Exp and Op Exp Assumptions'!#REF!,'Cap Exp and Op Exp Assumptions'!K261) -> 0 | M281: =IF('Cockpit Page'!$D$38=3,'Cap Exp and Op Exp Assumptions'!M241,'Cap Exp and Op Exp Assumptions'!M261) -> 0 | N281: =IF('Cockpit Page'!$D$38=3,'Cap Exp and Op Exp Assumptions'!N241,'Cap Exp and Op Exp Assumptions'!N261) -> 0
B282: End of charge | G282: =CHOOSE($G$1,I282,K282,M282,N282) -> 2024-12-31 | I282: =IF('Cockpit Page'!$D$38=3,'Cap Exp and Op Exp Assumptions'!I242,'Cap Exp and Op Exp Assumptions'!I262) -> 2024-12-31 | K282: =IF('Cockpit Page'!$D$38=3,'Cap Exp and Op Exp Assumptions'!K242,'Cap Exp and Op Exp Assumptions'!K262) -> 00:00:00 | M282: =IF('Cockpit Page'!$D$38=3,'Cap Exp and Op Exp Assumptions'!M242,'Cap Exp and Op Exp Assumptions'!M262) -> 00:00:00 | N282: =IF('Cockpit Page'!$D$38=3,'Cap Exp and Op Exp Assumptions'!N242,'Cap Exp and Op Exp Assumptions'!N262) -> 00:00:00
B283: Charge | G283: 0.037 | I283: =IF('Cockpit Page'!$D$38=3,'Cap Exp and Op Exp Assumptions'!I243,'Cap Exp and Op Exp Assumptions'!K243) -> 0.0365 | K283: =IF('Cockpit Page'!$D$38=3,'Cap Exp and Op Exp Assumptions'!#REF!,'Cap Exp and Op Exp Assumptions'!K263) -> 0 | M283: =IF('Cockpit Page'!$D$38=3,'Cap Exp and Op Exp Assumptions'!M243,'Cap Exp and Op Exp Assumptions'!M263) -> 0 | N283: =IF('Cockpit Page'!$D$38=3,'Cap Exp and Op Exp Assumptions'!N243,'Cap Exp and Op Exp Assumptions'!N263) -> 0
B284: End of charge | G284: =CHOOSE($G$1,I284,K284,M284,N284) -> 2039-12-31 | I284: =IF('Cockpit Page'!$D$38=3,'Cap Exp and Op Exp Assumptions'!I244,'Cap Exp and Op Exp Assumptions'!I264) -> 2039-12-31 | K284: =IF('Cockpit Page'!$D$38=3,'Cap Exp and Op Exp Assumptions'!K244,'Cap Exp and Op Exp Assumptions'!K264) -> 00:00:00 | M284: =IF('Cockpit Page'!$D$38=3,'Cap Exp and Op Exp Assumptions'!M244,'Cap Exp and Op Exp Assumptions'!M264) -> 00:00:00 | N284: =IF('Cockpit Page'!$D$38=3,'Cap Exp and Op Exp Assumptions'!N244,'Cap Exp and Op Exp Assumptions'!N264) -> 00:00:00
B286: Curtailment for Gate 3 at P90
B287: Charge | G287: 0 | I287: 0 | K287: 0 | M287: 0 | N287: 0
B288: End of charge | G288: =CHOOSE($G$1,I288,K288,M288,N288) -> 2014-12-31 | I288: 2014-12-31 | K288: 2014-12-31 | M288: 2014-12-31 | N288: 2014-12-31
B289: Charge | G289: 0 | I289: 0 | K289: 0 | M289: 0 | N289: 0
B290: End of charge | G290: =CHOOSE($G$1,I290,K290,M290,N290) -> 2015-12-31 | I290: 2015-12-31 | K290: 2015-12-31 | M290: 2015-12-31 | N290: 2015-12-31
B291: Charge | G291: 0 | I291: 0 | K291: 0 | M291: 0 | N291: 0
B292: End of charge | G292: =CHOOSE($G$1,I292,K292,M292,N292) -> 2016-12-31 | I292: 2016-12-31 | K292: 2016-12-31 | M292: 2016-12-31 | N292: 2016-12-31
B293: Charge | G293: 0 | I293: 0 | K293: 0 | M293: 0 | N293: 0
B294: End of charge | G294: =CHOOSE($G$1,I294,K294,M294,N294) -> 2017-12-31 | I294: 2017-12-31 | K294: 2017-12-31 | M294: 2017-12-31 | N294: 2017-12-31
B295: Charge | G295: 0 | I295: 0 | K295: 0 | M295: 0 | N295: 0
B296: End of charge | G296: =CHOOSE($G$1,I296,K296,M296,N296) -> 2018-12-31 | I296: 2018-12-31 | K296: 2018-12-31 | M296: 2018-12-31 | N296: 2018-12-31
B297: Charge | G297: 0 | I297: 0 | K297: 0 | M297: 0 | N297: 0
B298: End of charge | G298: =CHOOSE($G$1,I298,K298,M298,N298) -> 2019-12-31 | I298: 2019-12-31 | K298: 2019-12-31 | M298: 2019-12-31 | N298: 2019-12-31
B299: Charge | G299: 0 | I299: 0 | K299: 0 | M299: 0 | N299: 0
B300: End of charge | G300: =CHOOSE($G$1,I300,K300,M300,N300) -> 2020-12-31 | I300: 2020-12-31 | K300: 2020-12-31 | M300: 2020-12-31 | N300: 2020-12-31
B301: Charge | G301: 0 | I301: 0 | K301: 0 | M301: 0 | N301: 0
B302: End of charge | G302: =CHOOSE($G$1,I302,K302,M302,N302) -> 2021-12-31 | I302: 2021-12-31 | K302: 2021-12-31 | M302: 2021-12-31 | N302: 2021-12-31
B303: Charge | G303: 0 | I303: 0 | K303: 0 | M303: 0 | N303: 0
B304: End of charge | G304: =CHOOSE($G$1,I304,K304,M304,N304) -> 2027-12-31 | I304: 2027-12-31 | K304: 2027-12-31 | M304: 2027-12-31 | N304: 2027-12-31
B306: Curtailment for Gate 3 at P50
B307: Charge | G307: 0 | I307: 0 | K307: 0 | M307: 0 | N307: 0
B308: End of charge | G308: =CHOOSE($G$1,I308,K308,M308,N308) -> 2014-12-31 | I308: 2014-12-31 | K308: 2014-12-31 | M308: 2014-12-31 | N308: 2014-12-31
B309: Charge | G309: 0 | I309: 0 | K309: 0 | M309: 0 | N309: 0
B310: End of charge | G310: =CHOOSE($G$1,I310,K310,M310,N310) -> 2015-12-31 | I310: 2015-12-31 | K310: 2015-12-31 | M310: 2015-12-31 | N310: 2015-12-31
B311: Charge | G311: 0 | I311: 0 | K311: 0 | M311: 0 | N311: 0
B312: End of charge | G312: =CHOOSE($G$1,I312,K312,M312,N312) -> 2016-12-31 | I312: 2016-12-31 | K312: 2016-12-31 | M312: 2016-12-31 | N312: 2016-12-31
B313: Charge | G313: 0 | I313: 0 | K313: 0 | M313: 0 | N313: 0
B314: End of charge | G314: =CHOOSE($G$1,I314,K314,M314,N314) -> 2017-12-31 | I314: 2017-12-31 | K314: 2017-12-31 | M314: 2017-12-31 | N314: 2017-12-31
B315: Charge | G315: 0 | I315: 0 | K315: 0 | M315: 0 | N315: 0
B316: End of charge | G316: =CHOOSE($G$1,I316,K316,M316,N316) -> 2018-12-31 | I316: 2018-12-31 | K316: 2018-12-31 | M316: 2018-12-31 | N316: 2018-12-31
B317: Charge | G317: 0 | I317: 0 | K317: 0 | M317: 0 | N317: 0
B318: End of charge | G318: =CHOOSE($G$1,I318,K318,M318,N318) -> 2019-12-31 | I318: 2019-12-31 | K318: 2019-12-31 | M318: 2019-12-31 | N318: 2019-12-31
B319: Charge | G319: 0 | I319: 0 | K319: 0 | M319: 0 | N319: 0
B320: End of charge | G320: =CHOOSE($G$1,I320,K320,M320,N320) -> 2020-12-31 | I320: 2020-12-31 | K320: 2020-12-31 | M320: 2020-12-31 | N320: 2020-12-31
B321: Charge | G321: 0 | I321: 0 | K321: 0 | M321: 0 | N321: 0
B322: End of charge | G322: =CHOOSE($G$1,I322,K322,M322,N322) -> 2021-12-31 | I322: 2021-12-31 | K322: 2021-12-31 | M322: 2021-12-31 | N322: 2021-12-31
B323: Charge | G323: 0 | I323: 0 | K323: 0 | M323: 0 | N323: 0
B324: End of charge | G324: =CHOOSE($G$1,I324,K324,M324,N324) -> 2027-12-31 | I324: 2027-12-31 | K324: 2027-12-31 | M324: 2027-12-31 | N324: 2027-12-31
B326: Curtailment for Gate 3 at Applicable rate
B327: Charge | G327: =CHOOSE($G$1,I327,K327,M327,N327) -> 0 | I327: =IF('Cockpit Page'!$D$38=3,'Cap Exp and Op Exp Assumptions'!I287,'Cap Exp and Op Exp Assumptions'!I307) -> 0 | K327: =IF('Cockpit Page'!$D$38=3,'Cap Exp and Op Exp Assumptions'!K287,'Cap Exp and Op Exp Assumptions'!K307) -> 0 | M327: =IF('Cockpit Page'!$D$38=3,'Cap Exp and Op Exp Assumptions'!M287,'Cap Exp and Op Exp Assumptions'!M307) -> 0 | N327: =IF('Cockpit Page'!$D$38=3,'Cap Exp and Op Exp Assumptions'!N287,'Cap Exp and Op Exp Assumptions'!N307) -> 0
B328: End of charge | G328: 2014-12-31 | I328: =IF('Cockpit Page'!$D$38=3,'Cap Exp and Op Exp Assumptions'!I288,'Cap Exp and Op Exp Assumptions'!I308) -> 2014-12-31 | K328: =IF('Cockpit Page'!$D$38=3,'Cap Exp and Op Exp Assumptions'!K288,'Cap Exp and Op Exp Assumptions'!K308) -> 2014-12-31 | M328: =IF('Cockpit Page'!$D$38=3,'Cap Exp and Op Exp Assumptions'!M288,'Cap Exp and Op Exp Assumptions'!M308) -> 2014-12-31 | N328: =IF('Cockpit Page'!$D$38=3,'Cap Exp and Op Exp Assumptions'!N288,'Cap Exp and Op Exp Assumptions'!N308) -> 2014-12-31
B329: Charge | G329: 0 | I329: =IF('Cockpit Page'!$D$38=3,'Cap Exp and Op Exp Assumptions'!I289,'Cap Exp and Op Exp Assumptions'!I309) -> 0 | K329: =IF('Cockpit Page'!$D$38=3,'Cap Exp and Op Exp Assumptions'!K289,'Cap Exp and Op Exp Assumptions'!K309) -> 0 | M329: =IF('Cockpit Page'!$D$38=3,'Cap Exp and Op Exp Assumptions'!M289,'Cap Exp and Op Exp Assumptions'!M309) -> 0 | N329: =IF('Cockpit Page'!$D$38=3,'Cap Exp and Op Exp Assumptions'!N289,'Cap Exp and Op Exp Assumptions'!N309) -> 0
B330: End of charge | G330: 2015-12-31 | I330: =IF('Cockpit Page'!$D$38=3,'Cap Exp and Op Exp Assumptions'!I290,'Cap Exp and Op Exp Assumptions'!I310) -> 2015-12-31 | K330: =IF('Cockpit Page'!$D$38=3,'Cap Exp and Op Exp Assumptions'!K290,'Cap Exp and Op Exp Assumptions'!K310) -> 2015-12-31 | M330: =IF('Cockpit Page'!$D$38=3,'Cap Exp and Op Exp Assumptions'!M290,'Cap Exp and Op Exp Assumptions'!M310) -> 2015-12-31 | N330: =IF('Cockpit Page'!$D$38=3,'Cap Exp and Op Exp Assumptions'!N290,'Cap Exp and Op Exp Assumptions'!N310) -> 2015-12-31
B331: Charge | G331: 0 | I331: =IF('Cockpit Page'!$D$38=3,'Cap Exp and Op Exp Assumptions'!I291,'Cap Exp and Op Exp Assumptions'!I311) -> 0 | K331: =IF('Cockpit Page'!$D$38=3,'Cap Exp and Op Exp Assumptions'!K291,'Cap Exp and Op Exp Assumptions'!K311) -> 0 | M331: =IF('Cockpit Page'!$D$38=3,'Cap Exp and Op Exp Assumptions'!M291,'Cap Exp and Op Exp Assumptions'!M311) -> 0 | N331: =IF('Cockpit Page'!$D$38=3,'Cap Exp and Op Exp Assumptions'!N291,'Cap Exp and Op Exp Assumptions'!N311) -> 0
B332: End of charge | G332: 2016-12-31 | I332: =IF('Cockpit Page'!$D$38=3,'Cap Exp and Op Exp Assumptions'!I292,'Cap Exp and Op Exp Assumptions'!I312) -> 2016-12-31 | K332: =IF('Cockpit Page'!$D$38=3,'Cap Exp and Op Exp Assumptions'!K292,'Cap Exp and Op Exp Assumptions'!K312) -> 2016-12-31 | M332: =IF('Cockpit Page'!$D$38=3,'Cap Exp and Op Exp Assumptions'!M292,'Cap Exp and Op Exp Assumptions'!M312) -> 2016-12-31 | N332: =IF('Cockpit Page'!$D$38=3,'Cap Exp and Op Exp Assumptions'!N292,'Cap Exp and Op Exp Assumptions'!N312) -> 2016-12-31
B333: Charge | G333: 0 | I333: =IF('Cockpit Page'!$D$38=3,'Cap Exp and Op Exp Assumptions'!I293,'Cap Exp and Op Exp Assumptions'!I313) -> 0 | K333: =IF('Cockpit Page'!$D$38=3,'Cap Exp and Op Exp Assumptions'!K293,'Cap Exp and Op Exp Assumptions'!K313) -> 0 | M333: =IF('Cockpit Page'!$D$38=3,'Cap Exp and Op Exp Assumptions'!M293,'Cap Exp and Op Exp Assumptions'!M313) -> 0 | N333: =IF('Cockpit Page'!$D$38=3,'Cap Exp and Op Exp Assumptions'!N293,'Cap Exp and Op Exp Assumptions'!N313) -> 0
B334: End of charge | G334: 2017-12-31 | I334: =IF('Cockpit Page'!$D$38=3,'Cap Exp and Op Exp Assumptions'!I294,'Cap Exp and Op Exp Assumptions'!I314) -> 2017-12-31 | K334: =IF('Cockpit Page'!$D$38=3,'Cap Exp and Op Exp Assumptions'!K294,'Cap Exp and Op Exp Assumptions'!K314) -> 2017-12-31 | M334: =IF('Cockpit Page'!$D$38=3,'Cap Exp and Op Exp Assumptions'!M294,'Cap Exp and Op Exp Assumptions'!M314) -> 2017-12-31 | N334: =IF('Cockpit Page'!$D$38=3,'Cap Exp and Op Exp Assumptions'!N294,'Cap Exp and Op Exp Assumptions'!N314) -> 2017-12-31
B335: Charge | G335: 0 | I335: =IF('Cockpit Page'!$D$38=3,'Cap Exp and Op Exp Assumptions'!I295,'Cap Exp and Op Exp Assumptions'!I315) -> 0 | K335: =IF('Cockpit Page'!$D$38=3,'Cap Exp and Op Exp Assumptions'!K295,'Cap Exp and Op Exp Assumptions'!K315) -> 0 | M335: =IF('Cockpit Page'!$D$38=3,'Cap Exp and Op Exp Assumptions'!M295,'Cap Exp and Op Exp Assumptions'!M315) -> 0 | N335: =IF('Cockpit Page'!$D$38=3,'Cap Exp and Op Exp Assumptions'!N295,'Cap Exp and Op Exp Assumptions'!N315) -> 0
B336: End of charge | G336: 2018-12-31 | I336: =IF('Cockpit Page'!$D$38=3,'Cap Exp and Op Exp Assumptions'!I296,'Cap Exp and Op Exp Assumptions'!I316) -> 2018-12-31 | K336: =IF('Cockpit Page'!$D$38=3,'Cap Exp and Op Exp Assumptions'!K296,'Cap Exp and Op Exp Assumptions'!K316) -> 2018-12-31 | M336: =IF('Cockpit Page'!$D$38=3,'Cap Exp and Op Exp Assumptions'!M296,'Cap Exp and Op Exp Assumptions'!M316) -> 2018-12-31 | N336: =IF('Cockpit Page'!$D$38=3,'Cap Exp and Op Exp Assumptions'!N296,'Cap Exp and Op Exp Assumptions'!N316) -> 2018-12-31
B337: Charge | G337: 0 | I337: =IF('Cockpit Page'!$D$38=3,'Cap Exp and Op Exp Assumptions'!I297,'Cap Exp and Op Exp Assumptions'!I317) -> 0 | K337: =IF('Cockpit Page'!$D$38=3,'Cap Exp and Op Exp Assumptions'!K297,'Cap Exp and Op Exp Assumptions'!K317) -> 0 | M337: =IF('Cockpit Page'!$D$38=3,'Cap Exp and Op Exp Assumptions'!M297,'Cap Exp and Op Exp Assumptions'!M317) -> 0 | N337: =IF('Cockpit Page'!$D$38=3,'Cap Exp and Op Exp Assumptions'!N297,'Cap Exp and Op Exp Assumptions'!N317) -> 0
B338: End of charge | G338: 2019-12-31 | I338: =IF('Cockpit Page'!$D$38=3,'Cap Exp and Op Exp Assumptions'!I298,'Cap Exp and Op Exp Assumptions'!I318) -> 2019-12-31 | K338: =IF('Cockpit Page'!$D$38=3,'Cap Exp and Op Exp Assumptions'!K298,'Cap Exp and Op Exp Assumptions'!K318) -> 2019-12-31 | M338: =IF('Cockpit Page'!$D$38=3,'Cap Exp and Op Exp Assumptions'!M298,'Cap Exp and Op Exp Assumptions'!M318) -> 2019-12-31 | N338: =IF('Cockpit Page'!$D$38=3,'Cap Exp and Op Exp Assumptions'!N298,'Cap Exp and Op Exp Assumptions'!N318) -> 2019-12-31
B339: Charge | G339: 0 | I339: =IF('Cockpit Page'!$D$38=3,'Cap Exp and Op Exp Assumptions'!I299,'Cap Exp and Op Exp Assumptions'!I319) -> 0 | K339: =IF('Cockpit Page'!$D$38=3,'Cap Exp and Op Exp Assumptions'!K299,'Cap Exp and Op Exp Assumptions'!K319) -> 0 | M339: =IF('Cockpit Page'!$D$38=3,'Cap Exp and Op Exp Assumptions'!M299,'Cap Exp and Op Exp Assumptions'!M319) -> 0 | N339: =IF('Cockpit Page'!$D$38=3,'Cap Exp and Op Exp Assumptions'!N299,'Cap Exp and Op Exp Assumptions'!N319) -> 0
B340: End of charge | G340: 2020-12-31 | I340: =IF('Cockpit Page'!$D$38=3,'Cap Exp and Op Exp Assumptions'!I300,'Cap Exp and Op Exp Assumptions'!I320) -> 2020-12-31 | K340: =IF('Cockpit Page'!$D$38=3,'Cap Exp and Op Exp Assumptions'!K300,'Cap Exp and Op Exp Assumptions'!K320) -> 2020-12-31 | M340: =IF('Cockpit Page'!$D$38=3,'Cap Exp and Op Exp Assumptions'!M300,'Cap Exp and Op Exp Assumptions'!M320) -> 2020-12-31 | N340: =IF('Cockpit Page'!$D$38=3,'Cap Exp and Op Exp Assumptions'!N300,'Cap Exp and Op Exp Assumptions'!N320) -> 2020-12-31
B341: Charge | G341: 0 | I341: =IF('Cockpit Page'!$D$38=3,'Cap Exp and Op Exp Assumptions'!I301,'Cap Exp and Op Exp Assumptions'!I321) -> 0 | K341: =IF('Cockpit Page'!$D$38=3,'Cap Exp and Op Exp Assumptions'!K301,'Cap Exp and Op Exp Assumptions'!K321) -> 0 | M341: =IF('Cockpit Page'!$D$38=3,'Cap Exp and Op Exp Assumptions'!M301,'Cap Exp and Op Exp Assumptions'!M321) -> 0 | N341: =IF('Cockpit Page'!$D$38=3,'Cap Exp and Op Exp Assumptions'!N301,'Cap Exp and Op Exp Assumptions'!N321) -> 0
B342: End of charge | G342: 2021-12-31 | I342: =IF('Cockpit Page'!$D$38=3,'Cap Exp and Op Exp Assumptions'!I302,'Cap Exp and Op Exp Assumptions'!I322) -> 2021-12-31 | K342: =IF('Cockpit Page'!$D$38=3,'Cap Exp and Op Exp Assumptions'!K302,'Cap Exp and Op Exp Assumptions'!K322) -> 2021-12-31 | M342: =IF('Cockpit Page'!$D$38=3,'Cap Exp and Op Exp Assumptions'!M302,'Cap Exp and Op Exp Assumptions'!M322) -> 2021-12-31 | N342: =IF('Cockpit Page'!$D$38=3,'Cap Exp and Op Exp Assumptions'!N302,'Cap Exp and Op Exp Assumptions'!N322) -> 2021-12-31
B343: Charge | G343: 0 | I343: =IF('Cockpit Page'!$D$38=3,'Cap Exp and Op Exp Assumptions'!I303,'Cap Exp and Op Exp Assumptions'!I323) -> 0 | K343: =IF('Cockpit Page'!$D$38=3,'Cap Exp and Op Exp Assumptions'!K303,'Cap Exp and Op Exp Assumptions'!K323) -> 0 | M343: =IF('Cockpit Page'!$D$38=3,'Cap Exp and Op Exp Assumptions'!M303,'Cap Exp and Op Exp Assumptions'!M323) -> 0 | N343: =IF('Cockpit Page'!$D$38=3,'Cap Exp and Op Exp Assumptions'!N303,'Cap Exp and Op Exp Assumptions'!N323) -> 0
B344: End of charge | G344: 2027-12-31 | I344: =IF('Cockpit Page'!$D$38=3,'Cap Exp and Op Exp Assumptions'!I304,'Cap Exp and Op Exp Assumptions'!I324) -> 2027-12-31 | K344: =IF('Cockpit Page'!$D$38=3,'Cap Exp and Op Exp Assumptions'!K304,'Cap Exp and Op Exp Assumptions'!K324) -> 2027-12-31 | M344: =IF('Cockpit Page'!$D$38=3,'Cap Exp and Op Exp Assumptions'!M304,'Cap Exp and Op Exp Assumptions'!M324) -> 2027-12-31 | N344: =IF('Cockpit Page'!$D$38=3,'Cap Exp and Op Exp Assumptions'!N304,'Cap Exp and Op Exp Assumptions'!N324) -> 2027-12-31

Sheet Tax Assumptions
A2: Profits Tax | H2: ='Value and Re-finance'!H1 -> Computed DSCR Test
B3: Tax Charge | D3: 0.125
B4: Capital Allowance applied for no. Years | D4: 8
B5: Claim from operation start date | D5: ='Timing, Infl, Rev Assumptions'!G6 -> 2017-06-01
B6: End of Claim | D6: =EDATE(D5,'Timing, Infl, Rev Assumptions'!$G$76*$D$4)-1 -> 2025-05-31
A8: VAT
B9: Vat on turbines | D9: 0.21 | E9: 0.21
B10: Vat rate (average vat rate on other costs excluding vat on share consideration) | D10: 0.15 | E10: 0.15
B11: No. of months delay for vat receipts | D11: 2
A13: Fixed Assets
B14: Start of depreciation | D14: ='Timing, Infl, Rev Assumptions'!G6 -> 2017-06-01
B15: Depreciation Period | D15: 20
B16: End of depreciation land & building | D16: =EDATE(D14,D15*12)-1 -> 2037-05-31
B17: no of period semi annual | D17: =D15*2 -> 40
B19: % of Fixed assets allowable for capital allowance | D19: 1
B20: Tax rate on deposits | D20: 0.25
B21: Tax paid in advance | D21: 0
B22: 1st tax payment (no of month) | D22: 6
B23: 2nd tax payment (no of month) | D23: 11
B24: Final tax payment (no of month) | D24: 9
B26: Total tax amount paid by 1st installment tax | D26: 0.5
B27: Total tax amount paid by 2nd installment tax | D27: 0.9
B28: Total tax amount paid by final installment | D28: 1

Sheet Finance and Value Assumptions
D1: =Integrity!E15 -> Computed DSCR Test | E1: Equity IRR | F1: ='Debt and Cash Waterfall (SA)'!E410 -> 0.2084272087 | G1: SD% | H1: ='Debt and Cash Waterfall (SA)'!R138 -> 0.8521419005
A2: Senior Debt A
B3: Debt Size
D4: Target DSCR | E4: 134 | F4: =E4/100 -> 1.34
D5: Target Debt:Capital Ratio | E5: 70 | F5: =E5/100 -> 0.7
D6: Apply Scuplting | F6: FALSE
B8: Debt Draws
D9: Interest Capitalised (Rolled up to Debt) | F9: TRUE
D10: Start of Drawdown (Financial Close Date) | F10: ='Timing, Infl, Rev Assumptions'!G4 -> 2015-10-01
D11: Draw Code (1-Pro-Rata; 2-Equity First; 3-Debt First) | F11: 2 | N11: Pro-Rata
N12: Equity First
B13: Debt Repayment
D14: Repayment period | F14: 17
D15: Start of Repayment (Construction Start Date) | F15: ='Timing, Infl, Rev Assumptions'!$G$6 -> 2017-06-01 | N15: Equal Installment
D16: End of Repayment | F16: =EDATE(F15,F14*12) -> 2034-06-01 | N16: Annuity
D17: Repayment Style (1 - Level; 2 - Annuity; 3 - Sculpted) | F17: 3 | N17: Sculpted
B19: Interest and Fees
D20: Base rate | F20: 0.0155 | G20: 0.0155
D21: 18 year fixed rate swap spread | F21: 0
D22: Hedge percentage | F22: 1 | H22: Norm
D23: Construction Phase | F23: =F10 -> 2015-10-01 | G23: 0.0175 | H23: BBB credit spread | J23: 0.0175
D24: Initial margin (annual) | F24: =F15 -> 2017-06-01 | G24: 0.02 | J24: 0.02
D25: Years 5-10 margin(annual) | E25: 24 | F25: =EDATE(F24,E25) -> 2019-06-01 | G25: 0.0225 | J25: 0.0225
D26: Years 11-15 margin(annual) | E26: 36 | F26: =EDATE(F25,E26) -> 2022-06-01 | G26: 0.025 | H26: Higher margin here to protect bank on the downside | J26: 0.025
D28: Arrangement Fee (Upfront Fee) | F28: 0.015 | G28: 0.015
D29: Commitment Fee annual | F29: 0.0075 | G29: 0.0075 | H29: Fee for the amount you dont borrow, on the undrawn debt
D30: Fee Amortisation Period | E30: Years | F30: ='Tax Assumptions'!D4 -> 8
B32: Credit Enhancements | F32: 0.05
D33: DSRA Months | E33: Months | F33: 0 | H33: The amount of months of the annual Debt repayment needed to be retained
D34: DSRA Interest Rate | E34: % | F34: 0
D35: DRSA Funded with LOC | F35: FALSE | H35: Cash trap covenants - PV of CF/PV of Debt. Projection of the life of the project to project future CF's
D36: Cash Trap/Dividend Lockup Covenant | E36: DSCR X | F36: 1.15 | H36: You cannot pay a dividend on this
D37: Cash Sweep | F37: 0 | H37: How much of the extra cashflow and pay off the debt / this is a % of CF after debt service
D39: Interest charge semi annual | F39: 0
A41: Subordinated Debt
C42: Debt Sizing
D43: Sub-debt % | F43: =G43/100 -> 0.01 | G43: 1
C44: Repayments
D45: Number of years before sub detb paid | F45: =F14 -> 17
D46: Start of Repayment | F46: =EDATE('Timing, Infl, Rev Assumptions'!$G$6,F45*'Timing, Infl, Rev Assumptions'!G76) -> 2034-06-01
D47: No of years for repayment | F47: 3
D48: End of Repayment | F48: =EDATE(F46,F47*'Timing, Infl, Rev Assumptions'!$G$76)-1 -> 2037-05-31
C49: Interest and Fees
D50: Annual Coupon Rate - Construction | F50: =G50/100 -> 0.07 | G50: 7
D51: Annual Coupon Rate - Operations | F51: 0.07
D52: Sub Interest Tax Deductible | F52: TRUE
A54: Development Fee
C55: Development Fee Amount | F55: =G55*100000 -> 1600000 | G55: 16
C56: Percent of Construction | F56: =F55/'Debt and Cash Waterfall (SA)'!G127 -> 0.05622723567
C57: Development Fee Date | F57: =F24 -> 2017-06-01
A59: MRA
D60: MRA required balance | F60: 0
D61: MRA required balance post yr 5 | F61: 0
D62: Length of period in mths | F62: 6
D63: % of semi annual period | F63: =F62/'Timing, Infl, Rev Assumptions'!G11 -> 1
D64: Number of periods | F64: 4
D65: % of MRA balance built per period | F65: 0.25
D66: Start of 1st period of MRA balance build up | F66: ='Timing, Infl, Rev Assumptions'!G6 -> 2017-06-01
D67: End of final period of MRA balance build up | F67: =EDATE(F66,F62*F64)-1 -> 2019-05-31
D68: Period post MRA build up | F68: =EDATE(F67+1,3) -> 2019-09-01
D69: End of MRA | F69: =F16 -> 2034-06-01
A71: VAT
D72: Interest rate on facilty | F72: 0.03 | H72: Low Risk - this should be low
D73: Arrangement fee | F73: 0
D74: Commitment fee | F74: 0
D76: Interest Capitalised | F76: FALSE
A78: Discount Rate (Return a Buyer Requires to invest in this project) | F78: Start Date | G78: Discount Rate - Equity | H78: Discount Rate - Project
D79: Pre-construction | F79: ='Timing, Infl, Rev Assumptions'!G4 -> 2015-10-01 | G79: =J79/100 -> 0.17 | H79: =G79-3% -> 0.14 | J79: 17
D80: Post-Construction | F80: ='Timing, Infl, Rev Assumptions'!G6 -> 2017-06-01 | G80: =J80/100 -> 0.13 | H80: =G80-2% -> 0.11 | J80: 13
D81: Initial Operations (Yrs 1 -3) | E81: 3 | F81: =EDATE(F80,E81*12) -> 2020-06-01 | G81: 0.11 | H81: =G81-2% -> 0.09 | J81: 11
D82: Initial Operations Mature | E82: 2 | F82: =EDATE(F81,E82*12) -> 2022-06-01 | G82: 0.09 | H82: 0.07 | J82: 9
D84: Risk Free Rate | F84: 0.035
D86: COD Month | F86: =MONTH('Timing, Infl, Rev Assumptions'!G6) -> 6
D87: Assumed Sale Date | F87: =DATE(H87,F86,1) -> 2024-06-01 | H87: 2024
A89: Refinancing
D90: Include Re-Financing | F90: FALSE
D91: Assumed Date of Refinancing | F91: =DATE(H91,F86,1) -> 2019-06-01 | H91: 2019
D92: Assumed DSCR on Refinancing | F92: =H92/100 -> 1.29 | H92: 129
D93: Assumed Term (Tail) | F93: =H93 -> 3 | H93: 3
D94: Assumed Interest Rate | F94: =H94/1000 -> 0.041 | H94: 41
D95: End of Operations | F95: ='Timing, Infl, Rev Assumptions'!G7+1 -> 2042-06-01
D96: Date of Repayment | F96: =EDATE(F95,-F93*12) -> 2039-06-01
D97: Tenor for Re-financing | F97: =DAYS360(F91,F95)/360 -> 23
D98: Fee on New Debt | F98: 0.015
D99: Breakage Fee | F99: 0.01
A101: LCOE Rates
D102: Discount Rate | F102: 0.1
D103: Inflation Rate | F103: =AVERAGE('Timing, Infl, Rev Assumptions'!60:60) -> 0.02640268581
D104: Real | F104: =(1+F102)/(1+F103)-1 -> 0.07170413251
D105: Periodic | F105: =(1+F104)^(1/'Timing, Infl, Rev Assumptions'!G12)-1 -> 0.0352314391
H111: Structuring
H112: Risk Analysis

Sheet S-Curve Assumptions
A1: Year | D1: ='Timing, Infl, Rev Assumptions'!G3 -> 2015-01-01 | G1: =D1 -> 2015-01-01 | H1: =G2+1 -> 2015-02-01 | I1: =H2+1 -> 2015-03-01 | J1: 2015-04-01 | K1: 2015-05-01 | L1: 2015-06-01 | M1: 2015-07-01 | N1: 2015-08-01 | O1: 2015-09-01 | P1: 2015-10-01 | Q1: 2015-11-01 | R1: 2015-12-01 | S1: 2016-01-01 | T1: 2016-02-01 | U1: 2016-03-01 | V1: 2016-04-01 | W1: 2016-05-01 | X1: 2016-06-01 | Y1: 2016-07-01 | Z1: 2016-08-01 | AA1: 2016-09-01 | AB1: 2016-10-01 | AC1: 2016-11-01 | AD1: 2016-12-01 | AE1: 2017-01-01 | AF1: 2017-02-01 | AG1: 2017-03-01 | AH1: 2017-04-01 | AI1: 2017-05-01 | AJ1: 2017-06-01 | AK1: 2017-07-01 | AL1: 2017-08-01 | AM1: 2017-09-01 | AN1: 2017-10-01 | AO1: 2017-11-01 | AP1: 2017-12-01 | AQ1: 2018-01-01 | AR1: 2018-02-01 | AS1: 2018-03-01 | AT1: 2018-04-01 | AU1: 2018-05-01 | AV1: 2018-06-01 | AW1: 2018-07-01 | AX1: 2018-08-01 | AY1: 2018-09-01 | AZ1: 2018-10-01 | BA1: 2018-11-01 | BB1: 2018-12-01 | BC1: 2019-01-01 | BD1: 2019-02-01 | BE1: 2019-03-01 | BF1: =BE2+1 -> 2019-04-01 | BG1: 2019-05-01 | BH1: 2019-06-01 | BI1: 2019-07-01 | BJ1: 2019-08-01 | BK1: 2019-09-01 | BL1: 2019-10-01 | BM1: 2019-11-01 | BN1: 2019-12-01 | BO1: 2020-01-01 | BP1: 2020-02-01 | BQ1: 2020-03-01 | BR1: 2020-04-01 | BS1: 2020-05-01 | BT1: 2020-06-01 | BU1: 2020-07-01 | BV1: 2020-08-01 | BW1: 2020-09-01 | BX1: 2020-10-01 | BY1: 2020-11-01 | BZ1: 2020-12-01 | CA1: 2021-01-01 | CB1: 2021-02-01 | CC1: 2021-03-01 | CD1: 2021-04-01 | CE1: 2021-05-01 | CF1: 2021-06-01 | CG1: 2021-07-01 | CH1: 2021-08-01 | CI1: 2021-09-01 | CJ1: 2021-10-01 | CK1: 2021-11-01 | CL1: =CK2+1 -> 2021-12-01 | CM1: 2022-01-01 | CN1: 2022-02-01 | CO1: 2022-03-01 | CP1: 2022-04-01 | CQ1: 2022-05-01 | CR1: 2022-06-01 | CS1: 2022-07-01 | CT1: 2022-08-01 | CU1: 2022-09-01 | CV1: 2022-10-01 | CW1: 2022-11-01 | CX1: 2022-12-01 | CY1: 2023-01-01 | CZ1: 2023-02-01 | DA1: 2023-03-01 | DB1: 2023-04-01 | DC1: 2023-05-01 | DD1: 2023-06-01 | DE1: 2023-07-01 | DF1: 2023-08-01 | DG1: 2023-09-01 | DH1: 2023-10-01 | DI1: 2023-11-01 | DJ1: 2023-12-01 | DK1: 2024-01-01 | DL1: 2024-02-01 | DM1: 2024-03-01 | DN1: 2024-04-01 | DO1: 2024-05-01 | DP1: 2024-06-01 | DQ1: 2024-07-01 | DR1: 2024-08-01 | DS1: 2024-09-01 | DT1: 2024-10-01 | DU1: 2024-11-01 | DV1: 2024-12-01
A2: Last day of Period | G2: =EOMONTH(G1,0) -> 2015-01-31 | H2: =EOMONTH(H1,0) -> 2015-02-28 | I2: =EOMONTH(I1,0) -> 2015-03-31 | J2: 2015-04-30 | K2: 2015-05-31 | L2: 2015-06-30 | M2: 2015-07-31 | N2: 2015-08-31 | O2: 2015-09-30 | P2: 2015-10-31 | Q2: 2015-11-30 | R2: 2015-12-31 | S2: 2016-01-31 | T2: 2016-02-29 | U2: 2016-03-31 | V2: 2016-04-30 | W2: 2016-05-31 | X2: 2016-06-30 | Y2: 2016-07-31 | Z2: 2016-08-31 | AA2: 2016-09-30 | AB2: 2016-10-31 | AC2: 2016-11-30 | AD2: 2016-12-31 | AE2: 2017-01-31 | AF2: 2017-02-28 | AG2: 2017-03-31 | AH2: 2017-04-30 | AI2: 2017-05-31 | AJ2: 2017-06-30 | AK2: 2017-07-31 | AL2: =EOMONTH(AL1,0) -> 2017-08-31 | AM2: 2017-09-30 | AN2: 2017-10-31 | AO2: 2017-11-30 | AP2: 2017-12-31 | AQ2: 2018-01-31 | AR2: 2018-02-28 | AS2: 2018-03-31 | AT2: 2018-04-30 | AU2: 2018-05-31 | AV2: 2018-06-30 | AW2: 2018-07-31 | AX2: 2018-08-31 | AY2: 2018-09-30 | AZ2: 2018-10-31 | BA2: 2018-11-30 | BB2: 2018-12-31 | BC2: 2019-01-31 | BD2: 2019-02-28 | BE2: 2019-03-31 | BF2: =EOMONTH(BF1,0) -> 2019-04-30 | BG2: 2019-05-31 | BH2: 2019-06-30 | BI2: 2019-07-31 | BJ2: 2019-08-31 | BK2: 2019-09-30 | BL2: 2019-10-31 | BM2: 2019-11-30 | BN2: 2019-12-31 | BO2: 2020-01-31 | BP2: 2020-02-29 | BQ2: 2020-03-31 | BR2: 2020-04-30 | BS2: 2020-05-31 | BT2: 2020-06-30 | BU2: 2020-07-31 | BV2: 2020-08-31 | BW2: 2020-09-30 | BX2: 2020-10-31 | BY2: 2020-11-30 | BZ2: 2020-12-31 | CA2: 2021-01-31 | CB2: 2021-02-28 | CC2: 2021-03-31 | CD2: 2021-04-30 | CE2: 2021-05-31 | CF2: 2021-06-30 | CG2: 2021-07-31 | CH2: 2021-08-31 | CI2: 2021-09-30 | CJ2: 2021-10-31 | CK2: 2021-11-30 | CL2: =EOMONTH(CL1,0) -> 2021-12-31 | CM2: 2022-01-31 | CN2: 2022-02-28 | CO2: 2022-03-31 | CP2: 2022-04-30 | CQ2: 2022-05-31 | CR2: 2022-06-30 | CS2: 2022-07-31 | CT2: 2022-08-31 | CU2: 2022-09-30 | CV2: 2022-10-31 | CW2: 2022-11-30 | CX2: 2022-12-31 | CY2: 2023-01-31 | CZ2: 2023-02-28 | DA2: 2023-03-31 | DB2: 2023-04-30 | DC2: 2023-05-31 | DD2: 2023-06-30 | DE2: 2023-07-31 | DF2: 2023-08-31 | DG2: 2023-09-30 | DH2: 2023-10-31 | DI2: 2023-11-30 | DJ2: 2023-12-31 | DK2: 2024-01-31 | DL2: 2024-02-29 | DM2: 2024-03-31 | DN2: 2024-04-30 | DO2: 2024-05-31 | DP2: 2024-06-30 | DQ2: 2024-07-31 | DR2: =EOMONTH(DR1,0) -> 2024-08-31 | DS2: =EOMONTH(DS1,0) -> 2024-09-30 | DT2: =EOMONTH(DT1,0) -> 2024-10-31 | DU2: =EOMONTH(DU1,0) -> 2024-11-30 | DV2: =EOMONTH(DV1,0) -> 2024-12-31
B3: Semi annual mutiple | G3: 0.5 | H3: 0.5 | I3: 0.5 | J3: 0.5 | K3: 0.5 | L3: 0.5 | M3: 1 | N3: 1 | O3: 1 | P3: 1 | Q3: 1 | R3: 1 | S3: 1.5 | T3: 1.5 | U3: 1.5 | V3: 1.5 | W3: 1.5 | X3: 1.5 | Y3: 2 | Z3: 2 | AA3: 2 | AB3: 2 | AC3: 2 | AD3: 2 | AE3: 2.5 | AF3: 2.5 | AG3: 2.5 | AH3: 2.5 | AI3: 2.5 | AJ3: 2.5 | AK3: 3 | AL3: 3 | AM3: 3 | AN3: 3 | AO3: 3 | AP3: 3 | AQ3: 3.5 | AR3: 3.5 | AS3: 3.5 | AT3: 3.5 | AU3: 3.5 | AV3: 3.5 | AW3: 4 | AX3: 4 | AY3: 4 | AZ3: 4 | BA3: 4 | BB3: 4 | BC3: 4.5 | BD3: 4.5 | BE3: 4.5 | BF3: 4.5 | BG3: 4.5 | BH3: 4.5 | BI3: 5 | BJ3: 5 | BK3: 5 | BL3: 5 | BM3: 5 | BN3: 5 | BO3: 5.5 | BP3: 5.5 | BQ3: 5.5 | BR3: 5.5 | BS3: 5.5 | BT3: 5.5 | BU3: 6 | BV3: 6 | BW3: 6 | BX3: 6 | BY3: 6 | BZ3: 6 | CA3: 6.5 | CB3: 6.5 | CC3: 6.5 | CD3: 6.5 | CE3: 6.5 | CF3: 6.5 | CG3: 7 | CH3: 7 | CI3: 7 | CJ3: 7 | CK3: 7 | CL3: 7 | CM3: 7.5 | CN3: 7.5 | CO3: 7.5 | CP3: 7.5 | CQ3: 7.5 | CR3: 7.5 | CS3: 8 | CT3: 8 | CU3: 8 | CV3: 8 | CW3: 8 | CX3: 8 | CY3: 8.5 | CZ3: 8.5 | DA3: 8.5 | DB3: 8.5 | DC3: 8.5 | DD3: 8.5 | DE3: 9 | DF3: 9 | DG3: 9 | DH3: 9 | DI3: 9 | DJ3: 9 | DK3: 9.5 | DL3: 9.5 | DM3: 9.5 | DN3: 9.5 | DO3: 9.5 | DP3: 9.5 | DQ3: 10 | DR3: 10 | DS3: 10 | DT3: 10 | DU3: 10 | DV3: 10
B4: Period | G4: 1 | H4: =G4+1 -> 2 | I4: =H4+1 -> 3 | J4: 4 | K4: 5 | L4: 6 | M4: 7 | N4: 8 | O4: 9 | P4: 10 | Q4: 11 | R4: 12 | S4: 13 | T4: 14 | U4: 15 | V4: 16 | W4: 17 | X4: 18 | Y4: 19 | Z4: 20 | AA4: 21 | AB4: 22 | AC4: 23 | AD4: 24 | AE4: 25 | AF4: 26 | AG4: 27 | AH4: 28 | AI4: 29 | AJ4: 30 | AK4: 31 | AL4: =AK4+1 -> 32 | AM4: 33 | AN4: 34 | AO4: 35 | AP4: 36 | AQ4: 37 | AR4: 38 | AS4: 39 | AT4: 40 | AU4: 41 | AV4: 42 | AW4: 43 | AX4: 44 | AY4: 45 | AZ4: 46 | BA4: 47 | BB4: 48 | BC4: 49 | BD4: 50 | BE4: 51 | BF4: =BE4+1 -> 52 | BG4: 53 | BH4: 54 | BI4: 55 | BJ4: 56 | BK4: 57 | BL4: 58 | BM4: 59 | BN4: 60 | BO4: 61 | BP4: 62 | BQ4: 63 | BR4: 64 | BS4: 65 | BT4: 66 | BU4: 67 | BV4: 68 | BW4: 69 | BX4: 70 | BY4: 71 | BZ4: 72 | CA4: 73 | CB4: 74 | CC4: 75 | CD4: 76 | CE4: 77 | CF4: 78 | CG4: 79 | CH4: 80 | CI4: 81 | CJ4: 82 | CK4: 83 | CL4: =CK4+1 -> 84 | CM4: 85 | CN4: 86 | CO4: 87 | CP4: 88 | CQ4: 89 | CR4: 90 | CS4: 91 | CT4: 92 | CU4: 93 | CV4: 94 | CW4: 95 | CX4: 96 | CY4: 97 | CZ4: 98 | DA4: 99 | DB4: 100 | DC4: 101 | DD4: 102 | DE4: 103 | DF4: 104 | DG4: 105 | DH4: 106 | DI4: 107 | DJ4: 108 | DK4: 109 | DL4: 110 | DM4: 111 | DN4: 112 | DO4: 113 | DP4: 114 | DQ4: 115 | DR4: 116 | DS4: 117 | DT4: 118 | DU4: 119 | DV4: 120
B5: Construction Switch | D5: ='Timing, Infl, Rev Assumptions'!G3 -> 2015-01-01 | E5: ='Timing, Infl, Rev Assumptions'!G6 -> 2017-06-01 | G5: =AND(G1>=$D5,G1<$E5) -> TRUE | H5: =AND(H1>=$D5,H1<$E5) -> TRUE | I5: TRUE | J5: TRUE | K5: TRUE | L5: TRUE | M5: TRUE | N5: TRUE | O5: TRUE | P5: TRUE | Q5: TRUE | R5: TRUE | S5: TRUE | T5: TRUE | U5: TRUE | V5: TRUE | W5: TRUE | X5: TRUE | Y5: TRUE | Z5: TRUE | AA5: TRUE | AB5: TRUE | AC5: TRUE | AD5: TRUE | AE5: TRUE | AF5: TRUE | AG5: TRUE | AH5: TRUE | AI5: TRUE | AJ5: FALSE | AK5: FALSE | AL5: FALSE | AM5: FALSE | AN5: FALSE | AO5: FALSE | AP5: FALSE | AQ5: FALSE | AR5: FALSE | AS5: FALSE | AT5: FALSE | AU5: FALSE | AV5: FALSE | AW5: FALSE | AX5: FALSE | AY5: FALSE | AZ5: FALSE | BA5: FALSE | BB5: FALSE | BC5: FALSE | BD5: FALSE | BE5: FALSE | BF5: FALSE | BG5: FALSE | BH5: FALSE | BI5: FALSE | BJ5: FALSE | BK5: FALSE | BL5: FALSE | BM5: FALSE | BN5: FALSE | BO5: FALSE | BP5: FALSE | BQ5: FALSE | BR5: FALSE | BS5: FALSE | BT5: =AND(BT1>=$D5,BT1<$E5) -> FALSE | BU5: FALSE | BV5: FALSE | BW5: FALSE | BX5: FALSE | BY5: FALSE | BZ5: FALSE | CA5: FALSE | CB5: FALSE | CC5: FALSE | CD5: FALSE | CE5: FALSE | CF5: FALSE | CG5: FALSE | CH5: FALSE | CI5: FALSE | CJ5: FALSE | CK5: FALSE | CL5: FALSE | CM5: FALSE | CN5: FALSE | CO5: FALSE | CP5: FALSE | CQ5: FALSE | CR5: FALSE | CS5: FALSE | CT5: FALSE | CU5: FALSE | CV5: FALSE | CW5: FALSE | CX5: FALSE | CY5: FALSE | CZ5: FALSE | DA5: FALSE | DB5: FALSE | DC5: FALSE | DD5: FALSE | DE5: FALSE | DF5: FALSE | DG5: FALSE | DH5: FALSE | DI5: FALSE | DJ5: FALSE | DK5: FALSE | DL5: FALSE | DM5: FALSE | DN5: FALSE | DO5: FALSE | DP5: FALSE | DQ5: FALSE | DR5: FALSE | DS5: FALSE | DT5: FALSE | DU5: FALSE | DV5: FALSE
B6: End of Construction | D6: =EDATE(E5,-1) -> 2017-05-01 | G6: =$D6=G1 -> FALSE | H6: =$D6=H1 -> FALSE | I6: FALSE | J6: FALSE | K6: FALSE | L6: FALSE | M6: FALSE | N6: FALSE | O6: FALSE | P6: FALSE | Q6: FALSE | R6: FALSE | S6: FALSE | T6: FALSE | U6: FALSE | V6: FALSE | W6: FALSE | X6: FALSE | Y6: FALSE | Z6: FALSE | AA6: FALSE | AB6: FALSE | AC6: FALSE | AD6: FALSE | AE6: FALSE | AF6: FALSE | AG6: FALSE | AH6: FALSE | AI6: TRUE | AJ6: FALSE | AK6: FALSE | AL6: FALSE | AM6: FALSE | AN6: FALSE | AO6: FALSE | AP6: FALSE | AQ6: FALSE | AR6: FALSE | AS6: FALSE | AT6: FALSE | AU6: FALSE | AV6: FALSE | AW6: FALSE | AX6: FALSE | AY6: FALSE | AZ6: FALSE | BA6: FALSE | BB6: FALSE | BC6: FALSE | BD6: FALSE | BE6: FALSE | BF6: FALSE | BG6: FALSE | BH6: FALSE | BI6: FALSE | BJ6: FALSE | BK6: FALSE | BL6: FALSE | BM6: FALSE | BN6: FALSE | BO6: FALSE | BP6: FALSE | BQ6: FALSE | BR6: FALSE | BS6: FALSE | BT6: =$D6=BT1 -> FALSE | BU6: FALSE | BV6: FALSE | BW6: FALSE | BX6: FALSE | BY6: FALSE | BZ6: FALSE | CA6: FALSE | CB6: FALSE | CC6: FALSE | CD6: FALSE | CE6: FALSE | CF6: FALSE | CG6: FALSE | CH6: FALSE | CI6: FALSE | CJ6: FALSE | CK6: FALSE | CL6: FALSE | CM6: FALSE | CN6: FALSE | CO6: FALSE | CP6: FALSE | CQ6: FALSE | CR6: FALSE | CS6: FALSE | CT6: FALSE | CU6: FALSE | CV6: FALSE | CW6: FALSE | CX6: FALSE | CY6: FALSE | CZ6: FALSE | DA6: FALSE | DB6: FALSE | DC6: FALSE | DD6: FALSE | DE6: FALSE | DF6: FALSE | DG6: FALSE | DH6: FALSE | DI6: FALSE | DJ6: FALSE | DK6: FALSE | DL6: FALSE | DM6: FALSE | DN6: FALSE | DO6: FALSE | DP6: FALSE | DQ6: FALSE | DR6: FALSE | DS6: FALSE | DT6: FALSE | DU6: FALSE | DV6: FALSE
A8: Base Construction Costs | E8: Total
B9: Sensitivity Factor | E9: ='Cockpit Page'!E38 -> 1
B12: Development costs | D12: =SUM(G12:BN12) -> 1 | E12: ='Cap Exp and Op Exp Assumptions'!G11*'Cockpit Page'!$E$38 -> 2536094 | G12: 0 | H12: 0 | I12: 0 | J12: 0 | K12: 0 | L12: 0 | M12: 0 | N12: 0 | O12: 0 | P12: 0 | Q12: 0 | R12: 0.15 | S12: 0.07 | T12: 0.07 | U12: 0.071 | V12: 0.071 | W12: 0.071 | X12: 0.071 | Y12: 0.071 | Z12: 0.071 | AA12: 0.071 | AB12: 0.071 | AC12: 0.071 | AD12: 0.071 | AE12: 0 | AF12: 0 | AG12: 0 | AH12: 0 | AI12: 0 | AJ12: 0 | AK12: 0 | AL12: 0 | AM12: 0 | AN12: 0 | AO12: 0 | AP12: 0 | AQ12: 0 | AR12: 0 | AS12: 0 | AT12: 0 | AU12: 0 | AV12: 0 | AW12: 0 | AX12: 0 | AY12: 0 | AZ12: 0 | BA12: 0 | BB12: 0 | BC12: 0 | BD12: 0 | BE12: 0 | BF12: 0 | BG12: 0 | BH12: 0 | BI12: 0 | BJ12: 0 | BK12: 0 | BL12: 0 | BM12: 0 | BN12: 0
B13: Turbine Supply Contract | D13: =SUM(G13:BN13) -> 1 | E13: ='Cap Exp and Op Exp Assumptions'!G13*'Cockpit Page'!$E$38 -> 11285000 | G13: 0 | H13: 0 | I13: 0 | J13: 0 | K13: 0 | L13: 0 | M13: 0 | N13: 0 | O13: 0 | P13: 0 | Q13: 0 | R13: 0 | S13: 0.15 | T13: 0 | U13: 0 | V13: 0 | W13: 0.1 | X13: 0 | Y13: 0.1 | Z13: 0.05 | AA13: 0.05 | AB13: 0.05 | AC13: 0.15 | AD13: 0.35 | AE13: 0 | AF13: 0 | AG13: 0 | AH13: 0 | AI13: 0 | AJ13: 0 | AK13: 0 | AL13: 0 | AM13: 0 | AN13: 0 | AO13: 0 | AP13: 0 | AQ13: 0 | AR13: 0 | AS13: 0 | AT13: 0 | AU13: 0 | AV13: 0 | AW13: 0 | AX13: 0 | AY13: 0 | AZ13: 0 | BA13: 0 | BB13: 0 | BC13: 0 | BD13: 0 | BE13: 0 | BF13: 0 | BG13: 0 | BH13: 0 | BI13: 0 | BJ13: 0 | BK13: 0 | BL13: 0 | BM13: 0 | BN13: 0
B14: Finance/Legal / Banking | D14: 1 | E14: ='Cap Exp and Op Exp Assumptions'!G15*'Cockpit Page'!$E$38 -> 200000 | G14: 0 | H14: 0 | I14: 0 | J14: 0 | K14: 0 | L14: 0 | M14: 0 | N14: 0 | O14: 0 | P14: 0 | Q14: 0 | R14: 0.2 | S14: 0 | T14: 0 | U14: 0 | V14: 0 | W14: 0 | X14: 0 | Y14: 0 | Z14: 0 | AA14: 0 | AB14: 0 | AC14: 0 | AD14: 0.8 | AE14: 0 | AF14: 0 | AG14: 0 | AH14: 0 | AI14: 0 | AJ14: 0 | AK14: 0 | AL14: 0 | AM14: 0 | AN14: 0 | AO14: 0 | AP14: 0 | AQ14: 0 | AR14: 0 | AS14: 0 | AT14: 0 | AU14: 0 | AV14: 0 | AW14: 0 | AX14: 0 | AY14: 0 | AZ14: 0 | BA14: 0 | BB14: 0 | BC14: 0 | BD14: 0 | BE14: 0 | BF14: 0 | BG14: 0 | BH14: 0 | BI14: 0 | BJ14: 0 | BK14: 0 | BL14: 0 | BM14: 0 | BN14: 0
B15: Acquisition Cost | D15: 1 | E15: ='Cap Exp and Op Exp Assumptions'!G16*'Cockpit Page'!$E$38 -> 2599122 | G15: 0 | H15: 0 | I15: 0 | J15: 0 | K15: 0 | L15: 0 | M15: 0 | N15: 0 | O15: 0 | P15: 1 | Q15: 0 | R15: 0 | S15: 0 | T15: 0 | U15: 0 | V15: 0 | W15: 0 | X15: 0 | Y15: 0 | Z15: 0 | AA15: 0 | AB15: 0 | AC15: 0 | AD15: 0 | AE15: 0 | AF15: 0 | AG15: 0 | AH15: 0 | AI15: 0 | AJ15: 0 | AK15: 0 | AL15: 0 | AM15: 0 | AN15: 0 | AO15: 0 | AP15: 0 | AQ15: 0 | AR15: 0 | AS15: 0 | AT15: 0 | AU15: 0 | AV15: 0 | AW15: 0 | AX15: 0 | AY15: 0 | AZ15: 0 | BA15: 0 | BB15: 0 | BC15: 0 | BD15: 0 | BE15: 0 | BF15: 0 | BG15: 0 | BH15: 0 | BI15: 0 | BJ15: 0 | BK15: 0 | BL15: 0 | BM15: 0 | BN15: 0
B16: Construction Monitoring Summary | D16: =SUM(G16:BN16) -> 0 | E16: ='Cap Exp and Op Exp Assumptions'!G17*'Cockpit Page'!$E$38 -> 0 | G16: 0 | H16: 0 | I16: 0 | J16: 0 | K16: 0 | L16: 0 | M16: 0 | N16: 0 | O16: 0 | P16: 0 | Q16: 0 | R16: 0 | S16: 0 | T16: 0 | U16: 0 | V16: 0 | W16: 0 | X16: 0 | Y16: 0 | Z16: 0 | AA16: 0 | AB16: 0 | AC16: 0 | AD16: 0 | AE16: 0 | AF16: 0 | AG16: 0 | AH16: 0 | AI16: 0 | AJ16: 0 | AK16: 0 | AL16: 0 | AM16: 0 | AN16: 0 | AO16: 0 | AP16: 0 | AQ16: 0 | AR16: 0 | AS16: 0 | AT16: 0 | AU16: 0 | AV16: 0 | AW16: 0 | AX16: 0 | AY16: 0 | AZ16: 0 | BA16: 0 | BB16: 0 | BC16: 0 | BD16: 0 | BE16: 0 | BF16: 0 | BG16: 0 | BH16: 0 | BI16: 0 | BJ16: 0 | BK16: 0 | BL16: 0 | BM16: 0 | BN16: 0
B17: Project Management & Co-ordination | D17: 0 | E17: ='Cap Exp and Op Exp Assumptions'!G18*'Cockpit Page'!$E$38 -> 0 | G17: 0 | H17: 0 | I17: 0 | J17: 0 | K17: 0 | L17: 0 | M17: 0 | N17: 0 | O17: 0 | P17: 0 | Q17: 0 | R17: 0 | S17: 0 | T17: 0 | U17: 0 | V17: 0 | W17: 0 | X17: 0 | Y17: 0 | Z17: 0 | AA17: 0 | AB17: 0 | AC17: 0 | AD17: 0 | AE17: 0 | AF17: 0 | AG17: 0 | AH17: 0 | AI17: 0 | AJ17: 0 | AK17: 0 | AL17: 0 | AM17: 0 | AN17: 0 | AO17: 0 | AP17: 0 | AQ17: 0 | AR17: 0 | AS17: 0 | AT17: 0 | AU17: 0 | AV17: 0 | AW17: 0 | AX17: 0 | AY17: 0 | AZ17: 0 | BA17: 0 | BB17: 0 | BC17: 0 | BD17: 0 | BE17: 0 | BF17: 0 | BG17: 0 | BH17: 0 | BI17: 0 | BJ17: 0 | BK17: 0 | BL17: 0 | BM17: 0 | BN17: 0
B18: Water monitoring | D18: 0 | E18: ='Cap Exp and Op Exp Assumptions'!G19*'Cockpit Page'!$E$38 -> 0 | G18: 0 | H18: 0 | I18: 0 | J18: 0 | K18: 0 | L18: 0 | M18: 0 | N18: 0 | O18: 0 | P18: 0 | Q18: 0 | R18: 0 | S18: 0 | T18: 0 | U18: 0 | V18: 0 | W18: 0 | X18: 0 | Y18: 0 | Z18: 0 | AA18: 0 | AB18: 0 | AC18: 0 | AD18: 0 | AE18: 0 | AF18: 0 | AG18: 0 | AH18: 0 | AI18: 0 | AJ18: 0 | AK18: 0 | AL18: 0 | AM18: 0 | AN18: 0 | AO18: 0 | AP18: 0 | AQ18: 0 | AR18: 0 | AS18: 0 | AT18: 0 | AU18: 0 | AV18: 0 | AW18: 0 | AX18: 0 | AY18: 0 | AZ18: 0 | BA18: 0 | BB18: 0 | BC18: 0 | BD18: 0 | BE18: 0 | BF18: 0 | BG18: 0 | BH18: 0 | BI18: 0 | BJ18: 0 | BK18: 0 | BL18: 0 | BM18: 0 | BN18: 0
B19: Independent engineers | D19: 0 | E19: ='Cap Exp and Op Exp Assumptions'!G20*'Cockpit Page'!$E$38 -> 0 | G19: 0 | H19: 0 | I19: 0 | J19: 0 | K19: 0 | L19: 0 | M19: 0 | N19: 0 | O19: 0 | P19: 0 | Q19: 0 | R19: 0 | S19: 0 | T19: 0 | U19: 0 | V19: 0 | W19: 0 | X19: 0 | Y19: 0 | Z19: 0 | AA19: 0 | AB19: 0 | AC19: 0 | AD19: 0 | AE19: 0 | AF19: 0 | AG19: 0 | AH19: 0 | AI19: 0 | AJ19: 0 | AK19: 0 | AL19: 0 | AM19: 0 | AN19: 0 | AO19: 0 | AP19: 0 | AQ19: 0 | AR19: 0 | AS19: 0 | AT19: 0 | AU19: 0 | AV19: 0 | AW19: 0 | AX19: 0 | AY19: 0 | AZ19: 0 | BA19: 0 | BB19: 0 | BC19: 0 | BD19: 0 | BE19: 0 | BF19: 0 | BG19: 0 | BH19: 0 | BI19: 0 | BJ19: 0 | BK19: 0 | BL19: 0 | BM19: 0 | BN19: 0
B20: Insurances | D20: 0 | E20: ='Cap Exp and Op Exp Assumptions'!G21*'Cockpit Page'!$E$38 -> 0 | G20: 0 | H20: 0 | I20: 0 | J20: 0 | K20: 0 | L20: 0 | M20: 0 | N20: 0 | O20: 0 | P20: 0 | Q20: 0 | R20: 0 | S20: 0 | T20: 0 | U20: 0 | V20: 0 | W20: 0 | X20: 0 | Y20: 0 | Z20: 0 | AA20: 0 | AB20: 0 | AC20: 0 | AD20: 0 | AE20: 0 | AF20: 0 | AG20: 0 | AH20: 0 | AI20: 0 | AJ20: 0 | AK20: 0 | AL20: 0 | AM20: 0 | AN20: 0 | AO20: 0 | AP20: 0 | AQ20: 0 | AR20: 0 | AS20: 0 | AT20: 0 | AU20: 0 | AV20: 0 | AW20: 0 | AX20: 0 | AY20: 0 | AZ20: 0 | BA20: 0 | BB20: 0 | BC20: 0 | BD20: 0 | BE20: 0 | BF20: 0 | BG20: 0 | BH20: 0 | BI20: 0 | BJ20: 0 | BK20: 0 | BL20: 0 | BM20: 0 | BN20: 0
B21: Electrical engineering infrastructure | D21: 1 | E21: ='Cap Exp and Op Exp Assumptions'!G22*'Cockpit Page'!$E$38 -> 1635000 | G21: 0 | H21: 0 | I21: 0 | J21: 0 | K21: 0 | L21: 0 | M21: 0 | N21: 0 | O21: 0 | P21: 0 | Q21: 0 | R21: 0.7 | S21: 0 | T21: 0 | U21: 0 | V21: 0 | W21: 0 | X21: 0 | Y21: 0 | Z21: 0 | AA21: 0 | AB21: 0 | AC21: 0 | AD21: 0.3 | AE21: 0 | AF21: 0 | AG21: 0 | AH21: 0 | AI21: 0 | AJ21: 0 | AK21: 0 | AL21: 0 | AM21: 0 | AN21: 0 | AO21: 0 | AP21: 0 | AQ21: 0 | AR21: 0 | AS21: 0 | AT21: 0 | AU21: 0 | AV21: 0 | AW21: 0 | AX21: 0 | AY21: 0 | AZ21: 0 | BA21: 0 | BB21: 0 | BC21: 0 | BD21: 0 | BE21: 0 | BF21: 0 | BG21: 0 | BH21: 0 | BI21: 0 | BJ21: 0 | BK21: 0 | BL21: 0 | BM21: 0 | BN21: 0
B22: Electrical engineering consultant | D22: 0 | E22: ='Cap Exp and Op Exp Assumptions'!G23*'Cockpit Page'!$E$38 -> 0 | G22: 0 | H22: 0 | I22: 0 | J22: 0 | K22: 0 | L22: 0 | M22: 0 | N22: 0 | O22: 0 | P22: 0 | Q22: 0 | R22: 0 | S22: 0 | T22: 0 | U22: 0 | V22: 0 | W22: 0 | X22: 0 | Y22: 0 | Z22: 0 | AA22: 0 | AB22: 0 | AC22: 0 | AD22: 0 | AE22: 0 | AF22: 0 | AG22: 0 | AH22: 0 | AI22: 0 | AJ22: 0 | AK22: 0 | AL22: 0 | AM22: 0 | AN22: 0 | AO22: 0 | AP22: 0 | AQ22: 0 | AR22: 0 | AS22: 0 | AT22: 0 | AU22: 0 | AV22: 0 | AW22: 0 | AX22: 0 | AY22: 0 | AZ22: 0 | BA22: 0 | BB22: 0 | BC22: 0 | BD22: 0 | BE22: 0 | BF22: 0 | BG22: 0 | BH22: 0 | BI22: 0 | BJ22: 0 | BK22: 0 | BL22: 0 | BM22: 0 | BN22: 0
B23: Grid Connection supply | D23: 1 | E23: ='Cap Exp and Op Exp Assumptions'!G24*'Cockpit Page'!$E$38 -> 422850 | G23: 0 | H23: 0 | I23: 0 | J23: 0 | K23: 0 | L23: 0 | M23: 0 | N23: 0 | O23: 0 | P23: 0 | Q23: 0 | R23: 0 | S23: 0 | T23: 0 | U23: 0 | V23: 0 | W23: 0 | X23: 0 | Y23: 0 | Z23: 0 | AA23: 0.5 | AB23: 0 | AC23: 0 | AD23: 0.5 | AE23: 0 | AF23: 0 | AG23: 0 | AH23: 0 | AI23: 0 | AJ23: 0 | AK23: 0 | AL23: 0 | AM23: 0 | AN23: 0 | AO23: 0 | AP23: 0 | AQ23: 0 | AR23: 0 | AS23: 0 | AT23: 0 | AU23: 0 | AV23: 0 | AW23: 0 | AX23: 0 | AY23: 0 | AZ23: 0 | BA23: 0 | BB23: 0 | BC23: 0 | BD23: 0 | BE23: 0 | BF23: 0 | BG23: 0 | BH23: 0 | BI23: 0 | BJ23: 0 | BK23: 0 | BL23: 0 | BM23: 0 | BN23: 0
B24: Civil works contract | D24: 1 | E24: ='Cap Exp and Op Exp Assumptions'!G25*'Cockpit Page'!$E$38 -> 1670000 | G24: 0 | H24: 0 | I24: 0 | J24: 0 | K24: 0 | L24: 0 | M24: 0 | N24: 0 | O24: 0 | P24: 0 | Q24: 0 | R24: 0 | S24: 0 | T24: 0.1 | U24: 0.2 | V24: 0.2 | W24: 0.3 | X24: 0.2 | Y24: 0 | Z24: 0 | AA24: 0 | AB24: 0 | AC24: 0 | AD24: 0 | AE24: 0 | AF24: 0 | AG24: 0 | AH24: 0 | AI24: 0 | AJ24: 0 | AK24: 0 | AL24: 0 | AM24: 0 | AN24: 0 | AO24: 0 | AP24: 0 | AQ24: 0 | AR24: 0 | AS24: 0 | AT24: 0 | AU24: 0 | AV24: 0 | AW24: 0 | AX24: 0 | AY24: 0 | AZ24: 0 | BA24: 0 | BB24: 0 | BC24: 0 | BD24: 0 | BE24: 0 | BF24: 0 | BG24: 0 | BH24: 0 | BI24: 0 | BJ24: 0 | BK24: 0 | BL24: 0 | BM24: 0 | BN24: 0
B25: Telecommunications | D25: 0 | E25: ='Cap Exp and Op Exp Assumptions'!G26*'Cockpit Page'!$E$38 -> 0 | G25: 0 | H25: 0 | I25: 0 | J25: 0 | K25: 0 | L25: 0 | M25: 0 | N25: 0 | O25: 0 | P25: 0 | Q25: 0 | R25: 0 | S25: 0 | T25: 0 | U25: 0 | V25: 0 | W25: 0 | X25: 0 | Y25: 0 | Z25: 0 | AA25: 0 | AB25: 0 | AC25: 0 | AD25: 0 | AE25: 0 | AF25: 0 | AG25: 0 | AH25: 0 | AI25: 0 | AJ25: 0 | AK25: 0 | AL25: 0 | AM25: 0 | AN25: 0 | AO25: 0 | AP25: 0 | AQ25: 0 | AR25: 0 | AS25: 0 | AT25: 0 | AU25: 0 | AV25: 0 | AW25: 0 | AX25: 0 | AY25: 0 | AZ25: 0 | BA25: 0 | BB25: 0 | BC25: 0 | BD25: 0 | BE25: 0 | BF25: 0 | BG25: 0 | BH25: 0 | BI25: 0 | BJ25: 0 | BK25: 0 | BL25: 0 | BM25: 0 | BN25: 0
B26: Landscaping | D26: 1 | E26: ='Cap Exp and Op Exp Assumptions'!G27*'Cockpit Page'!$E$38 -> 2234000 | G26: 0 | H26: 0 | I26: 0 | J26: 0 | K26: 0 | L26: 0 | M26: 0 | N26: 0 | O26: 0 | P26: 0 | Q26: 0 | R26: 0 | S26: 0 | T26: 1 | U26: 0 | V26: 0 | W26: 0 | X26: 0 | Y26: 0 | Z26: 0 | AA26: 0 | AB26: 0 | AC26: 0 | AD26: 0 | AE26: 0 | AF26: 0 | AG26: 0 | AH26: 0 | AI26: 0 | AJ26: 0 | AK26: 0 | AL26: 0 | AM26: 0 | AN26: 0 | AO26: 0 | AP26: 0 | AQ26: 0 | AR26: 0 | AS26: 0 | AT26: 0 | AU26: 0 | AV26: 0 | AW26: 0 | AX26: 0 | AY26: 0 | AZ26: 0 | BA26: 0 | BB26: 0 | BC26: 0 | BD26: 0 | BE26: 0 | BF26: 0 | BG26: 0 | BH26: 0 | BI26: 0 | BJ26: 0 | BK26: 0 | BL26: 0 | BM26: 0 | BN26: 0
B27: Miscellaneous | D27: 1 | E27: ='Cap Exp and Op Exp Assumptions'!G28*'Cockpit Page'!$E$38 -> 3118807 | G27: 0 | H27: 0 | I27: 0 | J27: 0 | K27: 0 | L27: 0 | M27: 0 | N27: 0 | O27: 0 | P27: 0 | Q27: 0 | R27: 0 | S27: 0 | T27: 1 | U27: 0 | V27: 0 | W27: 0 | X27: 0 | Y27: 0 | Z27: 0 | AA27: 0 | AB27: 0 | AC27: 0 | AD27: 0 | AE27: 0 | AF27: 0 | AG27: 0 | AH27: 0 | AI27: 0 | AJ27: 0 | AK27: 0 | AL27: 0 | AM27: 0 | AN27: 0 | AO27: 0 | AP27: 0 | AQ27: 0 | AR27: 0 | AS27: 0 | AT27: 0 | AU27: 0 | AV27: 0 | AW27: 0 | AX27: 0 | AY27: 0 | AZ27: 0 | BA27: 0 | BB27: 0 | BC27: 0 | BD27: 0 | BE27: 0 | BF27: 0 | BG27: 0 | BH27: 0 | BI27: 0 | BJ27: 0 | BK27: 0 | BL27: 0 | BM27: 0 | BN27: 0
B28: Contingency | C28: 0.05 | D28: 1 | E28: =(SUM(E16:E27)+SUM(E12:E14))*$C$28 -> 1155087.55 | G28: 0 | H28: 0 | I28: 0 | J28: 0 | K28: 0 | L28: 0 | M28: 0 | N28: 0 | O28: 0 | P28: 0 | Q28: 0 | R28: 0 | S28: 0.0837 | T28: 0.0833 | U28: 0.0833 | V28: 0.0833 | W28: 0.0833 | X28: 0.0833 | Y28: 0.0833 | Z28: 0.0833 | AA28: 0.0833 | AB28: 0.0833 | AC28: 0.0833 | AD28: 0.0833 | AE28: 0 | AF28: 0 | AG28: 0 | AH28: 0 | AI28: 0 | AJ28: 0 | AK28: 0 | AL28: 0 | AM28: 0 | AN28: 0 | AO28: 0 | AP28: 0 | AQ28: 0 | AR28: 0 | AS28: 0 | AT28: 0 | AU28: 0 | AV28: 0 | AW28: 0 | AX28: 0 | AY28: 0 | AZ28: 0 | BA28: 0 | BB28: 0 | BC28: 0 | BD28: 0 | BE28: 0 | BF28: 0 | BG28: 0 | BH28: 0 | BI28: 0 | BJ28: 0 | BK28: 0 | BL28: 0 | BM28: 0 | BN28: 0
B29: Acquisition fee | D29: 0 | E29: ='Cap Exp and Op Exp Assumptions'!$G$6*$E$82 -> 0 | G29: 0 | H29: 0 | I29: 0 | J29: 0 | K29: 0 | L29: 0 | M29: 0 | N29: 0 | O29: 0 | P29: 0 | Q29: 0 | R29: 0 | S29: 0 | T29: 0 | U29: 0 | V29: 0 | W29: 0 | X29: 0 | Y29: 0 | Z29: 0 | AA29: 0 | AB29: 0 | AC29: 0 | AD29: 0 | AE29: 0 | AF29: 0 | AG29: 0 | AH29: 0 | AI29: 0 | AJ29: 0 | AK29: 0 | AL29: 0 | AM29: 0 | AN29: 0 | AO29: 0 | AP29: 0 | AQ29: 0 | AR29: 0 | AS29: 0 | AT29: 0 | AU29: 0 | AV29: 0 | AW29: 0 | AX29: 0 | AY29: 0 | AZ29: 0 | BA29: 0 | BB29: 0 | BC29: 0 | BD29: 0 | BE29: 0 | BF29: 0 | BG29: 0 | BH29: 0 | BI29: 0 | BJ29: 0 | BK29: 0 | BL29: 0 | BM29: 0 | BN29: 0
B31: Total Cost | E31: =SUM(E12:E29) -> 26855960.55
A33: VAT Costs
B34: Development costs | E34: =SUM(G34:DV34) -> 2536094 | G34: =$E$12*G$12 -> 0 | H34: =$E$12*H$12 -> 0 | I34: 0 | J34: 0 | K34: 0 | L34: 0 | M34: 0 | N34: 0 | O34: 0 | P34: 0 | Q34: 0 | R34: 380414.1 | S34: 177526.58 | T34: 177526.58 | U34: 180062.674 | V34: 180062.674 | W34: 180062.674 | X34: 180062.674 | Y34: 180062.674 | Z34: 180062.674 | AA34: 180062.674 | AB34: 180062.674 | AC34: 180062.674 | AD34: 180062.674 | AE34: 0 | AF34: 0 | AG34: 0 | AH34: 0 | AI34: 0 | AJ34: 0 | AK34: 0 | AL34: 0 | AM34: 0 | AN34: 0 | AO34: 0 | AP34: 0 | AQ34: 0 | AR34: 0 | AS34: 0 | AT34: 0 | AU34: 0 | AV34: 0 | AW34: 0 | AX34: 0 | AY34: 0 | AZ34: 0 | BA34: 0 | BB34: 0 | BC34: 0 | BD34: 0 | BE34: 0 | BF34: 0 | BG34: 0 | BH34: 0 | BI34: 0 | BJ34: 0 | BK34: 0 | BL34: 0 | BM34: 0 | BN34: 0 | BO34: 0 | BP34: 0 | BQ34: 0 | BR34: 0 | BS34: 0 | BT34: =$E$12*BT$12 -> 0 | BU34: 0 | BV34: 0 | BW34: 0 | BX34: 0 | BY34: 0 | BZ34: 0 | CA34: 0 | CB34: 0 | CC34: 0 | CD34: 0 | CE34: 0 | CF34: 0 | CG34: 0 | CH34: 0 | CI34: 0 | CJ34: 0 | CK34: 0 | CL34: 0 | CM34: 0 | CN34: 0 | CO34: 0 | CP34: 0 | CQ34: 0 | CR34: 0 | CS34: 0 | CT34: 0 | CU34: 0 | CV34: 0 | CW34: 0 | CX34: 0 | CY34: 0 | CZ34: 0 | DA34: 0 | DB34: 0 | DC34: 0 | DD34: 0 | DE34: 0 | DF34: 0 | DG34: 0 | DH34: 0 | DI34: 0 | DJ34: 0 | DK34: 0 | DL34: 0 | DM34: 0 | DN34: 0 | DO34: 0 | DP34: 0 | DQ34: 0 | DR34: 0 | DS34: 0 | DT34: 0 | DU34: 0 | DV34: 0
B35: Turbine Supply Contract | E35: =SUM(G35:DV35) -> 11285000 | G35: =$E$13*G$13 -> 0 | H35: =$E$13*H$13 -> 0 | I35: 0 | J35: 0 | K35: 0 | L35: 0 | M35: 0 | N35: 0 | O35: 0 | P35: 0 | Q35: 0 | R35: 0 | S35: 1692750 | T35: 0 | U35: 0 | V35: 0 | W35: 1128500 | X35: 0 | Y35: 1128500 | Z35: 564250 | AA35: 564250 | AB35: 564250 | AC35: 1692750 | AD35: 3949750 | AE35: 0 | AF35: 0 | AG35: 0 | AH35: 0 | AI35: 0 | AJ35: 0 | AK35: 0 | AL35: 0 | AM35: 0 | AN35: 0 | AO35: 0 | AP35: 0 | AQ35: 0 | AR35: 0 | AS35: 0 | AT35: 0 | AU35: 0 | AV35: 0 | AW35: 0 | AX35: 0 | AY35: 0 | AZ35: 0 | BA35: 0 | BB35: 0 | BC35: 0 | BD35: 0 | BE35: 0 | BF35: 0 | BG35: 0 | BH35: 0 | BI35: 0 | BJ35: 0 | BK35: 0 | BL35: 0 | BM35: 0 | BN35: 0 | BO35: 0 | BP35: 0 | BQ35: 0 | BR35: 0 | BS35: 0 | BT35: =$E$13*BT$13 -> 0 | BU35: 0 | BV35: 0 | BW35: 0 | BX35: 0 | BY35: 0 | BZ35: 0 | CA35: 0 | CB35: 0 | CC35: 0 | CD35: 0 | CE35: 0 | CF35: 0 | CG35: 0 | CH35: 0 | CI35: 0 | CJ35: 0 | CK35: 0 | CL35: 0 | CM35: 0 | CN35: 0 | CO35: 0 | CP35: 0 | CQ35: 0 | CR35: 0 | CS35: 0 | CT35: 0 | CU35: 0 | CV35: 0 | CW35: 0 | CX35: 0 | CY35: 0 | CZ35: 0 | DA35: 0 | DB35: 0 | DC35: 0 | DD35: 0 | DE35: 0 | DF35: 0 | DG35: 0 | DH35: 0 | DI35: 0 | DJ35: 0 | DK35: 0 | DL35: 0 | DM35: 0 | DN35: 0 | DO35: 0 | DP35: 0 | DQ35: 0 | DR35: 0 | DS35: 0 | DT35: 0 | DU35: 0 | DV35: 0
B36: Finance/Legal / Banking | E36: 200000 | G36: =$E$14*G14 -> 0 | H36: =$E$14*H14 -> 0 | I36: 0 | J36: 0 | K36: 0 | L36: 0 | M36: 0 | N36: 0 | O36: 0 | P36: 0 | Q36: 0 | R36: 40000 | S36: 0 | T36: 0 | U36: 0 | V36: 0 | W36: 0 | X36: 0 | Y36: 0 | Z36: 0 | AA36: 0 | AB36: 0 | AC36: 0 | AD36: 160000 | AE36: 0 | AF36: 0 | AG36: 0 | AH36: 0 | AI36: 0 | AJ36: 0 | AK36: 0 | AL36: 0 | AM36: 0 | AN36: 0 | AO36: 0 | AP36: 0 | AQ36: 0 | AR36: 0 | AS36: 0 | AT36: 0 | AU36: 0 | AV36: 0 | AW36: 0 | AX36: 0 | AY36: 0 | AZ36: 0 | BA36: 0 | BB36: 0 | BC36: 0 | BD36: 0 | BE36: 0 | BF36: 0 | BG36: 0 | BH36: 0 | BI36: 0 | BJ36: 0 | BK36: 0 | BL36: 0 | BM36: 0 | BN36: 0 | BO36: 0 | BP36: 0 | BQ36: 0 | BR36: 0 | BS36: 0 | BT36: =$E$14*BT14 -> 0 | BU36: 0 | BV36: 0 | BW36: 0 | BX36: 0 | BY36: 0 | BZ36: 0 | CA36: 0 | CB36: 0 | CC36: 0 | CD36: 0 | CE36: 0 | CF36: 0 | CG36: 0 | CH36: 0 | CI36: 0 | CJ36: 0 | CK36: 0 | CL36: 0 | CM36: 0 | CN36: 0 | CO36: 0 | CP36: 0 | CQ36: 0 | CR36: 0 | CS36: 0 | CT36: 0 | CU36: 0 | CV36: 0 | CW36: 0 | CX36: 0 | CY36: 0 | CZ36: 0 | DA36: 0 | DB36: 0 | DC36: 0 | DD36: 0 | DE36: 0 | DF36: 0 | DG36: 0 | DH36: 0 | DI36: 0 | DJ36: 0 | DK36: 0 | DL36: 0 | DM36: 0 | DN36: 0 | DO36: 0 | DP36: 0 | DQ36: 0 | DR36: 0 | DS36: 0 | DT36: 0 | DU36: 0 | DV36: 0
B37: ADDITIONAL PLANNING COSTS SUMMARY | E37: 2599122 | G37: =$E$15*G15 -> 0 | H37: =$E$15*H15 -> 0 | I37: 0 | J37: 0 | K37: 0 | L37: 0 | M37: 0 | N37: 0 | O37: 0 | P37: 2599122 | Q37: 0 | R37: 0 | S37: 0 | T37: 0 | U37: 0 | V37: 0 | W37: 0 | X37: 0 | Y37: 0 | Z37: 0 | AA37: 0 | AB37: 0 | AC37: 0 | AD37: 0 | AE37: 0 | AF37: 0 | AG37: 0 | AH37: 0 | AI37: 0 | AJ37: 0 | AK37: 0 | AL37: 0 | AM37: 0 | AN37: 0 | AO37: 0 | AP37: 0 | AQ37: 0 | AR37: 0 | AS37: 0 | AT37: 0 | AU37: 0 | AV37: 0 | AW37: 0 | AX37: 0 | AY37: 0 | AZ37: 0 | BA37: 0 | BB37: 0 | BC37: 0 | BD37: 0 | BE37: 0 | BF37: 0 | BG37: 0 | BH37: 0 | BI37: 0 | BJ37: 0 | BK37: 0 | BL37: 0 | BM37: 0 | BN37: 0 | BO37: 0 | BP37: 0 | BQ37: 0 | BR37: 0 | BS37: 0 | BT37: =$E$15*BT15 -> 0 | BU37: 0 | BV37: 0 | BW37: 0 | BX37: 0 | BY37: 0 | BZ37: 0 | CA37: 0 | CB37: 0 | CC37: 0 | CD37: 0 | CE37: 0 | CF37: 0 | CG37: 0 | CH37: 0 | CI37: 0 | CJ37: 0 | CK37: 0 | CL37: 0 | CM37: 0 | CN37: 0 | CO37: 0 | CP37: 0 | CQ37: 0 | CR37: 0 | CS37: 0 | CT37: 0 | CU37: 0 | CV37: 0 | CW37: 0 | CX37: 0 | CY37: 0 | CZ37: 0 | DA37: 0 | DB37: 0 | DC37: 0 | DD37: 0 | DE37: 0 | DF37: 0 | DG37: 0 | DH37: 0 | DI37: 0 | DJ37: 0 | DK37: 0 | DL37: 0 | DM37: 0 | DN37: 0 | DO37: 0 | DP37: 0 | DQ37: 0 | DR37: 0 | DS37: 0 | DT37: 0 | DU37: 0 | DV37: 0
B38: Construction Monitoring Summary | E38: 0 | G38: =$E$16*G$16 -> 0 | H38: =$E$16*H$16 -> 0 | I38: 0 | J38: 0 | K38: 0 | L38: 0 | M38: 0 | N38: 0 | O38: 0 | P38: 0 | Q38: 0 | R38: 0 | S38: 0 | T38: 0 | U38: 0 | V38: 0 | W38: 0 | X38: 0 | Y38: 0 | Z38: 0 | AA38: 0 | AB38: 0 | AC38: 0 | AD38: 0 | AE38: 0 | AF38: 0 | AG38: 0 | AH38: 0 | AI38: 0 | AJ38: 0 | AK38: 0 | AL38: 0 | AM38: 0 | AN38: 0 | AO38: 0 | AP38: 0 | AQ38: 0 | AR38: 0 | AS38: 0 | AT38: 0 | AU38: 0 | AV38: 0 | AW38: 0 | AX38: 0 | AY38: 0 | AZ38: 0 | BA38: 0 | BB38: 0 | BC38: 0 | BD38: 0 | BE38: 0 | BF38: 0 | BG38: 0 | BH38: 0 | BI38: 0 | BJ38: 0 | BK38: 0 | BL38: 0 | BM38: 0 | BN38: 0 | BO38: 0 | BP38: 0 | BQ38: 0 | BR38: 0 | BS38: 0 | BT38: =$E$16*BT$16 -> 0 | BU38: 0 | BV38: 0 | BW38: 0 | BX38: 0 | BY38: 0 | BZ38: 0 | CA38: 0 | CB38: 0 | CC38: 0 | CD38: 0 | CE38: 0 | CF38: 0 | CG38: 0 | CH38: 0 | CI38: 0 | CJ38: 0 | CK38: 0 | CL38: 0 | CM38: 0 | CN38: 0 | CO38: 0 | CP38: 0 | CQ38: 0 | CR38: 0 | CS38: 0 | CT38: 0 | CU38: 0 | CV38: 0 | CW38: 0 | CX38: 0 | CY38: 0 | CZ38: 0 | DA38: 0 | DB38: 0 | DC38: 0 | DD38: 0 | DE38: 0 | DF38: 0 | DG38: 0 | DH38: 0 | DI38: 0 | DJ38: 0 | DK38: 0 | DL38: 0 | DM38: 0 | DN38: 0 | DO38: 0 | DP38: 0 | DQ38: 0 | DR38: 0 | DS38: 0 | DT38: 0 | DU38: 0 | DV38: 0
B39: Project Management & Co-ordination | E39: 0 | G39: =$E$17*G17 -> 0 | H39: =$E$17*H17 -> 0 | I39: 0 | J39: 0 | K39: 0 | L39: 0 | M39: 0 | N39: 0 | O39: 0 | P39: 0 | Q39: 0 | R39: 0 | S39: 0 | T39: 0 | U39: 0 | V39: 0 | W39: 0 | X39: 0 | Y39: 0 | Z39: 0 | AA39: 0 | AB39: 0 | AC39: 0 | AD39: 0 | AE39: 0 | AF39: 0 | AG39: 0 | AH39: 0 | AI39: 0 | AJ39: 0 | AK39: 0 | AL39: 0 | AM39: 0 | AN39: 0 | AO39: 0 | AP39: 0 | AQ39: 0 | AR39: 0 | AS39: 0 | AT39: 0 | AU39: 0 | AV39: 0 | AW39: 0 | AX39: 0 | AY39: 0 | AZ39: 0 | BA39: 0 | BB39: 0 | BC39: 0 | BD39: 0 | BE39: 0 | BF39: 0 | BG39: 0 | BH39: 0 | BI39: 0 | BJ39: 0 | BK39: 0 | BL39: 0 | BM39: 0 | BN39: 0 | BO39: 0 | BP39: 0 | BQ39: 0 | BR39: 0 | BS39: 0 | BT39: =$E$17*BT17 -> 0 | BU39: 0 | BV39: 0 | BW39: 0 | BX39: 0 | BY39: 0 | BZ39: 0 | CA39: 0 | CB39: 0 | CC39: 0 | CD39: 0 | CE39: 0 | CF39: 0 | CG39: 0 | CH39: 0 | CI39: 0 | CJ39: 0 | CK39: 0 | CL39: 0 | CM39: 0 | CN39: 0 | CO39: 0 | CP39: 0 | CQ39: 0 | CR39: 0 | CS39: 0 | CT39: 0 | CU39: 0 | CV39: 0 | CW39: 0 | CX39: 0 | CY39: 0 | CZ39: 0 | DA39: 0 | DB39: 0 | DC39: 0 | DD39: 0 | DE39: 0 | DF39: 0 | DG39: 0 | DH39: 0 | DI39: 0 | DJ39: 0 | DK39: 0 | DL39: 0 | DM39: 0 | DN39: 0 | DO39: 0 | DP39: 0 | DQ39: 0 | DR39: 0 | DS39: 0 | DT39: 0 | DU39: 0 | DV39: 0
B40: Water monitoring | E40: 0 | G40: =$E$18*G18 -> 0 | H40: =$E$18*H18 -> 0 | I40: 0 | J40: 0 | K40: 0 | L40: 0 | M40: 0 | N40: 0 | O40: 0 | P40: 0 | Q40: 0 | R40: 0 | S40: 0 | T40: 0 | U40: 0 | V40: 0 | W40: 0 | X40: 0 | Y40: 0 | Z40: 0 | AA40: 0 | AB40: 0 | AC40: 0 | AD40: 0 | AE40: 0 | AF40: 0 | AG40: 0 | AH40: 0 | AI40: 0 | AJ40: 0 | AK40: 0 | AL40: 0 | AM40: 0 | AN40: 0 | AO40: 0 | AP40: 0 | AQ40: 0 | AR40: 0 | AS40: 0 | AT40: 0 | AU40: 0 | AV40: 0 | AW40: 0 | AX40: 0 | AY40: 0 | AZ40: 0 | BA40: 0 | BB40: 0 | BC40: 0 | BD40: 0 | BE40: 0 | BF40: 0 | BG40: 0 | BH40: 0 | BI40: 0 | BJ40: 0 | BK40: 0 | BL40: 0 | BM40: 0 | BN40: 0 | BO40: 0 | BP40: 0 | BQ40: 0 | BR40: 0 | BS40: 0 | BT40: =$E$18*BT18 -> 0 | BU40: 0 | BV40: 0 | BW40: 0 | BX40: 0 | BY40: 0 | BZ40: 0 | CA40: 0 | CB40: 0 | CC40: 0 | CD40: 0 | CE40: 0 | CF40: 0 | CG40: 0 | CH40: 0 | CI40: 0 | CJ40: 0 | CK40: 0 | CL40: 0 | CM40: 0 | CN40: 0 | CO40: 0 | CP40: 0 | CQ40: 0 | CR40: 0 | CS40: 0 | CT40: 0 | CU40: 0 | CV40: 0 | CW40: 0 | CX40: 0 | CY40: 0 | CZ40: 0 | DA40: 0 | DB40: 0 | DC40: 0 | DD40: 0 | DE40: 0 | DF40: 0 | DG40: 0 | DH40: 0 | DI40: 0 | DJ40: 0 | DK40: 0 | DL40: 0 | DM40: 0 | DN40: 0 | DO40: 0 | DP40: 0 | DQ40: 0 | DR40: 0 | DS40: 0 | DT40: 0 | DU40: 0 | DV40: 0
B41: Independent engineers | E41: 0 | G41: =$E$19*G19 -> 0 | H41: =$E$19*H19 -> 0 | I41: 0 | J41: 0 | K41: 0 | L41: 0 | M41: 0 | N41: 0 | O41: 0 | P41: 0 | Q41: 0 | R41: 0 | S41: 0 | T41: 0 | U41: 0 | V41: 0 | W41: 0 | X41: 0 | Y41: 0 | Z41: 0 | AA41: 0 | AB41: 0 | AC41: 0 | AD41: 0 | AE41: 0 | AF41: 0 | AG41: 0 | AH41: 0 | AI41: 0 | AJ41: 0 | AK41: 0 | AL41: 0 | AM41: 0 | AN41: 0 | AO41: 0 | AP41: 0 | AQ41: 0 | AR41: 0 | AS41: 0 | AT41: 0 | AU41: 0 | AV41: 0 | AW41: 0 | AX41: 0 | AY41: 0 | AZ41: 0 | BA41: 0 | BB41: 0 | BC41: 0 | BD41: 0 | BE41: 0 | BF41: 0 | BG41: 0 | BH41: 0 | BI41: 0 | BJ41: 0 | BK41: 0 | BL41: 0 | BM41: 0 | BN41: 0 | BO41: 0 | BP41: 0 | BQ41: 0 | BR41: 0 | BS41: 0 | BT41: =$E$19*BT19 -> 0 | BU41: 0 | BV41: 0 | BW41: 0 | BX41: 0 | BY41: 0 | BZ41: 0 | CA41: 0 | CB41: 0 | CC41: 0 | CD41: 0 | CE41: 0 | CF41: 0 | CG41: 0 | CH41: 0 | CI41: 0 | CJ41: 0 | CK41: 0 | CL41: 0 | CM41: 0 | CN41: 0 | CO41: 0 | CP41: 0 | CQ41: 0 | CR41: 0 | CS41: 0 | CT41: 0 | CU41: 0 | CV41: 0 | CW41: 0 | CX41: 0 | CY41: 0 | CZ41: 0 | DA41: 0 | DB41: 0 | DC41: 0 | DD41: 0 | DE41: 0 | DF41: 0 | DG41: 0 | DH41: 0 | DI41: 0 | DJ41: 0 | DK41: 0 | DL41: 0 | DM41: 0 | DN41: 0 | DO41: 0 | DP41: 0 | DQ41: 0 | DR41: 0 | DS41: 0 | DT41: 0 | DU41: 0 | DV41: 0
B42: Insurances | E42: 0 | G42: =$E$20*G20 -> 0 | H42: =$E$20*H20 -> 0 | I42: 0 | J42: 0 | K42: 0 | L42: 0 | M42: 0 | N42: 0 | O42: 0 | P42: 0 | Q42: 0 | R42: 0 | S42: 0 | T42: 0 | U42: 0 | V42: 0 | W42: 0 | X42: 0 | Y42: 0 | Z42: 0 | AA42: 0 | AB42: 0 | AC42: 0 | AD42: 0 | AE42: 0 | AF42: 0 | AG42: 0 | AH42: 0 | AI42: 0 | AJ42: 0 | AK42: 0 | AL42: 0 | AM42: 0 | AN42: 0 | AO42: 0 | AP42: 0 | AQ42: 0 | AR42: 0 | AS42: 0 | AT42: 0 | AU42: 0 | AV42: 0 | AW42: 0 | AX42: 0 | AY42: 0 | AZ42: 0 | BA42: 0 | BB42: 0 | BC42: 0 | BD42: 0 | BE42: 0 | BF42: 0 | BG42: 0 | BH42: 0 | BI42: 0 | BJ42: 0 | BK42: 0 | BL42: 0 | BM42: 0 | BN42: 0 | BO42: 0 | BP42: 0 | BQ42: 0 | BR42: 0 | BS42: 0 | BT42: =$E$20*BT20 -> 0 | BU42: 0 | BV42: 0 | BW42: 0 | BX42: 0 | BY42: 0 | BZ42: 0 | CA42: 0 | CB42: 0 | CC42: 0 | CD42: 0 | CE42: 0 | CF42: 0 | CG42: 0 | CH42: 0 | CI42: 0 | CJ42: 0 | CK42: 0 | CL42: 0 | CM42: 0 | CN42: 0 | CO42: 0 | CP42: 0 | CQ42: 0 | CR42: 0 | CS42: 0 | CT42: 0 | CU42: 0 | CV42: 0 | CW42: 0 | CX42: 0 | CY42: 0 | CZ42: 0 | DA42: 0 | DB42: 0 | DC42: 0 | DD42: 0 | DE42: 0 | DF42: 0 | DG42: 0 | DH42: 0 | DI42: 0 | DJ42: 0 | DK42: 0 | DL42: 0 | DM42: 0 | DN42: 0 | DO42: 0 | DP42: 0 | DQ42: 0 | DR42: 0 | DS42: 0 | DT42: 0 | DU42: 0 | DV42: 0
B43: Electrical engineering infrastructure | E43: 1635000 | G43: =$E$21*G21 -> 0 | H43: =$E$21*H21 -> 0 | I43: 0 | J43: 0 | K43: 0 | L43: 0 | M43: 0 | N43: 0 | O43: 0 | P43: 0 | Q43: 0 | R43: 1144500 | S43: 0 | T43: 0 | U43: 0 | V43: 0 | W43: 0 | X43: 0 | Y43: 0 | Z43: 0 | AA43: 0 | AB43: 0 | AC43: 0 | AD43: 490500 | AE43: 0 | AF43: 0 | AG43: 0 | AH43: 0 | AI43: 0 | AJ43: 0 | AK43: 0 | AL43: 0 | AM43: 0 | AN43: 0 | AO43: 0 | AP43: 0 | AQ43: 0 | AR43: 0 | AS43: 0 | AT43: 0 | AU43: 0 | AV43: 0 | AW43: 0 | AX43: 0 | AY43: 0 | AZ43: 0 | BA43: 0 | BB43: 0 | BC43: 0 | BD43: 0 | BE43: 0 | BF43: 0 | BG43: 0 | BH43: 0 | BI43: 0 | BJ43: 0 | BK43: 0 | BL43: 0 | BM43: 0 | BN43: 0 | BO43: 0 | BP43: 0 | BQ43: 0 | BR43: 0 | BS43: 0 | BT43: =$E$21*BT21 -> 0 | BU43: 0 | BV43: 0 | BW43: 0 | BX43: 0 | BY43: 0 | BZ43: 0 | CA43: 0 | CB43: 0 | CC43: 0 | CD43: 0 | CE43: 0 | CF43: 0 | CG43: 0 | CH43: 0 | CI43: 0 | CJ43: 0 | CK43: 0 | CL43: 0 | CM43: 0 | CN43: 0 | CO43: 0 | CP43: 0 | CQ43: 0 | CR43: 0 | CS43: 0 | CT43: 0 | CU43: 0 | CV43: 0 | CW43: 0 | CX43: 0 | CY43: 0 | CZ43: 0 | DA43: 0 | DB43: 0 | DC43: 0 | DD43: 0 | DE43: 0 | DF43: 0 | DG43: 0 | DH43: 0 | DI43: 0 | DJ43: 0 | DK43: 0 | DL43: 0 | DM43: 0 | DN43: 0 | DO43: 0 | DP43: 0 | DQ43: 0 | DR43: 0 | DS43: 0 | DT43: 0 | DU43: 0 | DV43: 0
B44: Electrical engineering consultant | E44: 0 | G44: =$E$22*G22 -> 0 | H44: =$E$22*H22 -> 0 | I44: 0 | J44: 0 | K44: 0 | L44: 0 | M44: 0 | N44: 0 | O44: 0 | P44: 0 | Q44: 0 | R44: 0 | S44: 0 | T44: 0 | U44: 0 | V44: 0 | W44: 0 | X44: 0 | Y44: 0 | Z44: 0 | AA44: 0 | AB44: 0 | AC44: 0 | AD44: 0 | AE44: 0 | AF44: 0 | AG44: 0 | AH44: 0 | AI44: 0 | AJ44: 0 | AK44: 0 | AL44: 0 | AM44: 0 | AN44: 0 | AO44: 0 | AP44: 0 | AQ44: 0 | AR44: 0 | AS44: 0 | AT44: 0 | AU44: 0 | AV44: 0 | AW44: 0 | AX44: 0 | AY44: 0 | AZ44: 0 | BA44: 0 | BB44: 0 | BC44: 0 | BD44: 0 | BE44: 0 | BF44: 0 | BG44: 0 | BH44: 0 | BI44: 0 | BJ44: 0 | BK44: 0 | BL44: 0 | BM44: 0 | BN44: 0 | BO44: 0 | BP44: 0 | BQ44: 0 | BR44: 0 | BS44: 0 | BT44: =$E$22*BT22 -> 0 | BU44: 0 | BV44: 0 | BW44: 0 | BX44: 0 | BY44: 0 | BZ44: 0 | CA44: 0 | CB44: 0 | CC44: 0 | CD44: 0 | CE44: 0 | CF44: 0 | CG44: 0 | CH44: 0 | CI44: 0 | CJ44: 0 | CK44: 0 | CL44: 0 | CM44: 0 | CN44: 0 | CO44: 0 | CP44: 0 | CQ44: 0 | CR44: 0 | CS44: 0 | CT44: 0 | CU44: 0 | CV44: 0 | CW44: 0 | CX44: 0 | CY44: 0 | CZ44: 0 | DA44: 0 | DB44: 0 | DC44: 0 | DD44: 0 | DE44: 0 | DF44: 0 | DG44: 0 | DH44: 0 | DI44: 0 | DJ44: 0 | DK44: 0 | DL44: 0 | DM44: 0 | DN44: 0 | DO44: 0 | DP44: 0 | DQ44: 0 | DR44: 0 | DS44: 0 | DT44: 0 | DU44: 0 | DV44: 0
B45: Grid Connection supply | E45: 422850 | G45: =$E$23*G23 -> 0 | H45: =$E$23*H23 -> 0 | I45: 0 | J45: 0 | K45: 0 | L45: 0 | M45: 0 | N45: 0 | O45: 0 | P45: 0 | Q45: 0 | R45: 0 | S45: 0 | T45: 0 | U45: 0 | V45: 0 | W45: 0 | X45: 0 | Y45: 0 | Z45: 0 | AA45: 211425 | AB45: 0 | AC45: 0 | AD45: 211425 | AE45: 0 | AF45: 0 | AG45: 0 | AH45: 0 | AI45: 0 | AJ45: 0 | AK45: 0 | AL45: 0 | AM45: 0 | AN45: 0 | AO45: 0 | AP45: 0 | AQ45: 0 | AR45: 0 | AS45: 0 | AT45: 0 | AU45: 0 | AV45: 0 | AW45: 0 | AX45: 0 | AY45: 0 | AZ45: 0 | BA45: 0 | BB45: 0 | BC45: 0 | BD45: 0 | BE45: 0 | BF45: 0 | BG45: 0 | BH45: 0 | BI45: 0 | BJ45: 0 | BK45: 0 | BL45: 0 | BM45: 0 | BN45: 0 | BO45: 0 | BP45: 0 | BQ45: 0 | BR45: 0 | BS45: 0 | BT45: =$E$23*BT23 -> 0 | BU45: 0 | BV45: 0 | BW45: 0 | BX45: 0 | BY45: 0 | BZ45: 0 | CA45: 0 | CB45: 0 | CC45: 0 | CD45: 0 | CE45: 0 | CF45: 0 | CG45: 0 | CH45: 0 | CI45: 0 | CJ45: 0 | CK45: 0 | CL45: 0 | CM45: 0 | CN45: 0 | CO45: 0 | CP45: 0 | CQ45: 0 | CR45: 0 | CS45: 0 | CT45: 0 | CU45: 0 | CV45: 0 | CW45: 0 | CX45: 0 | CY45: 0 | CZ45: 0 | DA45: 0 | DB45: 0 | DC45: 0 | DD45: 0 | DE45: 0 | DF45: 0 | DG45: 0 | DH45: 0 | DI45: 0 | DJ45: 0 | DK45: 0 | DL45: 0 | DM45: 0 | DN45: 0 | DO45: 0 | DP45: 0 | DQ45: 0 | DR45: 0 | DS45: 0 | DT45: 0 | DU45: 0 | DV45: 0
B46: Civil works contract | E46: 1670000 | G46: =$E$24*G24 -> 0 | H46: =$E$24*H24 -> 0 | I46: 0 | J46: 0 | K46: 0 | L46: 0 | M46: 0 | N46: 0 | O46: 0 | P46: 0 | Q46: 0 | R46: 0 | S46: 0 | T46: 167000 | U46: 334000 | V46: 334000 | W46: 501000 | X46: 334000 | Y46: 0 | Z46: 0 | AA46: 0 | AB46: 0 | AC46: 0 | AD46: 0 | AE46: 0 | AF46: 0 | AG46: 0 | AH46: 0 | AI46: 0 | AJ46: 0 | AK46: 0 | AL46: 0 | AM46: 0 | AN46: 0 | AO46: 0 | AP46: 0 | AQ46: 0 | AR46: 0 | AS46: 0 | AT46: 0 | AU46: 0 | AV46: 0 | AW46: 0 | AX46: 0 | AY46: 0 | AZ46: 0 | BA46: 0 | BB46: 0 | BC46: 0 | BD46: 0 | BE46: 0 | BF46: 0 | BG46: 0 | BH46: 0 | BI46: 0 | BJ46: 0 | BK46: 0 | BL46: 0 | BM46: 0 | BN46: 0 | BO46: 0 | BP46: 0 | BQ46: 0 | BR46: 0 | BS46: 0 | BT46: =$E$24*BT24 -> 0 | BU46: 0 | BV46: 0 | BW46: 0 | BX46: 0 | BY46: 0 | BZ46: 0 | CA46: 0 | CB46: 0 | CC46: 0 | CD46: 0 | CE46: 0 | CF46: 0 | CG46: 0 | CH46: 0 | CI46: 0 | CJ46: 0 | CK46: 0 | CL46: 0 | CM46: 0 | CN46: 0 | CO46: 0 | CP46: 0 | CQ46: 0 | CR46: 0 | CS46: 0 | CT46: 0 | CU46: 0 | CV46: 0 | CW46: 0 | CX46: 0 | CY46: 0 | CZ46: 0 | DA46: 0 | DB46: 0 | DC46: 0 | DD46: 0 | DE46: 0 | DF46: 0 | DG46: 0 | DH46: 0 | DI46: 0 | DJ46: 0 | DK46: 0 | DL46: 0 | DM46: 0 | DN46: 0 | DO46: 0 | DP46: 0 | DQ46: 0 | DR46: 0 | DS46: 0 | DT46: 0 | DU46: 0 | DV46: 0
B47: Telecommunications | E47: 0 | G47: =$E$25*G25 -> 0 | H47: =$E$25*H25 -> 0 | I47: 0 | J47: 0 | K47: 0 | L47: 0 | M47: 0 | N47: 0 | O47: 0 | P47: 0 | Q47: 0 | R47: 0 | S47: 0 | T47: 0 | U47: 0 | V47: 0 | W47: 0 | X47: 0 | Y47: 0 | Z47: 0 | AA47: 0 | AB47: 0 | AC47: 0 | AD47: 0 | AE47: 0 | AF47: 0 | AG47: 0 | AH47: 0 | AI47: 0 | AJ47: 0 | AK47: 0 | AL47: 0 | AM47: 0 | AN47: 0 | AO47: 0 | AP47: 0 | AQ47: 0 | AR47: 0 | AS47: 0 | AT47: 0 | AU47: 0 | AV47: 0 | AW47: 0 | AX47: 0 | AY47: 0 | AZ47: 0 | BA47: 0 | BB47: 0 | BC47: 0 | BD47: 0 | BE47: 0 | BF47: 0 | BG47: 0 | BH47: 0 | BI47: 0 | BJ47: 0 | BK47: 0 | BL47: 0 | BM47: 0 | BN47: 0 | BO47: 0 | BP47: 0 | BQ47: 0 | BR47: 0 | BS47: 0 | BT47: =$E$25*BT25 -> 0 | BU47: 0 | BV47: 0 | BW47: 0 | BX47: 0 | BY47: 0 | BZ47: 0 | CA47: 0 | CB47: 0 | CC47: 0 | CD47: 0 | CE47: 0 | CF47: 0 | CG47: 0 | CH47: 0 | CI47: 0 | CJ47: 0 | CK47: 0 | CL47: 0 | CM47: 0 | CN47: 0 | CO47: 0 | CP47: 0 | CQ47: 0 | CR47: 0 | CS47: 0 | CT47: 0 | CU47: 0 | CV47: 0 | CW47: 0 | CX47: 0 | CY47: 0 | CZ47: 0 | DA47: 0 | DB47: 0 | DC47: 0 | DD47: 0 | DE47: 0 | DF47: 0 | DG47: 0 | DH47: 0 | DI47: 0 | DJ47: 0 | DK47: 0 | DL47: 0 | DM47: 0 | DN47: 0 | DO47: 0 | DP47: 0 | DQ47: 0 | DR47: 0 | DS47: 0 | DT47: 0 | DU47: 0 | DV47: 0
B48: Landscaping | E48: 2234000 | G48: =$E$26*G26 -> 0 | H48: =$E$26*H26 -> 0 | I48: 0 | J48: 0 | K48: 0 | L48: 0 | M48: 0 | N48: 0 | O48: 0 | P48: 0 | Q48: 0 | R48: 0 | S48: 0 | T48: 2234000 | U48: 0 | V48: 0 | W48: 0 | X48: 0 | Y48: 0 | Z48: 0 | AA48: 0 | AB48: 0 | AC48: 0 | AD48: 0 | AE48: 0 | AF48: 0 | AG48: 0 | AH48: 0 | AI48: 0 | AJ48: 0 | AK48: 0 | AL48: 0 | AM48: 0 | AN48: 0 | AO48: 0 | AP48: 0 | AQ48: 0 | AR48: 0 | AS48: 0 | AT48: 0 | AU48: 0 | AV48: 0 | AW48: 0 | AX48: 0 | AY48: 0 | AZ48: 0 | BA48: 0 | BB48: 0 | BC48: 0 | BD48: 0 | BE48: 0 | BF48: 0 | BG48: 0 | BH48: 0 | BI48: 0 | BJ48: 0 | BK48: 0 | BL48: 0 | BM48: 0 | BN48: 0 | BO48: 0 | BP48: 0 | BQ48: 0 | BR48: 0 | BS48: 0 | BT48: =$E$26*BT26 -> 0 | BU48: 0 | BV48: 0 | BW48: 0 | BX48: 0 | BY48: 0 | BZ48: 0 | CA48: 0 | CB48: 0 | CC48: 0 | CD48: 0 | CE48: 0 | CF48: 0 | CG48: 0 | CH48: 0 | CI48: 0 | CJ48: 0 | CK48: 0 | CL48: 0 | CM48: 0 | CN48: 0 | CO48: 0 | CP48: 0 | CQ48: 0 | CR48: 0 | CS48: 0 | CT48: 0 | CU48: 0 | CV48: 0 | CW48: 0 | CX48: 0 | CY48: 0 | CZ48: 0 | DA48: 0 | DB48: 0 | DC48: 0 | DD48: 0 | DE48: 0 | DF48: 0 | DG48: 0 | DH48: 0 | DI48: 0 | DJ48: 0 | DK48: 0 | DL48: 0 | DM48: 0 | DN48: 0 | DO48: 0 | DP48: 0 | DQ48: 0 | DR48: 0 | DS48: 0 | DT48: 0 | DU48: 0 | DV48: 0
B49: Miscellaneous | E49: 3118807 | G49: =$E$27*G27 -> 0 | H49: =$E$27*H27 -> 0 | I49: 0 | J49: 0 | K49: 0 | L49: 0 | M49: 0 | N49: 0 | O49: 0 | P49: 0 | Q49: 0 | R49: 0 | S49: 0 | T49: 3118807 | U49: 0 | V49: 0 | W49: 0 | X49: 0 | Y49: 0 | Z49: 0 | AA49: 0 | AB49: 0 | AC49: 0 | AD49: 0 | AE49: 0 | AF49: 0 | AG49: 0 | AH49: 0 | AI49: 0 | AJ49: 0 | AK49: 0 | AL49: 0 | AM49: 0 | AN49: 0 | AO49: 0 | AP49: 0 | AQ49: 0 | AR49: 0 | AS49: 0 | AT49: 0 | AU49: 0 | AV49: 0 | AW49: 0 | AX49: 0 | AY49: 0 | AZ49: 0 | BA49: 0 | BB49: 0 | BC49: 0 | BD49: 0 | BE49: 0 | BF49: 0 | BG49: 0 | BH49: 0 | BI49: 0 | BJ49: 0 | BK49: 0 | BL49: 0 | BM49: 0 | BN49: 0 | BO49: 0 | BP49: 0 | BQ49: 0 | BR49: 0 | BS49: 0 | BT49: =$E$27*BT27 -> 0 | BU49: 0 | BV49: 0 | BW49: 0 | BX49: 0 | BY49: 0 | BZ49: 0 | CA49: 0 | CB49: 0 | CC49: 0 | CD49: 0 | CE49: 0 | CF49: 0 | CG49: 0 | CH49: 0 | CI49: 0 | CJ49: 0 | CK49: 0 | CL49: 0 | CM49: 0 | CN49: 0 | CO49: 0 | CP49: 0 | CQ49: 0 | CR49: 0 | CS49: 0 | CT49: 0 | CU49: 0 | CV49: 0 | CW49: 0 | CX49: 0 | CY49: 0 | CZ49: 0 | DA49: 0 | DB49: 0 | DC49: 0 | DD49: 0 | DE49: 0 | DF49: 0 | DG49: 0 | DH49: 0 | DI49: 0 | DJ49: 0 | DK49: 0 | DL49: 0 | DM49: 0 | DN49: 0 | DO49: 0 | DP49: 0 | DQ49: 0 | DR49: 0 | DS49: 0 | DT49: 0 | DU49: 0 | DV49: 0
B50: Contingency | E50: 1155087.55 | G50: =$E$28*G28 -> 0 | H50: =$E$28*H28 -> 0 | I50: 0 | J50: 0 | K50: 0 | L50: 0 | M50: 0 | N50: 0 | O50: 0 | P50: 0 | Q50: 0 | R50: 0 | S50: 96680.82793 | T50: 96218.79291 | U50: 96218.79291 | V50: 96218.79291 | W50: 96218.79291 | X50: 96218.79291 | Y50: 96218.79291 | Z50: 96218.79291 | AA50: 96218.79291 | AB50: 96218.79291 | AC50: 96218.79291 | AD50: 96218.79291 | AE50: 0 | AF50: 0 | AG50: 0 | AH50: 0 | AI50: 0 | AJ50: 0 | AK50: 0 | AL50: 0 | AM50: 0 | AN50: 0 | AO50: 0 | AP50: 0 | AQ50: 0 | AR50: 0 | AS50: 0 | AT50: 0 | AU50: 0 | AV50: 0 | AW50: 0 | AX50: 0 | AY50: 0 | AZ50: 0 | BA50: 0 | BB50: 0 | BC50: 0 | BD50: 0 | BE50: 0 | BF50: 0 | BG50: 0 | BH50: 0 | BI50: 0 | BJ50: 0 | BK50: 0 | BL50: 0 | BM50: 0 | BN50: 0 | BO50: 0 | BP50: 0 | BQ50: 0 | BR50: 0 | BS50: 0 | BT50: =$E$28*BT28 -> 0 | BU50: 0 | BV50: 0 | BW50: 0 | BX50: 0 | BY50: 0 | BZ50: 0 | CA50: 0 | CB50: 0 | CC50: 0 | CD50: 0 | CE50: 0 | CF50: 0 | CG50: 0 | CH50: 0 | CI50: 0 | CJ50: 0 | CK50: 0 | CL50: 0 | CM50: 0 | CN50: 0 | CO50: 0 | CP50: 0 | CQ50: 0 | CR50: 0 | CS50: 0 | CT50: 0 | CU50: 0 | CV50: 0 | CW50: 0 | CX50: 0 | CY50: 0 | CZ50: 0 | DA50: 0 | DB50: 0 | DC50: 0 | DD50: 0 | DE50: 0 | DF50: 0 | DG50: 0 | DH50: 0 | DI50: 0 | DJ50: 0 | DK50: 0 | DL50: 0 | DM50: 0 | DN50: 0 | DO50: 0 | DP50: 0 | DQ50: 0 | DR50: 0 | DS50: 0 | DT50: 0 | DU50: 0 | DV50: 0
B51: Acquisition fee | E51: 0 | G51: =$E$29*G29 -> 0 | H51: =$E$29*H29 -> 0 | I51: 0 | J51: 0 | K51: 0 | L51: 0 | M51: 0 | N51: 0 | O51: 0 | P51: 0 | Q51: 0 | R51: 0 | S51: 0 | T51: 0 | U51: 0 | V51: 0 | W51: 0 | X51: 0 | Y51: 0 | Z51: 0 | AA51: 0 | AB51: 0 | AC51: 0 | AD51: 0 | AE51: 0 | AF51: 0 | AG51: 0 | AH51: 0 | AI51: 0 | AJ51: 0 | AK51: 0 | AL51: 0 | AM51: 0 | AN51: 0 | AO51: 0 | AP51: 0 | AQ51: 0 | AR51: 0 | AS51: 0 | AT51: 0 | AU51: 0 | AV51: 0 | AW51: 0 | AX51: 0 | AY51: 0 | AZ51: 0 | BA51: 0 | BB51: 0 | BC51: 0 | BD51: 0 | BE51: 0 | BF51: 0 | BG51: 0 | BH51: 0 | BI51: 0 | BJ51: 0 | BK51: 0 | BL51: 0 | BM51: 0 | BN51: 0 | BO51: 0 | BP51: 0 | BQ51: 0 | BR51: 0 | BS51: 0 | BT51: =$E$29*BT29 -> 0 | BU51: 0 | BV51: 0 | BW51: 0 | BX51: 0 | BY51: 0 | BZ51: 0 | CA51: 0 | CB51: 0 | CC51: 0 | CD51: 0 | CE51: 0 | CF51: 0 | CG51: 0 | CH51: 0 | CI51: 0 | CJ51: 0 | CK51: 0 | CL51: 0 | CM51: 0 | CN51: 0 | CO51: 0 | CP51: 0 | CQ51: 0 | CR51: 0 | CS51: 0 | CT51: 0 | CU51: 0 | CV51: 0 | CW51: 0 | CX51: 0 | CY51: 0 | CZ51: 0 | DA51: 0 | DB51: 0 | DC51: 0 | DD51: 0 | DE51: 0 | DF51: 0 | DG51: 0 | DH51: 0 | DI51: 0 | DJ51: 0 | DK51: 0 | DL51: 0 | DM51: 0 | DN51: 0 | DO51: 0 | DP51: 0 | DQ51: 0 | DR51: 0 | DS51: 0 | DT51: 0 | DU51: 0 | DV51: 0
B53: Total Cost | E53: =SUM(G53:DV53) -> 26855960.55 | G53: =SUM(G34:G51) -> 0 | H53: =SUM(H34:H51) -> 0 | I53: 0 | J53: 0 | K53: 0 | L53: 0 | M53: 0 | N53: 0 | O53: 0 | P53: 2599122 | Q53: 0 | R53: 1564914.1 | S53: 1966957.408 | T53: 5793552.373 | U53: 610281.4669 | V53: 610281.4669 | W53: 1905781.467 | X53: 610281.4669 | Y53: 1404781.467 | Z53: 840531.4669 | AA53: 1051956.467 | AB53: 840531.4669 | AC53: 1969031.467 | AD53: 5087956.467 | AE53: 0 | AF53: 0 | AG53: 0 | AH53: 0 | AI53: 0 | AJ53: 0 | AK53: 0 | AL53: 0 | AM53: 0 | AN53: 0 | AO53: 0 | AP53: 0 | AQ53: 0 | AR53: 0 | AS53: 0 | AT53: 0 | AU53: 0 | AV53: 0 | AW53: 0 | AX53: 0 | AY53: 0 | AZ53: 0 | BA53: 0 | BB53: 0 | BC53: 0 | BD53: 0 | BE53: 0 | BF53: =SUM(BF34:BF51) -> 0 | BG53: 0 | BH53: 0 | BI53: 0 | BJ53: 0 | BK53: 0 | BL53: 0 | BM53: 0 | BN53: 0 | BO53: 0 | BP53: 0 | BQ53: 0 | BR53: 0 | BS53: 0 | BT53: 0 | BU53: 0 | BV53: 0 | BW53: 0 | BX53: 0 | BY53: 0 | BZ53: =SUM(BZ34:BZ51) -> 0 | CA53: 0 | CB53: 0 | CC53: 0 | CD53: 0 | CE53: 0 | CF53: 0 | CG53: 0 | CH53: 0 | CI53: 0 | CJ53: 0 | CK53: 0 | CL53: 0 | CM53: 0 | CN53: 0 | CO53: 0 | CP53: 0 | CQ53: 0 | CR53: 0 | CS53: 0 | CT53: 0 | CU53: 0 | CV53: 0 | CW53: 0 | CX53: 0 | CY53: =SUM(CY34:CY51) -> 0 | CZ53: 0 | DA53: 0 | DB53: 0 | DC53: 0 | DD53: 0 | DE53: 0 | DF53: 0 | DG53: 0 | DH53: 0 | DI53: 0 | DJ53: 0 | DK53: 0 | DL53: 0 | DM53: 0 | DN53: 0 | DO53: 0 | DP53: =SUM(DP34:DP51) -> 0 | DQ53: 0 | DR53: 0 | DS53: 0 | DT53: 0 | DU53: 0 | DV53: =SUM(DV34:DV51) -> 0
M54: =SUM(M34:M50) -> 0 | N54: =SUM(N34:N50) -> 0 | O54: =SUM(O34:O50) -> 0
A55: VAT
B57: Development costs | D57: ='Tax Assumptions'!$D$10 -> 0.15 | E57: =SUM(G57:DV57) -> 380414.1 | G57: =G34*$D57 -> 0 | H57: =H34*$D57 -> 0 | I57: 0 | J57: 0 | K57: 0 | L57: 0 | M57: 0 | N57: 0 | O57: 0 | P57: 0 | Q57: 0 | R57: 57062.115 | S57: 26628.987 | T57: 26628.987 | U57: 27009.4011 | V57: 27009.4011 | W57: 27009.4011 | X57: 27009.4011 | Y57: 27009.4011 | Z57: 27009.4011 | AA57: 27009.4011 | AB57: 27009.4011 | AC57: 27009.4011 | AD57: 27009.4011 | AE57: 0 | AF57: 0 | AG57: 0 | AH57: 0 | AI57: 0 | AJ57: 0 | AK57: 0 | AL57: 0 | AM57: 0 | AN57: 0 | AO57: 0 | AP57: 0 | AQ57: 0 | AR57: 0 | AS57: 0 | AT57: 0 | AU57: 0 | AV57: 0 | AW57: 0 | AX57: 0 | AY57: 0 | AZ57: 0 | BA57: 0 | BB57: 0 | BC57: 0 | BD57: 0 | BE57: 0 | BF57: 0 | BG57: 0 | BH57: 0 | BI57: 0 | BJ57: 0 | BK57: 0 | BL57: 0 | BM57: 0 | BN57: 0 | BO57: 0 | BP57: 0 | BQ57: 0 | BR57: 0 | BS57: 0 | BT57: =BT34*$D57 -> 0 | BU57: 0 | BV57: 0 | BW57: 0 | BX57: 0 | BY57: 0 | BZ57: 0 | CA57: 0 | CB57: 0 | CC57: 0 | CD57: 0 | CE57: 0 | CF57: 0 | CG57: 0 | CH57: 0 | CI57: 0 | CJ57: 0 | CK57: 0 | CL57: 0 | CM57: 0 | CN57: 0 | CO57: 0 | CP57: 0 | CQ57: 0 | CR57: 0 | CS57: 0 | CT57: 0 | CU57: 0 | CV57: 0 | CW57: 0 | CX57: 0 | CY57: 0 | CZ57: 0 | DA57: 0 | DB57: 0 | DC57: 0 | DD57: 0 | DE57: 0 | DF57: 0 | DG57: 0 | DH57: 0 | DI57: 0 | DJ57: 0 | DK57: 0 | DL57: 0 | DM57: 0 | DN57: 0 | DO57: 0 | DP57: 0 | DQ57: 0 | DR57: 0 | DS57: 0 | DT57: 0 | DU57: 0 | DV57: 0
B58: Turbine Supply Contract | D58: ='Tax Assumptions'!$D$9 -> 0.21 | E58: =SUM(G58:DV58) -> 2369850 | G58: =G35*$D58 -> 0 | H58: 0 | I58: 0 | J58: 0 | K58: 0 | L58: 0 | M58: 0 | N58: 0 | O58: 0 | P58: 0 | Q58: 0 | R58: 0 | S58: 355477.5 | T58: 0 | U58: 0 | V58: 0 | W58: 236985 | X58: 0 | Y58: 236985 | Z58: 118492.5 | AA58: 118492.5 | AB58: 118492.5 | AC58: 355477.5 | AD58: 829447.5 | AE58: 0 | AF58: 0 | AG58: 0 | AH58: 0 | AI58: 0 | AJ58: 0 | AK58: 0 | AL58: 0 | AM58: 0 | AN58: 0 | AO58: 0 | AP58: 0 | AQ58: 0 | AR58: 0 | AS58: 0 | AT58: 0 | AU58: 0 | AV58: 0 | AW58: 0 | AX58: 0 | AY58: 0 | AZ58: 0 | BA58: 0 | BB58: 0 | BC58: 0 | BD58: 0 | BE58: 0 | BF58: 0 | BG58: 0 | BH58: 0 | BI58: 0 | BJ58: 0 | BK58: 0 | BL58: 0 | BM58: 0 | BN58: 0 | BO58: 0 | BP58: 0 | BQ58: 0 | BR58: 0 | BS58: =BS35*$D58 -> 0 | BT58: 0 | BU58: 0 | BV58: 0 | BW58: 0 | BX58: 0 | BY58: 0 | BZ58: 0 | CA58: 0 | CB58: 0 | CC58: 0 | CD58: 0 | CE58: 0 | CF58: 0 | CG58: 0 | CH58: 0 | CI58: 0 | CJ58: 0 | CK58: 0 | CL58: 0 | CM58: 0 | CN58: 0 | CO58: 0 | CP58: 0 | CQ58: 0 | CR58: 0 | CS58: 0 | CT58: 0 | CU58: 0 | CV58: 0 | CW58: 0 | CX58: 0 | CY58: 0 | CZ58: 0 | DA58: 0 | DB58: 0 | DC58: 0 | DD58: 0 | DE58: 0 | DF58: 0 | DG58: 0 | DH58: 0 | DI58: 0 | DJ58: 0 | DK58: 0 | DL58: 0 | DM58: 0 | DN58: 0 | DO58: 0 | DP58: 0 | DQ58: 0 | DR58: 0 | DS58: 0 | DT58: 0 | DU58: 0 | DV58: 0
B59: Finance/Legal / Banking | D59: ='Tax Assumptions'!$D$10 -> 0.15 | E59: 30000 | G59: =G36*$D59 -> 0 | H59: 0 | I59: 0 | J59: 0 | K59: 0 | L59: 0 | M59: 0 | N59: 0 | O59: 0 | P59: 0 | Q59: 0 | R59: 6000 | S59: 0 | T59: 0 | U59: 0 | V59: 0 | W59: 0 | X59: 0 | Y59: 0 | Z59: 0 | AA59: 0 | AB59: 0 | AC59: 0 | AD59: 24000 | AE59: 0 | AF59: 0 | AG59: 0 | AH59: 0 | AI59: 0 | AJ59: 0 | AK59: 0 | AL59: 0 | AM59: 0 | AN59: 0 | AO59: 0 | AP59: 0 | AQ59: 0 | AR59: 0 | AS59: 0 | AT59: 0 | AU59: 0 | AV59: 0 | AW59: 0 | AX59: 0 | AY59: 0 | AZ59: 0 | BA59: 0 | BB59: 0 | BC59: 0 | BD59: 0 | BE59: 0 | BF59: 0 | BG59: 0 | BH59: 0 | BI59: 0 | BJ59: 0 | BK59: 0 | BL59: 0 | BM59: 0 | BN59: 0 | BO59: 0 | BP59: 0 | BQ59: 0 | BR59: 0 | BS59: =BS36*$D59 -> 0 | BT59: 0 | BU59: 0 | BV59: 0 | BW59: 0 | BX59: 0 | BY59: 0 | BZ59: 0 | CA59: 0 | CB59: 0 | CC59: 0 | CD59: 0 | CE59: 0 | CF59: 0 | CG59: 0 | CH59: 0 | CI59: 0 | CJ59: 0 | CK59: 0 | CL59: 0 | CM59: 0 | CN59: 0 | CO59: 0 | CP59: 0 | CQ59: 0 | CR59: 0 | CS59: 0 | CT59: 0 | CU59: 0 | CV59: 0 | CW59: 0 | CX59: 0 | CY59: 0 | CZ59: 0 | DA59: 0 | DB59: 0 | DC59: 0 | DD59: 0 | DE59: 0 | DF59: 0 | DG59: 0 | DH59: 0 | DI59: 0 | DJ59: 0 | DK59: 0 | DL59: 0 | DM59: 0 | DN59: 0 | DO59: 0 | DP59: 0 | DQ59: 0 | DR59: 0 | DS59: 0 | DT59: 0 | DU59: 0 | DV59: 0
B60: ADDITIONAL PLANNING COSTS SUMMARY | D60: ='Tax Assumptions'!$D$10 -> 0.15 | E60: 389868.3 | G60: =G37*$D60 -> 0 | H60: 0 | I60: 0 | J60: 0 | K60: 0 | L60: 0 | M60: 0 | N60: 0 | O60: 0 | P60: 389868.3 | Q60: 0 | R60: 0 | S60: 0 | T60: 0 | U60: 0 | V60: 0 | W60: 0 | X60: 0 | Y60: 0 | Z60: 0 | AA60: 0 | AB60: 0 | AC60: 0 | AD60: 0 | AE60: 0 | AF60: 0 | AG60: 0 | AH60: 0 | AI60: 0 | AJ60: 0 | AK60: 0 | AL60: 0 | AM60: 0 | AN60: 0 | AO60: 0 | AP60: 0 | AQ60: 0 | AR60: 0 | AS60: 0 | AT60: 0 | AU60: 0 | AV60: 0 | AW60: 0 | AX60: 0 | AY60: 0 | AZ60: 0 | BA60: 0 | BB60: 0 | BC60: 0 | BD60: 0 | BE60: 0 | BF60: 0 | BG60: 0 | BH60: 0 | BI60: 0 | BJ60: 0 | BK60: 0 | BL60: 0 | BM60: 0 | BN60: 0 | BO60: 0 | BP60: 0 | BQ60: 0 | BR60: 0 | BS60: =BS37*$D60 -> 0 | BT60: 0 | BU60: 0 | BV60: 0 | BW60: 0 | BX60: 0 | BY60: 0 | BZ60: 0 | CA60: 0 | CB60: 0 | CC60: 0 | CD60: 0 | CE60: 0 | CF60: 0 | CG60: 0 | CH60: 0 | CI60: 0 | CJ60: 0 | CK60: 0 | CL60: 0 | CM60: 0 | CN60: 0 | CO60: 0 | CP60: 0 | CQ60: 0 | CR60: 0 | CS60: 0 | CT60: 0 | CU60: 0 | CV60: 0 | CW60: 0 | CX60: 0 | CY60: 0 | CZ60: 0 | DA60: 0 | DB60: 0 | DC60: 0 | DD60: 0 | DE60: 0 | DF60: 0 | DG60: 0 | DH60: 0 | DI60: 0 | DJ60: 0 | DK60: 0 | DL60: 0 | DM60: 0 | DN60: 0 | DO60: 0 | DP60: 0 | DQ60: 0 | DR60: 0 | DS60: 0 | DT60: 0 | DU60: 0 | DV60: 0
B61: Construction Monitoring Summary | D61: ='Tax Assumptions'!$D$10 -> 0.15 | E61: 0 | G61: =G38*$D61 -> 0 | H61: 0 | I61: 0 | J61: 0 | K61: 0 | L61: 0 | M61: 0 | N61: 0 | O61: 0 | P61: 0 | Q61: 0 | R61: 0 | S61: 0 | T61: 0 | U61: 0 | V61: 0 | W61: 0 | X61: 0 | Y61: 0 | Z61: 0 | AA61: 0 | AB61: 0 | AC61: 0 | AD61: 0 | AE61: 0 | AF61: 0 | AG61: 0 | AH61: 0 | AI61: 0 | AJ61: 0 | AK61: 0 | AL61: 0 | AM61: 0 | AN61: 0 | AO61: 0 | AP61: 0 | AQ61: 0 | AR61: 0 | AS61: 0 | AT61: 0 | AU61: 0 | AV61: 0 | AW61: 0 | AX61: 0 | AY61: 0 | AZ61: 0 | BA61: 0 | BB61: 0 | BC61: 0 | BD61: 0 | BE61: 0 | BF61: 0 | BG61: 0 | BH61: 0 | BI61: 0 | BJ61: 0 | BK61: 0 | BL61: 0 | BM61: 0 | BN61: 0 | BO61: 0 | BP61: 0 | BQ61: 0 | BR61: 0 | BS61: =BS38*$D61 -> 0 | BT61: 0 | BU61: 0 | BV61: 0 | BW61: 0 | BX61: 0 | BY61: 0 | BZ61: 0 | CA61: 0 | CB61: 0 | CC61: 0 | CD61: 0 | CE61: 0 | CF61: 0 | CG61: 0 | CH61: 0 | CI61: 0 | CJ61: 0 | CK61: 0 | CL61: 0 | CM61: 0 | CN61: 0 | CO61: 0 | CP61: 0 | CQ61: 0 | CR61: 0 | CS61: 0 | CT61: 0 | CU61: 0 | CV61: 0 | CW61: 0 | CX61: 0 | CY61: 0 | CZ61: 0 | DA61: 0 | DB61: 0 | DC61: 0 | DD61: 0 | DE61: 0 | DF61: 0 | DG61: 0 | DH61: 0 | DI61: 0 | DJ61: 0 | DK61: 0 | DL61: 0 | DM61: 0 | DN61: 0 | DO61: 0 | DP61: 0 | DQ61: 0 | DR61: 0 | DS61: 0 | DT61: 0 | DU61: 0 | DV61: 0
B62: Project Management & Co-ordination | D62: ='Tax Assumptions'!$D$10 -> 0.15 | E62: 0 | G62: =G39*$D62 -> 0 | H62: 0 | I62: 0 | J62: 0 | K62: 0 | L62: 0 | M62: 0 | N62: 0 | O62: 0 | P62: 0 | Q62: 0 | R62: 0 | S62: 0 | T62: 0 | U62: 0 | V62: 0 | W62: 0 | X62: 0 | Y62: 0 | Z62: 0 | AA62: 0 | AB62: 0 | AC62: 0 | AD62: 0 | AE62: 0 | AF62: 0 | AG62: 0 | AH62: 0 | AI62: 0 | AJ62: 0 | AK62: 0 | AL62: 0 | AM62: 0 | AN62: 0 | AO62: 0 | AP62: 0 | AQ62: 0 | AR62: 0 | AS62: 0 | AT62: 0 | AU62: 0 | AV62: 0 | AW62: 0 | AX62: 0 | AY62: 0 | AZ62: 0 | BA62: 0 | BB62: 0 | BC62: 0 | BD62: 0 | BE62: 0 | BF62: 0 | BG62: 0 | BH62: 0 | BI62: 0 | BJ62: 0 | BK62: 0 | BL62: 0 | BM62: 0 | BN62: 0 | BO62: 0 | BP62: 0 | BQ62: 0 | BR62: 0 | BS62: =BS39*$D62 -> 0 | BT62: 0 | BU62: 0 | BV62: 0 | BW62: 0 | BX62: 0 | BY62: 0 | BZ62: 0 | CA62: 0 | CB62: 0 | CC62: 0 | CD62: 0 | CE62: 0 | CF62: 0 | CG62: 0 | CH62: 0 | CI62: 0 | CJ62: 0 | CK62: 0 | CL62: 0 | CM62: 0 | CN62: 0 | CO62: 0 | CP62: 0 | CQ62: 0 | CR62: 0 | CS62: 0 | CT62: 0 | CU62: 0 | CV62: 0 | CW62: 0 | CX62: 0 | CY62: 0 | CZ62: 0 | DA62: 0 | DB62: 0 | DC62: 0 | DD62: 0 | DE62: 0 | DF62: 0 | DG62: 0 | DH62: 0 | DI62: 0 | DJ62: 0 | DK62: 0 | DL62: 0 | DM62: 0 | DN62: 0 | DO62: 0 | DP62: 0 | DQ62: 0 | DR62: 0 | DS62: 0 | DT62: 0 | DU62: 0 | DV62: 0
B63: Water monitoring | D63: ='Tax Assumptions'!$D$10 -> 0.15 | E63: 0 | G63: =G40*$D63 -> 0 | H63: 0 | I63: 0 | J63: 0 | K63: 0 | L63: 0 | M63: 0 | N63: 0 | O63: 0 | P63: 0 | Q63: 0 | R63: 0 | S63: 0 | T63: 0 | U63: 0 | V63: 0 | W63: 0 | X63: 0 | Y63: 0 | Z63: 0 | AA63: 0 | AB63: 0 | AC63: 0 | AD63: 0 | AE63: 0 | AF63: 0 | AG63: 0 | AH63: 0 | AI63: 0 | AJ63: 0 | AK63: 0 | AL63: 0 | AM63: 0 | AN63: 0 | AO63: 0 | AP63: 0 | AQ63: 0 | AR63: 0 | AS63: 0 | AT63: 0 | AU63: 0 | AV63: 0 | AW63: 0 | AX63: 0 | AY63: 0 | AZ63: 0 | BA63: 0 | BB63: 0 | BC63: 0 | BD63: 0 | BE63: 0 | BF63: 0 | BG63: 0 | BH63: 0 | BI63: 0 | BJ63: 0 | BK63: 0 | BL63: 0 | BM63: 0 | BN63: 0 | BO63: 0 | BP63: 0 | BQ63: 0 | BR63: 0 | BS63: =BS40*$D63 -> 0 | BT63: 0 | BU63: 0 | BV63: 0 | BW63: 0 | BX63: 0 | BY63: 0 | BZ63: 0 | CA63: 0 | CB63: 0 | CC63: 0 | CD63: 0 | CE63: 0 | CF63: 0 | CG63: 0 | CH63: 0 | CI63: 0 | CJ63: 0 | CK63: 0 | CL63: 0 | CM63: 0 | CN63: 0 | CO63: 0 | CP63: 0 | CQ63: 0 | CR63: 0 | CS63: 0 | CT63: 0 | CU63: 0 | CV63: 0 | CW63: 0 | CX63: 0 | CY63: 0 | CZ63: 0 | DA63: 0 | DB63: 0 | DC63: 0 | DD63: 0 | DE63: 0 | DF63: 0 | DG63: 0 | DH63: 0 | DI63: 0 | DJ63: 0 | DK63: 0 | DL63: 0 | DM63: 0 | DN63: 0 | DO63: 0 | DP63: 0 | DQ63: 0 | DR63: 0 | DS63: 0 | DT63: 0 | DU63: 0 | DV63: 0
B64: Independent engineers | D64: ='Tax Assumptions'!$D$10 -> 0.15 | E64: 0 | G64: =G41*$D64 -> 0 | H64: 0 | I64: 0 | J64: 0 | K64: 0 | L64: 0 | M64: 0 | N64: 0 | O64: 0 | P64: 0 | Q64: 0 | R64: 0 | S64: 0 | T64: 0 | U64: 0 | V64: 0 | W64: 0 | X64: 0 | Y64: 0 | Z64: 0 | AA64: 0 | AB64: 0 | AC64: 0 | AD64: 0 | AE64: 0 | AF64: 0 | AG64: 0 | AH64: 0 | AI64: 0 | AJ64: 0 | AK64: 0 | AL64: 0 | AM64: 0 | AN64: 0 | AO64: 0 | AP64: 0 | AQ64: 0 | AR64: 0 | AS64: 0 | AT64: 0 | AU64: 0 | AV64: 0 | AW64: 0 | AX64: 0 | AY64: 0 | AZ64: 0 | BA64: 0 | BB64: 0 | BC64: 0 | BD64: 0 | BE64: 0 | BF64: 0 | BG64: 0 | BH64: 0 | BI64: 0 | BJ64: 0 | BK64: 0 | BL64: 0 | BM64: 0 | BN64: 0 | BO64: 0 | BP64: 0 | BQ64: 0 | BR64: 0 | BS64: =BS41*$D64 -> 0 | BT64: 0 | BU64: 0 | BV64: 0 | BW64: 0 | BX64: 0 | BY64: 0 | BZ64: 0 | CA64: 0 | CB64: 0 | CC64: 0 | CD64: 0 | CE64: 0 | CF64: 0 | CG64: 0 | CH64: 0 | CI64: 0 | CJ64: 0 | CK64: 0 | CL64: 0 | CM64: 0 | CN64: 0 | CO64: 0 | CP64: 0 | CQ64: 0 | CR64: 0 | CS64: 0 | CT64: 0 | CU64: 0 | CV64: 0 | CW64: 0 | CX64: 0 | CY64: 0 | CZ64: 0 | DA64: 0 | DB64: 0 | DC64: 0 | DD64: 0 | DE64: 0 | DF64: 0 | DG64: 0 | DH64: 0 | DI64: 0 | DJ64: 0 | DK64: 0 | DL64: 0 | DM64: 0 | DN64: 0 | DO64: 0 | DP64: 0 | DQ64: 0 | DR64: 0 | DS64: 0 | DT64: 0 | DU64: 0 | DV64: 0
B65: Insurances | D65: ='Tax Assumptions'!$D$10 -> 0.15 | E65: 0 | G65: =G42*$D65 -> 0 | H65: 0 | I65: 0 | J65: 0 | K65: 0 | L65: 0 | M65: 0 | N65: 0 | O65: 0 | P65: 0 | Q65: 0 | R65: 0 | S65: 0 | T65: 0 | U65: 0 | V65: 0 | W65: 0 | X65: 0 | Y65: 0 | Z65: 0 | AA65: 0 | AB65: 0 | AC65: 0 | AD65: 0 | AE65: 0 | AF65: 0 | AG65: 0 | AH65: 0 | AI65: 0 | AJ65: 0 | AK65: 0 | AL65: 0 | AM65: 0 | AN65: 0 | AO65: 0 | AP65: 0 | AQ65: 0 | AR65: 0 | AS65: 0 | AT65: 0 | AU65: 0 | AV65: 0 | AW65: 0 | AX65: 0 | AY65: 0 | AZ65: 0 | BA65: 0 | BB65: 0 | BC65: 0 | BD65: 0 | BE65: 0 | BF65: 0 | BG65: 0 | BH65: 0 | BI65: 0 | BJ65: 0 | BK65: 0 | BL65: 0 | BM65: 0 | BN65: 0 | BO65: 0 | BP65: 0 | BQ65: 0 | BR65: 0 | BS65: =BS42*$D65 -> 0 | BT65: 0 | BU65: 0 | BV65: 0 | BW65: 0 | BX65: 0 | BY65: 0 | BZ65: 0 | CA65: 0 | CB65: 0 | CC65: 0 | CD65: 0 | CE65: 0 | CF65: 0 | CG65: 0 | CH65: 0 | CI65: 0 | CJ65: 0 | CK65: 0 | CL65: 0 | CM65: 0 | CN65: 0 | CO65: 0 | CP65: 0 | CQ65: 0 | CR65: 0 | CS65: 0 | CT65: 0 | CU65: 0 | CV65: 0 | CW65: 0 | CX65: 0 | CY65: 0 | CZ65: 0 | DA65: 0 | DB65: 0 | DC65: 0 | DD65: 0 | DE65: 0 | DF65: 0 | DG65: 0 | DH65: 0 | DI65: 0 | DJ65: 0 | DK65: 0 | DL65: 0 | DM65: 0 | DN65: 0 | DO65: 0 | DP65: 0 | DQ65: 0 | DR65: 0 | DS65: 0 | DT65: 0 | DU65: 0 | DV65: 0
B66: Electrical engineering infrastructure | D66: ='Tax Assumptions'!$D$10 -> 0.15 | E66: 245250 | G66: =G43*$D66 -> 0 | H66: 0 | I66: 0 | J66: 0 | K66: 0 | L66: 0 | M66: 0 | N66: 0 | O66: 0 | P66: 0 | Q66: 0 | R66: 171675 | S66: 0 | T66: 0 | U66: 0 | V66: 0 | W66: 0 | X66: 0 | Y66: 0 | Z66: 0 | AA66: 0 | AB66: 0 | AC66: 0 | AD66: 73575 | AE66: 0 | AF66: 0 | AG66: 0 | AH66: 0 | AI66: 0 | AJ66: 0 | AK66: 0 | AL66: 0 | AM66: 0 | AN66: 0 | AO66: 0 | AP66: 0 | AQ66: 0 | AR66: 0 | AS66: 0 | AT66: 0 | AU66: 0 | AV66: 0 | AW66: 0 | AX66: 0 | AY66: 0 | AZ66: 0 | BA66: 0 | BB66: 0 | BC66: 0 | BD66: 0 | BE66: 0 | BF66: 0 | BG66: 0 | BH66: 0 | BI66: 0 | BJ66: 0 | BK66: 0 | BL66: 0 | BM66: 0 | BN66: 0 | BO66: 0 | BP66: 0 | BQ66: 0 | BR66: 0 | BS66: =BS43*$D66 -> 0 | BT66: 0 | BU66: 0 | BV66: 0 | BW66: 0 | BX66: 0 | BY66: 0 | BZ66: 0 | CA66: 0 | CB66: 0 | CC66: 0 | CD66: 0 | CE66: 0 | CF66: 0 | CG66: 0 | CH66: 0 | CI66: 0 | CJ66: 0 | CK66: 0 | CL66: 0 | CM66: 0 | CN66: 0 | CO66: 0 | CP66: 0 | CQ66: 0 | CR66: 0 | CS66: 0 | CT66: 0 | CU66: 0 | CV66: 0 | CW66: 0 | CX66: 0 | CY66: 0 | CZ66: 0 | DA66: 0 | DB66: 0 | DC66: 0 | DD66: 0 | DE66: 0 | DF66: 0 | DG66: 0 | DH66: 0 | DI66: 0 | DJ66: 0 | DK66: 0 | DL66: 0 | DM66: 0 | DN66: 0 | DO66: 0 | DP66: 0 | DQ66: 0 | DR66: 0 | DS66: 0 | DT66: 0 | DU66: 0 | DV66: 0
B67: Electrical engineering consultant | D67: ='Tax Assumptions'!$D$10 -> 0.15 | E67: 0 | G67: =G44*$D67 -> 0 | H67: 0 | I67: 0 | J67: 0 | K67: 0 | L67: 0 | M67: 0 | N67: 0 | O67: 0 | P67: 0 | Q67: 0 | R67: 0 | S67: 0 | T67: 0 | U67: 0 | V67: 0 | W67: 0 | X67: 0 | Y67: 0 | Z67: 0 | AA67: 0 | AB67: 0 | AC67: 0 | AD67: 0 | AE67: 0 | AF67: 0 | AG67: 0 | AH67: 0 | AI67: 0 | AJ67: 0 | AK67: 0 | AL67: 0 | AM67: 0 | AN67: 0 | AO67: 0 | AP67: 0 | AQ67: 0 | AR67: 0 | AS67: 0 | AT67: 0 | AU67: 0 | AV67: 0 | AW67: 0 | AX67: 0 | AY67: 0 | AZ67: 0 | BA67: 0 | BB67: 0 | BC67: 0 | BD67: 0 | BE67: 0 | BF67: 0 | BG67: 0 | BH67: 0 | BI67: 0 | BJ67: 0 | BK67: 0 | BL67: 0 | BM67: 0 | BN67: 0 | BO67: 0 | BP67: 0 | BQ67: 0 | BR67: 0 | BS67: =BS44*$D67 -> 0 | BT67: 0 | BU67: 0 | BV67: 0 | BW67: 0 | BX67: 0 | BY67: 0 | BZ67: 0 | CA67: 0 | CB67: 0 | CC67: 0 | CD67: 0 | CE67: 0 | CF67: 0 | CG67: 0 | CH67: 0 | CI67: 0 | CJ67: 0 | CK67: 0 | CL67: 0 | CM67: 0 | CN67: 0 | CO67: 0 | CP67: 0 | CQ67: 0 | CR67: 0 | CS67: 0 | CT67: 0 | CU67: 0 | CV67: 0 | CW67: 0 | CX67: 0 | CY67: 0 | CZ67: 0 | DA67: 0 | DB67: 0 | DC67: 0 | DD67: 0 | DE67: 0 | DF67: 0 | DG67: 0 | DH67: 0 | DI67: 0 | DJ67: 0 | DK67: 0 | DL67: 0 | DM67: 0 | DN67: 0 | DO67: 0 | DP67: 0 | DQ67: 0 | DR67: 0 | DS67: 0 | DT67: 0 | DU67: 0 | DV67: 0
B68: Grid Connection supply | D68: ='Tax Assumptions'!$D$10 -> 0.15 | E68: 63427.5 | G68: =G45*$D68 -> 0 | H68: 0 | I68: 0 | J68: 0 | K68: 0 | L68: 0 | M68: 0 | N68: 0 | O68: 0 | P68: 0 | Q68: 0 | R68: 0 | S68: 0 | T68: 0 | U68: 0 | V68: 0 | W68: 0 | X68: 0 | Y68: 0 | Z68: 0 | AA68: 31713.75 | AB68: 0 | AC68: 0 | AD68: 31713.75 | AE68: 0 | AF68: 0 | AG68: 0 | AH68: 0 | AI68: 0 | AJ68: 0 | AK68: 0 | AL68: 0 | AM68: 0 | AN68: 0 | AO68: 0 | AP68: 0 | AQ68: 0 | AR68: 0 | AS68: 0 | AT68: 0 | AU68: 0 | AV68: 0 | AW68: 0 | AX68: 0 | AY68: 0 | AZ68: 0 | BA68: 0 | BB68: 0 | BC68: 0 | BD68: 0 | BE68: 0 | BF68: 0 | BG68: 0 | BH68: 0 | BI68: 0 | BJ68: 0 | BK68: 0 | BL68: 0 | BM68: 0 | BN68: 0 | BO68: 0 | BP68: 0 | BQ68: 0 | BR68: 0 | BS68: =BS45*$D68 -> 0 | BT68: 0 | BU68: 0 | BV68: 0 | BW68: 0 | BX68: 0 | BY68: 0 | BZ68: 0 | CA68: 0 | CB68: 0 | CC68: 0 | CD68: 0 | CE68: 0 | CF68: 0 | CG68: 0 | CH68: 0 | CI68: 0 | CJ68: 0 | CK68: 0 | CL68: 0 | CM68: 0 | CN68: 0 | CO68: 0 | CP68: 0 | CQ68: 0 | CR68: 0 | CS68: 0 | CT68: 0 | CU68: 0 | CV68: 0 | CW68: 0 | CX68: 0 | CY68: 0 | CZ68: 0 | DA68: 0 | DB68: 0 | DC68: 0 | DD68: 0 | DE68: 0 | DF68: 0 | DG68: 0 | DH68: 0 | DI68: 0 | DJ68: 0 | DK68: 0 | DL68: 0 | DM68: 0 | DN68: 0 | DO68: 0 | DP68: 0 | DQ68: 0 | DR68: 0 | DS68: 0 | DT68: 0 | DU68: 0 | DV68: 0
B69: Civil works contract | D69: ='Tax Assumptions'!$D$10 -> 0.15 | E69: 250500 | G69: =G46*$D69 -> 0 | H69: 0 | I69: 0 | J69: 0 | K69: 0 | L69: 0 | M69: 0 | N69: 0 | O69: 0 | P69: 0 | Q69: 0 | R69: 0 | S69: 0 | T69: 25050 | U69: 50100 | V69: 50100 | W69: 75150 | X69: 50100 | Y69: 0 | Z69: 0 | AA69: 0 | AB69: 0 | AC69: 0 | AD69: 0 | AE69: 0 | AF69: 0 | AG69: 0 | AH69: 0 | AI69: 0 | AJ69: 0 | AK69: 0 | AL69: 0 | AM69: 0 | AN69: 0 | AO69: 0 | AP69: 0 | AQ69: 0 | AR69: 0 | AS69: 0 | AT69: 0 | AU69: 0 | AV69: 0 | AW69: 0 | AX69: 0 | AY69: 0 | AZ69: 0 | BA69: 0 | BB69: 0 | BC69: 0 | BD69: 0 | BE69: 0 | BF69: 0 | BG69: 0 | BH69: 0 | BI69: 0 | BJ69: 0 | BK69: 0 | BL69: 0 | BM69: 0 | BN69: 0 | BO69: 0 | BP69: 0 | BQ69: 0 | BR69: 0 | BS69: =BS46*$D69 -> 0 | BT69: 0 | BU69: 0 | BV69: 0 | BW69: 0 | BX69: 0 | BY69: 0 | BZ69: 0 | CA69: 0 | CB69: 0 | CC69: 0 | CD69: 0 | CE69: 0 | CF69: 0 | CG69: 0 | CH69: 0 | CI69: 0 | CJ69: 0 | CK69: 0 | CL69: 0 | CM69: 0 | CN69: 0 | CO69: 0 | CP69: 0 | CQ69: 0 | CR69: 0 | CS69: 0 | CT69: 0 | CU69: 0 | CV69: 0 | CW69: 0 | CX69: 0 | CY69: 0 | CZ69: 0 | DA69: 0 | DB69: 0 | DC69: 0 | DD69: 0 | DE69: 0 | DF69: 0 | DG69: 0 | DH69: 0 | DI69: 0 | DJ69: 0 | DK69: 0 | DL69: 0 | DM69: 0 | DN69: 0 | DO69: 0 | DP69: 0 | DQ69: 0 | DR69: 0 | DS69: 0 | DT69: 0 | DU69: 0 | DV69: 0
B70: Telecommunications | D70: ='Tax Assumptions'!$D$10 -> 0.15 | E70: 0 | G70: =G47*$D70 -> 0 | H70: 0 | I70: 0 | J70: 0 | K70: 0 | L70: 0 | M70: 0 | N70: 0 | O70: 0 | P70: 0 | Q70: 0 | R70: 0 | S70: 0 | T70: 0 | U70: 0 | V70: 0 | W70: 0 | X70: 0 | Y70: 0 | Z70: 0 | AA70: 0 | AB70: 0 | AC70: 0 | AD70: 0 | AE70: 0 | AF70: 0 | AG70: 0 | AH70: 0 | AI70: 0 | AJ70: 0 | AK70: 0 | AL70: 0 | AM70: 0 | AN70: 0 | AO70: 0 | AP70: 0 | AQ70: 0 | AR70: 0 | AS70: 0 | AT70: 0 | AU70: 0 | AV70: 0 | AW70: 0 | AX70: 0 | AY70: 0 | AZ70: 0 | BA70: 0 | BB70: 0 | BC70: 0 | BD70: 0 | BE70: 0 | BF70: 0 | BG70: 0 | BH70: 0 | BI70: 0 | BJ70: 0 | BK70: 0 | BL70: 0 | BM70: 0 | BN70: 0 | BO70: 0 | BP70: 0 | BQ70: 0 | BR70: 0 | BS70: =BS47*$D70 -> 0 | BT70: 0 | BU70: 0 | BV70: 0 | BW70: 0 | BX70: 0 | BY70: 0 | BZ70: 0 | CA70: 0 | CB70: 0 | CC70: 0 | CD70: 0 | CE70: 0 | CF70: 0 | CG70: 0 | CH70: 0 | CI70: 0 | CJ70: 0 | CK70: 0 | CL70: 0 | CM70: 0 | CN70: 0 | CO70: 0 | CP70: 0 | CQ70: 0 | CR70: 0 | CS70: 0 | CT70: 0 | CU70: 0 | CV70: 0 | CW70: 0 | CX70: 0 | CY70: 0 | CZ70: 0 | DA70: 0 | DB70: 0 | DC70: 0 | DD70: 0 | DE70: 0 | DF70: 0 | DG70: 0 | DH70: 0 | DI70: 0 | DJ70: 0 | DK70: 0 | DL70: 0 | DM70: 0 | DN70: 0 | DO70: 0 | DP70: 0 | DQ70: 0 | DR70: 0 | DS70: 0 | DT70: 0 | DU70: 0 | DV70: 0
B71: Landscaping | D71: ='Tax Assumptions'!$D$10 -> 0.15 | E71: 335100 | G71: =G48*$D71 -> 0 | H71: 0 | I71: 0 | J71: 0 | K71: 0 | L71: 0 | M71: 0 | N71: 0 | O71: 0 | P71: 0 | Q71: 0 | R71: 0 | S71: 0 | T71: 335100 | U71: 0 | V71: 0 | W71: 0 | X71: 0 | Y71: 0 | Z71: 0 | AA71: 0 | AB71: 0 | AC71: 0 | AD71: 0 | AE71: 0 | AF71: 0 | AG71: 0 | AH71: 0 | AI71: 0 | AJ71: 0 | AK71: 0 | AL71: 0 | AM71: 0 | AN71: 0 | AO71: 0 | AP71: 0 | AQ71: 0 | AR71: 0 | AS71: 0 | AT71: 0 | AU71: 0 | AV71: 0 | AW71: 0 | AX71: 0 | AY71: 0 | AZ71: 0 | BA71: 0 | BB71: 0 | BC71: 0 | BD71: 0 | BE71: 0 | BF71: 0 | BG71: 0 | BH71: 0 | BI71: 0 | BJ71: 0 | BK71: 0 | BL71: 0 | BM71: 0 | BN71: 0 | BO71: 0 | BP71: 0 | BQ71: 0 | BR71: 0 | BS71: =BS48*$D71 -> 0 | BT71: 0 | BU71: 0 | BV71: 0 | BW71: 0 | BX71: 0 | BY71: 0 | BZ71: 0 | CA71: 0 | CB71: 0 | CC71: 0 | CD71: 0 | CE71: 0 | CF71: 0 | CG71: 0 | CH71: 0 | CI71: 0 | CJ71: 0 | CK71: 0 | CL71: 0 | CM71: 0 | CN71: 0 | CO71: 0 | CP71: 0 | CQ71: 0 | CR71: 0 | CS71: 0 | CT71: 0 | CU71: 0 | CV71: 0 | CW71: 0 | CX71: 0 | CY71: 0 | CZ71: 0 | DA71: 0 | DB71: 0 | DC71: 0 | DD71: 0 | DE71: 0 | DF71: 0 | DG71: 0 | DH71: 0 | DI71: 0 | DJ71: 0 | DK71: 0 | DL71: 0 | DM71: 0 | DN71: 0 | DO71: 0 | DP71: 0 | DQ71: 0 | DR71: 0 | DS71: 0 | DT71: 0 | DU71: 0 | DV71: 0
B72: Miscellaneous | D72: ='Tax Assumptions'!$D$10 -> 0.15 | E72: 467821.05 | G72: =G49*$D72 -> 0 | H72: 0 | I72: 0 | J72: 0 | K72: 0 | L72: 0 | M72: 0 | N72: 0 | O72: 0 | P72: 0 | Q72: 0 | R72: 0 | S72: 0 | T72: 467821.05 | U72: 0 | V72: 0 | W72: 0 | X72: 0 | Y72: 0 | Z72: 0 | AA72: 0 | AB72: 0 | AC72: 0 | AD72: 0 | AE72: 0 | AF72: 0 | AG72: 0 | AH72: 0 | AI72: 0 | AJ72: 0 | AK72: 0 | AL72: 0 | AM72: 0 | AN72: 0 | AO72: 0 | AP72: 0 | AQ72: 0 | AR72: 0 | AS72: 0 | AT72: 0 | AU72: 0 | AV72: 0 | AW72: 0 | AX72: 0 | AY72: 0 | AZ72: 0 | BA72: 0 | BB72: 0 | BC72: 0 | BD72: 0 | BE72: 0 | BF72: 0 | BG72: 0 | BH72: 0 | BI72: 0 | BJ72: 0 | BK72: 0 | BL72: 0 | BM72: 0 | BN72: 0 | BO72: 0 | BP72: 0 | BQ72: 0 | BR72: 0 | BS72: =BS49*$D72 -> 0 | BT72: 0 | BU72: 0 | BV72: 0 | BW72: 0 | BX72: 0 | BY72: 0 | BZ72: 0 | CA72: 0 | CB72: 0 | CC72: 0 | CD72: 0 | CE72: 0 | CF72: 0 | CG72: 0 | CH72: 0 | CI72: 0 | CJ72: 0 | CK72: 0 | CL72: 0 | CM72: 0 | CN72: 0 | CO72: 0 | CP72: 0 | CQ72: 0 | CR72: 0 | CS72: 0 | CT72: 0 | CU72: 0 | CV72: 0 | CW72: 0 | CX72: 0 | CY72: 0 | CZ72: 0 | DA72: 0 | DB72: 0 | DC72: 0 | DD72: 0 | DE72: 0 | DF72: 0 | DG72: 0 | DH72: 0 | DI72: 0 | DJ72: 0 | DK72: 0 | DL72: 0 | DM72: 0 | DN72: 0 | DO72: 0 | DP72: 0 | DQ72: 0 | DR72: 0 | DS72: 0 | DT72: 0 | DU72: 0 | DV72: 0
B73: Contingency | D73: ='Tax Assumptions'!$D$10 -> 0.15 | E73: 173263.1325 | G73: =G50*$D73 -> 0 | H73: 0 | I73: 0 | J73: 0 | K73: 0 | L73: 0 | M73: 0 | N73: 0 | O73: 0 | P73: 0 | Q73: 0 | R73: 0 | S73: 14502.12419 | T73: 14432.81894 | U73: 14432.81894 | V73: 14432.81894 | W73: 14432.81894 | X73: 14432.81894 | Y73: 14432.81894 | Z73: 14432.81894 | AA73: 14432.81894 | AB73: 14432.81894 | AC73: 14432.81894 | AD73: 14432.81894 | AE73: 0 | AF73: 0 | AG73: 0 | AH73: 0 | AI73: 0 | AJ73: 0 | AK73: 0 | AL73: 0 | AM73: 0 | AN73: 0 | AO73: 0 | AP73: 0 | AQ73: 0 | AR73: 0 | AS73: 0 | AT73: 0 | AU73: 0 | AV73: 0 | AW73: 0 | AX73: 0 | AY73: 0 | AZ73: 0 | BA73: 0 | BB73: 0 | BC73: 0 | BD73: 0 | BE73: 0 | BF73: 0 | BG73: 0 | BH73: 0 | BI73: 0 | BJ73: 0 | BK73: 0 | BL73: 0 | BM73: 0 | BN73: 0 | BO73: 0 | BP73: 0 | BQ73: 0 | BR73: 0 | BS73: =BS50*$D73 -> 0 | BT73: 0 | BU73: 0 | BV73: 0 | BW73: 0 | BX73: 0 | BY73: 0 | BZ73: 0 | CA73: 0 | CB73: 0 | CC73: 0 | CD73: 0 | CE73: 0 | CF73: 0 | CG73: 0 | CH73: 0 | CI73: 0 | CJ73: 0 | CK73: 0 | CL73: 0 | CM73: 0 | CN73: 0 | CO73: 0 | CP73: 0 | CQ73: 0 | CR73: 0 | CS73: 0 | CT73: 0 | CU73: 0 | CV73: 0 | CW73: 0 | CX73: 0 | CY73: 0 | CZ73: 0 | DA73: 0 | DB73: 0 | DC73: 0 | DD73: 0 | DE73: 0 | DF73: 0 | DG73: 0 | DH73: 0 | DI73: 0 | DJ73: 0 | DK73: 0 | DL73: 0 | DM73: 0 | DN73: 0 | DO73: 0 | DP73: 0 | DQ73: 0 | DR73: 0 | DS73: 0 | DT73: 0 | DU73: 0 | DV73: 0
B75: Total Vat Cost | E75: 4705494.082 | G75: =SUM(G57:G74) -> 0 | H75: =SUM(H57:H74) -> 0 | I75: 0 | J75: 0 | K75: 0 | L75: 0 | P75: 389868.3 | Q75: 0 | R75: 234737.115 | S75: 396608.6112 | T75: 869032.8559 | U75: 91542.22004 | V75: 91542.22004 | W75: 353577.22 | X75: 91542.22004 | Y75: 278427.22 | Z75: 159934.72 | AA75: 191648.47 | AB75: 159934.72 | AC75: 396919.72 | AD75: 1000178.47 | AE75: 0 | AF75: 0 | AG75: 0 | AH75: 0 | AI75: 0 | AJ75: 0 | AK75: 0 | AL75: 0 | AM75: 0 | AN75: 0 | AO75: 0 | AP75: 0 | AQ75: 0 | AR75: 0 | AS75: 0 | AT75: 0 | AU75: 0 | AV75: 0 | AW75: 0 | AX75: 0 | AY75: 0 | AZ75: 0 | BA75: 0 | BB75: 0 | BC75: 0 | BD75: 0 | BE75: 0 | BF75: =SUM(BF57:BF74) -> 0 | BG75: 0 | BH75: 0 | BI75: 0 | BJ75: 0 | BK75: 0 | BL75: 0 | BM75: 0 | BN75: 0 | BO75: 0 | BP75: 0 | BQ75: 0 | BR75: 0 | BS75: 0 | BT75: 0 | BU75: 0 | BV75: 0 | BW75: 0 | BX75: 0 | BY75: 0 | BZ75: =SUM(BZ57:BZ74) -> 0 | CA75: 0 | CB75: 0 | CC75: 0 | CD75: 0 | CE75: 0 | CF75: 0 | CG75: 0 | CH75: 0 | CI75: 0 | CJ75: 0 | CK75: 0 | CL75: 0 | CM75: 0 | CN75: 0 | CO75: 0 | CP75: 0 | CQ75: 0 | CR75: 0 | CS75: 0 | CT75: 0 | CU75: 0 | CV75: 0 | CW75: 0 | CX75: 0 | CY75: =SUM(CY57:CY74) -> 0 | CZ75: 0 | DA75: 0 | DB75: 0 | DC75: 0 | DD75: 0 | DE75: 0 | DF75: 0 | DG75: 0 | DH75: 0 | DI75: 0 | DJ75: 0 | DK75: 0 | DL75: 0 | DM75: 0 | DN75: 0 | DO75: 0 | DP75: =SUM(DP57:DP74) -> 0 | DQ75: 0 | DR75: 0 | DS75: 0 | DT75: 0 | DU75: 0 | DV75: =SUM(DV57:DV74) -> 0
B77: VAT Refunds - Construction | D77: =-'Tax Assumptions'!D11 -> -2 | E77: =SUM(G77:IV77) -> 4705494.082 | H77: =IF(H4>-$G$77,OFFSET(H75,0,$D$77))*H5 -> 0 | I77: =IF(I4>-$G$77,OFFSET(I75,0,$D$77))*I5 -> 0 | J77: 0 | K77: 0 | L77: 0 | M77: 0 | N77: 0 | O77: 0 | P77: 0 | Q77: 0 | R77: 389868.3 | S77: 0 | T77: 234737.115 | U77: 396608.6112 | V77: 869032.8559 | W77: 91542.22004 | X77: 91542.22004 | Y77: 353577.22 | Z77: 91542.22004 | AA77: 278427.22 | AB77: 159934.72 | AC77: 191648.47 | AD77: 159934.72 | AE77: 396919.72 | AF77: 1000178.47 | AG77: 0 | AH77: 0 | AI77: 0 | AJ77: 0 | AK77: 0 | AL77: 0 | AM77: 0 | AN77: 0 | AO77: 0 | AP77: 0 | AQ77: 0 | AR77: 0 | AS77: 0 | AT77: 0 | AU77: 0 | AV77: 0 | AW77: 0 | AX77: 0 | AY77: 0 | AZ77: 0 | BA77: 0 | BB77: 0 | BC77: 0 | BD77: 0 | BE77: 0 | BF77: 0 | BG77: 0 | BH77: 0 | BI77: 0 | BJ77: 0 | BK77: 0 | BL77: 0 | BM77: 0 | BN77: 0 | BO77: 0 | BP77: 0 | BQ77: 0 | BR77: 0 | BS77: 0 | BT77: 0 | BU77: =IF(BU4>-$G$77,OFFSET(BU75,0,$D$77))*BU5 -> 0 | BV77: 0 | BW77: 0 | BX77: 0 | BY77: 0 | BZ77: 0 | CA77: 0 | CB77: 0 | CC77: 0 | CD77: 0 | CE77: 0 | CF77: 0 | CG77: 0 | CH77: 0 | CI77: 0 | CJ77: 0 | CK77: 0 | CL77: 0 | CM77: 0 | CN77: 0 | CO77: 0 | CP77: 0 | CQ77: 0 | CR77: 0 | CS77: 0 | CT77: 0 | CU77: 0 | CV77: 0 | CW77: 0 | CX77: 0 | CY77: 0 | CZ77: 0 | DA77: 0 | DB77: 0 | DC77: 0 | DD77: 0 | DE77: 0 | DF77: 0 | DG77: 0 | DH77: 0 | DI77: 0 | DJ77: 0 | DK77: 0 | DL77: 0 | DM77: 0 | DN77: 0 | DO77: 0 | DP77: 0 | DQ77: 0 | DR77: 0 | DS77: 0 | DT77: 0 | DU77: 0 | DV77: 0
B78: VAT Refunds - Beginning of Operation | E78: =E75-E77 -> 0 | H78: =$E$78*H6 -> 0 | I78: =$E$78*I6 -> 0 | J78: 0 | K78: 0 | L78: 0 | M78: 0 | N78: 0 | O78: 0 | P78: 0 | Q78: 0 | R78: 0 | S78: 0 | T78: 0 | U78: 0 | V78: 0 | W78: 0 | X78: 0 | Y78: 0 | Z78: 0 | AA78: 0 | AB78: 0 | AC78: 0 | AD78: 0 | AE78: 0 | AF78: 0 | AG78: 0 | AH78: 0 | AI78: 0 | AJ78: 0 | AK78: 0 | AL78: 0 | AM78: 0 | AN78: 0 | AO78: 0 | AP78: 0 | AQ78: 0 | AR78: 0 | AS78: 0 | AT78: 0 | AU78: 0 | AV78: 0 | AW78: 0 | AX78: 0 | AY78: 0 | AZ78: 0 | BA78: 0 | BB78: 0 | BC78: 0 | BD78: 0 | BE78: 0 | BF78: 0 | BG78: 0 | BH78: 0 | BI78: 0 | BJ78: 0 | BK78: 0 | BL78: 0 | BM78: 0 | BN78: 0 | BO78: 0 | BP78: 0 | BQ78: 0 | BR78: 0 | BS78: 0 | BT78: 0 | BU78: =$E$78*BU6 -> 0 | BV78: 0 | BW78: 0 | BX78: 0 | BY78: 0 | BZ78: 0 | CA78: 0 | CB78: 0 | CC78: 0 | CD78: 0 | CE78: 0 | CF78: 0 | CG78: 0 | CH78: 0 | CI78: 0 | CJ78: 0 | CK78: 0 | CL78: 0 | CM78: 0 | CN78: 0 | CO78: 0 | CP78: 0 | CQ78: 0 | CR78: 0 | CS78: 0 | CT78: 0 | CU78: 0 | CV78: 0 | CW78: 0 | CX78: 0 | CY78: 0 | CZ78: 0 | DA78: 0 | DB78: 0 | DC78: 0 | DD78: 0 | DE78: 0 | DF78: 0 | DG78: 0 | DH78: 0 | DI78: 0 | DJ78: 0 | DK78: 0 | DL78: 0 | DM78: 0 | DN78: 0 | DO78: 0 | DP78: 0 | DQ78: 0 | DR78: 0 | DS78: 0 | DT78: 0 | DU78: 0 | DV78: 0
B79: Total VAT Refunds | E79: =SUM(H79:DV79) -> 4705494.082 | H79: =H77+H78 -> 0 | I79: =I77+I78 -> 0 | J79: 0 | K79: 0 | L79: 0 | M79: 0 | N79: 0 | O79: 0 | P79: 0 | Q79: 0 | R79: =R77+R78 -> 389868.3 | S79: 0 | T79: 234737.115 | U79: 396608.6112 | V79: 869032.8559 | W79: 91542.22004 | X79: 91542.22004 | Y79: 353577.22 | Z79: 91542.22004 | AA79: 278427.22 | AB79: 159934.72 | AC79: 191648.47 | AD79: 159934.72 | AE79: 396919.72 | AF79: 1000178.47 | AG79: 0 | AH79: 0 | AI79: 0 | AJ79: 0 | AK79: 0 | AL79: 0 | AM79: 0 | AN79: 0 | AO79: 0 | AP79: 0 | AQ79: 0 | AR79: 0 | AS79: 0 | AT79: 0 | AU79: 0 | AV79: 0 | AW79: 0 | AX79: 0 | AY79: 0 | AZ79: 0 | BA79: 0 | BB79: 0 | BC79: 0 | BD79: 0 | BE79: 0 | BF79: 0 | BG79: 0 | BH79: 0 | BI79: 0 | BJ79: 0 | BK79: 0 | BL79: 0 | BM79: 0 | BN79: 0 | BO79: 0 | BP79: 0 | BQ79: 0 | BR79: 0 | BS79: 0 | BT79: 0 | BU79: =BU77+BU78 -> 0 | BV79: 0 | BW79: 0 | BX79: 0 | BY79: 0 | BZ79: 0 | CA79: 0 | CB79: 0 | CC79: 0 | CD79: 0 | CE79: 0 | CF79: 0 | CG79: 0 | CH79: 0 | CI79: 0 | CJ79: 0 | CK79: 0 | CL79: 0 | CM79: 0 | CN79: 0 | CO79: 0 | CP79: 0 | CQ79: 0 | CR79: 0 | CS79: 0 | CT79: 0 | CU79: 0 | CV79: 0 | CW79: 0 | CX79: 0 | CY79: 0 | CZ79: 0 | DA79: 0 | DB79: 0 | DC79: 0 | DD79: 0 | DE79: 0 | DF79: 0 | DG79: 0 | DH79: 0 | DI79: 0 | DJ79: 0 | DK79: 0 | DL79: 0 | DM79: 0 | DN79: 0 | DO79: 0 | DP79: 0 | DQ79: 0 | DR79: 0 | DS79: 0 | DT79: 0 | DU79: 0 | DV79: 0
E80: =E79-E77 -> 0
B82: Price per MW | E82: 0

Sheet EBITDA
D2: Year | J2: =+'Time SA'!H1 -> 2015-01-01 | K2: =+'Time SA'!I1 -> 2015-07-01 | L2: =+'Time SA'!J1 -> 2016-01-01 | M2: =+'Time SA'!K1 -> 2016-07-01 | N2: =+'Time SA'!L1 -> 2017-01-01 | O2: =+'Time SA'!M1 -> 2017-07-01 | P2: =+'Time SA'!N1 -> 2018-01-01 | Q2: =+'Time SA'!O1 -> 2018-07-01 | R2: =+'Time SA'!P1 -> 2019-01-01 | S2: =+'Time SA'!Q1 -> 2019-07-01 | T2: =+'Time SA'!R1 -> 2020-01-01 | U2: =+'Time SA'!S1 -> 2020-07-01 | V2: =+'Time SA'!T1 -> 2021-01-01 | W2: =+'Time SA'!U1 -> 2021-07-01 | X2: =+'Time SA'!V1 -> 2022-01-01 | Y2: =+'Time SA'!W1 -> 2022-07-01 | Z2: =+'Time SA'!X1 -> 2023-01-01 | AA2: =+'Time SA'!Y1 -> 2023-07-01 | AB2: =+'Time SA'!Z1 -> 2024-01-01 | AC2: =+'Time SA'!AA1 -> 2024-07-01 | AD2: =+'Time SA'!AB1 -> 2025-01-01 | AE2: =+'Time SA'!AC1 -> 2025-07-01 | AF2: =+'Time SA'!AD1 -> 2026-01-01 | AG2: =+'Time SA'!AE1 -> 2026-07-01 | AH2: =+'Time SA'!AF1 -> 2027-01-01 | AI2: =+'Time SA'!AG1 -> 2027-07-01 | AJ2: =+'Time SA'!AH1 -> 2028-01-01 | AK2: =+'Time SA'!AI1 -> 2028-07-01 | AL2: =+'Time SA'!AJ1 -> 2029-01-01 | AM2: =+'Time SA'!AK1 -> 2029-07-01 | AN2: =+'Time SA'!AL1 -> 2030-01-01 | AO2: =+'Time SA'!AM1 -> 2030-07-01 | AP2: =+'Time SA'!AN1 -> 2031-01-01 | AQ2: =+'Time SA'!AO1 -> 2031-07-01 | AR2: =+'Time SA'!AP1 -> 2032-01-01 | AS2: =+'Time SA'!AQ1 -> 2032-07-01 | AT2: =+'Time SA'!AR1 -> 2033-01-01 | AU2: =+'Time SA'!AS1 -> 2033-07-01 | AV2: =+'Time SA'!AT1 -> 2034-01-01 | AW2: =+'Time SA'!AU1 -> 2034-07-01 | AX2: =+'Time SA'!AV1 -> 2035-01-01 | AY2: =+'Time SA'!AW1 -> 2035-07-01 | AZ2: =+'Time SA'!AX1 -> 2036-01-01 | BA2: =+'Time SA'!AY1 -> 2036-07-01 | BB2: =+'Time SA'!AZ1 -> 2037-01-01 | BC2: =+'Time SA'!BA1 -> 2037-07-01 | BD2: =+'Time SA'!BB1 -> 2038-01-01 | BE2: =+'Time SA'!BC1 -> 2038-07-01 | BF2: =+'Time SA'!BD1 -> 2039-01-01 | BG2: =+'Time SA'!BE1 -> 2039-07-01 | BH2: =+'Time SA'!BF1 -> 2040-01-01 | BI2: =+'Time SA'!BG1 -> 2040-07-01 | BJ2: =+'Time SA'!BH1 -> 2041-01-01 | BK2: =+'Time SA'!BI1 -> 2041-07-01 | BL2: =+'Time SA'!BJ1 -> 2042-01-01 | BM2: =+'Time SA'!BK1 -> 2042-07-01 | BN2: =+'Time SA'!BL1 -> 2043-01-01 | BO2: =+'Time SA'!BM1 -> 2043-07-01 | BP2: =+'Time SA'!BN1 -> 2044-01-01 | BQ2: =+'Time SA'!BO1 -> 2044-07-01
D3: Last day of Period | J3: =+'Time SA'!H2 -> 2015-06-30 | K3: =+'Time SA'!I2 -> 2015-12-31 | L3: =+'Time SA'!J2 -> 2016-06-30 | M3: =+'Time SA'!K2 -> 2016-12-31 | N3: =+'Time SA'!L2 -> 2017-06-30 | O3: =+'Time SA'!M2 -> 2017-12-31 | P3: =+'Time SA'!N2 -> 2018-06-30 | Q3: =+'Time SA'!O2 -> 2018-12-31 | R3: =+'Time SA'!P2 -> 2019-06-30 | S3: =+'Time SA'!Q2 -> 2019-12-31 | T3: =+'Time SA'!R2 -> 2020-06-30 | U3: =+'Time SA'!S2 -> 2020-12-31 | V3: =+'Time SA'!T2 -> 2021-06-30 | W3: =+'Time SA'!U2 -> 2021-12-31 | X3: =+'Time SA'!V2 -> 2022-06-30 | Y3: =+'Time SA'!W2 -> 2022-12-31 | Z3: =+'Time SA'!X2 -> 2023-06-30 | AA3: =+'Time SA'!Y2 -> 2023-12-31 | AB3: =+'Time SA'!Z2 -> 2024-06-30 | AC3: =+'Time SA'!AA2 -> 2024-12-31 | AD3: =+'Time SA'!AB2 -> 2025-06-30 | AE3: =+'Time SA'!AC2 -> 2025-12-31 | AF3: =+'Time SA'!AD2 -> 2026-06-30 | AG3: =+'Time SA'!AE2 -> 2026-12-31 | AH3: =+'Time SA'!AF2 -> 2027-06-30 | AI3: =+'Time SA'!AG2 -> 2027-12-31 | AJ3: =+'Time SA'!AH2 -> 2028-06-30 | AK3: =+'Time SA'!AI2 -> 2028-12-31 | AL3: =+'Time SA'!AJ2 -> 2029-06-30 | AM3: =+'Time SA'!AK2 -> 2029-12-31 | AN3: =+'Time SA'!AL2 -> 2030-06-30 | AO3: =+'Time SA'!AM2 -> 2030-12-31 | AP3: =+'Time SA'!AN2 -> 2031-06-30 | AQ3: =+'Time SA'!AO2 -> 2031-12-31 | AR3: =+'Time SA'!AP2 -> 2032-06-30 | AS3: =+'Time SA'!AQ2 -> 2032-12-31 | AT3: =+'Time SA'!AR2 -> 2033-06-30 | AU3: =+'Time SA'!AS2 -> 2033-12-31 | AV3: =+'Time SA'!AT2 -> 2034-06-30 | AW3: =+'Time SA'!AU2 -> 2034-12-31 | AX3: =+'Time SA'!AV2 -> 2035-06-30 | AY3: =+'Time SA'!AW2 -> 2035-12-31 | AZ3: =+'Time SA'!AX2 -> 2036-06-30 | BA3: =+'Time SA'!AY2 -> 2036-12-31 | BB3: =+'Time SA'!AZ2 -> 2037-06-30 | BC3: =+'Time SA'!BA2 -> 2037-12-31 | BD3: =+'Time SA'!BB2 -> 2038-06-30 | BE3: =+'Time SA'!BC2 -> 2038-12-31 | BF3: =+'Time SA'!BD2 -> 2039-06-30 | BG3: =+'Time SA'!BE2 -> 2039-12-31 | BH3: =+'Time SA'!BF2 -> 2040-06-30 | BI3: =+'Time SA'!BG2 -> 2040-12-31 | BJ3: =+'Time SA'!BH2 -> 2041-06-30 | BK3: =+'Time SA'!BI2 -> 2041-12-31 | BL3: =+'Time SA'!BJ2 -> 2042-06-30 | BM3: =+'Time SA'!BK2 -> 2042-12-31 | BN3: =+'Time SA'!BL2 -> 2043-06-30 | BO3: =+'Time SA'!BM2 -> 2043-12-31 | BP3: =+'Time SA'!BN2 -> 2044-06-30 | BQ3: =+'Time SA'!BO2 -> 2044-12-31
D4: Period | J4: =I4+1 -> 1 | K4: 2 | L4: 3 | M4: 4 | N4: 5 | O4: 6 | P4: 7 | Q4: 8 | R4: 9 | S4: 10 | T4: 11 | U4: 12 | V4: 13 | W4: 14 | X4: 15 | Y4: 16 | Z4: 17 | AA4: 18 | AB4: 19 | AC4: 20 | AD4: 21 | AE4: 22 | AF4: 23 | AG4: 24 | AH4: 25 | AI4: 26 | AJ4: 27 | AK4: 28 | AL4: 29 | AM4: 30 | AN4: 31 | AO4: 32 | AP4: =AO4+1 -> 33 | AQ4: 34 | AR4: 35 | AS4: 36 | AT4: 37 | AU4: 38 | AV4: 39 | AW4: 40 | AX4: 41 | AY4: 42 | AZ4: 43 | BA4: 44 | BB4: 45 | BC4: 46 | BD4: 47 | BE4: 48 | BF4: 49 | BG4: 50 | BH4: 51 | BI4: 52 | BJ4: 53 | BK4: 54 | BL4: 55 | BM4: 56 | BN4: 57 | BO4: 58 | BP4: 59 | BQ4: 60
A5: Section 1: Dates and Switches
D6: Operating Triggers
E7: Operating Trigger | G7: ='Timing, Infl, Rev Assumptions'!G6 -> 2017-06-01 | H7: ='Timing, Infl, Rev Assumptions'!G7 -> 2042-05-31 | J7: =AND(J2>=$G$7,J2<$H$7) -> FALSE | K7: FALSE | L7: FALSE | M7: FALSE | N7: FALSE | O7: TRUE | P7: TRUE | Q7: TRUE | R7: TRUE | S7: TRUE | T7: TRUE | U7: TRUE | V7: TRUE | W7: TRUE | X7: TRUE | Y7: TRUE | Z7: TRUE | AA7: TRUE | AB7: TRUE | AC7: TRUE | AD7: TRUE | AE7: TRUE | AF7: TRUE | AG7: TRUE | AH7: TRUE | AI7: TRUE | AJ7: TRUE | AK7: TRUE | AL7: TRUE | AM7: TRUE | AN7: TRUE | AO7: TRUE | AP7: =AND(AP2>=$G$7,AP2<$H$7) -> TRUE | AQ7: TRUE | AR7: TRUE | AS7: TRUE | AT7: TRUE | AU7: TRUE | AV7: TRUE | AW7: TRUE | AX7: TRUE | AY7: TRUE | AZ7: TRUE | BA7: TRUE | BB7: TRUE | BC7: TRUE | BD7: TRUE | BE7: TRUE | BF7: TRUE | BG7: TRUE | BH7: TRUE | BI7: TRUE | BJ7: TRUE | BK7: TRUE | BL7: TRUE | BM7: FALSE | BN7: FALSE | BO7: FALSE | BP7: FALSE | BQ7: FALSE
D10: Price timing triggers
E11: PPA Trigger | G11: =G7 -> 2017-06-01 | H11: ='Timing, Infl, Rev Assumptions'!G19 -> 2032-05-31 | J11: =AND(J$2>=$G11,J$2<=$H11) -> FALSE | K11: =AND(K$2>=$G11,K$2<=$H11) -> FALSE | L11: FALSE | M11: FALSE | N11: FALSE | O11: TRUE | P11: TRUE | Q11: TRUE | R11: TRUE | S11: TRUE | T11: TRUE | U11: TRUE | V11: TRUE | W11: TRUE | X11: TRUE | Y11: TRUE | Z11: TRUE | AA11: TRUE | AB11: TRUE | AC11: TRUE | AD11: TRUE | AE11: TRUE | AF11: TRUE | AG11: TRUE | AH11: TRUE | AI11: TRUE | AJ11: TRUE | AK11: TRUE | AL11: TRUE | AM11: TRUE | AN11: TRUE | AO11: TRUE | AP11: TRUE | AQ11: TRUE | AR11: TRUE | AS11: FALSE | AT11: FALSE | AU11: FALSE | AV11: FALSE | AW11: FALSE | AX11: FALSE | AY11: FALSE | AZ11: FALSE | BA11: FALSE | BB11: FALSE | BC11: FALSE | BD11: FALSE | BE11: FALSE | BF11: FALSE | BG11: FALSE | BH11: FALSE | BI11: FALSE | BJ11: FALSE | BK11: FALSE | BL11: FALSE | BM11: FALSE | BN11: FALSE | BO11: FALSE | BP11: FALSE | BQ11: FALSE
E12: SEM Trigger | G12: ='Timing, Infl, Rev Assumptions'!G79 -> 2032-06-01 | H12: =H7 -> 2042-05-31 | J12: =AND(J$2>=$G12,J$2<=$H12) -> FALSE | K12: FALSE | L12: FALSE | M12: FALSE | N12: FALSE | O12: FALSE | P12: FALSE | Q12: FALSE | R12: FALSE | S12: FALSE | T12: FALSE | U12: FALSE | V12: FALSE | W12: FALSE | X12: FALSE | Y12: FALSE | Z12: FALSE | AA12: FALSE | AB12: FALSE | AC12: FALSE | AD12: FALSE | AE12: FALSE | AF12: FALSE | AG12: FALSE | AH12: FALSE | AI12: FALSE | AJ12: FALSE | AK12: FALSE | AL12: FALSE | AM12: FALSE | AN12: FALSE | AO12: FALSE | AP12: FALSE | AQ12: FALSE | AR12: FALSE | AS12: TRUE | AT12: TRUE | AU12: TRUE | AV12: TRUE | AW12: TRUE | AX12: TRUE | AY12: TRUE | AZ12: TRUE | BA12: TRUE | BB12: TRUE | BC12: TRUE | BD12: TRUE | BE12: TRUE | BF12: TRUE | BG12: TRUE | BH12: TRUE | BI12: TRUE | BJ12: TRUE | BK12: TRUE | BL12: TRUE | BM12: FALSE | BN12: FALSE | BO12: FALSE | BP12: FALSE | BQ12: FALSE
E13: % PPA Trigger (Horrible Formula) | J13: =IF(AND('Time SA'!H$1<'Timing, Infl, Rev Assumptions'!$G$18,'Time SA'!H$2>'Timing, Infl, Rev Assumptions'!$G$18),1-YEARFRAC('Timing, Infl, Rev Assumptions'!$G$18,'Time SA'!H$1)*2,IF(AND('Time SA'!H$1<'Timing, Infl, Rev Assumptions'!$G$19,'Time SA'!H2>'Timing, Infl, Rev Assumptions'!$G$19),1-YEARFRAC('Timing, Infl, Rev Assumptions'!$G$19,'Time SA'!H$2)*2,IF(AND('Time SA'!H$1>='Timing, Infl, Rev Assumptions'!$G$18,'Time SA'!H$2<='Timing, Infl, Rev Assumptions'!$G$19),1,0))) -> 0 | K13: =IF(AND('Time SA'!I$1<'Timing, Infl, Rev Assumptions'!$G$18,'Time SA'!I$2>'Timing, Infl, Rev Assumptions'!$G$18),1-YEARFRAC('Timing, Infl, Rev Assumptions'!$G$18,'Time SA'!I$1)*2,IF(AND('Time SA'!I$1<'Timing, Infl, Rev Assumptions'!$G$19,'Time SA'!I2>'Timing, Infl, Rev Assumptions'!$G$19),1-YEARFRAC('Timing, Infl, Rev Assumptions'!$G$19,'Time SA'!I$2)*2,IF(AND('Time SA'!I$1>='Timing, Infl, Rev Assumptions'!$G$18,'Time SA'!I$2<='Timing, Infl, Rev Assumptions'!$G$19),1,0))) -> 0 | L13: =IF(AND('Time SA'!J$1<'Timing, Infl, Rev Assumptions'!$G$18,'Time SA'!J$2>'Timing, Infl, Rev Assumptions'!$G$18),1-YEARFRAC('Timing, Infl, Rev Assumptions'!$G$18,'Time SA'!J$1)*2,IF(AND('Time SA'!J$1<'Timing, Infl, Rev Assumptions'!$G$19,'Time SA'!J2>'Timing, Infl, Rev Assumptions'!$G$19),1-YEARFRAC('Timing, Infl, Rev Assumptions'!$G$19,'Time SA'!J$2)*2,IF(AND('Time SA'!J$1>='Timing, Infl, Rev Assumptions'!$G$18,'Time SA'!J$2<='Timing, Infl, Rev Assumptions'!$G$19),1,0))) -> 0 | M13: =IF(AND('Time SA'!K$1<'Timing, Infl, Rev Assumptions'!$G$18,'Time SA'!K$2>'Timing, Infl, Rev Assumptions'!$G$18),1-YEARFRAC('Timing, Infl, Rev Assumptions'!$G$18,'Time SA'!K$1)*2,IF(AND('Time SA'!K$1<'Timing, Infl, Rev Assumptions'!$G$19,'Time SA'!K2>'Timing, Infl, Rev Assumptions'!$G$19),1-YEARFRAC('Timing, Infl, Rev Assumptions'!$G$19,'Time SA'!K$2)*2,IF(AND('Time SA'!K$1>='Timing, Infl, Rev Assumptions'!$G$18,'Time SA'!K$2<='Timing, Infl, Rev Assumptions'!$G$19),1,0))) -> 0 | N13: =IF(AND('Time SA'!L$1<'Timing, Infl, Rev Assumptions'!$G$18,'Time SA'!L$2>'Timing, Infl, Rev Assumptions'!$G$18),1-YEARFRAC('Timing, Infl, Rev Assumptions'!$G$18,'Time SA'!L$1)*2,IF(AND('Time SA'!L$1<'Timing, Infl, Rev Assumptions'!$G$19,'Time SA'!L2>'Timing, Infl, Rev Assumptions'!$G$19),1-YEARFRAC('Timing, Infl, Rev Assumptions'!$G$19,'Time SA'!L$2)*2,IF(AND('Time SA'!L$1>='Timing, Infl, Rev Assumptions'!$G$18,'Time SA'!L$2<='Timing, Infl, Rev Assumptions'!$G$19),1,0))) -> 0.1666666667 | O13: =IF(AND('Time SA'!M$1<'Timing, Infl, Rev Assumptions'!$G$18,'Time SA'!M$2>'Timing, Infl, Rev Assumptions'!$G$18),1-YEARFRAC('Timing, Infl, Rev Assumptions'!$G$18,'Time SA'!M$1)*2,IF(AND('Time SA'!M$1<'Timing, Infl, Rev Assumptions'!$G$19,'Time SA'!M2>'Timing, Infl, Rev Assumptions'!$G$19),1-YEARFRAC('Timing, Infl, Rev Assumptions'!$G$19,'Time SA'!M$2)*2,IF(AND('Time SA'!M$1>='Timing, Infl, Rev Assumptions'!$G$18,'Time SA'!M$2<='Timing, Infl, Rev Assumptions'!$G$19),1,0))) -> 1 | P13: =IF(AND('Time SA'!N$1<'Timing, Infl, Rev Assumptions'!$G$18,'Time SA'!N$2>'Timing, Infl, Rev Assumptions'!$G$18),1-YEARFRAC('Timing, Infl, Rev Assumptions'!$G$18,'Time SA'!N$1)*2,IF(AND('Time SA'!N$1<'Timing, Infl, Rev Assumptions'!$G$19,'Time SA'!N2>'Timing, Infl, Rev Assumptions'!$G$19),1-YEARFRAC('Timing, Infl, Rev Assumptions'!$G$19,'Time SA'!N$2)*2,IF(AND('Time SA'!N$1>='Timing, Infl, Rev Assumptions'!$G$18,'Time SA'!N$2<='Timing, Infl, Rev Assumptions'!$G$19),1,0))) -> 1 | Q13: =IF(AND('Time SA'!O$1<'Timing, Infl, Rev Assumptions'!$G$18,'Time SA'!O$2>'Timing, Infl, Rev Assumptions'!$G$18),1-YEARFRAC('Timing, Infl, Rev Assumptions'!$G$18,'Time SA'!O$1)*2,IF(AND('Time SA'!O$1<'Timing, Infl, Rev Assumptions'!$G$19,'Time SA'!O2>'Timing, Infl, Rev Assumptions'!$G$19),1-YEARFRAC('Timing, Infl, Rev Assumptions'!$G$19,'Time SA'!O$2)*2,IF(AND('Time SA'!O$1>='Timing, Infl, Rev Assumptions'!$G$18,'Time SA'!O$2<='Timing, Infl, Rev Assumptions'!$G$19),1,0))) -> 1 | R13: =IF(AND('Time SA'!P$1<'Timing, Infl, Rev Assumptions'!$G$18,'Time SA'!P$2>'Timing, Infl, Rev Assumptions'!$G$18),1-YEARFRAC('Timing, Infl, Rev Assumptions'!$G$18,'Time SA'!P$1)*2,IF(AND('Time SA'!P$1<'Timing, Infl, Rev Assumptions'!$G$19,'Time SA'!P2>'Timing, Infl, Rev Assumptions'!$G$19),1-YEARFRAC('Timing, Infl, Rev Assumptions'!$G$19,'Time SA'!P$2)*2,IF(AND('Time SA'!P$1>='Timing, Infl, Rev Assumptions'!$G$18,'Time SA'!P$2<='Timing, Infl, Rev Assumptions'!$G$19),1,0))) -> 1 | S13: =IF(AND('Time SA'!Q$1<'Timing, Infl, Rev Assumptions'!$G$18,'Time SA'!Q$2>'Timing, Infl, Rev Assumptions'!$G$18),1-YEARFRAC('Timing, Infl, Rev Assumptions'!$G$18,'Time SA'!Q$1)*2,IF(AND('Time SA'!Q$1<'Timing, Infl, Rev Assumptions'!$G$19,'Time SA'!Q2>'Timing, Infl, Rev Assumptions'!$G$19),1-YEARFRAC('Timing, Infl, Rev Assumptions'!$G$19,'Time SA'!Q$2)*2,IF(AND('Time SA'!Q$1>='Timing, Infl, Rev Assumptions'!$G$18,'Time SA'!Q$2<='Timing, Infl, Rev Assumptions'!$G$19),1,0))) -> 1 | T13: =IF(AND('Time SA'!R$1<'Timing, Infl, Rev Assumptions'!$G$18,'Time SA'!R$2>'Timing, Infl, Rev Assumptions'!$G$18),1-YEARFRAC('Timing, Infl, Rev Assumptions'!$G$18,'Time SA'!R$1)*2,IF(AND('Time SA'!R$1<'Timing, Infl, Rev Assumptions'!$G$19,'Time SA'!R2>'Timing, Infl, Rev Assumptions'!$G$19),1-YEARFRAC('Timing, Infl, Rev Assumptions'!$G$19,'Time SA'!R$2)*2,IF(AND('Time SA'!R$1>='Timing, Infl, Rev Assumptions'!$G$18,'Time SA'!R$2<='Timing, Infl, Rev Assumptions'!$G$19),1,0))) -> 1 | U13: =IF(AND('Time SA'!S$1<'Timing, Infl, Rev Assumptions'!$G$18,'Time SA'!S$2>'Timing, Infl, Rev Assumptions'!$G$18),1-YEARFRAC('Timing, Infl, Rev Assumptions'!$G$18,'Time SA'!S$1)*2,IF(AND('Time SA'!S$1<'Timing, Infl, Rev Assumptions'!$G$19,'Time SA'!S2>'Timing, Infl, Rev Assumptions'!$G$19),1-YEARFRAC('Timing, Infl, Rev Assumptions'!$G$19,'Time SA'!S$2)*2,IF(AND('Time SA'!S$1>='Timing, Infl, Rev Assumptions'!$G$18,'Time SA'!S$2<='Timing, Infl, Rev Assumptions'!$G$19),1,0))) -> 1 | V13: =IF(AND('Time SA'!T$1<'Timing, Infl, Rev Assumptions'!$G$18,'Time SA'!T$2>'Timing, Infl, Rev Assumptions'!$G$18),1-YEARFRAC('Timing, Infl, Rev Assumptions'!$G$18,'Time SA'!T$1)*2,IF(AND('Time SA'!T$1<'Timing, Infl, Rev Assumptions'!$G$19,'Time SA'!T2>'Timing, Infl, Rev Assumptions'!$G$19),1-YEARFRAC('Timing, Infl, Rev Assumptions'!$G$19,'Time SA'!T$2)*2,IF(AND('Time SA'!T$1>='Timing, Infl, Rev Assumptions'!$G$18,'Time SA'!T$2<='Timing, Infl, Rev Assumptions'!$G$19),1,0))) -> 1 | W13: =IF(AND('Time SA'!U$1<'Timing, Infl, Rev Assumptions'!$G$18,'Time SA'!U$2>'Timing, Infl, Rev Assumptions'!$G$18),1-YEARFRAC('Timing, Infl, Rev Assumptions'!$G$18,'Time SA'!U$1)*2,IF(AND('Time SA'!U$1<'Timing, Infl, Rev Assumptions'!$G$19,'Time SA'!U2>'Timing, Infl, Rev Assumptions'!$G$19),1-YEARFRAC('Timing, Infl, Rev Assumptions'!$G$19,'Time SA'!U$2)*2,IF(AND('Time SA'!U$1>='Timing, Infl, Rev Assumptions'!$G$18,'Time SA'!U$2<='Timing, Infl, Rev Assumptions'!$G$19),1,0))) -> 1 | X13: =IF(AND('Time SA'!V$1<'Timing, Infl, Rev Assumptions'!$G$18,'Time SA'!V$2>'Timing, Infl, Rev Assumptions'!$G$18),1-YEARFRAC('Timing, Infl, Rev Assumptions'!$G$18,'Time SA'!V$1)*2,IF(AND('Time SA'!V$1<'Timing, Infl, Rev Assumptions'!$G$19,'Time SA'!V2>'Timing, Infl, Rev Assumptions'!$G$19),1-YEARFRAC('Timing, Infl, Rev Assumptions'!$G$19,'Time SA'!V$2)*2,IF(AND('Time SA'!V$1>='Timing, Infl, Rev Assumptions'!$G$18,'Time SA'!V$2<='Timing, Infl, Rev Assumptions'!$G$19),1,0))) -> 1 | Y13: =IF(AND('Time SA'!W$1<'Timing, Infl, Rev Assumptions'!$G$18,'Time SA'!W$2>'Timing, Infl, Rev Assumptions'!$G$18),1-YEARFRAC('Timing, Infl, Rev Assumptions'!$G$18,'Time SA'!W$1)*2,IF(AND('Time SA'!W$1<'Timing, Infl, Rev Assumptions'!$G$19,'Time SA'!W2>'Timing, Infl, Rev Assumptions'!$G$19),1-YEARFRAC('Timing, Infl, Rev Assumptions'!$G$19,'Time SA'!W$2)*2,IF(AND('Time SA'!W$1>='Timing, Infl, Rev Assumptions'!$G$18,'Time SA'!W$2<='Timing, Infl, Rev Assumptions'!$G$19),1,0))) -> 1 | Z13: =IF(AND('Time SA'!X$1<'Timing, Infl, Rev Assumptions'!$G$18,'Time SA'!X$2>'Timing, Infl, Rev Assumptions'!$G$18),1-YEARFRAC('Timing, Infl, Rev Assumptions'!$G$18,'Time SA'!X$1)*2,IF(AND('Time SA'!X$1<'Timing, Infl, Rev Assumptions'!$G$19,'Time SA'!X2>'Timing, Infl, Rev Assumptions'!$G$19),1-YEARFRAC('Timing, Infl, Rev Assumptions'!$G$19,'Time SA'!X$2)*2,IF(AND('Time SA'!X$1>='Timing, Infl, Rev Assumptions'!$G$18,'Time SA'!X$2<='Timing, Infl, Rev Assumptions'!$G$19),1,0))) -> 1 | AA13: =IF(AND('Time SA'!Y$1<'Timing, Infl, Rev Assumptions'!$G$18,'Time SA'!Y$2>'Timing, Infl, Rev Assumptions'!$G$18),1-YEARFRAC('Timing, Infl, Rev Assumptions'!$G$18,'Time SA'!Y$1)*2,IF(AND('Time SA'!Y$1<'Timing, Infl, Rev Assumptions'!$G$19,'Time SA'!Y2>'Timing, Infl, Rev Assumptions'!$G$19),1-YEARFRAC('Timing, Infl, Rev Assumptions'!$G$19,'Time SA'!Y$2)*2,IF(AND('Time SA'!Y$1>='Timing, Infl, Rev Assumptions'!$G$18,'Time SA'!Y$2<='Timing, Infl, Rev Assumptions'!$G$19),1,0))) -> 1 | AB13: =IF(AND('Time SA'!Z$1<'Timing, Infl, Rev Assumptions'!$G$18,'Time SA'!Z$2>'Timing, Infl, Rev Assumptions'!$G$18),1-YEARFRAC('Timing, Infl, Rev Assumptions'!$G$18,'Time SA'!Z$1)*2,IF(AND('Time SA'!Z$1<'Timing, Infl, Rev Assumptions'!$G$19,'Time SA'!Z2>'Timing, Infl, Rev Assumptions'!$G$19),1-YEARFRAC('Timing, Infl, Rev Assumptions'!$G$19,'Time SA'!Z$2)*2,IF(AND('Time SA'!Z$1>='Timing, Infl, Rev Assumptions'!$G$18,'Time SA'!Z$2<='Timing, Infl, Rev Assumptions'!$G$19),1,0))) -> 1 | AC13: =IF(AND('Time SA'!AA$1<'Timing, Infl, Rev Assumptions'!$G$18,'Time SA'!AA$2>'Timing, Infl, Rev Assumptions'!$G$18),1-YEARFRAC('Timing, Infl, Rev Assumptions'!$G$18,'Time SA'!AA$1)*2,IF(AND('Time SA'!AA$1<'Timing, Infl, Rev Assumptions'!$G$19,'Time SA'!AA2>'Timing, Infl, Rev Assumptions'!$G$19),1-YEARFRAC('Timing, Infl, Rev Assumptions'!$G$19,'Time SA'!AA$2)*2,IF(AND('Time SA'!AA$1>='Timing, Infl, Rev Assumptions'!$G$18,'Time SA'!AA$2<='Timing, Infl, Rev Assumptions'!$G$19),1,0))) -> 1 | AD13: =IF(AND('Time SA'!AB$1<'Timing, Infl, Rev Assumptions'!$G$18,'Time SA'!AB$2>'Timing, Infl, Rev Assumptions'!$G$18),1-YEARFRAC('Timing, Infl, Rev Assumptions'!$G$18,'Time SA'!AB$1)*2,IF(AND('Time SA'!AB$1<'Timing, Infl, Rev Assumptions'!$G$19,'Time SA'!AB2>'Timing, Infl, Rev Assumptions'!$G$19),1-YEARFRAC('Timing, Infl, Rev Assumptions'!$G$19,'Time SA'!AB$2)*2,IF(AND('Time SA'!AB$1>='Timing, Infl, Rev Assumptions'!$G$18,'Time SA'!AB$2<='Timing, Infl, Rev Assumptions'!$G$19),1,0))) -> 1 | AE13: =IF(AND('Time SA'!AC$1<'Timing, Infl, Rev Assumptions'!$G$18,'Time SA'!AC$2>'Timing, Infl, Rev Assumptions'!$G$18),1-YEARFRAC('Timing, Infl, Rev Assumptions'!$G$18,'Time SA'!AC$1)*2,IF(AND('Time SA'!AC$1<'Timing, Infl, Rev Assumptions'!$G$19,'Time SA'!AC2>'Timing, Infl, Rev Assumptions'!$G$19),1-YEARFRAC('Timing, Infl, Rev Assumptions'!$G$19,'Time SA'!AC$2)*2,IF(AND('Time SA'!AC$1>='Timing, Infl, Rev Assumptions'!$G$18,'Time SA'!AC$2<='Timing, Infl, Rev Assumptions'!$G$19),1,0))) -> 1 | AF13: =IF(AND('Time SA'!AD$1<'Timing, Infl, Rev Assumptions'!$G$18,'Time SA'!AD$2>'Timing, Infl, Rev Assumptions'!$G$18),1-YEARFRAC('Timing, Infl, Rev Assumptions'!$G$18,'Time SA'!AD$1)*2,IF(AND('Time SA'!AD$1<'Timing, Infl, Rev Assumptions'!$G$19,'Time SA'!AD2>'Timing, Infl, Rev Assumptions'!$G$19),1-YEARFRAC('Timing, Infl, Rev Assumptions'!$G$19,'Time SA'!AD$2)*2,IF(AND('Time SA'!AD$1>='Timing, Infl, Rev Assumptions'!$G$18,'Time SA'!AD$2<='Timing, Infl, Rev Assumptions'!$G$19),1,0))) -> 1 | AG13: =IF(AND('Time SA'!AE$1<'Timing, Infl, Rev Assumptions'!$G$18,'Time SA'!AE$2>'Timing, Infl, Rev Assumptions'!$G$18),1-YEARFRAC('Timing, Infl, Rev Assumptions'!$G$18,'Time SA'!AE$1)*2,IF(AND('Time SA'!AE$1<'Timing, Infl, Rev Assumptions'!$G$19,'Time SA'!AE2>'Timing, Infl, Rev Assumptions'!$G$19),1-YEARFRAC('Timing, Infl, Rev Assumptions'!$G$19,'Time SA'!AE$2)*2,IF(AND('Time SA'!AE$1>='Timing, Infl, Rev Assumptions'!$G$18,'Time SA'!AE$2<='Timing, Infl, Rev Assumptions'!$G$19),1,0))) -> 1 | AH13: =IF(AND('Time SA'!AF$1<'Timing, Infl, Rev Assumptions'!$G$18,'Time SA'!AF$2>'Timing, Infl, Rev Assumptions'!$G$18),1-YEARFRAC('Timing, Infl, Rev Assumptions'!$G$18,'Time SA'!AF$1)*2,IF(AND('Time SA'!AF$1<'Timing, Infl, Rev Assumptions'!$G$19,'Time SA'!AF2>'Timing, Infl, Rev Assumptions'!$G$19),1-YEARFRAC('Timing, Infl, Rev Assumptions'!$G$19,'Time SA'!AF$2)*2,IF(AND('Time SA'!AF$1>='Timing, Infl, Rev Assumptions'!$G$18,'Time SA'!AF$2<='Timing, Infl, Rev Assumptions'!$G$19),1,0))) -> 1 | AI13: =IF(AND('Time SA'!AG$1<'Timing, Infl, Rev Assumptions'!$G$18,'Time SA'!AG$2>'Timing, Infl, Rev Assumptions'!$G$18),1-YEARFRAC('Timing, Infl, Rev Assumptions'!$G$18,'Time SA'!AG$1)*2,IF(AND('Time SA'!AG$1<'Timing, Infl, Rev Assumptions'!$G$19,'Time SA'!AG2>'Timing, Infl, Rev Assumptions'!$G$19),1-YEARFRAC('Timing, Infl, Rev Assumptions'!$G$19,'Time SA'!AG$2)*2,IF(AND('Time SA'!AG$1>='Timing, Infl, Rev Assumptions'!$G$18,'Time SA'!AG$2<='Timing, Infl, Rev Assumptions'!$G$19),1,0))) -> 1 | AJ13: =IF(AND('Time SA'!AH$1<'Timing, Infl, Rev Assumptions'!$G$18,'Time SA'!AH$2>'Timing, Infl, Rev Assumptions'!$G$18),1-YEARFRAC('Timing, Infl, Rev Assumptions'!$G$18,'Time SA'!AH$1)*2,IF(AND('Time SA'!AH$1<'Timing, Infl, Rev Assumptions'!$G$19,'Time SA'!AH2>'Timing, Infl, Rev Assumptions'!$G$19),1-YEARFRAC('Timing, Infl, Rev Assumptions'!$G$19,'Time SA'!AH$2)*2,IF(AND('Time SA'!AH$1>='Timing, Infl, Rev Assumptions'!$G$18,'Time SA'!AH$2<='Timing, Infl, Rev Assumptions'!$G$19),1,0))) -> 1 | AK13: =IF(AND('Time SA'!AI$1<'Timing, Infl, Rev Assumptions'!$G$18,'Time SA'!AI$2>'Timing, Infl, Rev Assumptions'!$G$18),1-YEARFRAC('Timing, Infl, Rev Assumptions'!$G$18,'Time SA'!AI$1)*2,IF(AND('Time SA'!AI$1<'Timing, Infl, Rev Assumptions'!$G$19,'Time SA'!AI2>'Timing, Infl, Rev Assumptions'!$G$19),1-YEARFRAC('Timing, Infl, Rev Assumptions'!$G$19,'Time SA'!AI$2)*2,IF(AND('Time SA'!AI$1>='Timing, Infl, Rev Assumptions'!$G$18,'Time SA'!AI$2<='Timing, Infl, Rev Assumptions'!$G$19),1,0))) -> 1 | AL13: =IF(AND('Time SA'!AJ$1<'Timing, Infl, Rev Assumptions'!$G$18,'Time SA'!AJ$2>'Timing, Infl, Rev Assumptions'!$G$18),1-YEARFRAC('Timing, Infl, Rev Assumptions'!$G$18,'Time SA'!AJ$1)*2,IF(AND('Time SA'!AJ$1<'Timing, Infl, Rev Assumptions'!$G$19,'Time SA'!AJ2>'Timing, Infl, Rev Assumptions'!$G$19),1-YEARFRAC('Timing, Infl, Rev Assumptions'!$G$19,'Time SA'!AJ$2)*2,IF(AND('Time SA'!AJ$1>='Timing, Infl, Rev Assumptions'!$G$18,'Time SA'!AJ$2<='Timing, Infl, Rev Assumptions'!$G$19),1,0))) -> 1 | AM13: =IF(AND('Time SA'!AK$1<'Timing, Infl, Rev Assumptions'!$G$18,'Time SA'!AK$2>'Timing, Infl, Rev Assumptions'!$G$18),1-YEARFRAC('Timing, Infl, Rev Assumptions'!$G$18,'Time SA'!AK$1)*2,IF(AND('Time SA'!AK$1<'Timing, Infl, Rev Assumptions'!$G$19,'Time SA'!AK2>'Timing, Infl, Rev Assumptions'!$G$19),1-YEARFRAC('Timing, Infl, Rev Assumptions'!$G$19,'Time SA'!AK$2)*2,IF(AND('Time SA'!AK$1>='Timing, Infl, Rev Assumptions'!$G$18,'Time SA'!AK$2<='Timing, Infl, Rev Assumptions'!$G$19),1,0))) -> 1 | AN13: =IF(AND('Time SA'!AL$1<'Timing, Infl, Rev Assumptions'!$G$18,'Time SA'!AL$2>'Timing, Infl, Rev Assumptions'!$G$18),1-YEARFRAC('Timing, Infl, Rev Assumptions'!$G$18,'Time SA'!AL$1)*2,IF(AND('Time SA'!AL$1<'Timing, Infl, Rev Assumptions'!$G$19,'Time SA'!AL2>'Timing, Infl, Rev Assumptions'!$G$19),1-YEARFRAC('Timing, Infl, Rev Assumptions'!$G$19,'Time SA'!AL$2)*2,IF(AND('Time SA'!AL$1>='Timing, Infl, Rev Assumptions'!$G$18,'Time SA'!AL$2<='Timing, Infl, Rev Assumptions'!$G$19),1,0))) -> 1 | AO13: =IF(AND('Time SA'!AM$1<'Timing, Infl, Rev Assumptions'!$G$18,'Time SA'!AM$2>'Timing, Infl, Rev Assumptions'!$G$18),1-YEARFRAC('Timing, Infl, Rev Assumptions'!$G$18,'Time SA'!AM$1)*2,IF(AND('Time SA'!AM$1<'Timing, Infl, Rev Assumptions'!$G$19,'Time SA'!AM2>'Timing, Infl, Rev Assumptions'!$G$19),1-YEARFRAC('Timing, Infl, Rev Assumptions'!$G$19,'Time SA'!AM$2)*2,IF(AND('Time SA'!AM$1>='Timing, Infl, Rev Assumptions'!$G$18,'Time SA'!AM$2<='Timing, Infl, Rev Assumptions'!$G$19),1,0))) -> 1 | AP13: =IF(AND('Time SA'!AN$1<'Timing, Infl, Rev Assumptions'!$G$18,'Time SA'!AN$2>'Timing, Infl, Rev Assumptions'!$G$18),1-YEARFRAC('Timing, Infl, Rev Assumptions'!$G$18,'Time SA'!AN$1)*2,IF(AND('Time SA'!AN$1<'Timing, Infl, Rev Assumptions'!$G$19,'Time SA'!AN2>'Timing, Infl, Rev Assumptions'!$G$19),1-YEARFRAC('Timing, Infl, Rev Assumptions'!$G$19,'Time SA'!AN$2)*2,IF(AND('Time SA'!AN$1>='Timing, Infl, Rev Assumptions'!$G$18,'Time SA'!AN$2<='Timing, Infl, Rev Assumptions'!$G$19),1,0))) -> 1 | AQ13: =IF(AND('Time SA'!AO$1<'Timing, Infl, Rev Assumptions'!$G$18,'Time SA'!AO$2>'Timing, Infl, Rev Assumptions'!$G$18),1-YEARFRAC('Timing, Infl, Rev Assumptions'!$G$18,'Time SA'!AO$1)*2,IF(AND('Time SA'!AO$1<'Timing, Infl, Rev Assumptions'!$G$19,'Time SA'!AO2>'Timing, Infl, Rev Assumptions'!$G$19),1-YEARFRAC('Timing, Infl, Rev Assumptions'!$G$19,'Time SA'!AO$2)*2,IF(AND('Time SA'!AO$1>='Timing, Infl, Rev Assumptions'!$G$18,'Time SA'!AO$2<='Timing, Infl, Rev Assumptions'!$G$19),1,0))) -> 1 | AR13: =IF(AND('Time SA'!AP$1<'Timing, Infl, Rev Assumptions'!$G$18,'Time SA'!AP$2>'Timing, Infl, Rev Assumptions'!$G$18),1-YEARFRAC('Timing, Infl, Rev Assumptions'!$G$18,'Time SA'!AP$1)*2,IF(AND('Time SA'!AP$1<'Timing, Infl, Rev Assumptions'!$G$19,'Time SA'!AP2>'Timing, Infl, Rev Assumptions'!$G$19),1-YEARFRAC('Timing, Infl, Rev Assumptions'!$G$19,'Time SA'!AP$2)*2,IF(AND('Time SA'!AP$1>='Timing, Infl, Rev Assumptions'!$G$18,'Time SA'!AP$2<='Timing, Infl, Rev Assumptions'!$G$19),1,0))) -> 0.8333333333 | AS13: =IF(AND('Time SA'!AQ$1<'Timing, Infl, Rev Assumptions'!$G$18,'Time SA'!AQ$2>'Timing, Infl, Rev Assumptions'!$G$18),1-YEARFRAC('Timing, Infl, Rev Assumptions'!$G$18,'Time SA'!AQ$1)*2,IF(AND('Time SA'!AQ$1<'Timing, Infl, Rev Assumptions'!$G$19,'Time SA'!AQ2>'Timing, Infl, Rev Assumptions'!$G$19),1-YEARFRAC('Timing, Infl, Rev Assumptions'!$G$19,'Time SA'!AQ$2)*2,IF(AND('Time SA'!AQ$1>='Timing, Infl, Rev Assumptions'!$G$18,'Time SA'!AQ$2<='Timing, Infl, Rev Assumptions'!$G$19),1,0))) -> 0 | AT13: =IF(AND('Time SA'!AR$1<'Timing, Infl, Rev Assumptions'!$G$18,'Time SA'!AR$2>'Timing, Infl, Rev Assumptions'!$G$18),1-YEARFRAC('Timing, Infl, Rev Assumptions'!$G$18,'Time SA'!AR$1)*2,IF(AND('Time SA'!AR$1<'Timing, Infl, Rev Assumptions'!$G$19,'Time SA'!AR2>'Timing, Infl, Rev Assumptions'!$G$19),1-YEARFRAC('Timing, Infl, Rev Assumptions'!$G$19,'Time SA'!AR$2)*2,IF(AND('Time SA'!AR$1>='Timing, Infl, Rev Assumptions'!$G$18,'Time SA'!AR$2<='Timing, Infl, Rev Assumptions'!$G$19),1,0))) -> 0 | AU13: =IF(AND('Time SA'!AS$1<'Timing, Infl, Rev Assumptions'!$G$18,'Time SA'!AS$2>'Timing, Infl, Rev Assumptions'!$G$18),1-YEARFRAC('Timing, Infl, Rev Assumptions'!$G$18,'Time SA'!AS$1)*2,IF(AND('Time SA'!AS$1<'Timing, Infl, Rev Assumptions'!$G$19,'Time SA'!AS2>'Timing, Infl, Rev Assumptions'!$G$19),1-YEARFRAC('Timing, Infl, Rev Assumptions'!$G$19,'Time SA'!AS$2)*2,IF(AND('Time SA'!AS$1>='Timing, Infl, Rev Assumptions'!$G$18,'Time SA'!AS$2<='Timing, Infl, Rev Assumptions'!$G$19),1,0))) -> 0 | AV13: =IF(AND('Time SA'!AT$1<'Timing, Infl, Rev Assumptions'!$G$18,'Time SA'!AT$2>'Timing, Infl, Rev Assumptions'!$G$18),1-YEARFRAC('Timing, Infl, Rev Assumptions'!$G$18,'Time SA'!AT$1)*2,IF(AND('Time SA'!AT$1<'Timing, Infl, Rev Assumptions'!$G$19,'Time SA'!AT2>'Timing, Infl, Rev Assumptions'!$G$19),1-YEARFRAC('Timing, Infl, Rev Assumptions'!$G$19,'Time SA'!AT$2)*2,IF(AND('Time SA'!AT$1>='Timing, Infl, Rev Assumptions'!$G$18,'Time SA'!AT$2<='Timing, Infl, Rev Assumptions'!$G$19),1,0))) -> 0 | AW13: =IF(AND('Time SA'!AU$1<'Timing, Infl, Rev Assumptions'!$G$18,'Time SA'!AU$2>'Timing, Infl, Rev Assumptions'!$G$18),1-YEARFRAC('Timing, Infl, Rev Assumptions'!$G$18,'Time SA'!AU$1)*2,IF(AND('Time SA'!AU$1<'Timing, Infl, Rev Assumptions'!$G$19,'Time SA'!AU2>'Timing, Infl, Rev Assumptions'!$G$19),1-YEARFRAC('Timing, Infl, Rev Assumptions'!$G$19,'Time SA'!AU$2)*2,IF(AND('Time SA'!AU$1>='Timing, Infl, Rev Assumptions'!$G$18,'Time SA'!AU$2<='Timing, Infl, Rev Assumptions'!$G$19),1,0))) -> 0 | AX13: =IF(AND('Time SA'!AV$1<'Timing, Infl, Rev Assumptions'!$G$18,'Time SA'!AV$2>'Timing, Infl, Rev Assumptions'!$G$18),1-YEARFRAC('Timing, Infl, Rev Assumptions'!$G$18,'Time SA'!AV$1)*2,IF(AND('Time SA'!AV$1<'Timing, Infl, Rev Assumptions'!$G$19,'Time SA'!AV2>'Timing, Infl, Rev Assumptions'!$G$19),1-YEARFRAC('Timing, Infl, Rev Assumptions'!$G$19,'Time SA'!AV$2)*2,IF(AND('Time SA'!AV$1>='Timing, Infl, Rev Assumptions'!$G$18,'Time SA'!AV$2<='Timing, Infl, Rev Assumptions'!$G$19),1,0))) -> 0 | AY13: =IF(AND('Time SA'!AW$1<'Timing, Infl, Rev Assumptions'!$G$18,'Time SA'!AW$2>'Timing, Infl, Rev Assumptions'!$G$18),1-YEARFRAC('Timing, Infl, Rev Assumptions'!$G$18,'Time SA'!AW$1)*2,IF(AND('Time SA'!AW$1<'Timing, Infl, Rev Assumptions'!$G$19,'Time SA'!AW2>'Timing, Infl, Rev Assumptions'!$G$19),1-YEARFRAC('Timing, Infl, Rev Assumptions'!$G$19,'Time SA'!AW$2)*2,IF(AND('Time SA'!AW$1>='Timing, Infl, Rev Assumptions'!$G$18,'Time SA'!AW$2<='Timing, Infl, Rev Assumptions'!$G$19),1,0))) -> 0 | AZ13: =IF(AND('Time SA'!AX$1<'Timing, Infl, Rev Assumptions'!$G$18,'Time SA'!AX$2>'Timing, Infl, Rev Assumptions'!$G$18),1-YEARFRAC('Timing, Infl, Rev Assumptions'!$G$18,'Time SA'!AX$1)*2,IF(AND('Time SA'!AX$1<'Timing, Infl, Rev Assumptions'!$G$19,'Time SA'!AX2>'Timing, Infl, Rev Assumptions'!$G$19),1-YEARFRAC('Timing, Infl, Rev Assumptions'!$G$19,'Time SA'!AX$2)*2,IF(AND('Time SA'!AX$1>='Timing, Infl, Rev Assumptions'!$G$18,'Time SA'!AX$2<='Timing, Infl, Rev Assumptions'!$G$19),1,0))) -> 0 | BA13: =IF(AND('Time SA'!AY$1<'Timing, Infl, Rev Assumptions'!$G$18,'Time SA'!AY$2>'Timing, Infl, Rev Assumptions'!$G$18),1-YEARFRAC('Timing, Infl, Rev Assumptions'!$G$18,'Time SA'!AY$1)*2,IF(AND('Time SA'!AY$1<'Timing, Infl, Rev Assumptions'!$G$19,'Time SA'!AY2>'Timing, Infl, Rev Assumptions'!$G$19),1-YEARFRAC('Timing, Infl, Rev Assumptions'!$G$19,'Time SA'!AY$2)*2,IF(AND('Time SA'!AY$1>='Timing, Infl, Rev Assumptions'!$G$18,'Time SA'!AY$2<='Timing, Infl, Rev Assumptions'!$G$19),1,0))) -> 0 | BB13: =IF(AND('Time SA'!AZ$1<'Timing, Infl, Rev Assumptions'!$G$18,'Time SA'!AZ$2>'Timing, Infl, Rev Assumptions'!$G$18),1-YEARFRAC('Timing, Infl, Rev Assumptions'!$G$18,'Time SA'!AZ$1)*2,IF(AND('Time SA'!AZ$1<'Timing, Infl, Rev Assumptions'!$G$19,'Time SA'!AZ2>'Timing, Infl, Rev Assumptions'!$G$19),1-YEARFRAC('Timing, Infl, Rev Assumptions'!$G$19,'Time SA'!AZ$2)*2,IF(AND('Time SA'!AZ$1>='Timing, Infl, Rev Assumptions'!$G$18,'Time SA'!AZ$2<='Timing, Infl, Rev Assumptions'!$G$19),1,0))) -> 0 | BC13: =IF(AND('Time SA'!BA$1<'Timing, Infl, Rev Assumptions'!$G$18,'Time SA'!BA$2>'Timing, Infl, Rev Assumptions'!$G$18),1-YEARFRAC('Timing, Infl, Rev Assumptions'!$G$18,'Time SA'!BA$1)*2,IF(AND('Time SA'!BA$1<'Timing, Infl, Rev Assumptions'!$G$19,'Time SA'!BA2>'Timing, Infl, Rev Assumptions'!$G$19),1-YEARFRAC('Timing, Infl, Rev Assumptions'!$G$19,'Time SA'!BA$2)*2,IF(AND('Time SA'!BA$1>='Timing, Infl, Rev Assumptions'!$G$18,'Time SA'!BA$2<='Timing, Infl, Rev Assumptions'!$G$19),1,0))) -> 0 | BD13: =IF(AND('Time SA'!BB$1<'Timing, Infl, Rev Assumptions'!$G$18,'Time SA'!BB$2>'Timing, Infl, Rev Assumptions'!$G$18),1-YEARFRAC('Timing, Infl, Rev Assumptions'!$G$18,'Time SA'!BB$1)*2,IF(AND('Time SA'!BB$1<'Timing, Infl, Rev Assumptions'!$G$19,'Time SA'!BB2>'Timing, Infl, Rev Assumptions'!$G$19),1-YEARFRAC('Timing, Infl, Rev Assumptions'!$G$19,'Time SA'!BB$2)*2,IF(AND('Time SA'!BB$1>='Timing, Infl, Rev Assumptions'!$G$18,'Time SA'!BB$2<='Timing, Infl, Rev Assumptions'!$G$19),1,0))) -> 0 | BE13: =IF(AND('Time SA'!BC$1<'Timing, Infl, Rev Assumptions'!$G$18,'Time SA'!BC$2>'Timing, Infl, Rev Assumptions'!$G$18),1-YEARFRAC('Timing, Infl, Rev Assumptions'!$G$18,'Time SA'!BC$1)*2,IF(AND('Time SA'!BC$1<'Timing, Infl, Rev Assumptions'!$G$19,'Time SA'!BC2>'Timing, Infl, Rev Assumptions'!$G$19),1-YEARFRAC('Timing, Infl, Rev Assumptions'!$G$19,'Time SA'!BC$2)*2,IF(AND('Time SA'!BC$1>='Timing, Infl, Rev Assumptions'!$G$18,'Time SA'!BC$2<='Timing, Infl, Rev Assumptions'!$G$19),1,0))) -> 0 | BF13: =IF(AND('Time SA'!BD$1<'Timing, Infl, Rev Assumptions'!$G$18,'Time SA'!BD$2>'Timing, Infl, Rev Assumptions'!$G$18),1-YEARFRAC('Timing, Infl, Rev Assumptions'!$G$18,'Time SA'!BD$1)*2,IF(AND('Time SA'!BD$1<'Timing, Infl, Rev Assumptions'!$G$19,'Time SA'!BD2>'Timing, Infl, Rev Assumptions'!$G$19),1-YEARFRAC('Timing, Infl, Rev Assumptions'!$G$19,'Time SA'!BD$2)*2,IF(AND('Time SA'!BD$1>='Timing, Infl, Rev Assumptions'!$G$18,'Time SA'!BD$2<='Timing, Infl, Rev Assumptions'!$G$19),1,0))) -> 0 | BG13: =IF(AND('Time SA'!BE$1<'Timing, Infl, Rev Assumptions'!$G$18,'Time SA'!BE$2>'Timing, Infl, Rev Assumptions'!$G$18),1-YEARFRAC('Timing, Infl, Rev Assumptions'!$G$18,'Time SA'!BE$1)*2,IF(AND('Time SA'!BE$1<'Timing, Infl, Rev Assumptions'!$G$19,'Time SA'!BE2>'Timing, Infl, Rev Assumptions'!$G$19),1-YEARFRAC('Timing, Infl, Rev Assumptions'!$G$19,'Time SA'!BE$2)*2,IF(AND('Time SA'!BE$1>='Timing, Infl, Rev Assumptions'!$G$18,'Time SA'!BE$2<='Timing, Infl, Rev Assumptions'!$G$19),1,0))) -> 0 | BH13: =IF(AND('Time SA'!BF$1<'Timing, Infl, Rev Assumptions'!$G$18,'Time SA'!BF$2>'Timing, Infl, Rev Assumptions'!$G$18),1-YEARFRAC('Timing, Infl, Rev Assumptions'!$G$18,'Time SA'!BF$1)*2,IF(AND('Time SA'!BF$1<'Timing, Infl, Rev Assumptions'!$G$19,'Time SA'!BF2>'Timing, Infl, Rev Assumptions'!$G$19),1-YEARFRAC('Timing, Infl, Rev Assumptions'!$G$19,'Time SA'!BF$2)*2,IF(AND('Time SA'!BF$1>='Timing, Infl, Rev Assumptions'!$G$18,'Time SA'!BF$2<='Timing, Infl, Rev Assumptions'!$G$19),1,0))) -> 0 | BI13: =IF(AND('Time SA'!BG$1<'Timing, Infl, Rev Assumptions'!$G$18,'Time SA'!BG$2>'Timing, Infl, Rev Assumptions'!$G$18),1-YEARFRAC('Timing, Infl, Rev Assumptions'!$G$18,'Time SA'!BG$1)*2,IF(AND('Time SA'!BG$1<'Timing, Infl, Rev Assumptions'!$G$19,'Time SA'!BG2>'Timing, Infl, Rev Assumptions'!$G$19),1-YEARFRAC('Timing, Infl, Rev Assumptions'!$G$19,'Time SA'!BG$2)*2,IF(AND('Time SA'!BG$1>='Timing, Infl, Rev Assumptions'!$G$18,'Time SA'!BG$2<='Timing, Infl, Rev Assumptions'!$G$19),1,0))) -> 0 | BJ13: =IF(AND('Time SA'!BH$1<'Timing, Infl, Rev Assumptions'!$G$18,'Time SA'!BH$2>'Timing, Infl, Rev Assumptions'!$G$18),1-YEARFRAC('Timing, Infl, Rev Assumptions'!$G$18,'Time SA'!BH$1)*2,IF(AND('Time SA'!BH$1<'Timing, Infl, Rev Assumptions'!$G$19,'Time SA'!BH2>'Timing, Infl, Rev Assumptions'!$G$19),1-YEARFRAC('Timing, Infl, Rev Assumptions'!$G$19,'Time SA'!BH$2)*2,IF(AND('Time SA'!BH$1>='Timing, Infl, Rev Assumptions'!$G$18,'Time SA'!BH$2<='Timing, Infl, Rev Assumptions'!$G$19),1,0))) -> 0 | BK13: =IF(AND('Time SA'!BI$1<'Timing, Infl, Rev Assumptions'!$G$18,'Time SA'!BI$2>'Timing, Infl, Rev Assumptions'!$G$18),1-YEARFRAC('Timing, Infl, Rev Assumptions'!$G$18,'Time SA'!BI$1)*2,IF(AND('Time SA'!BI$1<'Timing, Infl, Rev Assumptions'!$G$19,'Time SA'!BI2>'Timing, Infl, Rev Assumptions'!$G$19),1-YEARFRAC('Timing, Infl, Rev Assumptions'!$G$19,'Time SA'!BI$2)*2,IF(AND('Time SA'!BI$1>='Timing, Infl, Rev Assumptions'!$G$18,'Time SA'!BI$2<='Timing, Infl, Rev Assumptions'!$G$19),1,0))) -> 0 | BL13: =IF(AND('Time SA'!BJ$1<'Timing, Infl, Rev Assumptions'!$G$18,'Time SA'!BJ$2>'Timing, Infl, Rev Assumptions'!$G$18),1-YEARFRAC('Timing, Infl, Rev Assumptions'!$G$18,'Time SA'!BJ$1)*2,IF(AND('Time SA'!BJ$1<'Timing, Infl, Rev Assumptions'!$G$19,'Time SA'!BJ2>'Timing, Infl, Rev Assumptions'!$G$19),1-YEARFRAC('Timing, Infl, Rev Assumptions'!$G$19,'Time SA'!BJ$2)*2,IF(AND('Time SA'!BJ$1>='Timing, Infl, Rev Assumptions'!$G$18,'Time SA'!BJ$2<='Timing, Infl, Rev Assumptions'!$G$19),1,0))) -> 0 | BM13: =IF(AND('Time SA'!BK$1<'Timing, Infl, Rev Assumptions'!$G$18,'Time SA'!BK$2>'Timing, Infl, Rev Assumptions'!$G$18),1-YEARFRAC('Timing, Infl, Rev Assumptions'!$G$18,'Time SA'!BK$1)*2,IF(AND('Time SA'!BK$1<'Timing, Infl, Rev Assumptions'!$G$19,'Time SA'!BK2>'Timing, Infl, Rev Assumptions'!$G$19),1-YEARFRAC('Timing, Infl, Rev Assumptions'!$G$19,'Time SA'!BK$2)*2,IF(AND('Time SA'!BK$1>='Timing, Infl, Rev Assumptions'!$G$18,'Time SA'!BK$2<='Timing, Infl, Rev Assumptions'!$G$19),1,0))) -> 0 | BN13: =IF(AND('Time SA'!BL$1<'Timing, Infl, Rev Assumptions'!$G$18,'Time SA'!BL$2>'Timing, Infl, Rev Assumptions'!$G$18),1-YEARFRAC('Timing, Infl, Rev Assumptions'!$G$18,'Time SA'!BL$1)*2,IF(AND('Time SA'!BL$1<'Timing, Infl, Rev Assumptions'!$G$19,'Time SA'!BL2>'Timing, Infl, Rev Assumptions'!$G$19),1-YEARFRAC('Timing, Infl, Rev Assumptions'!$G$19,'Time SA'!BL$2)*2,IF(AND('Time SA'!BL$1>='Timing, Infl, Rev Assumptions'!$G$18,'Time SA'!BL$2<='Timing, Infl, Rev Assumptions'!$G$19),1,0))) -> 0 | BO13: =IF(AND('Time SA'!BM$1<'Timing, Infl, Rev Assumptions'!$G$18,'Time SA'!BM$2>'Timing, Infl, Rev Assumptions'!$G$18),1-YEARFRAC('Timing, Infl, Rev Assumptions'!$G$18,'Time SA'!BM$1)*2,IF(AND('Time SA'!BM$1<'Timing, Infl, Rev Assumptions'!$G$19,'Time SA'!BM2>'Timing, Infl, Rev Assumptions'!$G$19),1-YEARFRAC('Timing, Infl, Rev Assumptions'!$G$19,'Time SA'!BM$2)*2,IF(AND('Time SA'!BM$1>='Timing, Infl, Rev Assumptions'!$G$18,'Time SA'!BM$2<='Timing, Infl, Rev Assumptions'!$G$19),1,0))) -> 0 | BP13: =IF(AND('Time SA'!BN$1<'Timing, Infl, Rev Assumptions'!$G$18,'Time SA'!BN$2>'Timing, Infl, Rev Assumptions'!$G$18),1-YEARFRAC('Timing, Infl, Rev Assumptions'!$G$18,'Time SA'!BN$1)*2,IF(AND('Time SA'!BN$1<'Timing, Infl, Rev Assumptions'!$G$19,'Time SA'!BN2>'Timing, Infl, Rev Assumptions'!$G$19),1-YEARFRAC('Timing, Infl, Rev Assumptions'!$G$19,'Time SA'!BN$2)*2,IF(AND('Time SA'!BN$1>='Timing, Infl, Rev Assumptions'!$G$18,'Time SA'!BN$2<='Timing, Infl, Rev Assumptions'!$G$19),1,0))) -> 0 | BQ13: =IF(AND('Time SA'!BO$1<'Timing, Infl, Rev Assumptions'!$G$18,'Time SA'!BO$2>'Timing, Infl, Rev Assumptions'!$G$18),1-YEARFRAC('Timing, Infl, Rev Assumptions'!$G$18,'Time SA'!BO$1)*2,IF(AND('Time SA'!BO$1<'Timing, Infl, Rev Assumptions'!$G$19,'Time SA'!BO2>'Timing, Infl, Rev Assumptions'!$G$19),1-YEARFRAC('Timing, Infl, Rev Assumptions'!$G$19,'Time SA'!BO$2)*2,IF(AND('Time SA'!BO$1>='Timing, Infl, Rev Assumptions'!$G$18,'Time SA'!BO$2<='Timing, Infl, Rev Assumptions'!$G$19),1,0))) -> 0
E14: % SEM Trigger | J14: =IF(AND('Time SA'!H$1<'Timing, Infl, Rev Assumptions'!$G$79,'Time SA'!H$2>'Timing, Infl, Rev Assumptions'!$G$79),1-YEARFRAC('Timing, Infl, Rev Assumptions'!$G$79,'Time SA'!H$1)*2,IF(AND('Time SA'!H$1<'Timing, Infl, Rev Assumptions'!$G$80,'Time SA'!H$2>'Timing, Infl, Rev Assumptions'!$G$80),1-YEARFRAC('Timing, Infl, Rev Assumptions'!$G$80,'Time SA'!H$2)*2,IF(AND('Time SA'!H$1>='Timing, Infl, Rev Assumptions'!$G$79,'Time SA'!H$2<='Timing, Infl, Rev Assumptions'!$G$80),1,0))) -> 0 | K14: =IF(AND('Time SA'!I$1<'Timing, Infl, Rev Assumptions'!$G$79,'Time SA'!I$2>'Timing, Infl, Rev Assumptions'!$G$79),1-YEARFRAC('Timing, Infl, Rev Assumptions'!$G$79,'Time SA'!I$1)*2,IF(AND('Time SA'!I$1<'Timing, Infl, Rev Assumptions'!$G$80,'Time SA'!I$2>'Timing, Infl, Rev Assumptions'!$G$80),1-YEARFRAC('Timing, Infl, Rev Assumptions'!$G$80,'Time SA'!I$2)*2,IF(AND('Time SA'!I$1>='Timing, Infl, Rev Assumptions'!$G$79,'Time SA'!I$2<='Timing, Infl, Rev Assumptions'!$G$80),1,0))) -> 0 | L14: =IF(AND('Time SA'!J$1<'Timing, Infl, Rev Assumptions'!$G$79,'Time SA'!J$2>'Timing, Infl, Rev Assumptions'!$G$79),1-YEARFRAC('Timing, Infl, Rev Assumptions'!$G$79,'Time SA'!J$1)*2,IF(AND('Time SA'!J$1<'Timing, Infl, Rev Assumptions'!$G$80,'Time SA'!J$2>'Timing, Infl, Rev Assumptions'!$G$80),1-YEARFRAC('Timing, Infl, Rev Assumptions'!$G$80,'Time SA'!J$2)*2,IF(AND('Time SA'!J$1>='Timing, Infl, Rev Assumptions'!$G$79,'Time SA'!J$2<='Timing, Infl, Rev Assumptions'!$G$80),1,0))) -> 0 | M14: =IF(AND('Time SA'!K$1<'Timing, Infl, Rev Assumptions'!$G$79,'Time SA'!K$2>'Timing, Infl, Rev Assumptions'!$G$79),1-YEARFRAC('Timing, Infl, Rev Assumptions'!$G$79,'Time SA'!K$1)*2,IF(AND('Time SA'!K$1<'Timing, Infl, Rev Assumptions'!$G$80,'Time SA'!K$2>'Timing, Infl, Rev Assumptions'!$G$80),1-YEARFRAC('Timing, Infl, Rev Assumptions'!$G$80,'Time SA'!K$2)*2,IF(AND('Time SA'!K$1>='Timing, Infl, Rev Assumptions'!$G$79,'Time SA'!K$2<='Timing, Infl, Rev Assumptions'!$G$80),1,0))) -> 0 | N14: =IF(AND('Time SA'!L$1<'Timing, Infl, Rev Assumptions'!$G$79,'Time SA'!L$2>'Timing, Infl, Rev Assumptions'!$G$79),1-YEARFRAC('Timing, Infl, Rev Assumptions'!$G$79,'Time SA'!L$1)*2,IF(AND('Time SA'!L$1<'Timing, Infl, Rev Assumptions'!$G$80,'Time SA'!L$2>'Timing, Infl, Rev Assumptions'!$G$80),1-YEARFRAC('Timing, Infl, Rev Assumptions'!$G$80,'Time SA'!L$2)*2,IF(AND('Time SA'!L$1>='Timing, Infl, Rev Assumptions'!$G$79,'Time SA'!L$2<='Timing, Infl, Rev Assumptions'!$G$80),1,0))) -> 0 | O14: =IF(AND('Time SA'!M$1<'Timing, Infl, Rev Assumptions'!$G$79,'Time SA'!M$2>'Timing, Infl, Rev Assumptions'!$G$79),1-YEARFRAC('Timing, Infl, Rev Assumptions'!$G$79,'Time SA'!M$1)*2,IF(AND('Time SA'!M$1<'Timing, Infl, Rev Assumptions'!$G$80,'Time SA'!M$2>'Timing, Infl, Rev Assumptions'!$G$80),1-YEARFRAC('Timing, Infl, Rev Assumptions'!$G$80,'Time SA'!M$2)*2,IF(AND('Time SA'!M$1>='Timing, Infl, Rev Assumptions'!$G$79,'Time SA'!M$2<='Timing, Infl, Rev Assumptions'!$G$80),1,0))) -> 0 | P14: =IF(AND('Time SA'!N$1<'Timing, Infl, Rev Assumptions'!$G$79,'Time SA'!N$2>'Timing, Infl, Rev Assumptions'!$G$79),1-YEARFRAC('Timing, Infl, Rev Assumptions'!$G$79,'Time SA'!N$1)*2,IF(AND('Time SA'!N$1<'Timing, Infl, Rev Assumptions'!$G$80,'Time SA'!N$2>'Timing, Infl, Rev Assumptions'!$G$80),1-YEARFRAC('Timing, Infl, Rev Assumptions'!$G$80,'Time SA'!N$2)*2,IF(AND('Time SA'!N$1>='Timing, Infl, Rev Assumptions'!$G$79,'Time SA'!N$2<='Timing, Infl, Rev Assumptions'!$G$80),1,0))) -> 0 | Q14: =IF(AND('Time SA'!O$1<'Timing, Infl, Rev Assumptions'!$G$79,'Time SA'!O$2>'Timing, Infl, Rev Assumptions'!$G$79),1-YEARFRAC('Timing, Infl, Rev Assumptions'!$G$79,'Time SA'!O$1)*2,IF(AND('Time SA'!O$1<'Timing, Infl, Rev Assumptions'!$G$80,'Time SA'!O$2>'Timing, Infl, Rev Assumptions'!$G$80),1-YEARFRAC('Timing, Infl, Rev Assumptions'!$G$80,'Time SA'!O$2)*2,IF(AND('Time SA'!O$1>='Timing, Infl, Rev Assumptions'!$G$79,'Time SA'!O$2<='Timing, Infl, Rev Assumptions'!$G$80),1,0))) -> 0 | R14: =IF(AND('Time SA'!P$1<'Timing, Infl, Rev Assumptions'!$G$79,'Time SA'!P$2>'Timing, Infl, Rev Assumptions'!$G$79),1-YEARFRAC('Timing, Infl, Rev Assumptions'!$G$79,'Time SA'!P$1)*2,IF(AND('Time SA'!P$1<'Timing, Infl, Rev Assumptions'!$G$80,'Time SA'!P$2>'Timing, Infl, Rev Assumptions'!$G$80),1-YEARFRAC('Timing, Infl, Rev Assumptions'!$G$80,'Time SA'!P$2)*2,IF(AND('Time SA'!P$1>='Timing, Infl, Rev Assumptions'!$G$79,'Time SA'!P$2<='Timing, Infl, Rev Assumptions'!$G$80),1,0))) -> 0 | S14: =IF(AND('Time SA'!Q$1<'Timing, Infl, Rev Assumptions'!$G$79,'Time SA'!Q$2>'Timing, Infl, Rev Assumptions'!$G$79),1-YEARFRAC('Timing, Infl, Rev Assumptions'!$G$79,'Time SA'!Q$1)*2,IF(AND('Time SA'!Q$1<'Timing, Infl, Rev Assumptions'!$G$80,'Time SA'!Q$2>'Timing, Infl, Rev Assumptions'!$G$80),1-YEARFRAC('Timing, Infl, Rev Assumptions'!$G$80,'Time SA'!Q$2)*2,IF(AND('Time SA'!Q$1>='Timing, Infl, Rev Assumptions'!$G$79,'Time SA'!Q$2<='Timing, Infl, Rev Assumptions'!$G$80),1,0))) -> 0 | T14: =IF(AND('Time SA'!R$1<'Timing, Infl, Rev Assumptions'!$G$79,'Time SA'!R$2>'Timing, Infl, Rev Assumptions'!$G$79),1-YEARFRAC('Timing, Infl, Rev Assumptions'!$G$79,'Time SA'!R$1)*2,IF(AND('Time SA'!R$1<'Timing, Infl, Rev Assumptions'!$G$80,'Time SA'!R$2>'Timing, Infl, Rev Assumptions'!$G$80),1-YEARFRAC('Timing, Infl, Rev Assumptions'!$G$80,'Time SA'!R$2)*2,IF(AND('Time SA'!R$1>='Timing, Infl, Rev Assumptions'!$G$79,'Time SA'!R$2<='Timing, Infl, Rev Assumptions'!$G$80),1,0))) -> 0 | U14: =IF(AND('Time SA'!S$1<'Timing, Infl, Rev Assumptions'!$G$79,'Time SA'!S$2>'Timing, Infl, Rev Assumptions'!$G$79),1-YEARFRAC('Timing, Infl, Rev Assumptions'!$G$79,'Time SA'!S$1)*2,IF(AND('Time SA'!S$1<'Timing, Infl, Rev Assumptions'!$G$80,'Time SA'!S$2>'Timing, Infl, Rev Assumptions'!$G$80),1-YEARFRAC('Timing, Infl, Rev Assumptions'!$G$80,'Time SA'!S$2)*2,IF(AND('Time SA'!S$1>='Timing, Infl, Rev Assumptions'!$G$79,'Time SA'!S$2<='Timing, Infl, Rev Assumptions'!$G$80),1,0))) -> 0 | V14: =IF(AND('Time SA'!T$1<'Timing, Infl, Rev Assumptions'!$G$79,'Time SA'!T$2>'Timing, Infl, Rev Assumptions'!$G$79),1-YEARFRAC('Timing, Infl, Rev Assumptions'!$G$79,'Time SA'!T$1)*2,IF(AND('Time SA'!T$1<'Timing, Infl, Rev Assumptions'!$G$80,'Time SA'!T$2>'Timing, Infl, Rev Assumptions'!$G$80),1-YEARFRAC('Timing, Infl, Rev Assumptions'!$G$80,'Time SA'!T$2)*2,IF(AND('Time SA'!T$1>='Timing, Infl, Rev Assumptions'!$G$79,'Time SA'!T$2<='Timing, Infl, Rev Assumptions'!$G$80),1,0))) -> 0 | W14: =IF(AND('Time SA'!U$1<'Timing, Infl, Rev Assumptions'!$G$79,'Time SA'!U$2>'Timing, Infl, Rev Assumptions'!$G$79),1-YEARFRAC('Timing, Infl, Rev Assumptions'!$G$79,'Time SA'!U$1)*2,IF(AND('Time SA'!U$1<'Timing, Infl, Rev Assumptions'!$G$80,'Time SA'!U$2>'Timing, Infl, Rev Assumptions'!$G$80),1-YEARFRAC('Timing, Infl, Rev Assumptions'!$G$80,'Time SA'!U$2)*2,IF(AND('Time SA'!U$1>='Timing, Infl, Rev Assumptions'!$G$79,'Time SA'!U$2<='Timing, Infl, Rev Assumptions'!$G$80),1,0))) -> 0 | X14: =IF(AND('Time SA'!V$1<'Timing, Infl, Rev Assumptions'!$G$79,'Time SA'!V$2>'Timing, Infl, Rev Assumptions'!$G$79),1-YEARFRAC('Timing, Infl, Rev Assumptions'!$G$79,'Time SA'!V$1)*2,IF(AND('Time SA'!V$1<'Timing, Infl, Rev Assumptions'!$G$80,'Time SA'!V$2>'Timing, Infl, Rev Assumptions'!$G$80),1-YEARFRAC('Timing, Infl, Rev Assumptions'!$G$80,'Time SA'!V$2)*2,IF(AND('Time SA'!V$1>='Timing, Infl, Rev Assumptions'!$G$79,'Time SA'!V$2<='Timing, Infl, Rev Assumptions'!$G$80),1,0))) -> 0 | Y14: =IF(AND('Time SA'!W$1<'Timing, Infl, Rev Assumptions'!$G$79,'Time SA'!W$2>'Timing, Infl, Rev Assumptions'!$G$79),1-YEARFRAC('Timing, Infl, Rev Assumptions'!$G$79,'Time SA'!W$1)*2,IF(AND('Time SA'!W$1<'Timing, Infl, Rev Assumptions'!$G$80,'Time SA'!W$2>'Timing, Infl, Rev Assumptions'!$G$80),1-YEARFRAC('Timing, Infl, Rev Assumptions'!$G$80,'Time SA'!W$2)*2,IF(AND('Time SA'!W$1>='Timing, Infl, Rev Assumptions'!$G$79,'Time SA'!W$2<='Timing, Infl, Rev Assumptions'!$G$80),1,0))) -> 0 | Z14: =IF(AND('Time SA'!X$1<'Timing, Infl, Rev Assumptions'!$G$79,'Time SA'!X$2>'Timing, Infl, Rev Assumptions'!$G$79),1-YEARFRAC('Timing, Infl, Rev Assumptions'!$G$79,'Time SA'!X$1)*2,IF(AND('Time SA'!X$1<'Timing, Infl, Rev Assumptions'!$G$80,'Time SA'!X$2>'Timing, Infl, Rev Assumptions'!$G$80),1-YEARFRAC('Timing, Infl, Rev Assumptions'!$G$80,'Time SA'!X$2)*2,IF(AND('Time SA'!X$1>='Timing, Infl, Rev Assumptions'!$G$79,'Time SA'!X$2<='Timing, Infl, Rev Assumptions'!$G$80),1,0))) -> 0 | AA14: =IF(AND('Time SA'!Y$1<'Timing, Infl, Rev Assumptions'!$G$79,'Time SA'!Y$2>'Timing, Infl, Rev Assumptions'!$G$79),1-YEARFRAC('Timing, Infl, Rev Assumptions'!$G$79,'Time SA'!Y$1)*2,IF(AND('Time SA'!Y$1<'Timing, Infl, Rev Assumptions'!$G$80,'Time SA'!Y$2>'Timing, Infl, Rev Assumptions'!$G$80),1-YEARFRAC('Timing, Infl, Rev Assumptions'!$G$80,'Time SA'!Y$2)*2,IF(AND('Time SA'!Y$1>='Timing, Infl, Rev Assumptions'!$G$79,'Time SA'!Y$2<='Timing, Infl, Rev Assumptions'!$G$80),1,0))) -> 0 | AB14: =IF(AND('Time SA'!Z$1<'Timing, Infl, Rev Assumptions'!$G$79,'Time SA'!Z$2>'Timing, Infl, Rev Assumptions'!$G$79),1-YEARFRAC('Timing, Infl, Rev Assumptions'!$G$79,'Time SA'!Z$1)*2,IF(AND('Time SA'!Z$1<'Timing, Infl, Rev Assumptions'!$G$80,'Time SA'!Z$2>'Timing, Infl, Rev Assumptions'!$G$80),1-YEARFRAC('Timing, Infl, Rev Assumptions'!$G$80,'Time SA'!Z$2)*2,IF(AND('Time SA'!Z$1>='Timing, Infl, Rev Assumptions'!$G$79,'Time SA'!Z$2<='Timing, Infl, Rev Assumptions'!$G$80),1,0))) -> 0 | AC14: =IF(AND('Time SA'!AA$1<'Timing, Infl, Rev Assumptions'!$G$79,'Time SA'!AA$2>'Timing, Infl, Rev Assumptions'!$G$79),1-YEARFRAC('Timing, Infl, Rev Assumptions'!$G$79,'Time SA'!AA$1)*2,IF(AND('Time SA'!AA$1<'Timing, Infl, Rev Assumptions'!$G$80,'Time SA'!AA$2>'Timing, Infl, Rev Assumptions'!$G$80),1-YEARFRAC('Timing, Infl, Rev Assumptions'!$G$80,'Time SA'!AA$2)*2,IF(AND('Time SA'!AA$1>='Timing, Infl, Rev Assumptions'!$G$79,'Time SA'!AA$2<='Timing, Infl, Rev Assumptions'!$G$80),1,0))) -> 0 | AD14: =IF(AND('Time SA'!AB$1<'Timing, Infl, Rev Assumptions'!$G$79,'Time SA'!AB$2>'Timing, Infl, Rev Assumptions'!$G$79),1-YEARFRAC('Timing, Infl, Rev Assumptions'!$G$79,'Time SA'!AB$1)*2,IF(AND('Time SA'!AB$1<'Timing, Infl, Rev Assumptions'!$G$80,'Time SA'!AB$2>'Timing, Infl, Rev Assumptions'!$G$80),1-YEARFRAC('Timing, Infl, Rev Assumptions'!$G$80,'Time SA'!AB$2)*2,IF(AND('Time SA'!AB$1>='Timing, Infl, Rev Assumptions'!$G$79,'Time SA'!AB$2<='Timing, Infl, Rev Assumptions'!$G$80),1,0))) -> 0 | AE14: =IF(AND('Time SA'!AC$1<'Timing, Infl, Rev Assumptions'!$G$79,'Time SA'!AC$2>'Timing, Infl, Rev Assumptions'!$G$79),1-YEARFRAC('Timing, Infl, Rev Assumptions'!$G$79,'Time SA'!AC$1)*2,IF(AND('Time SA'!AC$1<'Timing, Infl, Rev Assumptions'!$G$80,'Time SA'!AC$2>'Timing, Infl, Rev Assumptions'!$G$80),1-YEARFRAC('Timing, Infl, Rev Assumptions'!$G$80,'Time SA'!AC$2)*2,IF(AND('Time SA'!AC$1>='Timing, Infl, Rev Assumptions'!$G$79,'Time SA'!AC$2<='Timing, Infl, Rev Assumptions'!$G$80),1,0))) -> 0 | AF14: =IF(AND('Time SA'!AD$1<'Timing, Infl, Rev Assumptions'!$G$79,'Time SA'!AD$2>'Timing, Infl, Rev Assumptions'!$G$79),1-YEARFRAC('Timing, Infl, Rev Assumptions'!$G$79,'Time SA'!AD$1)*2,IF(AND('Time SA'!AD$1<'Timing, Infl, Rev Assumptions'!$G$80,'Time SA'!AD$2>'Timing, Infl, Rev Assumptions'!$G$80),1-YEARFRAC('Timing, Infl, Rev Assumptions'!$G$80,'Time SA'!AD$2)*2,IF(AND('Time SA'!AD$1>='Timing, Infl, Rev Assumptions'!$G$79,'Time SA'!AD$2<='Timing, Infl, Rev Assumptions'!$G$80),1,0))) -> 0 | AG14: =IF(AND('Time SA'!AE$1<'Timing, Infl, Rev Assumptions'!$G$79,'Time SA'!AE$2>'Timing, Infl, Rev Assumptions'!$G$79),1-YEARFRAC('Timing, Infl, Rev Assumptions'!$G$79,'Time SA'!AE$1)*2,IF(AND('Time SA'!AE$1<'Timing, Infl, Rev Assumptions'!$G$80,'Time SA'!AE$2>'Timing, Infl, Rev Assumptions'!$G$80),1-YEARFRAC('Timing, Infl, Rev Assumptions'!$G$80,'Time SA'!AE$2)*2,IF(AND('Time SA'!AE$1>='Timing, Infl, Rev Assumptions'!$G$79,'Time SA'!AE$2<='Timing, Infl, Rev Assumptions'!$G$80),1,0))) -> 0 | AH14: =IF(AND('Time SA'!AF$1<'Timing, Infl, Rev Assumptions'!$G$79,'Time SA'!AF$2>'Timing, Infl, Rev Assumptions'!$G$79),1-YEARFRAC('Timing, Infl, Rev Assumptions'!$G$79,'Time SA'!AF$1)*2,IF(AND('Time SA'!AF$1<'Timing, Infl, Rev Assumptions'!$G$80,'Time SA'!AF$2>'Timing, Infl, Rev Assumptions'!$G$80),1-YEARFRAC('Timing, Infl, Rev Assumptions'!$G$80,'Time SA'!AF$2)*2,IF(AND('Time SA'!AF$1>='Timing, Infl, Rev Assumptions'!$G$79,'Time SA'!AF$2<='Timing, Infl, Rev Assumptions'!$G$80),1,0))) -> 0 | AI14: =IF(AND('Time SA'!AG$1<'Timing, Infl, Rev Assumptions'!$G$79,'Time SA'!AG$2>'Timing, Infl, Rev Assumptions'!$G$79),1-YEARFRAC('Timing, Infl, Rev Assumptions'!$G$79,'Time SA'!AG$1)*2,IF(AND('Time SA'!AG$1<'Timing, Infl, Rev Assumptions'!$G$80,'Time SA'!AG$2>'Timing, Infl, Rev Assumptions'!$G$80),1-YEARFRAC('Timing, Infl, Rev Assumptions'!$G$80,'Time SA'!AG$2)*2,IF(AND('Time SA'!AG$1>='Timing, Infl, Rev Assumptions'!$G$79,'Time SA'!AG$2<='Timing, Infl, Rev Assumptions'!$G$80),1,0))) -> 0 | AJ14: =IF(AND('Time SA'!AH$1<'Timing, Infl, Rev Assumptions'!$G$79,'Time SA'!AH$2>'Timing, Infl, Rev Assumptions'!$G$79),1-YEARFRAC('Timing, Infl, Rev Assumptions'!$G$79,'Time SA'!AH$1)*2,IF(AND('Time SA'!AH$1<'Timing, Infl, Rev Assumptions'!$G$80,'Time SA'!AH$2>'Timing, Infl, Rev Assumptions'!$G$80),1-YEARFRAC('Timing, Infl, Rev Assumptions'!$G$80,'Time SA'!AH$2)*2,IF(AND('Time SA'!AH$1>='Timing, Infl, Rev Assumptions'!$G$79,'Time SA'!AH$2<='Timing, Infl, Rev Assumptions'!$G$80),1,0))) -> 0 | AK14: =IF(AND('Time SA'!AI$1<'Timing, Infl, Rev Assumptions'!$G$79,'Time SA'!AI$2>'Timing, Infl, Rev Assumptions'!$G$79),1-YEARFRAC('Timing, Infl, Rev Assumptions'!$G$79,'Time SA'!AI$1)*2,IF(AND('Time SA'!AI$1<'Timing, Infl, Rev Assumptions'!$G$80,'Time SA'!AI$2>'Timing, Infl, Rev Assumptions'!$G$80),1-YEARFRAC('Timing, Infl, Rev Assumptions'!$G$80,'Time SA'!AI$2)*2,IF(AND('Time SA'!AI$1>='Timing, Infl, Rev Assumptions'!$G$79,'Time SA'!AI$2<='Timing, Infl, Rev Assumptions'!$G$80),1,0))) -> 0 | AL14: =IF(AND('Time SA'!AJ$1<'Timing, Infl, Rev Assumptions'!$G$79,'Time SA'!AJ$2>'Timing, Infl, Rev Assumptions'!$G$79),1-YEARFRAC('Timing, Infl, Rev Assumptions'!$G$79,'Time SA'!AJ$1)*2,IF(AND('Time SA'!AJ$1<'Timing, Infl, Rev Assumptions'!$G$80,'Time SA'!AJ$2>'Timing, Infl, Rev Assumptions'!$G$80),1-YEARFRAC('Timing, Infl, Rev Assumptions'!$G$80,'Time SA'!AJ$2)*2,IF(AND('Time SA'!AJ$1>='Timing, Infl, Rev Assumptions'!$G$79,'Time SA'!AJ$2<='Timing, Infl, Rev Assumptions'!$G$80),1,0))) -> 0 | AM14: =IF(AND('Time SA'!AK$1<'Timing, Infl, Rev Assumptions'!$G$79,'Time SA'!AK$2>'Timing, Infl, Rev Assumptions'!$G$79),1-YEARFRAC('Timing, Infl, Rev Assumptions'!$G$79,'Time SA'!AK$1)*2,IF(AND('Time SA'!AK$1<'Timing, Infl, Rev Assumptions'!$G$80,'Time SA'!AK$2>'Timing, Infl, Rev Assumptions'!$G$80),1-YEARFRAC('Timing, Infl, Rev Assumptions'!$G$80,'Time SA'!AK$2)*2,IF(AND('Time SA'!AK$1>='Timing, Infl, Rev Assumptions'!$G$79,'Time SA'!AK$2<='Timing, Infl, Rev Assumptions'!$G$80),1,0))) -> 0 | AN14: =IF(AND('Time SA'!AL$1<'Timing, Infl, Rev Assumptions'!$G$79,'Time SA'!AL$2>'Timing, Infl, Rev Assumptions'!$G$79),1-YEARFRAC('Timing, Infl, Rev Assumptions'!$G$79,'Time SA'!AL$1)*2,IF(AND('Time SA'!AL$1<'Timing, Infl, Rev Assumptions'!$G$80,'Time SA'!AL$2>'Timing, Infl, Rev Assumptions'!$G$80),1-YEARFRAC('Timing, Infl, Rev Assumptions'!$G$80,'Time SA'!AL$2)*2,IF(AND('Time SA'!AL$1>='Timing, Infl, Rev Assumptions'!$G$79,'Time SA'!AL$2<='Timing, Infl, Rev Assumptions'!$G$80),1,0))) -> 0 | AO14: =IF(AND('Time SA'!AM$1<'Timing, Infl, Rev Assumptions'!$G$79,'Time SA'!AM$2>'Timing, Infl, Rev Assumptions'!$G$79),1-YEARFRAC('Timing, Infl, Rev Assumptions'!$G$79,'Time SA'!AM$1)*2,IF(AND('Time SA'!AM$1<'Timing, Infl, Rev Assumptions'!$G$80,'Time SA'!AM$2>'Timing, Infl, Rev Assumptions'!$G$80),1-YEARFRAC('Timing, Infl, Rev Assumptions'!$G$80,'Time SA'!AM$2)*2,IF(AND('Time SA'!AM$1>='Timing, Infl, Rev Assumptions'!$G$79,'Time SA'!AM$2<='Timing, Infl, Rev Assumptions'!$G$80),1,0))) -> 0 | AP14: =IF(AND('Time SA'!AN$1<'Timing, Infl, Rev Assumptions'!$G$79,'Time SA'!AN$2>'Timing, Infl, Rev Assumptions'!$G$79),1-YEARFRAC('Timing, Infl, Rev Assumptions'!$G$79,'Time SA'!AN$1)*2,IF(AND('Time SA'!AN$1<'Timing, Infl, Rev Assumptions'!$G$80,'Time SA'!AN$2>'Timing, Infl, Rev Assumptions'!$G$80),1-YEARFRAC('Timing, Infl, Rev Assumptions'!$G$80,'Time SA'!AN$2)*2,IF(AND('Time SA'!AN$1>='Timing, Infl, Rev Assumptions'!$G$79,'Time SA'!AN$2<='Timing, Infl, Rev Assumptions'!$G$80),1,0))) -> 0 | AQ14: =IF(AND('Time SA'!AO$1<'Timing, Infl, Rev Assumptions'!$G$79,'Time SA'!AO$2>'Timing, Infl, Rev Assumptions'!$G$79),1-YEARFRAC('Timing, Infl, Rev Assumptions'!$G$79,'Time SA'!AO$1)*2,IF(AND('Time SA'!AO$1<'Timing, Infl, Rev Assumptions'!$G$80,'Time SA'!AO$2>'Timing, Infl, Rev Assumptions'!$G$80),1-YEARFRAC('Timing, Infl, Rev Assumptions'!$G$80,'Time SA'!AO$2)*2,IF(AND('Time SA'!AO$1>='Timing, Infl, Rev Assumptions'!$G$79,'Time SA'!AO$2<='Timing, Infl, Rev Assumptions'!$G$80),1,0))) -> 0 | AR14: =IF(AND('Time SA'!AP$1<'Timing, Infl, Rev Assumptions'!$G$79,'Time SA'!AP$2>'Timing, Infl, Rev Assumptions'!$G$79),1-YEARFRAC('Timing, Infl, Rev Assumptions'!$G$79,'Time SA'!AP$1)*2,IF(AND('Time SA'!AP$1<'Timing, Infl, Rev Assumptions'!$G$80,'Time SA'!AP$2>'Timing, Infl, Rev Assumptions'!$G$80),1-YEARFRAC('Timing, Infl, Rev Assumptions'!$G$80,'Time SA'!AP$2)*2,IF(AND('Time SA'!AP$1>='Timing, Infl, Rev Assumptions'!$G$79,'Time SA'!AP$2<='Timing, Infl, Rev Assumptions'!$G$80),1,0))) -> 0.1666666667 | AS14: =IF(AND('Time SA'!AQ$1<'Timing, Infl, Rev Assumptions'!$G$79,'Time SA'!AQ$2>'Timing, Infl, Rev Assumptions'!$G$79),1-YEARFRAC('Timing, Infl, Rev Assumptions'!$G$79,'Time SA'!AQ$1)*2,IF(AND('Time SA'!AQ$1<'Timing, Infl, Rev Assumptions'!$G$80,'Time SA'!AQ$2>'Timing, Infl, Rev Assumptions'!$G$80),1-YEARFRAC('Timing, Infl, Rev Assumptions'!$G$80,'Time SA'!AQ$2)*2,IF(AND('Time SA'!AQ$1>='Timing, Infl, Rev Assumptions'!$G$79,'Time SA'!AQ$2<='Timing, Infl, Rev Assumptions'!$G$80),1,0))) -> 1 | AT14: =IF(AND('Time SA'!AR$1<'Timing, Infl, Rev Assumptions'!$G$79,'Time SA'!AR$2>'Timing, Infl, Rev Assumptions'!$G$79),1-YEARFRAC('Timing, Infl, Rev Assumptions'!$G$79,'Time SA'!AR$1)*2,IF(AND('Time SA'!AR$1<'Timing, Infl, Rev Assumptions'!$G$80,'Time SA'!AR$2>'Timing, Infl, Rev Assumptions'!$G$80),1-YEARFRAC('Timing, Infl, Rev Assumptions'!$G$80,'Time SA'!AR$2)*2,IF(AND('Time SA'!AR$1>='Timing, Infl, Rev Assumptions'!$G$79,'Time SA'!AR$2<='Timing, Infl, Rev Assumptions'!$G$80),1,0))) -> 1 | AU14: =IF(AND('Time SA'!AS$1<'Timing, Infl, Rev Assumptions'!$G$79,'Time SA'!AS$2>'Timing, Infl, Rev Assumptions'!$G$79),1-YEARFRAC('Timing, Infl, Rev Assumptions'!$G$79,'Time SA'!AS$1)*2,IF(AND('Time SA'!AS$1<'Timing, Infl, Rev Assumptions'!$G$80,'Time SA'!AS$2>'Timing, Infl, Rev Assumptions'!$G$80),1-YEARFRAC('Timing, Infl, Rev Assumptions'!$G$80,'Time SA'!AS$2)*2,IF(AND('Time SA'!AS$1>='Timing, Infl, Rev Assumptions'!$G$79,'Time SA'!AS$2<='Timing, Infl, Rev Assumptions'!$G$80),1,0))) -> 1 | AV14: =IF(AND('Time SA'!AT$1<'Timing, Infl, Rev Assumptions'!$G$79,'Time SA'!AT$2>'Timing, Infl, Rev Assumptions'!$G$79),1-YEARFRAC('Timing, Infl, Rev Assumptions'!$G$79,'Time SA'!AT$1)*2,IF(AND('Time SA'!AT$1<'Timing, Infl, Rev Assumptions'!$G$80,'Time SA'!AT$2>'Timing, Infl, Rev Assumptions'!$G$80),1-YEARFRAC('Timing, Infl, Rev Assumptions'!$G$80,'Time SA'!AT$2)*2,IF(AND('Time SA'!AT$1>='Timing, Infl, Rev Assumptions'!$G$79,'Time SA'!AT$2<='Timing, Infl, Rev Assumptions'!$G$80),1,0))) -> 1 | AW14: =IF(AND('Time SA'!AU$1<'Timing, Infl, Rev Assumptions'!$G$79,'Time SA'!AU$2>'Timing, Infl, Rev Assumptions'!$G$79),1-YEARFRAC('Timing, Infl, Rev Assumptions'!$G$79,'Time SA'!AU$1)*2,IF(AND('Time SA'!AU$1<'Timing, Infl, Rev Assumptions'!$G$80,'Time SA'!AU$2>'Timing, Infl, Rev Assumptions'!$G$80),1-YEARFRAC('Timing, Infl, Rev Assumptions'!$G$80,'Time SA'!AU$2)*2,IF(AND('Time SA'!AU$1>='Timing, Infl, Rev Assumptions'!$G$79,'Time SA'!AU$2<='Timing, Infl, Rev Assumptions'!$G$80),1,0))) -> 1 | AX14: =IF(AND('Time SA'!AV$1<'Timing, Infl, Rev Assumptions'!$G$79,'Time SA'!AV$2>'Timing, Infl, Rev Assumptions'!$G$79),1-YEARFRAC('Timing, Infl, Rev Assumptions'!$G$79,'Time SA'!AV$1)*2,IF(AND('Time SA'!AV$1<'Timing, Infl, Rev Assumptions'!$G$80,'Time SA'!AV$2>'Timing, Infl, Rev Assumptions'!$G$80),1-YEARFRAC('Timing, Infl, Rev Assumptions'!$G$80,'Time SA'!AV$2)*2,IF(AND('Time SA'!AV$1>='Timing, Infl, Rev Assumptions'!$G$79,'Time SA'!AV$2<='Timing, Infl, Rev Assumptions'!$G$80),1,0))) -> 1 | AY14: =IF(AND('Time SA'!AW$1<'Timing, Infl, Rev Assumptions'!$G$79,'Time SA'!AW$2>'Timing, Infl, Rev Assumptions'!$G$79),1-YEARFRAC('Timing, Infl, Rev Assumptions'!$G$79,'Time SA'!AW$1)*2,IF(AND('Time SA'!AW$1<'Timing, Infl, Rev Assumptions'!$G$80,'Time SA'!AW$2>'Timing, Infl, Rev Assumptions'!$G$80),1-YEARFRAC('Timing, Infl, Rev Assumptions'!$G$80,'Time SA'!AW$2)*2,IF(AND('Time SA'!AW$1>='Timing, Infl, Rev Assumptions'!$G$79,'Time SA'!AW$2<='Timing, Infl, Rev Assumptions'!$G$80),1,0))) -> 1 | AZ14: =IF(AND('Time SA'!AX$1<'Timing, Infl, Rev Assumptions'!$G$79,'Time SA'!AX$2>'Timing, Infl, Rev Assumptions'!$G$79),1-YEARFRAC('Timing, Infl, Rev Assumptions'!$G$79,'Time SA'!AX$1)*2,IF(AND('Time SA'!AX$1<'Timing, Infl, Rev Assumptions'!$G$80,'Time SA'!AX$2>'Timing, Infl, Rev Assumptions'!$G$80),1-YEARFRAC('Timing, Infl, Rev Assumptions'!$G$80,'Time SA'!AX$2)*2,IF(AND('Time SA'!AX$1>='Timing, Infl, Rev Assumptions'!$G$79,'Time SA'!AX$2<='Timing, Infl, Rev Assumptions'!$G$80),1,0))) -> 1 | BA14: =IF(AND('Time SA'!AY$1<'Timing, Infl, Rev Assumptions'!$G$79,'Time SA'!AY$2>'Timing, Infl, Rev Assumptions'!$G$79),1-YEARFRAC('Timing, Infl, Rev Assumptions'!$G$79,'Time SA'!AY$1)*2,IF(AND('Time SA'!AY$1<'Timing, Infl, Rev Assumptions'!$G$80,'Time SA'!AY$2>'Timing, Infl, Rev Assumptions'!$G$80),1-YEARFRAC('Timing, Infl, Rev Assumptions'!$G$80,'Time SA'!AY$2)*2,IF(AND('Time SA'!AY$1>='Timing, Infl, Rev Assumptions'!$G$79,'Time SA'!AY$2<='Timing, Infl, Rev Assumptions'!$G$80),1,0))) -> 1 | BB14: =IF(AND('Time SA'!AZ$1<'Timing, Infl, Rev Assumptions'!$G$79,'Time SA'!AZ$2>'Timing, Infl, Rev Assumptions'!$G$79),1-YEARFRAC('Timing, Infl, Rev Assumptions'!$G$79,'Time SA'!AZ$1)*2,IF(AND('Time SA'!AZ$1<'Timing, Infl, Rev Assumptions'!$G$80,'Time SA'!AZ$2>'Timing, Infl, Rev Assumptions'!$G$80),1-YEARFRAC('Timing, Infl, Rev Assumptions'!$G$80,'Time SA'!AZ$2)*2,IF(AND('Time SA'!AZ$1>='Timing, Infl, Rev Assumptions'!$G$79,'Time SA'!AZ$2<='Timing, Infl, Rev Assumptions'!$G$80),1,0))) -> 1 | BC14: =IF(AND('Time SA'!BA$1<'Timing, Infl, Rev Assumptions'!$G$79,'Time SA'!BA$2>'Timing, Infl, Rev Assumptions'!$G$79),1-YEARFRAC('Timing, Infl, Rev Assumptions'!$G$79,'Time SA'!BA$1)*2,IF(AND('Time SA'!BA$1<'Timing, Infl, Rev Assumptions'!$G$80,'Time SA'!BA$2>'Timing, Infl, Rev Assumptions'!$G$80),1-YEARFRAC('Timing, Infl, Rev Assumptions'!$G$80,'Time SA'!BA$2)*2,IF(AND('Time SA'!BA$1>='Timing, Infl, Rev Assumptions'!$G$79,'Time SA'!BA$2<='Timing, Infl, Rev Assumptions'!$G$80),1,0))) -> 1 | BD14: =IF(AND('Time SA'!BB$1<'Timing, Infl, Rev Assumptions'!$G$79,'Time SA'!BB$2>'Timing, Infl, Rev Assumptions'!$G$79),1-YEARFRAC('Timing, Infl, Rev Assumptions'!$G$79,'Time SA'!BB$1)*2,IF(AND('Time SA'!BB$1<'Timing, Infl, Rev Assumptions'!$G$80,'Time SA'!BB$2>'Timing, Infl, Rev Assumptions'!$G$80),1-YEARFRAC('Timing, Infl, Rev Assumptions'!$G$80,'Time SA'!BB$2)*2,IF(AND('Time SA'!BB$1>='Timing, Infl, Rev Assumptions'!$G$79,'Time SA'!BB$2<='Timing, Infl, Rev Assumptions'!$G$80),1,0))) -> 1 | BE14: =IF(AND('Time SA'!BC$1<'Timing, Infl, Rev Assumptions'!$G$79,'Time SA'!BC$2>'Timing, Infl, Rev Assumptions'!$G$79),1-YEARFRAC('Timing, Infl, Rev Assumptions'!$G$79,'Time SA'!BC$1)*2,IF(AND('Time SA'!BC$1<'Timing, Infl, Rev Assumptions'!$G$80,'Time SA'!BC$2>'Timing, Infl, Rev Assumptions'!$G$80),1-YEARFRAC('Timing, Infl, Rev Assumptions'!$G$80,'Time SA'!BC$2)*2,IF(AND('Time SA'!BC$1>='Timing, Infl, Rev Assumptions'!$G$79,'Time SA'!BC$2<='Timing, Infl, Rev Assumptions'!$G$80),1,0))) -> 1 | BF14: =IF(AND('Time SA'!BD$1<'Timing, Infl, Rev Assumptions'!$G$79,'Time SA'!BD$2>'Timing, Infl, Rev Assumptions'!$G$79),1-YEARFRAC('Timing, Infl, Rev Assumptions'!$G$79,'Time SA'!BD$1)*2,IF(AND('Time SA'!BD$1<'Timing, Infl, Rev Assumptions'!$G$80,'Time SA'!BD$2>'Timing, Infl, Rev Assumptions'!$G$80),1-YEARFRAC('Timing, Infl, Rev Assumptions'!$G$80,'Time SA'!BD$2)*2,IF(AND('Time SA'!BD$1>='Timing, Infl, Rev Assumptions'!$G$79,'Time SA'!BD$2<='Timing, Infl, Rev Assumptions'!$G$80),1,0))) -> 1 | BG14: =IF(AND('Time SA'!BE$1<'Timing, Infl, Rev Assumptions'!$G$79,'Time SA'!BE$2>'Timing, Infl, Rev Assumptions'!$G$79),1-YEARFRAC('Timing, Infl, Rev Assumptions'!$G$79,'Time SA'!BE$1)*2,IF(AND('Time SA'!BE$1<'Timing, Infl, Rev Assumptions'!$G$80,'Time SA'!BE$2>'Timing, Infl, Rev Assumptions'!$G$80),1-YEARFRAC('Timing, Infl, Rev Assumptions'!$G$80,'Time SA'!BE$2)*2,IF(AND('Time SA'!BE$1>='Timing, Infl, Rev Assumptions'!$G$79,'Time SA'!BE$2<='Timing, Infl, Rev Assumptions'!$G$80),1,0))) -> 1 | BH14: =IF(AND('Time SA'!BF$1<'Timing, Infl, Rev Assumptions'!$G$79,'Time SA'!BF$2>'Timing, Infl, Rev Assumptions'!$G$79),1-YEARFRAC('Timing, Infl, Rev Assumptions'!$G$79,'Time SA'!BF$1)*2,IF(AND('Time SA'!BF$1<'Timing, Infl, Rev Assumptions'!$G$80,'Time SA'!BF$2>'Timing, Infl, Rev Assumptions'!$G$80),1-YEARFRAC('Timing, Infl, Rev Assumptions'!$G$80,'Time SA'!BF$2)*2,IF(AND('Time SA'!BF$1>='Timing, Infl, Rev Assumptions'!$G$79,'Time SA'!BF$2<='Timing, Infl, Rev Assumptions'!$G$80),1,0))) -> 1 | BI14: =IF(AND('Time SA'!BG$1<'Timing, Infl, Rev Assumptions'!$G$79,'Time SA'!BG$2>'Timing, Infl, Rev Assumptions'!$G$79),1-YEARFRAC('Timing, Infl, Rev Assumptions'!$G$79,'Time SA'!BG$1)*2,IF(AND('Time SA'!BG$1<'Timing, Infl, Rev Assumptions'!$G$80,'Time SA'!BG$2>'Timing, Infl, Rev Assumptions'!$G$80),1-YEARFRAC('Timing, Infl, Rev Assumptions'!$G$80,'Time SA'!BG$2)*2,IF(AND('Time SA'!BG$1>='Timing, Infl, Rev Assumptions'!$G$79,'Time SA'!BG$2<='Timing, Infl, Rev Assumptions'!$G$80),1,0))) -> 1 | BJ14: =IF(AND('Time SA'!BH$1<'Timing, Infl, Rev Assumptions'!$G$79,'Time SA'!BH$2>'Timing, Infl, Rev Assumptions'!$G$79),1-YEARFRAC('Timing, Infl, Rev Assumptions'!$G$79,'Time SA'!BH$1)*2,IF(AND('Time SA'!BH$1<'Timing, Infl, Rev Assumptions'!$G$80,'Time SA'!BH$2>'Timing, Infl, Rev Assumptions'!$G$80),1-YEARFRAC('Timing, Infl, Rev Assumptions'!$G$80,'Time SA'!BH$2)*2,IF(AND('Time SA'!BH$1>='Timing, Infl, Rev Assumptions'!$G$79,'Time SA'!BH$2<='Timing, Infl, Rev Assumptions'!$G$80),1,0))) -> 1 | BK14: =IF(AND('Time SA'!BI$1<'Timing, Infl, Rev Assumptions'!$G$79,'Time SA'!BI$2>'Timing, Infl, Rev Assumptions'!$G$79),1-YEARFRAC('Timing, Infl, Rev Assumptions'!$G$79,'Time SA'!BI$1)*2,IF(AND('Time SA'!BI$1<'Timing, Infl, Rev Assumptions'!$G$80,'Time SA'!BI$2>'Timing, Infl, Rev Assumptions'!$G$80),1-YEARFRAC('Timing, Infl, Rev Assumptions'!$G$80,'Time SA'!BI$2)*2,IF(AND('Time SA'!BI$1>='Timing, Infl, Rev Assumptions'!$G$79,'Time SA'!BI$2<='Timing, Infl, Rev Assumptions'!$G$80),1,0))) -> 1 | BL14: =IF(AND('Time SA'!BJ$1<'Timing, Infl, Rev Assumptions'!$G$79,'Time SA'!BJ$2>'Timing, Infl, Rev Assumptions'!$G$79),1-YEARFRAC('Timing, Infl, Rev Assumptions'!$G$79,'Time SA'!BJ$1)*2,IF(AND('Time SA'!BJ$1<'Timing, Infl, Rev Assumptions'!$G$80,'Time SA'!BJ$2>'Timing, Infl, Rev Assumptions'!$G$80),1-YEARFRAC('Timing, Infl, Rev Assumptions'!$G$80,'Time SA'!BJ$2)*2,IF(AND('Time SA'!BJ$1>='Timing, Infl, Rev Assumptions'!$G$79,'Time SA'!BJ$2<='Timing, Infl, Rev Assumptions'!$G$80),1,0))) -> 0.8333333333 | BM14: =IF(AND('Time SA'!BK$1<'Timing, Infl, Rev Assumptions'!$G$79,'Time SA'!BK$2>'Timing, Infl, Rev Assumptions'!$G$79),1-YEARFRAC('Timing, Infl, Rev Assumptions'!$G$79,'Time SA'!BK$1)*2,IF(AND('Time SA'!BK$1<'Timing, Infl, Rev Assumptions'!$G$80,'Time SA'!BK$2>'Timing, Infl, Rev Assumptions'!$G$80),1-YEARFRAC('Timing, Infl, Rev Assumptions'!$G$80,'Time SA'!BK$2)*2,IF(AND('Time SA'!BK$1>='Timing, Infl, Rev Assumptions'!$G$79,'Time SA'!BK$2<='Timing, Infl, Rev Assumptions'!$G$80),1,0))) -> 0 | BN14: =IF(AND('Time SA'!BL$1<'Timing, Infl, Rev Assumptions'!$G$79,'Time SA'!BL$2>'Timing, Infl, Rev Assumptions'!$G$79),1-YEARFRAC('Timing, Infl, Rev Assumptions'!$G$79,'Time SA'!BL$1)*2,IF(AND('Time SA'!BL$1<'Timing, Infl, Rev Assumptions'!$G$80,'Time SA'!BL$2>'Timing, Infl, Rev Assumptions'!$G$80),1-YEARFRAC('Timing, Infl, Rev Assumptions'!$G$80,'Time SA'!BL$2)*2,IF(AND('Time SA'!BL$1>='Timing, Infl, Rev Assumptions'!$G$79,'Time SA'!BL$2<='Timing, Infl, Rev Assumptions'!$G$80),1,0))) -> 0 | BO14: =IF(AND('Time SA'!BM$1<'Timing, Infl, Rev Assumptions'!$G$79,'Time SA'!BM$2>'Timing, Infl, Rev Assumptions'!$G$79),1-YEARFRAC('Timing, Infl, Rev Assumptions'!$G$79,'Time SA'!BM$1)*2,IF(AND('Time SA'!BM$1<'Timing, Infl, Rev Assumptions'!$G$80,'Time SA'!BM$2>'Timing, Infl, Rev Assumptions'!$G$80),1-YEARFRAC('Timing, Infl, Rev Assumptions'!$G$80,'Time SA'!BM$2)*2,IF(AND('Time SA'!BM$1>='Timing, Infl, Rev Assumptions'!$G$79,'Time SA'!BM$2<='Timing, Infl, Rev Assumptions'!$G$80),1,0))) -> 0 | BP14: =IF(AND('Time SA'!BN$1<'Timing, Infl, Rev Assumptions'!$G$79,'Time SA'!BN$2>'Timing, Infl, Rev Assumptions'!$G$79),1-YEARFRAC('Timing, Infl, Rev Assumptions'!$G$79,'Time SA'!BN$1)*2,IF(AND('Time SA'!BN$1<'Timing, Infl, Rev Assumptions'!$G$80,'Time SA'!BN$2>'Timing, Infl, Rev Assumptions'!$G$80),1-YEARFRAC('Timing, Infl, Rev Assumptions'!$G$80,'Time SA'!BN$2)*2,IF(AND('Time SA'!BN$1>='Timing, Infl, Rev Assumptions'!$G$79,'Time SA'!BN$2<='Timing, Infl, Rev Assumptions'!$G$80),1,0))) -> 0 | BQ14: =IF(AND('Time SA'!BO$1<'Timing, Infl, Rev Assumptions'!$G$79,'Time SA'!BO$2>'Timing, Infl, Rev Assumptions'!$G$79),1-YEARFRAC('Timing, Infl, Rev Assumptions'!$G$79,'Time SA'!BO$1)*2,IF(AND('Time SA'!BO$1<'Timing, Infl, Rev Assumptions'!$G$80,'Time SA'!BO$2>'Timing, Infl, Rev Assumptions'!$G$80),1-YEARFRAC('Timing, Infl, Rev Assumptions'!$G$80,'Time SA'!BO$2)*2,IF(AND('Time SA'!BO$1>='Timing, Infl, Rev Assumptions'!$G$79,'Time SA'!BO$2<='Timing, Infl, Rev Assumptions'!$G$80),1,0))) -> 0
D16: Inflation Indicies
E17: Start of inflation | H17: ='Timing, Infl, Rev Assumptions'!G53 -> 2015-01-01 | J17: =J2=$H$17 -> TRUE | K17: FALSE | L17: FALSE | M17: FALSE | N17: FALSE | O17: FALSE | P17: FALSE | Q17: FALSE | R17: FALSE | S17: FALSE | T17: FALSE | U17: FALSE | V17: FALSE | W17: FALSE | X17: FALSE | Y17: FALSE | Z17: FALSE | AA17: FALSE | AB17: FALSE | AC17: FALSE | AD17: FALSE | AE17: FALSE | AF17: FALSE | AG17: FALSE | AH17: FALSE | AI17: FALSE | AJ17: FALSE | AK17: FALSE | AL17: FALSE | AM17: FALSE | AN17: FALSE | AO17: FALSE | AP17: =AP2=$H$17 -> FALSE | AQ17: FALSE | AR17: FALSE | AS17: FALSE | AT17: FALSE | AU17: FALSE | AV17: FALSE | AW17: FALSE | AX17: FALSE | AY17: FALSE | AZ17: FALSE | BA17: FALSE | BB17: FALSE | BC17: FALSE | BD17: FALSE | BE17: FALSE | BF17: FALSE | BG17: FALSE | BH17: FALSE | BI17: FALSE | BJ17: FALSE | BK17: FALSE | BL17: FALSE | BM17: FALSE | BN17: FALSE | BO17: FALSE | BP17: FALSE | BQ17: FALSE
E18: Period for applying inflation | H18: =H17 -> 2015-01-01 | J18: =J2>=$H$18 -> TRUE | K18: TRUE | L18: TRUE | M18: TRUE | N18: TRUE | O18: TRUE | P18: TRUE | Q18: TRUE | R18: TRUE | S18: TRUE | T18: TRUE | U18: TRUE | V18: TRUE | W18: TRUE | X18: TRUE | Y18: TRUE | Z18: TRUE | AA18: TRUE | AB18: TRUE | AC18: TRUE | AD18: TRUE | AE18: TRUE | AF18: TRUE | AG18: TRUE | AH18: TRUE | AI18: TRUE | AJ18: TRUE | AK18: TRUE | AL18: TRUE | AM18: TRUE | AN18: TRUE | AO18: TRUE | AP18: =AP2>=$H$18 -> TRUE | AQ18: TRUE | AR18: TRUE | AS18: TRUE | AT18: TRUE | AU18: TRUE | AV18: TRUE | AW18: TRUE | AX18: TRUE | AY18: TRUE | AZ18: TRUE | BA18: TRUE | BB18: TRUE | BC18: TRUE | BD18: TRUE | BE18: TRUE | BF18: TRUE | BG18: TRUE | BH18: TRUE | BI18: TRUE | BJ18: TRUE | BK18: TRUE | BL18: TRUE | BM18: TRUE | BN18: TRUE | BO18: TRUE | BP18: TRUE | BQ18: TRUE
B20: TRUE | C20: 1 | E20: Annual Cost Inflation Rate | G20: Code | H20: ='Timing, Infl, Rev Assumptions'!F56 -> 2 | J20: =LOOKUP(J2,'Timing, Infl, Rev Assumptions'!$G$54:$BN$54,'Timing, Infl, Rev Assumptions'!$G$60:$BN$60) -> 0.0206 | K20: =LOOKUP(K2,'Timing, Infl, Rev Assumptions'!$G$54:$BN$54,'Timing, Infl, Rev Assumptions'!$G$60:$BN$60) -> 0.0206 | L20: =LOOKUP(L2,'Timing, Infl, Rev Assumptions'!$G$54:$BN$54,'Timing, Infl, Rev Assumptions'!$G$60:$BN$60) -> 0.0206 | M20: =LOOKUP(M2,'Timing, Infl, Rev Assumptions'!$G$54:$BN$54,'Timing, Infl, Rev Assumptions'!$G$60:$BN$60) -> 0.0206 | N20: =LOOKUP(N2,'Timing, Infl, Rev Assumptions'!$G$54:$BN$54,'Timing, Infl, Rev Assumptions'!$G$60:$BN$60) -> 0.0206 | O20: =LOOKUP(O2,'Timing, Infl, Rev Assumptions'!$G$54:$BN$54,'Timing, Infl, Rev Assumptions'!$G$60:$BN$60) -> 0.0206 | P20: =LOOKUP(P2,'Timing, Infl, Rev Assumptions'!$G$54:$BN$54,'Timing, Infl, Rev Assumptions'!$G$60:$BN$60) -> 0.02101425658 | Q20: =LOOKUP(Q2,'Timing, Infl, Rev Assumptions'!$G$54:$BN$54,'Timing, Infl, Rev Assumptions'!$G$60:$BN$60) -> 0.02101425658 | R20: =LOOKUP(R2,'Timing, Infl, Rev Assumptions'!$G$54:$BN$54,'Timing, Infl, Rev Assumptions'!$G$60:$BN$60) -> 0.02143679829 | S20: =LOOKUP(S2,'Timing, Infl, Rev Assumptions'!$G$54:$BN$54,'Timing, Infl, Rev Assumptions'!$G$60:$BN$60) -> 0.02143679829 | T20: =LOOKUP(T2,'Timing, Infl, Rev Assumptions'!$G$54:$BN$54,'Timing, Infl, Rev Assumptions'!$G$60:$BN$60) -> 0.02186779083 | U20: =LOOKUP(U2,'Timing, Infl, Rev Assumptions'!$G$54:$BN$54,'Timing, Infl, Rev Assumptions'!$G$60:$BN$60) -> 0.02186779083 | V20: =LOOKUP(V2,'Timing, Infl, Rev Assumptions'!$G$54:$BN$54,'Timing, Infl, Rev Assumptions'!$G$60:$BN$60) -> 0.02230740323 | W20: =LOOKUP(W2,'Timing, Infl, Rev Assumptions'!$G$54:$BN$54,'Timing, Infl, Rev Assumptions'!$G$60:$BN$60) -> 0.02230740323 | X20: =LOOKUP(X2,'Timing, Infl, Rev Assumptions'!$G$54:$BN$54,'Timing, Infl, Rev Assumptions'!$G$60:$BN$60) -> 0.02275580787 | Y20: =LOOKUP(Y2,'Timing, Infl, Rev Assumptions'!$G$54:$BN$54,'Timing, Infl, Rev Assumptions'!$G$60:$BN$60) -> 0.02275580787 | Z20: =LOOKUP(Z2,'Timing, Infl, Rev Assumptions'!$G$54:$BN$54,'Timing, Infl, Rev Assumptions'!$G$60:$BN$60) -> 0.0232131806 | AA20: =LOOKUP(AA2,'Timing, Infl, Rev Assumptions'!$G$54:$BN$54,'Timing, Infl, Rev Assumptions'!$G$60:$BN$60) -> 0.0232131806 | AB20: =LOOKUP(AB2,'Timing, Infl, Rev Assumptions'!$G$54:$BN$54,'Timing, Infl, Rev Assumptions'!$G$60:$BN$60) -> 0.02367970079 | AC20: =LOOKUP(AC2,'Timing, Infl, Rev Assumptions'!$G$54:$BN$54,'Timing, Infl, Rev Assumptions'!$G$60:$BN$60) -> 0.02367970079 | AD20: =LOOKUP(AD2,'Timing, Infl, Rev Assumptions'!$G$54:$BN$54,'Timing, Infl, Rev Assumptions'!$G$60:$BN$60) -> 0.02415555139 | AE20: =LOOKUP(AE2,'Timing, Infl, Rev Assumptions'!$G$54:$BN$54,'Timing, Infl, Rev Assumptions'!$G$60:$BN$60) -> 0.02415555139 | AF20: =LOOKUP(AF2,'Timing, Infl, Rev Assumptions'!$G$54:$BN$54,'Timing, Infl, Rev Assumptions'!$G$60:$BN$60) -> 0.02464091899 | AG20: =LOOKUP(AG2,'Timing, Infl, Rev Assumptions'!$G$54:$BN$54,'Timing, Infl, Rev Assumptions'!$G$60:$BN$60) -> 0.02464091899 | AH20: =LOOKUP(AH2,'Timing, Infl, Rev Assumptions'!$G$54:$BN$54,'Timing, Infl, Rev Assumptions'!$G$60:$BN$60) -> 0.02513599395 | AI20: =LOOKUP(AI2,'Timing, Infl, Rev Assumptions'!$G$54:$BN$54,'Timing, Infl, Rev Assumptions'!$G$60:$BN$60) -> 0.02513599395 | AJ20: =LOOKUP(AJ2,'Timing, Infl, Rev Assumptions'!$G$54:$BN$54,'Timing, Infl, Rev Assumptions'!$G$60:$BN$60) -> 0.02564097041 | AK20: =LOOKUP(AK2,'Timing, Infl, Rev Assumptions'!$G$54:$BN$54,'Timing, Infl, Rev Assumptions'!$G$60:$BN$60) -> 0.02564097041 | AL20: =LOOKUP(AL2,'Timing, Infl, Rev Assumptions'!$G$54:$BN$54,'Timing, Infl, Rev Assumptions'!$G$60:$BN$60) -> 0.02615604639 | AM20: =LOOKUP(AM2,'Timing, Infl, Rev Assumptions'!$G$54:$BN$54,'Timing, Infl, Rev Assumptions'!$G$60:$BN$60) -> 0.02615604639 | AN20: =LOOKUP(AN2,'Timing, Infl, Rev Assumptions'!$G$54:$BN$54,'Timing, Infl, Rev Assumptions'!$G$60:$BN$60) -> 0.0266814239 | AO20: =LOOKUP(AO2,'Timing, Infl, Rev Assumptions'!$G$54:$BN$54,'Timing, Infl, Rev Assumptions'!$G$60:$BN$60) -> 0.0266814239 | AP20: =LOOKUP(AP2,'Timing, Infl, Rev Assumptions'!$G$54:$BN$54,'Timing, Infl, Rev Assumptions'!$G$60:$BN$60) -> 0.02721730895 | AQ20: =LOOKUP(AQ2,'Timing, Infl, Rev Assumptions'!$G$54:$BN$54,'Timing, Infl, Rev Assumptions'!$G$60:$BN$60) -> 0.02721730895 | AR20: =LOOKUP(AR2,'Timing, Infl, Rev Assumptions'!$G$54:$BN$54,'Timing, Infl, Rev Assumptions'!$G$60:$BN$60) -> 0.02776391171 | AS20: =LOOKUP(AS2,'Timing, Infl, Rev Assumptions'!$G$54:$BN$54,'Timing, Infl, Rev Assumptions'!$G$60:$BN$60) -> 0.02776391171 | AT20: =LOOKUP(AT2,'Timing, Infl, Rev Assumptions'!$G$54:$BN$54,'Timing, Infl, Rev Assumptions'!$G$60:$BN$60) -> 0.02832144652 | AU20: =LOOKUP(AU2,'Timing, Infl, Rev Assumptions'!$G$54:$BN$54,'Timing, Infl, Rev Assumptions'!$G$60:$BN$60) -> 0.02832144652 | AV20: =LOOKUP(AV2,'Timing, Infl, Rev Assumptions'!$G$54:$BN$54,'Timing, Infl, Rev Assumptions'!$G$60:$BN$60) -> 0.02889013203 | AW20: =LOOKUP(AW2,'Timing, Infl, Rev Assumptions'!$G$54:$BN$54,'Timing, Infl, Rev Assumptions'!$G$60:$BN$60) -> 0.02889013203 | AX20: =LOOKUP(AX2,'Timing, Infl, Rev Assumptions'!$G$54:$BN$54,'Timing, Infl, Rev Assumptions'!$G$60:$BN$60) -> 0.02947019125 | AY20: =LOOKUP(AY2,'Timing, Infl, Rev Assumptions'!$G$54:$BN$54,'Timing, Infl, Rev Assumptions'!$G$60:$BN$60) -> 0.02947019125 | AZ20: =LOOKUP(AZ2,'Timing, Infl, Rev Assumptions'!$G$54:$BN$54,'Timing, Infl, Rev Assumptions'!$G$60:$BN$60) -> 0.03006185165 | BA20: =LOOKUP(BA2,'Timing, Infl, Rev Assumptions'!$G$54:$BN$54,'Timing, Infl, Rev Assumptions'!$G$60:$BN$60) -> 0.03006185165 | BB20: =LOOKUP(BB2,'Timing, Infl, Rev Assumptions'!$G$54:$BN$54,'Timing, Infl, Rev Assumptions'!$G$60:$BN$60) -> 0.03066534526 | BC20: =LOOKUP(BC2,'Timing, Infl, Rev Assumptions'!$G$54:$BN$54,'Timing, Infl, Rev Assumptions'!$G$60:$BN$60) -> 0.03066534526 | BD20: =LOOKUP(BD2,'Timing, Infl, Rev Assumptions'!$G$54:$BN$54,'Timing, Infl, Rev Assumptions'!$G$60:$BN$60) -> 0.03128090874 | BE20: =LOOKUP(BE2,'Timing, Infl, Rev Assumptions'!$G$54:$BN$54,'Timing, Infl, Rev Assumptions'!$G$60:$BN$60) -> 0.03128090874 | BF20: =LOOKUP(BF2,'Timing, Infl, Rev Assumptions'!$G$54:$BN$54,'Timing, Infl, Rev Assumptions'!$G$60:$BN$60) -> 0.03128090874 | BG20: =LOOKUP(BG2,'Timing, Infl, Rev Assumptions'!$G$54:$BN$54,'Timing, Infl, Rev Assumptions'!$G$60:$BN$60) -> 0.03128090874 | BH20: =LOOKUP(BH2,'Timing, Infl, Rev Assumptions'!$G$54:$BN$54,'Timing, Infl, Rev Assumptions'!$G$60:$BN$60) -> 0.03128090874 | BI20: =LOOKUP(BI2,'Timing, Infl, Rev Assumptions'!$G$54:$BN$54,'Timing, Infl, Rev Assumptions'!$G$60:$BN$60) -> 0.03128090874 | BJ20: =LOOKUP(BJ2,'Timing, Infl, Rev Assumptions'!$G$54:$BN$54,'Timing, Infl, Rev Assumptions'!$G$60:$BN$60) -> 0.03128090874 | BK20: =LOOKUP(BK2,'Timing, Infl, Rev Assumptions'!$G$54:$BN$54,'Timing, Infl, Rev Assumptions'!$G$60:$BN$60) -> 0.03128090874 | BL20: =LOOKUP(BL2,'Timing, Infl, Rev Assumptions'!$G$54:$BN$54,'Timing, Infl, Rev Assumptions'!$G$60:$BN$60) -> 0.03128090874 | BM20: =LOOKUP(BM2,'Timing, Infl, Rev Assumptions'!$G$54:$BN$54,'Timing, Infl, Rev Assumptions'!$G$60:$BN$60) -> 0.03128090874 | BN20: =LOOKUP(BN2,'Timing, Infl, Rev Assumptions'!$G$54:$BN$54,'Timing, Infl, Rev Assumptions'!$G$60:$BN$60) -> 0.03128090874 | BO20: =LOOKUP(BO2,'Timing, Infl, Rev Assumptions'!$G$54:$BN$54,'Timing, Infl, Rev Assumptions'!$G$60:$BN$60) -> 0.03128090874 | BP20: =LOOKUP(BP2,'Timing, Infl, Rev Assumptions'!$G$54:$BN$54,'Timing, Infl, Rev Assumptions'!$G$60:$BN$60) -> 0.03128090874 | BQ20: =LOOKUP(BQ2,'Timing, Infl, Rev Assumptions'!$G$54:$BN$54,'Timing, Infl, Rev Assumptions'!$G$60:$BN$60) -> 0.03128090874
B21: TRUE | C21: =C20+B21 -> 2 | E21: Periodic Inflation Rate | J21: =(1+J20)^('Timing, Infl, Rev Assumptions'!$G$11/12)-1 -> 0.01024749443 | K21: =(1+K20)^(6/12)-1 -> 0.01024749443 | L21: 0.01024749443 | M21: 0.01024749443 | N21: 0.01024749443 | O21: 0.01024749443 | P21: 0.0104525009 | Q21: 0.0104525009 | R21: 0.01066156466 | S21: 0.01066156466 | T21: 0.01087476516 | U21: 0.01087476516 | V21: 0.01109218335 | W21: 0.01109218335 | X21: 0.01131390175 | Y21: 0.01131390175 | Z21: 0.01154000445 | AA21: 0.01154000445 | AB21: 0.01177057715 | AC21: 0.01177057715 | AD21: 0.01200570719 | AE21: 0.01200570719 | AF21: 0.01224548356 | AG21: 0.01224548356 | AH21: 0.01248999696 | AI21: 0.01248999696 | AJ21: 0.01273933981 | AK21: 0.01273933981 | AL21: 0.01299360629 | AM21: 0.01299360629 | AN21: 0.01325289237 | AO21: 0.01325289237 | AP21: 0.01351729583 | AQ21: 0.01351729583 | AR21: 0.01378691632 | AS21: 0.01378691632 | AT21: 0.01406185537 | AU21: 0.01406185537 | AV21: 0.01434221643 | AW21: 0.01434221643 | AX21: 0.0146281049 | AY21: 0.0146281049 | AZ21: 0.01491962817 | BA21: 0.01491962817 | BB21: 0.01521689567 | BC21: 0.01521689567 | BD21: 0.01552001888 | BE21: 0.01552001888 | BF21: 0.01552001888 | BG21: 0.01552001888 | BH21: 0.01552001888 | BI21: 0.01552001888 | BJ21: 0.01552001888 | BK21: 0.01552001888 | BL21: 0.01552001888 | BM21: 0.01552001888 | BN21: 0.01552001888 | BO21: 0.01552001888 | BP21: 0.01552001888 | BQ21: 0.01552001888
B22: TRUE | C22: =C21+B22 -> 3 | E22: Inflation Index for Operating Costs | I22: 1 | J22: =I22*(1+J21*J18) -> 1.010247494 | K22: =J22*(1+K21*K18) -> 1.0206 | L22: 1.031058593 | M22: 1.04162436 | N22: 1.0522984 | O22: 1.063081822 | P22: 1.074193686 | Q22: 1.085421696 | R22: 1.09699399 | S22: 1.108689662 | T22: 1.120746402 | U22: 1.132934256 | V22: 1.14550097 | W22: 1.158207077 | X22: 1.171310918 | Y22: 1.184563015 | Z22: 1.198232877 | AA22: 1.21206049 | AB22: 1.226327141 | AC22: 1.240761719 | AD22: 1.255657941 | AE22: 1.270733003 | AF22: 1.286293743 | AG22: 1.302045032 | AH22: 1.31830757 | AI22: 1.334773228 | AJ22: 1.351777358 | AK22: 1.368998109 | AL22: 1.386786331 | AM22: 1.404805687 | AN22: 1.423423425 | AO22: 1.442287903 | AP22: 1.461783735 | AQ22: 1.481543098 | AR22: 1.501969009 | AS22: 1.52267653 | AT22: 1.544088187 | AU22: 1.565800932 | AV22: 1.588257988 | AW22: 1.611037128 | AX22: 1.634603548 | AY22: 1.6585147 | AZ22: 1.683259123 | BA22: 1.708372723 | BB22: 1.734368852 | BC22: 1.760760562 | BD22: 1.788087599 | BE22: 1.815838753 | BF22: 1.844020604 | BG22: 1.872639839 | BH22: 1.901703245 | BI22: 1.931217715 | BJ22: 1.96119025 | BK22: 1.99162796 | BL22: 2.022538064 | BM22: 2.053927892 | BN22: 2.085804892 | BO22: 2.118176623 | BP22: 2.151050765 | BQ22: 2.184435113
B24: TRUE | C24: =C22+B24 -> 4 | E24: Annual Inflation Rate Revenues | H24: ='Cockpit Page'!J38 -> 2 | J24: =LOOKUP(J2,'Timing, Infl, Rev Assumptions'!54:54,'Timing, Infl, Rev Assumptions'!66:66) -> 0.0206 | K24: =LOOKUP(K2,'Timing, Infl, Rev Assumptions'!54:54,'Timing, Infl, Rev Assumptions'!66:66) -> 0.0206 | L24: =LOOKUP(L2,'Timing, Infl, Rev Assumptions'!54:54,'Timing, Infl, Rev Assumptions'!66:66) -> 0.0206 | M24: =LOOKUP(M2,'Timing, Infl, Rev Assumptions'!54:54,'Timing, Infl, Rev Assumptions'!66:66) -> 0.0206 | N24: =LOOKUP(N2,'Timing, Infl, Rev Assumptions'!54:54,'Timing, Infl, Rev Assumptions'!66:66) -> 0.0206 | O24: =LOOKUP(O2,'Timing, Infl, Rev Assumptions'!54:54,'Timing, Infl, Rev Assumptions'!66:66) -> 0.0206 | P24: =LOOKUP(P2,'Timing, Infl, Rev Assumptions'!54:54,'Timing, Infl, Rev Assumptions'!66:66) -> 0.02101425658 | Q24: =LOOKUP(Q2,'Timing, Infl, Rev Assumptions'!54:54,'Timing, Infl, Rev Assumptions'!66:66) -> 0.02101425658 | R24: =LOOKUP(R2,'Timing, Infl, Rev Assumptions'!54:54,'Timing, Infl, Rev Assumptions'!66:66) -> 0.02143679829 | S24: =LOOKUP(S2,'Timing, Infl, Rev Assumptions'!54:54,'Timing, Infl, Rev Assumptions'!66:66) -> 0.02143679829 | T24: =LOOKUP(T2,'Timing, Infl, Rev Assumptions'!54:54,'Timing, Infl, Rev Assumptions'!66:66) -> 0.02186779083 | U24: =LOOKUP(U2,'Timing, Infl, Rev Assumptions'!54:54,'Timing, Infl, Rev Assumptions'!66:66) -> 0.02186779083 | V24: =LOOKUP(V2,'Timing, Infl, Rev Assumptions'!54:54,'Timing, Infl, Rev Assumptions'!66:66) -> 0.02230740323 | W24: =LOOKUP(W2,'Timing, Infl, Rev Assumptions'!54:54,'Timing, Infl, Rev Assumptions'!66:66) -> 0.02230740323 | X24: =LOOKUP(X2,'Timing, Infl, Rev Assumptions'!54:54,'Timing, Infl, Rev Assumptions'!66:66) -> 0.02275580787 | Y24: =LOOKUP(Y2,'Timing, Infl, Rev Assumptions'!54:54,'Timing, Infl, Rev Assumptions'!66:66) -> 0.02275580787 | Z24: =LOOKUP(Z2,'Timing, Infl, Rev Assumptions'!54:54,'Timing, Infl, Rev Assumptions'!66:66) -> 0.0232131806 | AA24: =LOOKUP(AA2,'Timing, Infl, Rev Assumptions'!54:54,'Timing, Infl, Rev Assumptions'!66:66) -> 0.0232131806 | AB24: =LOOKUP(AB2,'Timing, Infl, Rev Assumptions'!54:54,'Timing, Infl, Rev Assumptions'!66:66) -> 0.02367970079 | AC24: =LOOKUP(AC2,'Timing, Infl, Rev Assumptions'!54:54,'Timing, Infl, Rev Assumptions'!66:66) -> 0.02367970079 | AD24: =LOOKUP(AD2,'Timing, Infl, Rev Assumptions'!54:54,'Timing, Infl, Rev Assumptions'!66:66) -> 0.02415555139 | AE24: =LOOKUP(AE2,'Timing, Infl, Rev Assumptions'!54:54,'Timing, Infl, Rev Assumptions'!66:66) -> 0.02415555139 | AF24: =LOOKUP(AF2,'Timing, Infl, Rev Assumptions'!54:54,'Timing, Infl, Rev Assumptions'!66:66) -> 0.02464091899 | AG24: =LOOKUP(AG2,'Timing, Infl, Rev Assumptions'!54:54,'Timing, Infl, Rev Assumptions'!66:66) -> 0.02464091899 | AH24: =LOOKUP(AH2,'Timing, Infl, Rev Assumptions'!54:54,'Timing, Infl, Rev Assumptions'!66:66) -> 0.02513599395 | AI24: =LOOKUP(AI2,'Timing, Infl, Rev Assumptions'!54:54,'Timing, Infl, Rev Assumptions'!66:66) -> 0.02513599395 | AJ24: =LOOKUP(AJ2,'Timing, Infl, Rev Assumptions'!54:54,'Timing, Infl, Rev Assumptions'!66:66) -> 0.02564097041 | AK24: =LOOKUP(AK2,'Timing, Infl, Rev Assumptions'!54:54,'Timing, Infl, Rev Assumptions'!66:66) -> 0.02564097041 | AL24: =LOOKUP(AL2,'Timing, Infl, Rev Assumptions'!54:54,'Timing, Infl, Rev Assumptions'!66:66) -> 0.02615604639 | AM24: =LOOKUP(AM2,'Timing, Infl, Rev Assumptions'!54:54,'Timing, Infl, Rev Assumptions'!66:66) -> 0.02615604639 | AN24: =LOOKUP(AN2,'Timing, Infl, Rev Assumptions'!54:54,'Timing, Infl, Rev Assumptions'!66:66) -> 0.0266814239 | AO24: =LOOKUP(AO2,'Timing, Infl, Rev Assumptions'!54:54,'Timing, Infl, Rev Assumptions'!66:66) -> 0.0266814239 | AP24: =LOOKUP(AP2,'Timing, Infl, Rev Assumptions'!54:54,'Timing, Infl, Rev Assumptions'!66:66) -> 0.02721730895 | AQ24: =LOOKUP(AQ2,'Timing, Infl, Rev Assumptions'!54:54,'Timing, Infl, Rev Assumptions'!66:66) -> 0.02721730895 | AR24: =LOOKUP(AR2,'Timing, Infl, Rev Assumptions'!54:54,'Timing, Infl, Rev Assumptions'!66:66) -> 0.02776391171 | AS24: =LOOKUP(AS2,'Timing, Infl, Rev Assumptions'!54:54,'Timing, Infl, Rev Assumptions'!66:66) -> 0.02776391171 | AT24: =LOOKUP(AT2,'Timing, Infl, Rev Assumptions'!54:54,'Timing, Infl, Rev Assumptions'!66:66) -> 0.02832144652 | AU24: =LOOKUP(AU2,'Timing, Infl, Rev Assumptions'!54:54,'Timing, Infl, Rev Assumptions'!66:66) -> 0.02832144652 | AV24: =LOOKUP(AV2,'Timing, Infl, Rev Assumptions'!54:54,'Timing, Infl, Rev Assumptions'!66:66) -> 0.02889013203 | AW24: =LOOKUP(AW2,'Timing, Infl, Rev Assumptions'!54:54,'Timing, Infl, Rev Assumptions'!66:66) -> 0.02889013203 | AX24: =LOOKUP(AX2,'Timing, Infl, Rev Assumptions'!54:54,'Timing, Infl, Rev Assumptions'!66:66) -> 0.02947019125 | AY24: =LOOKUP(AY2,'Timing, Infl, Rev Assumptions'!54:54,'Timing, Infl, Rev Assumptions'!66:66) -> 0.02947019125 | AZ24: =LOOKUP(AZ2,'Timing, Infl, Rev Assumptions'!54:54,'Timing, Infl, Rev Assumptions'!66:66) -> 0.03006185165 | BA24: =LOOKUP(BA2,'Timing, Infl, Rev Assumptions'!54:54,'Timing, Infl, Rev Assumptions'!66:66) -> 0.03006185165 | BB24: =LOOKUP(BB2,'Timing, Infl, Rev Assumptions'!54:54,'Timing, Infl, Rev Assumptions'!66:66) -> 0.03066534526 | BC24: =LOOKUP(BC2,'Timing, Infl, Rev Assumptions'!54:54,'Timing, Infl, Rev Assumptions'!66:66) -> 0.03066534526 | BD24: =LOOKUP(BD2,'Timing, Infl, Rev Assumptions'!54:54,'Timing, Infl, Rev Assumptions'!66:66) -> 0.03128090874 | BE24: =LOOKUP(BE2,'Timing, Infl, Rev Assumptions'!54:54,'Timing, Infl, Rev Assumptions'!66:66) -> 0.03128090874 | BF24: =LOOKUP(BF2,'Timing, Infl, Rev Assumptions'!54:54,'Timing, Infl, Rev Assumptions'!66:66) -> 0.03128090874 | BG24: =LOOKUP(BG2,'Timing, Infl, Rev Assumptions'!54:54,'Timing, Infl, Rev Assumptions'!66:66) -> 0.03128090874 | BH24: =LOOKUP(BH2,'Timing, Infl, Rev Assumptions'!54:54,'Timing, Infl, Rev Assumptions'!66:66) -> 0.03128090874 | BI24: =LOOKUP(BI2,'Timing, Infl, Rev Assumptions'!54:54,'Timing, Infl, Rev Assumptions'!66:66) -> 0.03128090874 | BJ24: =LOOKUP(BJ2,'Timing, Infl, Rev Assumptions'!54:54,'Timing, Infl, Rev Assumptions'!66:66) -> 0.03128090874 | BK24: =LOOKUP(BK2,'Timing, Infl, Rev Assumptions'!54:54,'Timing, Infl, Rev Assumptions'!66:66) -> 0.03128090874 | BL24: =LOOKUP(BL2,'Timing, Infl, Rev Assumptions'!54:54,'Timing, Infl, Rev Assumptions'!66:66) -> 0.03128090874 | BM24: =LOOKUP(BM2,'Timing, Infl, Rev Assumptions'!54:54,'Timing, Infl, Rev Assumptions'!66:66) -> 0.03128090874 | BN24: =LOOKUP(BN2,'Timing, Infl, Rev Assumptions'!54:54,'Timing, Infl, Rev Assumptions'!66:66) -> 0.03128090874 | BO24: =LOOKUP(BO2,'Timing, Infl, Rev Assumptions'!54:54,'Timing, Infl, Rev Assumptions'!66:66) -> 0.03128090874 | BP24: =LOOKUP(BP2,'Timing, Infl, Rev Assumptions'!54:54,'Timing, Infl, Rev Assumptions'!66:66) -> 0.03128090874 | BQ24: =LOOKUP(BQ2,'Timing, Infl, Rev Assumptions'!54:54,'Timing, Infl, Rev Assumptions'!66:66) -> 0.03128090874
B25: TRUE | C25: 5 | E25: Periodic Inflation Rate | J25: =(1+J24)^('Timing, Infl, Rev Assumptions'!$G$11/12)-1 -> 0.01024749443 | K25: =(1+K24)^('Timing, Infl, Rev Assumptions'!$G$11/12)-1 -> 0.01024749443 | L25: =(1+L24)^('Timing, Infl, Rev Assumptions'!$G$11/12)-1 -> 0.01024749443 | M25: =(1+M24)^('Timing, Infl, Rev Assumptions'!$G$11/12)-1 -> 0.01024749443 | N25: =(1+N24)^('Timing, Infl, Rev Assumptions'!$G$11/12)-1 -> 0.01024749443 | O25: =(1+O24)^('Timing, Infl, Rev Assumptions'!$G$11/12)-1 -> 0.01024749443 | P25: =(1+P24)^('Timing, Infl, Rev Assumptions'!$G$11/12)-1 -> 0.0104525009 | Q25: =(1+Q24)^('Timing, Infl, Rev Assumptions'!$G$11/12)-1 -> 0.0104525009 | R25: =(1+R24)^('Timing, Infl, Rev Assumptions'!$G$11/12)-1 -> 0.01066156466 | S25: =(1+S24)^('Timing, Infl, Rev Assumptions'!$G$11/12)-1 -> 0.01066156466 | T25: =(1+T24)^('Timing, Infl, Rev Assumptions'!$G$11/12)-1 -> 0.01087476516 | U25: =(1+U24)^('Timing, Infl, Rev Assumptions'!$G$11/12)-1 -> 0.01087476516 | V25: =(1+V24)^('Timing, Infl, Rev Assumptions'!$G$11/12)-1 -> 0.01109218335 | W25: =(1+W24)^('Timing, Infl, Rev Assumptions'!$G$11/12)-1 -> 0.01109218335 | X25: =(1+X24)^('Timing, Infl, Rev Assumptions'!$G$11/12)-1 -> 0.01131390175 | Y25: =(1+Y24)^('Timing, Infl, Rev Assumptions'!$G$11/12)-1 -> 0.01131390175 | Z25: =(1+Z24)^('Timing, Infl, Rev Assumptions'!$G$11/12)-1 -> 0.01154000445 | AA25: =(1+AA24)^('Timing, Infl, Rev Assumptions'!$G$11/12)-1 -> 0.01154000445 | AB25: =(1+AB24)^('Timing, Infl, Rev Assumptions'!$G$11/12)-1 -> 0.01177057715 | AC25: =(1+AC24)^('Timing, Infl, Rev Assumptions'!$G$11/12)-1 -> 0.01177057715 | AD25: =(1+AD24)^('Timing, Infl, Rev Assumptions'!$G$11/12)-1 -> 0.01200570719 | AE25: =(1+AE24)^('Timing, Infl, Rev Assumptions'!$G$11/12)-1 -> 0.01200570719 | AF25: =(1+AF24)^('Timing, Infl, Rev Assumptions'!$G$11/12)-1 -> 0.01224548356 | AG25: =(1+AG24)^('Timing, Infl, Rev Assumptions'!$G$11/12)-1 -> 0.01224548356 | AH25: =(1+AH24)^('Timing, Infl, Rev Assumptions'!$G$11/12)-1 -> 0.01248999696 | AI25: =(1+AI24)^('Timing, Infl, Rev Assumptions'!$G$11/12)-1 -> 0.01248999696 | AJ25: =(1+AJ24)^('Timing, Infl, Rev Assumptions'!$G$11/12)-1 -> 0.01273933981 | AK25: =(1+AK24)^('Timing, Infl, Rev Assumptions'!$G$11/12)-1 -> 0.01273933981 | AL25: =(1+AL24)^('Timing, Infl, Rev Assumptions'!$G$11/12)-1 -> 0.01299360629 | AM25: =(1+AM24)^('Timing, Infl, Rev Assumptions'!$G$11/12)-1 -> 0.01299360629 | AN25: =(1+AN24)^('Timing, Infl, Rev Assumptions'!$G$11/12)-1 -> 0.01325289237 | AO25: =(1+AO24)^('Timing, Infl, Rev Assumptions'!$G$11/12)-1 -> 0.01325289237 | AP25: =(1+AP24)^('Timing, Infl, Rev Assumptions'!$G$11/12)-1 -> 0.01351729583 | AQ25: =(1+AQ24)^('Timing, Infl, Rev Assumptions'!$G$11/12)-1 -> 0.01351729583 | AR25: =(1+AR24)^('Timing, Infl, Rev Assumptions'!$G$11/12)-1 -> 0.01378691632 | AS25: =(1+AS24)^('Timing, Infl, Rev Assumptions'!$G$11/12)-1 -> 0.01378691632 | AT25: =(1+AT24)^('Timing, Infl, Rev Assumptions'!$G$11/12)-1 -> 0.01406185537 | AU25: =(1+AU24)^('Timing, Infl, Rev Assumptions'!$G$11/12)-1 -> 0.01406185537 | AV25: =(1+AV24)^('Timing, Infl, Rev Assumptions'!$G$11/12)-1 -> 0.01434221643 | AW25: =(1+AW24)^('Timing, Infl, Rev Assumptions'!$G$11/12)-1 -> 0.01434221643 | AX25: =(1+AX24)^('Timing, Infl, Rev Assumptions'!$G$11/12)-1 -> 0.0146281049 | AY25: =(1+AY24)^('Timing, Infl, Rev Assumptions'!$G$11/12)-1 -> 0.0146281049 | AZ25: =(1+AZ24)^('Timing, Infl, Rev Assumptions'!$G$11/12)-1 -> 0.01491962817 | BA25: =(1+BA24)^('Timing, Infl, Rev Assumptions'!$G$11/12)-1 -> 0.01491962817 | BB25: =(1+BB24)^('Timing, Infl, Rev Assumptions'!$G$11/12)-1 -> 0.01521689567 | BC25: =(1+BC24)^('Timing, Infl, Rev Assumptions'!$G$11/12)-1 -> 0.01521689567 | BD25: =(1+BD24)^('Timing, Infl, Rev Assumptions'!$G$11/12)-1 -> 0.01552001888 | BE25: =(1+BE24)^('Timing, Infl, Rev Assumptions'!$G$11/12)-1 -> 0.01552001888 | BF25: =(1+BF24)^('Timing, Infl, Rev Assumptions'!$G$11/12)-1 -> 0.01552001888 | BG25: =(1+BG24)^('Timing, Infl, Rev Assumptions'!$G$11/12)-1 -> 0.01552001888 | BH25: =(1+BH24)^('Timing, Infl, Rev Assumptions'!$G$11/12)-1 -> 0.01552001888 | BI25: =(1+BI24)^('Timing, Infl, Rev Assumptions'!$G$11/12)-1 -> 0.01552001888 | BJ25: =(1+BJ24)^('Timing, Infl, Rev Assumptions'!$G$11/12)-1 -> 0.01552001888 | BK25: =(1+BK24)^('Timing, Infl, Rev Assumptions'!$G$11/12)-1 -> 0.01552001888 | BL25: =(1+BL24)^('Timing, Infl, Rev Assumptions'!$G$11/12)-1 -> 0.01552001888 | BM25: =(1+BM24)^('Timing, Infl, Rev Assumptions'!$G$11/12)-1 -> 0.01552001888 | BN25: =(1+BN24)^('Timing, Infl, Rev Assumptions'!$G$11/12)-1 -> 0.01552001888 | BO25: =(1+BO24)^('Timing, Infl, Rev Assumptions'!$G$11/12)-1 -> 0.01552001888 | BP25: =(1+BP24)^('Timing, Infl, Rev Assumptions'!$G$11/12)-1 -> 0.01552001888 | BQ25: =(1+BQ24)^('Timing, Infl, Rev Assumptions'!$G$11/12)-1 -> 0.01552001888
B26: TRUE | C26: 6 | E26: Inflation Index for Revenue | I26: 1 | J26: =I26*(1+J25*J18) -> 1.010247494 | K26: =J26*(1+K25*K18) -> 1.0206 | L26: 1.031058593 | M26: 1.04162436 | N26: 1.0522984 | O26: 1.063081822 | P26: 1.074193686 | Q26: 1.085421696 | R26: 1.09699399 | S26: 1.108689662 | T26: 1.120746402 | U26: 1.132934256 | V26: 1.14550097 | W26: 1.158207077 | X26: 1.171310918 | Y26: 1.184563015 | Z26: 1.198232877 | AA26: 1.21206049 | AB26: 1.226327141 | AC26: 1.240761719 | AD26: 1.255657941 | AE26: 1.270733003 | AF26: 1.286293743 | AG26: 1.302045032 | AH26: 1.31830757 | AI26: 1.334773228 | AJ26: 1.351777358 | AK26: 1.368998109 | AL26: 1.386786331 | AM26: 1.404805687 | AN26: 1.423423425 | AO26: 1.442287903 | AP26: 1.461783735 | AQ26: 1.481543098 | AR26: 1.501969009 | AS26: 1.52267653 | AT26: 1.544088187 | AU26: 1.565800932 | AV26: 1.588257988 | AW26: 1.611037128 | AX26: 1.634603548 | AY26: 1.6585147 | AZ26: 1.683259123 | BA26: 1.708372723 | BB26: 1.734368852 | BC26: 1.760760562 | BD26: 1.788087599 | BE26: 1.815838753 | BF26: 1.844020604 | BG26: 1.872639839 | BH26: 1.901703245 | BI26: 1.931217715 | BJ26: 1.96119025 | BK26: 1.99162796 | BL26: 2.022538064 | BM26: 2.053927892 | BN26: 2.085804892 | BO26: 2.118176623 | BP26: 2.151050765 | BQ26: 2.184435113
C27: 6
A28: Section 2: Energy Yield Calculations | C28: 6
C29: 6 | D29: Refit 1
B30: TRUE | C30: 7 | E30: Output (P50) | G30: ='Cap Exp and Op Exp Assumptions'!G31 -> 19400 | H30: =SUM(J30:BQ30) -> 970000 | J30: =$G30*J$7 -> 0 | K30: =$G30*K$7 -> 0 | L30: 0 | M30: 0 | N30: 0 | O30: 19400 | P30: 19400 | Q30: 19400 | R30: 19400 | S30: 19400 | T30: 19400 | U30: 19400 | V30: 19400 | W30: 19400 | X30: 19400 | Y30: 19400 | Z30: 19400 | AA30: 19400 | AB30: 19400 | AC30: 19400 | AD30: 19400 | AE30: 19400 | AF30: 19400 | AG30: 19400 | AH30: 19400 | AI30: 19400 | AJ30: 19400 | AK30: 19400 | AL30: 19400 | AM30: 19400 | AN30: 19400 | AO30: 19400 | AP30: 19400 | AQ30: 19400 | AR30: 19400 | AS30: 19400 | AT30: 19400 | AU30: 19400 | AV30: 19400 | AW30: 19400 | AX30: 19400 | AY30: 19400 | AZ30: 19400 | BA30: 19400 | BB30: 19400 | BC30: 19400 | BD30: 19400 | BE30: 19400 | BF30: 19400 | BG30: 19400 | BH30: 19400 | BI30: 19400 | BJ30: 19400 | BK30: 19400 | BL30: 19400 | BM30: 0 | BN30: 0 | BO30: 0 | BP30: 0 | BQ30: 0
B31: TRUE | C31: 8 | E31: Output (P75) | G31: ='Cap Exp and Op Exp Assumptions'!G32 -> 18100 | H31: 905000 | J31: =$G31*J$7 -> 0 | K31: 0 | L31: 0 | M31: 0 | N31: 0 | O31: 18100 | P31: 18100 | Q31: 18100 | R31: 18100 | S31: 18100 | T31: 18100 | U31: 18100 | V31: 18100 | W31: 18100 | X31: 18100 | Y31: 18100 | Z31: 18100 | AA31: 18100 | AB31: 18100 | AC31: 18100 | AD31: 18100 | AE31: 18100 | AF31: 18100 | AG31: 18100 | AH31: 18100 | AI31: 18100 | AJ31: 18100 | AK31: 18100 | AL31: 18100 | AM31: 18100 | AN31: 18100 | AO31: 18100 | AP31: 18100 | AQ31: 18100 | AR31: 18100 | AS31: 18100 | AT31: 18100 | AU31: 18100 | AV31: 18100 | AW31: 18100 | AX31: 18100 | AY31: 18100 | AZ31: 18100 | BA31: 18100 | BB31: 18100 | BC31: 18100 | BD31: 18100 | BE31: 18100 | BF31: 18100 | BG31: 18100 | BH31: 18100 | BI31: 18100 | BJ31: 18100 | BK31: 18100 | BL31: 18100 | BM31: 0 | BN31: 0 | BO31: 0 | BP31: 0 | BQ31: 0
B32: TRUE | C32: 9 | E32: Output (P90) | G32: ='Cap Exp and Op Exp Assumptions'!G33 -> 17000 | H32: 850000 | J32: 0 | K32: 0 | L32: 0 | M32: 0 | N32: 0 | O32: 17000 | P32: 17000 | Q32: 17000 | R32: 17000 | S32: 17000 | T32: 17000 | U32: 17000 | V32: 17000 | W32: 17000 | X32: 17000 | Y32: 17000 | Z32: 17000 | AA32: 17000 | AB32: 17000 | AC32: 17000 | AD32: 17000 | AE32: 17000 | AF32: 17000 | AG32: 17000 | AH32: 17000 | AI32: 17000 | AJ32: 17000 | AK32: 17000 | AL32: 17000 | AM32: 17000 | AN32: 17000 | AO32: 17000 | AP32: 17000 | AQ32: 17000 | AR32: 17000 | AS32: 17000 | AT32: 17000 | AU32: 17000 | AV32: 17000 | AW32: 17000 | AX32: 17000 | AY32: 17000 | AZ32: 17000 | BA32: 17000 | BB32: 17000 | BC32: 17000 | BD32: 17000 | BE32: 17000 | BF32: 17000 | BG32: 17000 | BH32: 17000 | BI32: 17000 | BJ32: 17000 | BK32: 17000 | BL32: 17000 | BM32: 0 | BN32: 0 | BO32: 0 | BP32: 0 | BQ32: 0
B33: TRUE | C33: 10 | E33: Output (P99) | G33: ='Cap Exp and Op Exp Assumptions'!G34 -> 15300 | H33: 765000 | J33: 0 | K33: 0 | L33: 0 | M33: 0 | N33: 0 | O33: 15300 | P33: 15300 | Q33: 15300 | R33: 15300 | S33: 15300 | T33: 15300 | U33: 15300 | V33: 15300 | W33: 15300 | X33: 15300 | Y33: 15300 | Z33: 15300 | AA33: 15300 | AB33: 15300 | AC33: 15300 | AD33: 15300 | AE33: 15300 | AF33: 15300 | AG33: 15300 | AH33: 15300 | AI33: 15300 | AJ33: 15300 | AK33: 15300 | AL33: 15300 | AM33: 15300 | AN33: 15300 | AO33: 15300 | AP33: 15300 | AQ33: 15300 | AR33: 15300 | AS33: 15300 | AT33: 15300 | AU33: 15300 | AV33: 15300 | AW33: 15300 | AX33: 15300 | AY33: 15300 | AZ33: 15300 | BA33: 15300 | BB33: 15300 | BC33: 15300 | BD33: 15300 | BE33: 15300 | BF33: 15300 | BG33: 15300 | BH33: 15300 | BI33: 15300 | BJ33: 15300 | BK33: 15300 | BL33: 15300 | BM33: 0 | BN33: 0 | BO33: 0 | BP33: 0 | BQ33: 0
C34: 10
B35: TRUE | C35: 11 | E35: Output ( P50 yrs 1-15) | H35: 578766.6667 | J35: =J30*J$13 -> 0 | K35: 0 | L35: 0 | M35: 0 | N35: 0 | O35: 19400 | P35: 19400 | Q35: 19400 | R35: 19400 | S35: 19400 | T35: 19400 | U35: 19400 | V35: 19400 | W35: 19400 | X35: 19400 | Y35: 19400 | Z35: 19400 | AA35: 19400 | AB35: 19400 | AC35: 19400 | AD35: 19400 | AE35: 19400 | AF35: 19400 | AG35: 19400 | AH35: 19400 | AI35: 19400 | AJ35: 19400 | AK35: 19400 | AL35: 19400 | AM35: 19400 | AN35: 19400 | AO35: 19400 | AP35: =AP30*AP$13 -> 19400 | AQ35: 19400 | AR35: 16166.66667 | AS35: 0 | AT35: 0 | AU35: 0 | AV35: 0 | AW35: 0 | AX35: 0 | AY35: 0 | AZ35: 0 | BA35: 0 | BB35: 0 | BC35: 0 | BD35: 0 | BE35: 0 | BF35: 0 | BG35: 0 | BH35: 0 | BI35: 0 | BJ35: 0 | BK35: 0 | BL35: 0 | BM35: 0 | BN35: 0 | BO35: 0 | BP35: 0 | BQ35: 0
B36: TRUE | C36: 12 | E36: Output ( P50 yrs 16-20) | H36: 388000 | J36: =J$30*J$14 -> 0 | K36: 0 | L36: 0 | M36: 0 | N36: 0 | O36: 0 | P36: 0 | Q36: 0 | R36: 0 | S36: 0 | T36: 0 | U36: 0 | V36: 0 | W36: 0 | X36: 0 | Y36: 0 | Z36: 0 | AA36: 0 | AB36: 0 | AC36: 0 | AD36: 0 | AE36: 0 | AF36: 0 | AG36: 0 | AH36: 0 | AI36: 0 | AJ36: 0 | AK36: 0 | AL36: 0 | AM36: 0 | AN36: 0 | AO36: 0 | AP36: =AP$30*AP$14 -> 0 | AQ36: 0 | AR36: 3233.333333 | AS36: 19400 | AT36: 19400 | AU36: 19400 | AV36: 19400 | AW36: 19400 | AX36: 19400 | AY36: 19400 | AZ36: 19400 | BA36: 19400 | BB36: 19400 | BC36: 19400 | BD36: 19400 | BE36: 19400 | BF36: 19400 | BG36: 19400 | BH36: 19400 | BI36: 19400 | BJ36: 19400 | BK36: 19400 | BL36: 16166.66667 | BM36: 0 | BN36: 0 | BO36: 0 | BP36: 0 | BQ36: 0
B37: TRUE | C37: 13 | E37: Output ( P75 yrs 1-15) | H37: 539983.3333 | J37: =J$31*J$13 -> 0 | K37: 0 | L37: 0 | M37: 0 | N37: 0 | O37: 18100 | P37: 18100 | Q37: 18100 | R37: 18100 | S37: 18100 | T37: 18100 | U37: 18100 | V37: 18100 | W37: 18100 | X37: 18100 | Y37: 18100 | Z37: 18100 | AA37: 18100 | AB37: 18100 | AC37: 18100 | AD37: 18100 | AE37: 18100 | AF37: 18100 | AG37: 18100 | AH37: 18100 | AI37: 18100 | AJ37: 18100 | AK37: 18100 | AL37: 18100 | AM37: 18100 | AN37: 18100 | AO37: 18100 | AP37: =AP$31*AP$13 -> 18100 | AQ37: 18100 | AR37: 15083.33333 | AS37: 0 | AT37: 0 | AU37: 0 | AV37: 0 | AW37: 0 | AX37: 0 | AY37: 0 | AZ37: 0 | BA37: 0 | BB37: 0 | BC37: 0 | BD37: 0 | BE37: 0 | BF37: 0 | BG37: 0 | BH37: 0 | BI37: 0 | BJ37: 0 | BK37: 0 | BL37: 0 | BM37: 0 | BN37: 0 | BO37: 0 | BP37: 0 | BQ37: 0
B38: TRUE | C38: 14 | E38: Output ( P75 yrs 16-20) | H38: 362000 | J38: =J$31*J$14 -> 0 | K38: 0 | L38: 0 | M38: 0 | N38: 0 | O38: 0 | P38: 0 | Q38: 0 | R38: 0 | S38: 0 | T38: 0 | U38: 0 | V38: 0 | W38: 0 | X38: 0 | Y38: 0 | Z38: 0 | AA38: 0 | AB38: 0 | AC38: 0 | AD38: 0 | AE38: 0 | AF38: 0 | AG38: 0 | AH38: 0 | AI38: 0 | AJ38: 0 | AK38: 0 | AL38: 0 | AM38: 0 | AN38: 0 | AO38: 0 | AP38: =AP$31*AP$14 -> 0 | AQ38: 0 | AR38: 3016.666667 | AS38: 18100 | AT38: 18100 | AU38: 18100 | AV38: 18100 | AW38: 18100 | AX38: 18100 | AY38: 18100 | AZ38: 18100 | BA38: 18100 | BB38: 18100 | BC38: 18100 | BD38: 18100 | BE38: 18100 | BF38: 18100 | BG38: 18100 | BH38: 18100 | BI38: 18100 | BJ38: 18100 | BK38: 18100 | BL38: 15083.33333 | BM38: 0 | BN38: 0 | BO38: 0 | BP38: 0 | BQ38: 0
C39: 14
B40: TRUE | C40: 15 | E40: Output ( P90 yrs 1-15) | H40: 507166.6667 | J40: =J$32*J$13 -> 0 | K40: 0 | L40: 0 | M40: 0 | N40: 0 | O40: 17000 | P40: 17000 | Q40: 17000 | R40: 17000 | S40: 17000 | T40: 17000 | U40: 17000 | V40: 17000 | W40: 17000 | X40: 17000 | Y40: 17000 | Z40: 17000 | AA40: 17000 | AB40: 17000 | AC40: 17000 | AD40: 17000 | AE40: 17000 | AF40: 17000 | AG40: 17000 | AH40: 17000 | AI40: 17000 | AJ40: 17000 | AK40: 17000 | AL40: 17000 | AM40: 17000 | AN40: 17000 | AO40: 17000 | AP40: =AP$32*AP$13 -> 17000 | AQ40: 17000 | AR40: 14166.66667 | AS40: 0 | AT40: 0 | AU40: 0 | AV40: 0 | AW40: 0 | AX40: 0 | AY40: 0 | AZ40: 0 | BA40: 0 | BB40: 0 | BC40: 0 | BD40: 0 | BE40: 0 | BF40: 0 | BG40: 0 | BH40: 0 | BI40: 0 | BJ40: 0 | BK40: 0 | BL40: 0 | BM40: 0 | BN40: 0 | BO40: 0 | BP40: 0 | BQ40: 0
B41: TRUE | C41: 16 | E41: Output ( P90 yrs 16-20) | H41: 340000 | J41: =J$32*J$14 -> 0 | K41: 0 | L41: 0 | M41: 0 | N41: 0 | O41: 0 | P41: 0 | Q41: 0 | R41: 0 | S41: 0 | T41: 0 | U41: 0 | V41: 0 | W41: 0 | X41: 0 | Y41: 0 | Z41: 0 | AA41: 0 | AB41: 0 | AC41: 0 | AD41: 0 | AE41: 0 | AF41: 0 | AG41: 0 | AH41: 0 | AI41: 0 | AJ41: 0 | AK41: 0 | AL41: 0 | AM41: 0 | AN41: 0 | AO41: 0 | AP41: =AP$32*AP$14 -> 0 | AQ41: 0 | AR41: 2833.333333 | AS41: 17000 | AT41: 17000 | AU41: 17000 | AV41: 17000 | AW41: 17000 | AX41: 17000 | AY41: 17000 | AZ41: 17000 | BA41: 17000 | BB41: 17000 | BC41: 17000 | BD41: 17000 | BE41: 17000 | BF41: 17000 | BG41: 17000 | BH41: 17000 | BI41: 17000 | BJ41: 17000 | BK41: 17000 | BL41: 14166.66667 | BM41: 0 | BN41: 0 | BO41: 0 | BP41: 0 | BQ41: 0
B42: TRUE | C42: 17 | E42: Output ( P99 yrs 1-15) | H42: 456450 | J42: =J$33*J$13 -> 0 | K42: 0 | L42: 0 | M42: 0 | N42: 0 | O42: 15300 | P42: 15300 | Q42: 15300 | R42: 15300 | S42: 15300 | T42: 15300 | U42: 15300 | V42: 15300 | W42: 15300 | X42: 15300 | Y42: 15300 | Z42: 15300 | AA42: 15300 | AB42: 15300 | AC42: 15300 | AD42: 15300 | AE42: 15300 | AF42: 15300 | AG42: 15300 | AH42: 15300 | AI42: 15300 | AJ42: 15300 | AK42: 15300 | AL42: 15300 | AM42: 15300 | AN42: 15300 | AO42: 15300 | AP42: =AP$33*AP$13 -> 15300 | AQ42: 15300 | AR42: 12750 | AS42: 0 | AT42: 0 | AU42: 0 | AV42: 0 | AW42: 0 | AX42: 0 | AY42: 0 | AZ42: 0 | BA42: 0 | BB42: 0 | BC42: 0 | BD42: 0 | BE42: 0 | BF42: 0 | BG42: 0 | BH42: 0 | BI42: 0 | BJ42: 0 | BK42: 0 | BL42: 0 | BM42: 0 | BN42: 0 | BO42: 0 | BP42: 0 | BQ42: 0
B43: TRUE | C43: 18 | E43: Output ( P99 yrs 16-20) | H43: 306000 | J43: =J$33*J$14 -> 0 | K43: 0 | L43: 0 | M43: 0 | N43: 0 | O43: 0 | P43: 0 | Q43: 0 | R43: 0 | S43: 0 | T43: 0 | U43: 0 | V43: 0 | W43: 0 | X43: 0 | Y43: 0 | Z43: 0 | AA43: 0 | AB43: 0 | AC43: 0 | AD43: 0 | AE43: 0 | AF43: 0 | AG43: 0 | AH43: 0 | AI43: 0 | AJ43: 0 | AK43: 0 | AL43: 0 | AM43: 0 | AN43: 0 | AO43: 0 | AP43: =AP$33*AP$14 -> 0 | AQ43: 0 | AR43: 2550 | AS43: 15300 | AT43: 15300 | AU43: 15300 | AV43: 15300 | AW43: 15300 | AX43: 15300 | AY43: 15300 | AZ43: 15300 | BA43: 15300 | BB43: 15300 | BC43: 15300 | BD43: 15300 | BE43: 15300 | BF43: 15300 | BG43: 15300 | BH43: 15300 | BI43: 15300 | BJ43: 15300 | BK43: 15300 | BL43: 12750 | BM43: 0 | BN43: 0 | BO43: 0 | BP43: 0 | BQ43: 0
C44: 18
C45: 18 | D45: Refit 2
C46: 18 | E46: Output (P50) | H46: =SUM(J46:BQ46) -> 0 | J46: ='Cap Exp and Op Exp Assumptions'!$G$37*J$7 -> 0 | K46: ='Cap Exp and Op Exp Assumptions'!$G$37*K$7 -> 0 | L46: ='Cap Exp and Op Exp Assumptions'!$G$37*L$7 -> 0 | M46: ='Cap Exp and Op Exp Assumptions'!$G$37*M$7 -> 0 | N46: ='Cap Exp and Op Exp Assumptions'!$G$37*N$7 -> 0 | O46: ='Cap Exp and Op Exp Assumptions'!$G$37*O$7 -> 0 | P46: ='Cap Exp and Op Exp Assumptions'!$G$37*P$7 -> 0 | Q46: ='Cap Exp and Op Exp Assumptions'!$G$37*Q$7 -> 0 | R46: ='Cap Exp and Op Exp Assumptions'!$G$37*R$7 -> 0 | S46: ='Cap Exp and Op Exp Assumptions'!$G$37*S$7 -> 0 | T46: ='Cap Exp and Op Exp Assumptions'!$G$37*T$7 -> 0 | U46: ='Cap Exp and Op Exp Assumptions'!$G$37*U$7 -> 0 | V46: ='Cap Exp and Op Exp Assumptions'!$G$37*V$7 -> 0 | W46: ='Cap Exp and Op Exp Assumptions'!$G$37*W$7 -> 0 | X46: ='Cap Exp and Op Exp Assumptions'!$G$37*X$7 -> 0 | Y46: ='Cap Exp and Op Exp Assumptions'!$G$37*Y$7 -> 0 | Z46: ='Cap Exp and Op Exp Assumptions'!$G$37*Z$7 -> 0 | AA46: ='Cap Exp and Op Exp Assumptions'!$G$37*AA$7 -> 0 | AB46: ='Cap Exp and Op Exp Assumptions'!$G$37*AB$7 -> 0 | AC46: ='Cap Exp and Op Exp Assumptions'!$G$37*AC$7 -> 0 | AD46: ='Cap Exp and Op Exp Assumptions'!$G$37*AD$7 -> 0 | AE46: ='Cap Exp and Op Exp Assumptions'!$G$37*AE$7 -> 0 | AF46: ='Cap Exp and Op Exp Assumptions'!$G$37*AF$7 -> 0 | AG46: ='Cap Exp and Op Exp Assumptions'!$G$37*AG$7 -> 0 | AH46: ='Cap Exp and Op Exp Assumptions'!$G$37*AH$7 -> 0 | AI46: ='Cap Exp and Op Exp Assumptions'!$G$37*AI$7 -> 0 | AJ46: ='Cap Exp and Op Exp Assumptions'!$G$37*AJ$7 -> 0 | AK46: ='Cap Exp and Op Exp Assumptions'!$G$37*AK$7 -> 0 | AL46: ='Cap Exp and Op Exp Assumptions'!$G$37*AL$7 -> 0 | AM46: ='Cap Exp and Op Exp Assumptions'!$G$37*AM$7 -> 0 | AN46: ='Cap Exp and Op Exp Assumptions'!$G$37*AN$7 -> 0 | AO46: ='Cap Exp and Op Exp Assumptions'!$G$37*AO$7 -> 0 | AP46: ='Cap Exp and Op Exp Assumptions'!$G$37*AP$7 -> 0 | AQ46: ='Cap Exp and Op Exp Assumptions'!$G$37*AQ$7 -> 0 | AR46: ='Cap Exp and Op Exp Assumptions'!$G$37*AR$7 -> 0 | AS46: ='Cap Exp and Op Exp Assumptions'!$G$37*AS$7 -> 0 | AT46: ='Cap Exp and Op Exp Assumptions'!$G$37*AT$7 -> 0 | AU46: ='Cap Exp and Op Exp Assumptions'!$G$37*AU$7 -> 0 | AV46: ='Cap Exp and Op Exp Assumptions'!$G$37*AV$7 -> 0 | AW46: ='Cap Exp and Op Exp Assumptions'!$G$37*AW$7 -> 0 | AX46: ='Cap Exp and Op Exp Assumptions'!$G$37*AX$7 -> 0 | AY46: ='Cap Exp and Op Exp Assumptions'!$G$37*AY$7 -> 0 | AZ46: ='Cap Exp and Op Exp Assumptions'!$G$37*AZ$7 -> 0 | BA46: ='Cap Exp and Op Exp Assumptions'!$G$37*BA$7 -> 0 | BB46: ='Cap Exp and Op Exp Assumptions'!$G$37*BB$7 -> 0 | BC46: ='Cap Exp and Op Exp Assumptions'!$G$37*BC$7 -> 0 | BD46: ='Cap Exp and Op Exp Assumptions'!$G$37*BD$7 -> 0 | BE46: ='Cap Exp and Op Exp Assumptions'!$G$37*BE$7 -> 0 | BF46: ='Cap Exp and Op Exp Assumptions'!$G$37*BF$7 -> 0 | BG46: ='Cap Exp and Op Exp Assumptions'!$G$37*BG$7 -> 0 | BH46: ='Cap Exp and Op Exp Assumptions'!$G$37*BH$7 -> 0 | BI46: ='Cap Exp and Op Exp Assumptions'!$G$37*BI$7 -> 0 | BJ46: ='Cap Exp and Op Exp Assumptions'!$G$37*BJ$7 -> 0 | BK46: ='Cap Exp and Op Exp Assumptions'!$G$37*BK$7 -> 0 | BL46: ='Cap Exp and Op Exp Assumptions'!$G$37*BL$7 -> 0 | BM46: ='Cap Exp and Op Exp Assumptions'!$G$37*BM$7 -> 0 | BN46: ='Cap Exp and Op Exp Assumptions'!$G$37*BN$7 -> 0 | BO46: ='Cap Exp and Op Exp Assumptions'!$G$37*BO$7 -> 0 | BP46: ='Cap Exp and Op Exp Assumptions'!$G$37*BP$7 -> 0 | BQ46: ='Cap Exp and Op Exp Assumptions'!$G$37*BQ$7 -> 0
C47: 18 | E47: Output (P75) | H47: 0 | J47: ='Cap Exp and Op Exp Assumptions'!$G$38*J$7 -> 0 | K47: ='Cap Exp and Op Exp Assumptions'!$G$38*K$7 -> 0 | L47: ='Cap Exp and Op Exp Assumptions'!$G$38*L$7 -> 0 | M47: ='Cap Exp and Op Exp Assumptions'!$G$38*M$7 -> 0 | N47: ='Cap Exp and Op Exp Assumptions'!$G$38*N$7 -> 0 | O47: ='Cap Exp and Op Exp Assumptions'!$G$38*O$7 -> 0 | P47: ='Cap Exp and Op Exp Assumptions'!$G$38*P$7 -> 0 | Q47: ='Cap Exp and Op Exp Assumptions'!$G$38*Q$7 -> 0 | R47: ='Cap Exp and Op Exp Assumptions'!$G$38*R$7 -> 0 | S47: ='Cap Exp and Op Exp Assumptions'!$G$38*S$7 -> 0 | T47: ='Cap Exp and Op Exp Assumptions'!$G$38*T$7 -> 0 | U47: ='Cap Exp and Op Exp Assumptions'!$G$38*U$7 -> 0 | V47: ='Cap Exp and Op Exp Assumptions'!$G$38*V$7 -> 0 | W47: ='Cap Exp and Op Exp Assumptions'!$G$38*W$7 -> 0 | X47: ='Cap Exp and Op Exp Assumptions'!$G$38*X$7 -> 0 | Y47: ='Cap Exp and Op Exp Assumptions'!$G$38*Y$7 -> 0 | Z47: ='Cap Exp and Op Exp Assumptions'!$G$38*Z$7 -> 0 | AA47: ='Cap Exp and Op Exp Assumptions'!$G$38*AA$7 -> 0 | AB47: ='Cap Exp and Op Exp Assumptions'!$G$38*AB$7 -> 0 | AC47: ='Cap Exp and Op Exp Assumptions'!$G$38*AC$7 -> 0 | AD47: ='Cap Exp and Op Exp Assumptions'!$G$38*AD$7 -> 0 | AE47: ='Cap Exp and Op Exp Assumptions'!$G$38*AE$7 -> 0 | AF47: ='Cap Exp and Op Exp Assumptions'!$G$38*AF$7 -> 0 | AG47: ='Cap Exp and Op Exp Assumptions'!$G$38*AG$7 -> 0 | AH47: ='Cap Exp and Op Exp Assumptions'!$G$38*AH$7 -> 0 | AI47: ='Cap Exp and Op Exp Assumptions'!$G$38*AI$7 -> 0 | AJ47: ='Cap Exp and Op Exp Assumptions'!$G$38*AJ$7 -> 0 | AK47: ='Cap Exp and Op Exp Assumptions'!$G$38*AK$7 -> 0 | AL47: ='Cap Exp and Op Exp Assumptions'!$G$38*AL$7 -> 0 | AM47: ='Cap Exp and Op Exp Assumptions'!$G$38*AM$7 -> 0 | AN47: ='Cap Exp and Op Exp Assumptions'!$G$38*AN$7 -> 0 | AO47: ='Cap Exp and Op Exp Assumptions'!$G$38*AO$7 -> 0 | AP47: ='Cap Exp and Op Exp Assumptions'!$G$38*AP$7 -> 0 | AQ47: ='Cap Exp and Op Exp Assumptions'!$G$38*AQ$7 -> 0 | AR47: ='Cap Exp and Op Exp Assumptions'!$G$38*AR$7 -> 0 | AS47: ='Cap Exp and Op Exp Assumptions'!$G$38*AS$7 -> 0 | AT47: ='Cap Exp and Op Exp Assumptions'!$G$38*AT$7 -> 0 | AU47: ='Cap Exp and Op Exp Assumptions'!$G$38*AU$7 -> 0 | AV47: ='Cap Exp and Op Exp Assumptions'!$G$38*AV$7 -> 0 | AW47: ='Cap Exp and Op Exp Assumptions'!$G$38*AW$7 -> 0 | AX47: ='Cap Exp and Op Exp Assumptions'!$G$38*AX$7 -> 0 | AY47: ='Cap Exp and Op Exp Assumptions'!$G$38*AY$7 -> 0 | AZ47: ='Cap Exp and Op Exp Assumptions'!$G$38*AZ$7 -> 0 | BA47: ='Cap Exp and Op Exp Assumptions'!$G$38*BA$7 -> 0 | BB47: ='Cap Exp and Op Exp Assumptions'!$G$38*BB$7 -> 0 | BC47: ='Cap Exp and Op Exp Assumptions'!$G$38*BC$7 -> 0 | BD47: ='Cap Exp and Op Exp Assumptions'!$G$38*BD$7 -> 0 | BE47: ='Cap Exp and Op Exp Assumptions'!$G$38*BE$7 -> 0 | BF47: ='Cap Exp and Op Exp Assumptions'!$G$38*BF$7 -> 0 | BG47: ='Cap Exp and Op Exp Assumptions'!$G$38*BG$7 -> 0 | BH47: ='Cap Exp and Op Exp Assumptions'!$G$38*BH$7 -> 0 | BI47: ='Cap Exp and Op Exp Assumptions'!$G$38*BI$7 -> 0 | BJ47: ='Cap Exp and Op Exp Assumptions'!$G$38*BJ$7 -> 0 | BK47: ='Cap Exp and Op Exp Assumptions'!$G$38*BK$7 -> 0 | BL47: ='Cap Exp and Op Exp Assumptions'!$G$38*BL$7 -> 0 | BM47: ='Cap Exp and Op Exp Assumptions'!$G$38*BM$7 -> 0 | BN47: ='Cap Exp and Op Exp Assumptions'!$G$38*BN$7 -> 0 | BO47: ='Cap Exp and Op Exp Assumptions'!$G$38*BO$7 -> 0 | BP47: ='Cap Exp and Op Exp Assumptions'!$G$38*BP$7 -> 0 | BQ47: ='Cap Exp and Op Exp Assumptions'!$G$38*BQ$7 -> 0
C48: 18 | E48: Output (P90) | H48: 0 | J48: ='Cap Exp and Op Exp Assumptions'!$G$39*J$7 -> 0 | K48: ='Cap Exp and Op Exp Assumptions'!$G$39*K$7 -> 0 | L48: ='Cap Exp and Op Exp Assumptions'!$G$39*L$7 -> 0 | M48: ='Cap Exp and Op Exp Assumptions'!$G$39*M$7 -> 0 | N48: ='Cap Exp and Op Exp Assumptions'!$G$39*N$7 -> 0 | O48: ='Cap Exp and Op Exp Assumptions'!$G$39*O$7 -> 0 | P48: ='Cap Exp and Op Exp Assumptions'!$G$39*P$7 -> 0 | Q48: ='Cap Exp and Op Exp Assumptions'!$G$39*Q$7 -> 0 | R48: ='Cap Exp and Op Exp Assumptions'!$G$39*R$7 -> 0 | S48: ='Cap Exp and Op Exp Assumptions'!$G$39*S$7 -> 0 | T48: ='Cap Exp and Op Exp Assumptions'!$G$39*T$7 -> 0 | U48: ='Cap Exp and Op Exp Assumptions'!$G$39*U$7 -> 0 | V48: ='Cap Exp and Op Exp Assumptions'!$G$39*V$7 -> 0 | W48: ='Cap Exp and Op Exp Assumptions'!$G$39*W$7 -> 0 | X48: ='Cap Exp and Op Exp Assumptions'!$G$39*X$7 -> 0 | Y48: ='Cap Exp and Op Exp Assumptions'!$G$39*Y$7 -> 0 | Z48: ='Cap Exp and Op Exp Assumptions'!$G$39*Z$7 -> 0 | AA48: ='Cap Exp and Op Exp Assumptions'!$G$39*AA$7 -> 0 | AB48: ='Cap Exp and Op Exp Assumptions'!$G$39*AB$7 -> 0 | AC48: ='Cap Exp and Op Exp Assumptions'!$G$39*AC$7 -> 0 | AD48: ='Cap Exp and Op Exp Assumptions'!$G$39*AD$7 -> 0 | AE48: ='Cap Exp and Op Exp Assumptions'!$G$39*AE$7 -> 0 | AF48: ='Cap Exp and Op Exp Assumptions'!$G$39*AF$7 -> 0 | AG48: ='Cap Exp and Op Exp Assumptions'!$G$39*AG$7 -> 0 | AH48: ='Cap Exp and Op Exp Assumptions'!$G$39*AH$7 -> 0 | AI48: ='Cap Exp and Op Exp Assumptions'!$G$39*AI$7 -> 0 | AJ48: ='Cap Exp and Op Exp Assumptions'!$G$39*AJ$7 -> 0 | AK48: ='Cap Exp and Op Exp Assumptions'!$G$39*AK$7 -> 0 | AL48: ='Cap Exp and Op Exp Assumptions'!$G$39*AL$7 -> 0 | AM48: ='Cap Exp and Op Exp Assumptions'!$G$39*AM$7 -> 0 | AN48: ='Cap Exp and Op Exp Assumptions'!$G$39*AN$7 -> 0 | AO48: ='Cap Exp and Op Exp Assumptions'!$G$39*AO$7 -> 0 | AP48: ='Cap Exp and Op Exp Assumptions'!$G$39*AP$7 -> 0 | AQ48: ='Cap Exp and Op Exp Assumptions'!$G$39*AQ$7 -> 0 | AR48: ='Cap Exp and Op Exp Assumptions'!$G$39*AR$7 -> 0 | AS48: ='Cap Exp and Op Exp Assumptions'!$G$39*AS$7 -> 0 | AT48: ='Cap Exp and Op Exp Assumptions'!$G$39*AT$7 -> 0 | AU48: ='Cap Exp and Op Exp Assumptions'!$G$39*AU$7 -> 0 | AV48: ='Cap Exp and Op Exp Assumptions'!$G$39*AV$7 -> 0 | AW48: ='Cap Exp and Op Exp Assumptions'!$G$39*AW$7 -> 0 | AX48: ='Cap Exp and Op Exp Assumptions'!$G$39*AX$7 -> 0 | AY48: ='Cap Exp and Op Exp Assumptions'!$G$39*AY$7 -> 0 | AZ48: ='Cap Exp and Op Exp Assumptions'!$G$39*AZ$7 -> 0 | BA48: ='Cap Exp and Op Exp Assumptions'!$G$39*BA$7 -> 0 | BB48: ='Cap Exp and Op Exp Assumptions'!$G$39*BB$7 -> 0 | BC48: ='Cap Exp and Op Exp Assumptions'!$G$39*BC$7 -> 0 | BD48: ='Cap Exp and Op Exp Assumptions'!$G$39*BD$7 -> 0 | BE48: ='Cap Exp and Op Exp Assumptions'!$G$39*BE$7 -> 0 | BF48: ='Cap Exp and Op Exp Assumptions'!$G$39*BF$7 -> 0 | BG48: ='Cap Exp and Op Exp Assumptions'!$G$39*BG$7 -> 0 | BH48: ='Cap Exp and Op Exp Assumptions'!$G$39*BH$7 -> 0 | BI48: ='Cap Exp and Op Exp Assumptions'!$G$39*BI$7 -> 0 | BJ48: ='Cap Exp and Op Exp Assumptions'!$G$39*BJ$7 -> 0 | BK48: ='Cap Exp and Op Exp Assumptions'!$G$39*BK$7 -> 0 | BL48: ='Cap Exp and Op Exp Assumptions'!$G$39*BL$7 -> 0 | BM48: ='Cap Exp and Op Exp Assumptions'!$G$39*BM$7 -> 0 | BN48: ='Cap Exp and Op Exp Assumptions'!$G$39*BN$7 -> 0 | BO48: ='Cap Exp and Op Exp Assumptions'!$G$39*BO$7 -> 0 | BP48: ='Cap Exp and Op Exp Assumptions'!$G$39*BP$7 -> 0 | BQ48: ='Cap Exp and Op Exp Assumptions'!$G$39*BQ$7 -> 0
C49: 18 | E49: Output (P99) | H49: 0 | J49: ='Cap Exp and Op Exp Assumptions'!$G$40*J$7 -> 0 | K49: ='Cap Exp and Op Exp Assumptions'!$G$40*K$7 -> 0 | L49: ='Cap Exp and Op Exp Assumptions'!$G$40*L$7 -> 0 | M49: ='Cap Exp and Op Exp Assumptions'!$G$40*M$7 -> 0 | N49: ='Cap Exp and Op Exp Assumptions'!$G$40*N$7 -> 0 | O49: ='Cap Exp and Op Exp Assumptions'!$G$40*O$7 -> 0 | P49: ='Cap Exp and Op Exp Assumptions'!$G$40*P$7 -> 0 | Q49: ='Cap Exp and Op Exp Assumptions'!$G$40*Q$7 -> 0 | R49: ='Cap Exp and Op Exp Assumptions'!$G$40*R$7 -> 0 | S49: ='Cap Exp and Op Exp Assumptions'!$G$40*S$7 -> 0 | T49: ='Cap Exp and Op Exp Assumptions'!$G$40*T$7 -> 0 | U49: ='Cap Exp and Op Exp Assumptions'!$G$40*U$7 -> 0 | V49: ='Cap Exp and Op Exp Assumptions'!$G$40*V$7 -> 0 | W49: ='Cap Exp and Op Exp Assumptions'!$G$40*W$7 -> 0 | X49: ='Cap Exp and Op Exp Assumptions'!$G$40*X$7 -> 0 | Y49: ='Cap Exp and Op Exp Assumptions'!$G$40*Y$7 -> 0 | Z49: ='Cap Exp and Op Exp Assumptions'!$G$40*Z$7 -> 0 | AA49: ='Cap Exp and Op Exp Assumptions'!$G$40*AA$7 -> 0 | AB49: ='Cap Exp and Op Exp Assumptions'!$G$40*AB$7 -> 0 | AC49: ='Cap Exp and Op Exp Assumptions'!$G$40*AC$7 -> 0 | AD49: ='Cap Exp and Op Exp Assumptions'!$G$40*AD$7 -> 0 | AE49: ='Cap Exp and Op Exp Assumptions'!$G$40*AE$7 -> 0 | AF49: ='Cap Exp and Op Exp Assumptions'!$G$40*AF$7 -> 0 | AG49: ='Cap Exp and Op Exp Assumptions'!$G$40*AG$7 -> 0 | AH49: ='Cap Exp and Op Exp Assumptions'!$G$40*AH$7 -> 0 | AI49: ='Cap Exp and Op Exp Assumptions'!$G$40*AI$7 -> 0 | AJ49: ='Cap Exp and Op Exp Assumptions'!$G$40*AJ$7 -> 0 | AK49: ='Cap Exp and Op Exp Assumptions'!$G$40*AK$7 -> 0 | AL49: ='Cap Exp and Op Exp Assumptions'!$G$40*AL$7 -> 0 | AM49: ='Cap Exp and Op Exp Assumptions'!$G$40*AM$7 -> 0 | AN49: ='Cap Exp and Op Exp Assumptions'!$G$40*AN$7 -> 0 | AO49: ='Cap Exp and Op Exp Assumptions'!$G$40*AO$7 -> 0 | AP49: ='Cap Exp and Op Exp Assumptions'!$G$40*AP$7 -> 0 | AQ49: ='Cap Exp and Op Exp Assumptions'!$G$40*AQ$7 -> 0 | AR49: ='Cap Exp and Op Exp Assumptions'!$G$40*AR$7 -> 0 | AS49: ='Cap Exp and Op Exp Assumptions'!$G$40*AS$7 -> 0 | AT49: ='Cap Exp and Op Exp Assumptions'!$G$40*AT$7 -> 0 | AU49: ='Cap Exp and Op Exp Assumptions'!$G$40*AU$7 -> 0 | AV49: ='Cap Exp and Op Exp Assumptions'!$G$40*AV$7 -> 0 | AW49: ='Cap Exp and Op Exp Assumptions'!$G$40*AW$7 -> 0 | AX49: ='Cap Exp and Op Exp Assumptions'!$G$40*AX$7 -> 0 | AY49: ='Cap Exp and Op Exp Assumptions'!$G$40*AY$7 -> 0 | AZ49: ='Cap Exp and Op Exp Assumptions'!$G$40*AZ$7 -> 0 | BA49: ='Cap Exp and Op Exp Assumptions'!$G$40*BA$7 -> 0 | BB49: ='Cap Exp and Op Exp Assumptions'!$G$40*BB$7 -> 0 | BC49: ='Cap Exp and Op Exp Assumptions'!$G$40*BC$7 -> 0 | BD49: ='Cap Exp and Op Exp Assumptions'!$G$40*BD$7 -> 0 | BE49: ='Cap Exp and Op Exp Assumptions'!$G$40*BE$7 -> 0 | BF49: ='Cap Exp and Op Exp Assumptions'!$G$40*BF$7 -> 0 | BG49: ='Cap Exp and Op Exp Assumptions'!$G$40*BG$7 -> 0 | BH49: ='Cap Exp and Op Exp Assumptions'!$G$40*BH$7 -> 0 | BI49: ='Cap Exp and Op Exp Assumptions'!$G$40*BI$7 -> 0 | BJ49: ='Cap Exp and Op Exp Assumptions'!$G$40*BJ$7 -> 0 | BK49: ='Cap Exp and Op Exp Assumptions'!$G$40*BK$7 -> 0 | BL49: ='Cap Exp and Op Exp Assumptions'!$G$40*BL$7 -> 0 | BM49: ='Cap Exp and Op Exp Assumptions'!$G$40*BM$7 -> 0 | BN49: ='Cap Exp and Op Exp Assumptions'!$G$40*BN$7 -> 0 | BO49: ='Cap Exp and Op Exp Assumptions'!$G$40*BO$7 -> 0 | BP49: ='Cap Exp and Op Exp Assumptions'!$G$40*BP$7 -> 0 | BQ49: ='Cap Exp and Op Exp Assumptions'!$G$40*BQ$7 -> 0
C50: 18
C51: 18 | E51: Output ( P50 yrs 1-15) | H51: 0 | J51: =J46*J$13 -> 0 | K51: 0 | L51: 0 | M51: 0 | N51: 0 | O51: 0 | P51: 0 | Q51: 0 | R51: 0 | S51: 0 | T51: 0 | U51: 0 | V51: 0 | W51: 0 | X51: 0 | Y51: 0 | Z51: 0 | AA51: 0 | AB51: 0 | AC51: 0 | AD51: 0 | AE51: 0 | AF51: 0 | AG51: 0 | AH51: 0 | AI51: 0 | AJ51: 0 | AK51: 0 | AL51: 0 | AM51: 0 | AN51: 0 | AO51: 0 | AP51: =AP46*AP$13 -> 0 | AQ51: 0 | AR51: 0 | AS51: 0 | AT51: 0 | AU51: 0 | AV51: 0 | AW51: 0 | AX51: 0 | AY51: 0 | AZ51: 0 | BA51: 0 | BB51: 0 | BC51: 0 | BD51: 0 | BE51: 0 | BF51: 0 | BG51: 0 | BH51: 0 | BI51: 0 | BJ51: 0 | BK51: 0 | BL51: 0 | BM51: 0 | BN51: 0 | BO51: 0 | BP51: 0 | BQ51: 0
C52: 18 | E52: Output ( P50 yrs 16-20) | H52: 0 | J52: =J46*J$14 -> 0 | K52: 0 | L52: 0 | M52: 0 | N52: 0 | O52: 0 | P52: 0 | Q52: 0 | R52: 0 | S52: 0 | T52: 0 | U52: 0 | V52: 0 | W52: 0 | X52: 0 | Y52: 0 | Z52: 0 | AA52: 0 | AB52: 0 | AC52: 0 | AD52: 0 | AE52: 0 | AF52: 0 | AG52: 0 | AH52: 0 | AI52: 0 | AJ52: 0 | AK52: 0 | AL52: 0 | AM52: 0 | AN52: 0 | AO52: 0 | AP52: =AP46*AP$14 -> 0 | AQ52: 0 | AR52: 0 | AS52: 0 | AT52: 0 | AU52: 0 | AV52: 0 | AW52: 0 | AX52: 0 | AY52: 0 | AZ52: 0 | BA52: 0 | BB52: 0 | BC52: 0 | BD52: 0 | BE52: 0 | BF52: 0 | BG52: 0 | BH52: 0 | BI52: 0 | BJ52: 0 | BK52: 0 | BL52: 0 | BM52: 0 | BN52: 0 | BO52: 0 | BP52: 0 | BQ52: 0
C53: 18 | E53: Output ( P75 yrs 1-15) | H53: 0 | J53: =J$47*J$13 -> 0 | K53: 0 | L53: 0 | M53: 0 | N53: 0 | O53: 0 | P53: 0 | Q53: 0 | R53: 0 | S53: 0 | T53: 0 | U53: 0 | V53: 0 | W53: 0 | X53: 0 | Y53: 0 | Z53: 0 | AA53: 0 | AB53: 0 | AC53: 0 | AD53: 0 | AE53: 0 | AF53: 0 | AG53: 0 | AH53: 0 | AI53: 0 | AJ53: 0 | AK53: 0 | AL53: 0 | AM53: 0 | AN53: 0 | AO53: 0 | AP53: =AP$47*AP$13 -> 0 | AQ53: 0 | AR53: 0 | AS53: 0 | AT53: 0 | AU53: 0 | AV53: 0 | AW53: 0 | AX53: 0 | AY53: 0 | AZ53: 0 | BA53: 0 | BB53: 0 | BC53: 0 | BD53: 0 | BE53: 0 | BF53: 0 | BG53: 0 | BH53: 0 | BI53: 0 | BJ53: 0 | BK53: 0 | BL53: 0 | BM53: 0 | BN53: 0 | BO53: 0 | BP53: 0 | BQ53: 0
C54: 18 | E54: Output ( P75 yrs 16-20) | H54: 0 | J54: =J$47*J$14 -> 0 | K54: 0 | L54: 0 | M54: 0 | N54: 0 | O54: 0 | P54: 0 | Q54: 0 | R54: 0 | S54: 0 | T54: 0 | U54: 0 | V54: 0 | W54: 0 | X54: 0 | Y54: 0 | Z54: 0 | AA54: 0 | AB54: 0 | AC54: 0 | AD54: 0 | AE54: 0 | AF54: 0 | AG54: 0 | AH54: 0 | AI54: 0 | AJ54: 0 | AK54: 0 | AL54: 0 | AM54: 0 | AN54: 0 | AO54: 0 | AP54: =AP$47*AP$14 -> 0 | AQ54: 0 | AR54: 0 | AS54: 0 | AT54: 0 | AU54: 0 | AV54: 0 | AW54: 0 | AX54: 0 | AY54: 0 | AZ54: 0 | BA54: 0 | BB54: 0 | BC54: 0 | BD54: 0 | BE54: 0 | BF54: 0 | BG54: 0 | BH54: 0 | BI54: 0 | BJ54: 0 | BK54: 0 | BL54: 0 | BM54: 0 | BN54: 0 | BO54: 0 | BP54: 0 | BQ54: 0
C55: 18
C56: 18 | E56: Output ( P90 yrs 1-15) | H56: 0 | J56: =J$48*J$13 -> 0 | K56: 0 | L56: 0 | M56: 0 | N56: 0 | O56: 0 | P56: 0 | Q56: 0 | R56: 0 | S56: 0 | T56: 0 | U56: 0 | V56: 0 | W56: 0 | X56: 0 | Y56: 0 | Z56: 0 | AA56: 0 | AB56: 0 | AC56: 0 | AD56: 0 | AE56: 0 | AF56: 0 | AG56: 0 | AH56: 0 | AI56: 0 | AJ56: 0 | AK56: 0 | AL56: 0 | AM56: 0 | AN56: 0 | AO56: 0 | AP56: =AP$48*AP$13 -> 0 | AQ56: 0 | AR56: 0 | AS56: 0 | AT56: 0 | AU56: 0 | AV56: 0 | AW56: 0 | AX56: 0 | AY56: 0 | AZ56: 0 | BA56: 0 | BB56: 0 | BC56: 0 | BD56: 0 | BE56: 0 | BF56: 0 | BG56: 0 | BH56: 0 | BI56: 0 | BJ56: 0 | BK56: 0 | BL56: 0 | BM56: 0 | BN56: 0 | BO56: 0 | BP56: 0 | BQ56: 0
C57: 18 | E57: Output ( P90 yrs 16-20) | H57: 0 | J57: =J$48*J$14 -> 0 | K57: 0 | L57: 0 | M57: 0 | N57: 0 | O57: 0 | P57: 0 | Q57: 0 | R57: 0 | S57: 0 | T57: 0 | U57: 0 | V57: 0 | W57: 0 | X57: 0 | Y57: 0 | Z57: 0 | AA57: 0 | AB57: 0 | AC57: 0 | AD57: 0 | AE57: 0 | AF57: 0 | AG57: 0 | AH57: 0 | AI57: 0 | AJ57: 0 | AK57: 0 | AL57: 0 | AM57: 0 | AN57: 0 | AO57: 0 | AP57: =AP$48*AP$14 -> 0 | AQ57: 0 | AR57: 0 | AS57: 0 | AT57: 0 | AU57: 0 | AV57: 0 | AW57: 0 | AX57: 0 | AY57: 0 | AZ57: 0 | BA57: 0 | BB57: 0 | BC57: 0 | BD57: 0 | BE57: 0 | BF57: 0 | BG57: 0 | BH57: 0 | BI57: 0 | BJ57: 0 | BK57: 0 | BL57: 0 | BM57: 0 | BN57: 0 | BO57: 0 | BP57: 0 | BQ57: 0
C58: 18 | E58: Output ( P99 yrs 1-15) | H58: 0 | J58: =J$49*J$13 -> 0 | K58: 0 | L58: 0 | M58: 0 | N58: 0 | O58: 0 | P58: 0 | Q58: 0 | R58: 0 | S58: 0 | T58: 0 | U58: 0 | V58: 0 | W58: 0 | X58: 0 | Y58: 0 | Z58: 0 | AA58: 0 | AB58: 0 | AC58: 0 | AD58: 0 | AE58: 0 | AF58: 0 | AG58: 0 | AH58: 0 | AI58: 0 | AJ58: 0 | AK58: 0 | AL58: 0 | AM58: 0 | AN58: 0 | AO58: 0 | AP58: =AP$49*AP$13 -> 0 | AQ58: 0 | AR58: 0 | AS58: 0 | AT58: 0 | AU58: 0 | AV58: 0 | AW58: 0 | AX58: 0 | AY58: 0 | AZ58: 0 | BA58: 0 | BB58: 0 | BC58: 0 | BD58: 0 | BE58: 0 | BF58: 0 | BG58: 0 | BH58: 0 | BI58: 0 | BJ58: 0 | BK58: 0 | BL58: 0 | BM58: 0 | BN58: 0 | BO58: 0 | BP58: 0 | BQ58: 0
C59: 18 | E59: Output ( P99 yrs 16-20) | H59: 0 | J59: =J$49*J$14 -> 0 | K59: 0 | L59: 0 | M59: 0 | N59: 0 | O59: 0 | P59: 0 | Q59: 0 | R59: 0 | S59: 0 | T59: 0 | U59: 0 | V59: 0 | W59: 0 | X59: 0 | Y59: 0 | Z59: 0 | AA59: 0 | AB59: 0 | AC59: 0 | AD59: 0 | AE59: 0 | AF59: 0 | AG59: 0 | AH59: 0 | AI59: 0 | AJ59: 0 | AK59: 0 | AL59: 0 | AM59: 0 | AN59: 0 | AO59: 0 | AP59: =AP$49*AP$14 -> 0 | AQ59: 0 | AR59: 0 | AS59: 0 | AT59: 0 | AU59: 0 | AV59: 0 | AW59: 0 | AX59: 0 | AY59: 0 | AZ59: 0 | BA59: 0 | BB59: 0 | BC59: 0 | BD59: 0 | BE59: 0 | BF59: 0 | BG59: 0 | BH59: 0 | BI59: 0 | BJ59: 0 | BK59: 0 | BL59: 0 | BM59: 0 | BN59: 0 | BO59: 0 | BP59: 0 | BQ59: 0
C60: 18
C61: 18 | D61: Output (mw/h) years 1-15
B62: TRUE | C62: 19 | E62: Scenario 1 (P50) | J62: =J$35 -> 0 | K62: 0 | L62: 0 | M62: 0 | N62: 0 | O62: 19400 | P62: 19400 | Q62: 19400 | R62: 19400 | S62: 19400 | T62: 19400 | U62: 19400 | V62: 19400 | W62: 19400 | X62: 19400 | Y62: 19400 | Z62: 19400 | AA62: 19400 | AB62: 19400 | AC62: 19400 | AD62: 19400 | AE62: 19400 | AF62: 19400 | AG62: 19400 | AH62: 19400 | AI62: 19400 | AJ62: 19400 | AK62: 19400 | AL62: 19400 | AM62: 19400 | AN62: 19400 | AO62: 19400 | AP62: =AP$35 -> 19400 | AQ62: 19400 | AR62: 16166.66667 | AS62: 0 | AT62: 0 | AU62: 0 | AV62: 0 | AW62: 0 | AX62: 0 | AY62: 0 | AZ62: 0 | BA62: 0 | BB62: 0 | BC62: 0 | BD62: 0 | BE62: 0 | BF62: 0 | BG62: 0 | BH62: 0 | BI62: 0 | BJ62: 0 | BK62: 0 | BL62: 0 | BM62: 0 | BN62: 0 | BO62: 0 | BP62: 0 | BQ62: 0
B63: TRUE | C63: 20 | E63: Scenario 2 (P75) | J63: =J$37 -> 0 | K63: 0 | L63: 0 | M63: 0 | N63: 0 | O63: 18100 | P63: 18100 | Q63: 18100 | R63: 18100 | S63: 18100 | T63: 18100 | U63: 18100 | V63: 18100 | W63: 18100 | X63: 18100 | Y63: 18100 | Z63: 18100 | AA63: 18100 | AB63: 18100 | AC63: 18100 | AD63: 18100 | AE63: 18100 | AF63: 18100 | AG63: 18100 | AH63: 18100 | AI63: 18100 | AJ63: 18100 | AK63: 18100 | AL63: 18100 | AM63: 18100 | AN63: 18100 | AO63: 18100 | AP63: =AP$37 -> 18100 | AQ63: 18100 | AR63: 15083.33333 | AS63: 0 | AT63: 0 | AU63: 0 | AV63: 0 | AW63: 0 | AX63: 0 | AY63: 0 | AZ63: 0 | BA63: 0 | BB63: 0 | BC63: 0 | BD63: 0 | BE63: 0 | BF63: 0 | BG63: 0 | BH63: 0 | BI63: 0 | BJ63: 0 | BK63: 0 | BL63: 0 | BM63: 0 | BN63: 0 | BO63: 0 | BP63: 0 | BQ63: 0
B64: TRUE | C64: 21 | E64: Scenario 3 (P90) | J64: =J$40 -> 0 | K64: 0 | L64: 0 | M64: 0 | N64: 0 | O64: 17000 | P64: 17000 | Q64: 17000 | R64: 17000 | S64: 17000 | T64: 17000 | U64: 17000 | V64: 17000 | W64: 17000 | X64: 17000 | Y64: 17000 | Z64: 17000 | AA64: 17000 | AB64: 17000 | AC64: 17000 | AD64: 17000 | AE64: 17000 | AF64: 17000 | AG64: 17000 | AH64: 17000 | AI64: 17000 | AJ64: 17000 | AK64: 17000 | AL64: 17000 | AM64: 17000 | AN64: 17000 | AO64: 17000 | AP64: =AP$40 -> 17000 | AQ64: 17000 | AR64: 14166.66667 | AS64: 0 | AT64: 0 | AU64: 0 | AV64: 0 | AW64: 0 | AX64: 0 | AY64: 0 | AZ64: 0 | BA64: 0 | BB64: 0 | BC64: 0 | BD64: 0 | BE64: 0 | BF64: 0 | BG64: 0 | BH64: 0 | BI64: 0 | BJ64: 0 | BK64: 0 | BL64: 0 | BM64: 0 | BN64: 0 | BO64: 0 | BP64: 0 | BQ64: 0
B65: TRUE | C65: 22 | E65: Scenario 4 (P99) | J65: =J$42 -> 0 | K65: 0 | L65: 0 | M65: 0 | N65: 0 | O65: 15300 | P65: 15300 | Q65: 15300 | R65: 15300 | S65: 15300 | T65: 15300 | U65: 15300 | V65: 15300 | W65: 15300 | X65: 15300 | Y65: 15300 | Z65: 15300 | AA65: 15300 | AB65: 15300 | AC65: 15300 | AD65: 15300 | AE65: 15300 | AF65: 15300 | AG65: 15300 | AH65: 15300 | AI65: 15300 | AJ65: 15300 | AK65: 15300 | AL65: 15300 | AM65: 15300 | AN65: 15300 | AO65: 15300 | AP65: =AP$42 -> 15300 | AQ65: 15300 | AR65: 12750 | AS65: 0 | AT65: 0 | AU65: 0 | AV65: 0 | AW65: 0 | AX65: 0 | AY65: 0 | AZ65: 0 | BA65: 0 | BB65: 0 | BC65: 0 | BD65: 0 | BE65: 0 | BF65: 0 | BG65: 0 | BH65: 0 | BI65: 0 | BJ65: 0 | BK65: 0 | BL65: 0 | BM65: 0 | BN65: 0 | BO65: 0 | BP65: 0 | BQ65: 0
B66: TRUE | C66: 23 | E66: =CHOOSE('Cockpit Page'!$D$38,E62,E63,E64,E65) -> Scenario 2 (P75) | F66: ='Cockpit Page'!D38 -> 2 | G66: =INDEX('Cockpit Page'!$C$67:$C$70,F66) -> P75 | J66: =INDEX(J62:J65,$F$66) -> 0 | K66: 0 | L66: 0 | M66: 0 | N66: 0 | O66: 18100 | P66: 18100 | Q66: 18100 | R66: 18100 | S66: 18100 | T66: 18100 | U66: 18100 | V66: 18100 | W66: 18100 | X66: 18100 | Y66: 18100 | Z66: 18100 | AA66: 18100 | AB66: 18100 | AC66: 18100 | AD66: 18100 | AE66: 18100 | AF66: 18100 | AG66: 18100 | AH66: 18100 | AI66: 18100 | AJ66: 18100 | AK66: 18100 | AL66: 18100 | AM66: 18100 | AN66: 18100 | AO66: 18100 | AP66: =INDEX(AP62:AP65,$F$66) -> 18100 | AQ66: 18100 | AR66: 15083.33333 | AS66: 0 | AT66: 0 | AU66: 0 | AV66: 0 | AW66: 0 | AX66: 0 | AY66: 0 | AZ66: 0 | BA66: 0 | BB66: 0 | BC66: 0 | BD66: 0 | BE66: 0 | BF66: 0 | BG66: 0 | BH66: 0 | BI66: 0 | BJ66: 0 | BK66: 0 | BL66: 0 | BM66: 0 | BN66: 0 | BO66: 0 | BP66: 0 | BQ66: 0
C67: 23 | D67: ='Cap Exp and Op Exp Assumptions'!$G$7&"MW"&" "&"(Refit 1)" -> 12.5MW (Refit 1)
C68: 23 | D68: Output (mw/h) post year 15
C69: 23 | E69: Scenario 1 (P50) | J69: =J$36 -> 0 | K69: 0 | L69: 0 | M69: 0 | N69: 0 | O69: 0 | P69: 0 | Q69: 0 | R69: 0 | S69: 0 | T69: 0 | U69: 0 | V69: 0 | W69: 0 | X69: 0 | Y69: 0 | Z69: 0 | AA69: 0 | AB69: 0 | AC69: 0 | AD69: 0 | AE69: 0 | AF69: 0 | AG69: 0 | AH69: 0 | AI69: 0 | AJ69: 0 | AK69: 0 | AL69: 0 | AM69: 0 | AN69: 0 | AO69: 0 | AP69: =AP$36 -> 0 | AQ69: 0 | AR69: 3233.333333 | AS69: 19400 | AT69: 19400 | AU69: 19400 | AV69: 19400 | AW69: 19400 | AX69: 19400 | AY69: 19400 | AZ69: 19400 | BA69: 19400 | BB69: 19400 | BC69: 19400 | BD69: 19400 | BE69: 19400 | BF69: 19400 | BG69: 19400 | BH69: 19400 | BI69: 19400 | BJ69: 19400 | BK69: 19400 | BL69: 16166.66667 | BM69: 0 | BN69: 0 | BO69: 0 | BP69: 0 | BQ69: 0
C70: 23 | E70: Scenario 2 (P75) | J70: =J$38 -> 0 | K70: 0 | L70: 0 | M70: 0 | N70: 0 | O70: 0 | P70: 0 | Q70: 0 | R70: 0 | S70: 0 | T70: 0 | U70: 0 | V70: 0 | W70: 0 | X70: 0 | Y70: 0 | Z70: 0 | AA70: 0 | AB70: 0 | AC70: 0 | AD70: 0 | AE70: 0 | AF70: 0 | AG70: 0 | AH70: 0 | AI70: 0 | AJ70: 0 | AK70: 0 | AL70: 0 | AM70: 0 | AN70: 0 | AO70: 0 | AP70: =AP$38 -> 0 | AQ70: 0 | AR70: 3016.666667 | AS70: 18100 | AT70: 18100 | AU70: 18100 | AV70: 18100 | AW70: 18100 | AX70: 18100 | AY70: 18100 | AZ70: 18100 | BA70: 18100 | BB70: 18100 | BC70: 18100 | BD70: 18100 | BE70: 18100 | BF70: 18100 | BG70: 18100 | BH70: 18100 | BI70: 18100 | BJ70: 18100 | BK70: 18100 | BL70: 15083.33333 | BM70: 0 | BN70: 0 | BO70: 0 | BP70: 0 | BQ70: 0
C71: 23 | E71: Scenario 3 (P90) | J71: =J$41 -> 0 | K71: 0 | L71: 0 | M71: 0 | N71: 0 | O71: 0 | P71: 0 | Q71: 0 | R71: 0 | S71: 0 | T71: 0 | U71: 0 | V71: 0 | W71: 0 | X71: 0 | Y71: 0 | Z71: 0 | AA71: 0 | AB71: 0 | AC71: 0 | AD71: 0 | AE71: 0 | AF71: 0 | AG71: 0 | AH71: 0 | AI71: 0 | AJ71: 0 | AK71: 0 | AL71: 0 | AM71: 0 | AN71: 0 | AO71: 0 | AP71: =AP$41 -> 0 | AQ71: 0 | AR71: 2833.333333 | AS71: 17000 | AT71: 17000 | AU71: 17000 | AV71: 17000 | AW71: 17000 | AX71: 17000 | AY71: 17000 | AZ71: 17000 | BA71: 17000 | BB71: 17000 | BC71: 17000 | BD71: 17000 | BE71: 17000 | BF71: 17000 | BG71: 17000 | BH71: 17000 | BI71: 17000 | BJ71: 17000 | BK71: 17000 | BL71: 14166.66667 | BM71: 0 | BN71: 0 | BO71: 0 | BP71: 0 | BQ71: 0
C72: 23 | E72: Scenario 4 (P99) | J72: =J$43 -> 0 | K72: 0 | L72: 0 | M72: 0 | N72: 0 | O72: 0 | P72: 0 | Q72: 0 | R72: 0 | S72: 0 | T72: 0 | U72: 0 | V72: 0 | W72: 0 | X72: 0 | Y72: 0 | Z72: 0 | AA72: 0 | AB72: 0 | AC72: 0 | AD72: 0 | AE72: 0 | AF72: 0 | AG72: 0 | AH72: 0 | AI72: 0 | AJ72: 0 | AK72: 0 | AL72: 0 | AM72: 0 | AN72: 0 | AO72: 0 | AP72: =AP$43 -> 0 | AQ72: 0 | AR72: 2550 | AS72: 15300 | AT72: 15300 | AU72: 15300 | AV72: 15300 | AW72: 15300 | AX72: 15300 | AY72: 15300 | AZ72: 15300 | BA72: 15300 | BB72: 15300 | BC72: 15300 | BD72: 15300 | BE72: 15300 | BF72: 15300 | BG72: 15300 | BH72: 15300 | BI72: 15300 | BJ72: 15300 | BK72: 15300 | BL72: 12750 | BM72: 0 | BN72: 0 | BO72: 0 | BP72: 0 | BQ72: 0
C73: 23 | E73: =CHOOSE('Cockpit Page'!$D$38,E69,E70,E71,E72) -> Scenario 2 (P75) | F73: ='Cockpit Page'!D38 -> 2 | G73: =INDEX('Cockpit Page'!$C$67:$C$70,F73) -> P75 | J73: =INDEX(J69:J72,$F$73) -> 0 | K73: =INDEX(K69:K72,$F$73) -> 0 | L73: 0 | M73: 0 | N73: 0 | O73: 0 | P73: 0 | Q73: 0 | R73: 0 | S73: 0 | T73: 0 | U73: 0 | V73: 0 | W73: 0 | X73: 0 | Y73: 0 | Z73: 0 | AA73: 0 | AB73: 0 | AC73: 0 | AD73: 0 | AE73: 0 | AF73: 0 | AG73: 0 | AH73: 0 | AI73: 0 | AJ73: 0 | AK73: 0 | AL73: 0 | AM73: 0 | AN73: 0 | AO73: 0 | AP73: 0 | AQ73: 0 | AR73: 3016.666667 | AS73: 18100 | AT73: 18100 | AU73: 18100 | AV73: 18100 | AW73: 18100 | AX73: 18100 | AY73: 18100 | AZ73: 18100 | BA73: 18100 | BB73: 18100 | BC73: 18100 | BD73: 18100 | BE73: 18100 | BF73: 18100 | BG73: 18100 | BH73: 18100 | BI73: 18100 | BJ73: 18100 | BK73: 18100 | BL73: 15083.33333 | BM73: 0 | BN73: 0 | BO73: 0 | BP73: 0 | BQ73: 0
C74: 23 | D74: ='Cap Exp and Op Exp Assumptions'!$G$8&"MW"&" "&"(Refit 2)" -> 0MW (Refit 2)
C75: 23 | E75: Output (mw/h) years 1-15
C76: 23 | E76: Scenario 1 (P50) | J76: =J$51 -> 0 | K76: 0 | L76: 0 | M76: 0 | N76: 0 | O76: 0 | P76: 0 | Q76: 0 | R76: 0 | S76: 0 | T76: 0 | U76: 0 | V76: 0 | W76: 0 | X76: 0 | Y76: 0 | Z76: 0 | AA76: 0 | AB76: 0 | AC76: 0 | AD76: 0 | AE76: 0 | AF76: 0 | AG76: 0 | AH76: 0 | AI76: 0 | AJ76: 0 | AK76: 0 | AL76: 0 | AM76: 0 | AN76: 0 | AO76: 0 | AP76: =AP$51 -> 0 | AQ76: 0 | AR76: 0 | AS76: 0 | AT76: 0 | AU76: 0 | AV76: 0 | AW76: 0 | AX76: 0 | AY76: 0 | AZ76: 0 | BA76: 0 | BB76: 0 | BC76: 0 | BD76: 0 | BE76: 0 | BF76: 0 | BG76: 0 | BH76: 0 | BI76: 0 | BJ76: 0 | BK76: 0 | BL76: 0 | BM76: 0 | BN76: 0 | BO76: 0 | BP76: 0 | BQ76: 0
C77: 23 | E77: Scenario 2 (P75) | J77: =J$53 -> 0 | K77: 0 | L77: 0 | M77: 0 | N77: 0 | O77: 0 | P77: 0 | Q77: 0 | R77: 0 | S77: 0 | T77: 0 | U77: 0 | V77: 0 | W77: 0 | X77: 0 | Y77: 0 | Z77: 0 | AA77: 0 | AB77: 0 | AC77: 0 | AD77: 0 | AE77: 0 | AF77: 0 | AG77: 0 | AH77: 0 | AI77: 0 | AJ77: 0 | AK77: 0 | AL77: 0 | AM77: 0 | AN77: 0 | AO77: 0 | AP77: =AP$53 -> 0 | AQ77: 0 | AR77: 0 | AS77: 0 | AT77: 0 | AU77: 0 | AV77: 0 | AW77: 0 | AX77: 0 | AY77: 0 | AZ77: 0 | BA77: 0 | BB77: 0 | BC77: 0 | BD77: 0 | BE77: 0 | BF77: 0 | BG77: 0 | BH77: 0 | BI77: 0 | BJ77: 0 | BK77: 0 | BL77: 0 | BM77: 0 | BN77: 0 | BO77: 0 | BP77: 0 | BQ77: 0
C78: 23 | E78: Scenario 3 (P90) | J78: =J$56 -> 0 | K78: 0 | L78: 0 | M78: 0 | N78: 0 | O78: 0 | P78: 0 | Q78: 0 | R78: 0 | S78: 0 | T78: 0 | U78: 0 | V78: 0 | W78: 0 | X78: 0 | Y78: 0 | Z78: 0 | AA78: 0 | AB78: 0 | AC78: 0 | AD78: 0 | AE78: 0 | AF78: 0 | AG78: 0 | AH78: 0 | AI78: 0 | AJ78: 0 | AK78: 0 | AL78: 0 | AM78: 0 | AN78: 0 | AO78: 0 | AP78: =AP$56 -> 0 | AQ78: 0 | AR78: 0 | AS78: 0 | AT78: 0 | AU78: 0 | AV78: 0 | AW78: 0 | AX78: 0 | AY78: 0 | AZ78: 0 | BA78: 0 | BB78: 0 | BC78: 0 | BD78: 0 | BE78: 0 | BF78: 0 | BG78: 0 | BH78: 0 | BI78: 0 | BJ78: 0 | BK78: 0 | BL78: 0 | BM78: 0 | BN78: 0 | BO78: 0 | BP78: 0 | BQ78: 0
C79: 23 | E79: Scenario 4 (P99) | J79: =J$58 -> 0 | K79: 0 | L79: 0 | M79: 0 | N79: 0 | O79: 0 | P79: 0 | Q79: 0 | R79: 0 | S79: 0 | T79: 0 | U79: 0 | V79: 0 | W79: 0 | X79: 0 | Y79: 0 | Z79: 0 | AA79: 0 | AB79: 0 | AC79: 0 | AD79: 0 | AE79: 0 | AF79: 0 | AG79: 0 | AH79: 0 | AI79: 0 | AJ79: 0 | AK79: 0 | AL79: 0 | AM79: 0 | AN79: 0 | AO79: 0 | AP79: =AP$58 -> 0 | AQ79: 0 | AR79: 0 | AS79: 0 | AT79: 0 | AU79: 0 | AV79: 0 | AW79: 0 | AX79: 0 | AY79: 0 | AZ79: 0 | BA79: 0 | BB79: 0 | BC79: 0 | BD79: 0 | BE79: 0 | BF79: 0 | BG79: 0 | BH79: 0 | BI79: 0 | BJ79: 0 | BK79: 0 | BL79: 0 | BM79: 0 | BN79: 0 | BO79: 0 | BP79: 0 | BQ79: 0
C80: 23 | E80: =CHOOSE('Cockpit Page'!$D$38,E76,E77,E78,E79) -> Scenario 2 (P75) | F80: ='Cockpit Page'!D38 -> 2 | G80: =INDEX('Cockpit Page'!$C$67:$C$70,F80) -> P75 | J80: =INDEX(J76:J79,$F$80) -> 0 | K80: =INDEX(K76:K79,$F$80) -> 0 | L80: 0 | M80: 0 | N80: 0 | O80: 0 | P80: 0 | Q80: 0 | R80: 0 | S80: 0 | T80: 0 | U80: 0 | V80: 0 | W80: 0 | X80: 0 | Y80: 0 | Z80: 0 | AA80: 0 | AB80: 0 | AC80: 0 | AD80: 0 | AE80: 0 | AF80: 0 | AG80: 0 | AH80: 0 | AI80: 0 | AJ80: 0 | AK80: 0 | AL80: 0 | AM80: 0 | AN80: 0 | AO80: 0 | AP80: 0 | AQ80: 0 | AR80: 0 | AS80: 0 | AT80: 0 | AU80: 0 | AV80: 0 | AW80: 0 | AX80: 0 | AY80: 0 | AZ80: 0 | BA80: 0 | BB80: 0 | BC80: 0 | BD80: 0 | BE80: 0 | BF80: 0 | BG80: 0 | BH80: 0 | BI80: 0 | BJ80: 0 | BK80: 0 | BL80: 0 | BM80: 0 | BN80: 0 | BO80: 0 | BP80: 0 | BQ80: 0
C81: 23 | D81: ='Cap Exp and Op Exp Assumptions'!$G$8&"MW"&" "&"(Refit 2)" -> 0MW (Refit 2)
C82: 23 | E82: Output (mw/h) post year 15
C83: 23 | E83: Scenario 1 (P50) | J83: =J$52 -> 0 | K83: 0 | L83: 0 | M83: 0 | N83: 0 | O83: 0 | P83: 0 | Q83: 0 | R83: 0 | S83: 0 | T83: 0 | U83: 0 | V83: 0 | W83: 0 | X83: 0 | Y83: 0 | Z83: 0 | AA83: 0 | AB83: 0 | AC83: 0 | AD83: 0 | AE83: 0 | AF83: 0 | AG83: 0 | AH83: 0 | AI83: 0 | AJ83: 0 | AK83: 0 | AL83: 0 | AM83: 0 | AN83: 0 | AO83: 0 | AP83: =AP$52 -> 0 | AQ83: 0 | AR83: 0 | AS83: 0 | AT83: 0 | AU83: 0 | AV83: 0 | AW83: 0 | AX83: 0 | AY83: 0 | AZ83: 0 | BA83: 0 | BB83: 0 | BC83: 0 | BD83: 0 | BE83: 0 | BF83: 0 | BG83: 0 | BH83: 0 | BI83: 0 | BJ83: 0 | BK83: 0 | BL83: 0 | BM83: 0 | BN83: 0 | BO83: 0 | BP83: 0 | BQ83: 0
C84: 23 | E84: Scenario 2 (P75) | J84: =J$54 -> 0 | K84: 0 | L84: 0 | M84: 0 | N84: 0 | O84: 0 | P84: 0 | Q84: 0 | R84: 0 | S84: 0 | T84: 0 | U84: 0 | V84: 0 | W84: 0 | X84: 0 | Y84: 0 | Z84: 0 | AA84: 0 | AB84: 0 | AC84: 0 | AD84: 0 | AE84: 0 | AF84: 0 | AG84: 0 | AH84: 0 | AI84: 0 | AJ84: 0 | AK84: 0 | AL84: 0 | AM84: 0 | AN84: 0 | AO84: 0 | AP84: =AP$54 -> 0 | AQ84: 0 | AR84: 0 | AS84: 0 | AT84: 0 | AU84: 0 | AV84: 0 | AW84: 0 | AX84: 0 | AY84: 0 | AZ84: 0 | BA84: 0 | BB84: 0 | BC84: 0 | BD84: 0 | BE84: 0 | BF84: 0 | BG84: 0 | BH84: 0 | BI84: 0 | BJ84: 0 | BK84: 0 | BL84: 0 | BM84: 0 | BN84: 0 | BO84: 0 | BP84: 0 | BQ84: 0
C85: 23 | E85: Scenario 3 (P90) | J85: =J$57 -> 0 | K85: 0 | L85: 0 | M85: 0 | N85: 0 | O85: 0 | P85: 0 | Q85: 0 | R85: 0 | S85: 0 | T85: 0 | U85: 0 | V85: 0 | W85: 0 | X85: 0 | Y85: 0 | Z85: 0 | AA85: 0 | AB85: 0 | AC85: 0 | AD85: 0 | AE85: 0 | AF85: 0 | AG85: 0 | AH85: 0 | AI85: 0 | AJ85: 0 | AK85: 0 | AL85: 0 | AM85: 0 | AN85: 0 | AO85: 0 | AP85: =AP$57 -> 0 | AQ85: 0 | AR85: 0 | AS85: 0 | AT85: 0 | AU85: 0 | AV85: 0 | AW85: 0 | AX85: 0 | AY85: 0 | AZ85: 0 | BA85: 0 | BB85: 0 | BC85: 0 | BD85: 0 | BE85: 0 | BF85: 0 | BG85: 0 | BH85: 0 | BI85: 0 | BJ85: 0 | BK85: 0 | BL85: 0 | BM85: 0 | BN85: 0 | BO85: 0 | BP85: 0 | BQ85: 0
C86: 23 | E86: Scenario 4 (P99) | J86: =J$59 -> 0 | K86: 0 | L86: 0 | M86: 0 | N86: 0 | O86: 0 | P86: 0 | Q86: 0 | R86: 0 | S86: 0 | T86: 0 | U86: 0 | V86: 0 | W86: 0 | X86: 0 | Y86: 0 | Z86: 0 | AA86: 0 | AB86: 0 | AC86: 0 | AD86: 0 | AE86: 0 | AF86: 0 | AG86: 0 | AH86: 0 | AI86: 0 | AJ86: 0 | AK86: 0 | AL86: 0 | AM86: 0 | AN86: 0 | AO86: 0 | AP86: =AP$59 -> 0 | AQ86: 0 | AR86: 0 | AS86: 0 | AT86: 0 | AU86: 0 | AV86: 0 | AW86: 0 | AX86: 0 | AY86: 0 | AZ86: 0 | BA86: 0 | BB86: 0 | BC86: 0 | BD86: 0 | BE86: 0 | BF86: 0 | BG86: 0 | BH86: 0 | BI86: 0 | BJ86: 0 | BK86: 0 | BL86: 0 | BM86: 0 | BN86: 0 | BO86: 0 | BP86: 0 | BQ86: 0
C87: 23 | E87: =CHOOSE('Cockpit Page'!$D$38,E83,E84,E85,E86) -> Scenario 2 (P75) | F87: ='Cockpit Page'!D38 -> 2 | G87: =INDEX('Cockpit Page'!$C$67:$C$70,F87) -> P75 | J87: =INDEX(J83:J86,$F$87) -> 0 | K87: =INDEX(K83:K86,$F$87) -> 0 | L87: 0 | M87: 0 | N87: 0 | O87: 0 | P87: 0 | Q87: 0 | R87: 0 | S87: 0 | T87: 0 | U87: 0 | V87: 0 | W87: 0 | X87: 0 | Y87: 0 | Z87: 0 | AA87: 0 | AB87: 0 | AC87: 0 | AD87: 0 | AE87: 0 | AF87: 0 | AG87: 0 | AH87: 0 | AI87: 0 | AJ87: 0 | AK87: 0 | AL87: 0 | AM87: 0 | AN87: 0 | AO87: 0 | AP87: 0 | AQ87: 0 | AR87: 0 | AS87: 0 | AT87: 0 | AU87: 0 | AV87: 0 | AW87: 0 | AX87: 0 | AY87: 0 | AZ87: 0 | BA87: 0 | BB87: 0 | BC87: 0 | BD87: 0 | BE87: 0 | BF87: 0 | BG87: 0 | BH87: 0 | BI87: 0 | BJ87: 0 | BK87: 0 | BL87: 0 | BM87: 0 | BN87: 0 | BO87: 0 | BP87: 0 | BQ87: 0
C88: 23
C89: 23 | E89: Gross Total Energy - Refit 1 | J89: =J66+J73 -> 0 | K89: =K66+K73 -> 0 | L89: 0 | M89: 0 | N89: 0 | O89: 18100 | P89: 18100 | Q89: 18100 | R89: 18100 | S89: 18100 | T89: 18100 | U89: 18100 | V89: 18100 | W89: 18100 | X89: 18100 | Y89: 18100 | Z89: 18100 | AA89: 18100 | AB89: 18100 | AC89: 18100 | AD89: 18100 | AE89: 18100 | AF89: 18100 | AG89: 18100 | AH89: 18100 | AI89: 18100 | AJ89: 18100 | AK89: 18100 | AL89: 18100 | AM89: 18100 | AN89: 18100 | AO89: 18100 | AP89: 18100 | AQ89: 18100 | AR89: 18100 | AS89: 18100 | AT89: 18100 | AU89: 18100 | AV89: 18100 | AW89: 18100 | AX89: 18100 | AY89: 18100 | AZ89: 18100 | BA89: 18100 | BB89: 18100 | BC89: 18100 | BD89: 18100 | BE89: 18100 | BF89: 18100 | BG89: 18100 | BH89: 18100 | BI89: 18100 | BJ89: 18100 | BK89: 18100 | BL89: 15083.33333 | BM89: 0 | BN89: 0 | BO89: 0 | BP89: 0 | BQ89: 0
C90: 23 | E90: Gross Total Energy - Refit 2 | J90: =J87+J80 -> 0 | K90: =K87+K80 -> 0 | L90: 0 | M90: 0 | N90: 0 | O90: 0 | P90: 0 | Q90: 0 | R90: 0 | S90: 0 | T90: 0 | U90: 0 | V90: 0 | W90: 0 | X90: 0 | Y90: 0 | Z90: 0 | AA90: 0 | AB90: 0 | AC90: 0 | AD90: 0 | AE90: 0 | AF90: 0 | AG90: 0 | AH90: 0 | AI90: 0 | AJ90: 0 | AK90: 0 | AL90: 0 | AM90: 0 | AN90: 0 | AO90: 0 | AP90: 0 | AQ90: 0 | AR90: 0 | AS90: 0 | AT90: 0 | AU90: 0 | AV90: 0 | AW90: 0 | AX90: 0 | AY90: 0 | AZ90: 0 | BA90: 0 | BB90: 0 | BC90: 0 | BD90: 0 | BE90: 0 | BF90: 0 | BG90: 0 | BH90: 0 | BI90: 0 | BJ90: 0 | BK90: 0 | BL90: 0 | BM90: 0 | BN90: 0 | BO90: 0 | BP90: 0 | BQ90: 0
A91: Section 3: Constraints | C91: 23
C92: =C91+B92 -> 23 | D92: Reduction in Output from Energy Constraints
C93: 23 | E93: ="Constraint"&" "&'Cap Exp and Op Exp Assumptions'!$G$7&"MW"&" "&"(Refit 1 or Gate 2)" -> Constraint 12.5MW (Refit 1 or Gate 2)
B94: TRUE | C94: 24 | E94: Constraints in P90 and P99 Case | J94: =LOOKUP(J2,'Cap Exp and Op Exp Assumptions'!$E$80:$E$88,'Cap Exp and Op Exp Assumptions'!$G$80:$G$88) -> 0.0495 | K94: =LOOKUP(K2,'Cap Exp and Op Exp Assumptions'!$E$80:$E$88,'Cap Exp and Op Exp Assumptions'!$G$80:$G$88) -> 0.0495 | L94: =LOOKUP(L2,'Cap Exp and Op Exp Assumptions'!$E$80:$E$88,'Cap Exp and Op Exp Assumptions'!$G$80:$G$88) -> 0.057 | M94: =LOOKUP(M2,'Cap Exp and Op Exp Assumptions'!$E$80:$E$88,'Cap Exp and Op Exp Assumptions'!$G$80:$G$88) -> 0.057 | N94: =LOOKUP(N2,'Cap Exp and Op Exp Assumptions'!$E$80:$E$88,'Cap Exp and Op Exp Assumptions'!$G$80:$G$88) -> 0.02 | O94: =LOOKUP(O2,'Cap Exp and Op Exp Assumptions'!$E$80:$E$88,'Cap Exp and Op Exp Assumptions'!$G$80:$G$88) -> 0.02 | P94: =LOOKUP(P2,'Cap Exp and Op Exp Assumptions'!$E$80:$E$88,'Cap Exp and Op Exp Assumptions'!$G$80:$G$88) -> 0.031 | Q94: =LOOKUP(Q2,'Cap Exp and Op Exp Assumptions'!$E$80:$E$88,'Cap Exp and Op Exp Assumptions'!$G$80:$G$88) -> 0.031 | R94: =LOOKUP(R2,'Cap Exp and Op Exp Assumptions'!$E$80:$E$88,'Cap Exp and Op Exp Assumptions'!$G$80:$G$88) -> 0.031 | S94: =LOOKUP(S2,'Cap Exp and Op Exp Assumptions'!$E$80:$E$88,'Cap Exp and Op Exp Assumptions'!$G$80:$G$88) -> 0.031 | T94: =LOOKUP(T2,'Cap Exp and Op Exp Assumptions'!$E$80:$E$88,'Cap Exp and Op Exp Assumptions'!$G$80:$G$88) -> 0.037 | U94: =LOOKUP(U2,'Cap Exp and Op Exp Assumptions'!$E$80:$E$88,'Cap Exp and Op Exp Assumptions'!$G$80:$G$88) -> 0.037 | V94: =LOOKUP(V2,'Cap Exp and Op Exp Assumptions'!$E$80:$E$88,'Cap Exp and Op Exp Assumptions'!$G$80:$G$88) -> 0.037 | W94: =LOOKUP(W2,'Cap Exp and Op Exp Assumptions'!$E$80:$E$88,'Cap Exp and Op Exp Assumptions'!$G$80:$G$88) -> 0.037 | X94: =LOOKUP(X2,'Cap Exp and Op Exp Assumptions'!$E$80:$E$88,'Cap Exp and Op Exp Assumptions'!$G$80:$G$88) -> 0.037 | Y94: =LOOKUP(Y2,'Cap Exp and Op Exp Assumptions'!$E$80:$E$88,'Cap Exp and Op Exp Assumptions'!$G$80:$G$88) -> 0.037 | Z94: =LOOKUP(Z2,'Cap Exp and Op Exp Assumptions'!$E$80:$E$88,'Cap Exp and Op Exp Assumptions'!$G$80:$G$88) -> 0.037 | AA94: =LOOKUP(AA2,'Cap Exp and Op Exp Assumptions'!$E$80:$E$88,'Cap Exp and Op Exp Assumptions'!$G$80:$G$88) -> 0.037 | AB94: =LOOKUP(AB2,'Cap Exp and Op Exp Assumptions'!$E$80:$E$88,'Cap Exp and Op Exp Assumptions'!$G$80:$G$88) -> 0.037 | AC94: =LOOKUP(AC2,'Cap Exp and Op Exp Assumptions'!$E$80:$E$88,'Cap Exp and Op Exp Assumptions'!$G$80:$G$88) -> 0.037 | AD94: =LOOKUP(AD2,'Cap Exp and Op Exp Assumptions'!$E$80:$E$88,'Cap Exp and Op Exp Assumptions'!$G$80:$G$88) -> 0.037 | AE94: =LOOKUP(AE2,'Cap Exp and Op Exp Assumptions'!$E$80:$E$88,'Cap Exp and Op Exp Assumptions'!$G$80:$G$88) -> 0.037 | AF94: =LOOKUP(AF2,'Cap Exp and Op Exp Assumptions'!$E$80:$E$88,'Cap Exp and Op Exp Assumptions'!$G$80:$G$88) -> 0.037 | AG94: =LOOKUP(AG2,'Cap Exp and Op Exp Assumptions'!$E$80:$E$88,'Cap Exp and Op Exp Assumptions'!$G$80:$G$88) -> 0.037 | AH94: =LOOKUP(AH2,'Cap Exp and Op Exp Assumptions'!$E$80:$E$88,'Cap Exp and Op Exp Assumptions'!$G$80:$G$88) -> 0.037 | AI94: =LOOKUP(AI2,'Cap Exp and Op Exp Assumptions'!$E$80:$E$88,'Cap Exp and Op Exp Assumptions'!$G$80:$G$88) -> 0.037 | AJ94: =LOOKUP(AJ2,'Cap Exp and Op Exp Assumptions'!$E$80:$E$88,'Cap Exp and Op Exp Assumptions'!$G$80:$G$88) -> 0.037 | AK94: =LOOKUP(AK2,'Cap Exp and Op Exp Assumptions'!$E$80:$E$88,'Cap Exp and Op Exp Assumptions'!$G$80:$G$88) -> 0.037 | AL94: =LOOKUP(AL2,'Cap Exp and Op Exp Assumptions'!$E$80:$E$88,'Cap Exp and Op Exp Assumptions'!$G$80:$G$88) -> 0.037 | AM94: =LOOKUP(AM2,'Cap Exp and Op Exp Assumptions'!$E$80:$E$88,'Cap Exp and Op Exp Assumptions'!$G$80:$G$88) -> 0.037 | AN94: =LOOKUP(AN2,'Cap Exp and Op Exp Assumptions'!$E$80:$E$88,'Cap Exp and Op Exp Assumptions'!$G$80:$G$88) -> 0.037 | AO94: =LOOKUP(AO2,'Cap Exp and Op Exp Assumptions'!$E$80:$E$88,'Cap Exp and Op Exp Assumptions'!$G$80:$G$88) -> 0.037 | AP94: =LOOKUP(AP2,'Cap Exp and Op Exp Assumptions'!$E$80:$E$88,'Cap Exp and Op Exp Assumptions'!$G$80:$G$88) -> 0.037 | AQ94: =LOOKUP(AQ2,'Cap Exp and Op Exp Assumptions'!$E$80:$E$88,'Cap Exp and Op Exp Assumptions'!$G$80:$G$88) -> 0.037 | AR94: =LOOKUP(AR2,'Cap Exp and Op Exp Assumptions'!$E$80:$E$88,'Cap Exp and Op Exp Assumptions'!$G$80:$G$88) -> 0.037 | AS94: =LOOKUP(AS2,'Cap Exp and Op Exp Assumptions'!$E$80:$E$88,'Cap Exp and Op Exp Assumptions'!$G$80:$G$88) -> 0.037 | AT94: =LOOKUP(AT2,'Cap Exp and Op Exp Assumptions'!$E$80:$E$88,'Cap Exp and Op Exp Assumptions'!$G$80:$G$88) -> 0.037 | AU94: =LOOKUP(AU2,'Cap Exp and Op Exp Assumptions'!$E$80:$E$88,'Cap Exp and Op Exp Assumptions'!$G$80:$G$88) -> 0.037 | AV94: =LOOKUP(AV2,'Cap Exp and Op Exp Assumptions'!$E$80:$E$88,'Cap Exp and Op Exp Assumptions'!$G$80:$G$88) -> 0.037 | AW94: =LOOKUP(AW2,'Cap Exp and Op Exp Assumptions'!$E$80:$E$88,'Cap Exp and Op Exp Assumptions'!$G$80:$G$88) -> 0.037 | AX94: =LOOKUP(AX2,'Cap Exp and Op Exp Assumptions'!$E$80:$E$88,'Cap Exp and Op Exp Assumptions'!$G$80:$G$88) -> 0.037 | AY94: =LOOKUP(AY2,'Cap Exp and Op Exp Assumptions'!$E$80:$E$88,'Cap Exp and Op Exp Assumptions'!$G$80:$G$88) -> 0.037 | AZ94: =LOOKUP(AZ2,'Cap Exp and Op Exp Assumptions'!$E$80:$E$88,'Cap Exp and Op Exp Assumptions'!$G$80:$G$88) -> 0.037 | BA94: =LOOKUP(BA2,'Cap Exp and Op Exp Assumptions'!$E$80:$E$88,'Cap Exp and Op Exp Assumptions'!$G$80:$G$88) -> 0.037 | BB94: =LOOKUP(BB2,'Cap Exp and Op Exp Assumptions'!$E$80:$E$88,'Cap Exp and Op Exp Assumptions'!$G$80:$G$88) -> 0.037 | BC94: =LOOKUP(BC2,'Cap Exp and Op Exp Assumptions'!$E$80:$E$88,'Cap Exp and Op Exp Assumptions'!$G$80:$G$88) -> 0.037 | BD94: =LOOKUP(BD2,'Cap Exp and Op Exp Assumptions'!$E$80:$E$88,'Cap Exp and Op Exp Assumptions'!$G$80:$G$88) -> 0.037 | BE94: =LOOKUP(BE2,'Cap Exp and Op Exp Assumptions'!$E$80:$E$88,'Cap Exp and Op Exp Assumptions'!$G$80:$G$88) -> 0.037 | BF94: =LOOKUP(BF2,'Cap Exp and Op Exp Assumptions'!$E$80:$E$88,'Cap Exp and Op Exp Assumptions'!$G$80:$G$88) -> 0.037 | BG94: =LOOKUP(BG2,'Cap Exp and Op Exp Assumptions'!$E$80:$E$88,'Cap Exp and Op Exp Assumptions'!$G$80:$G$88) -> 0.037 | BH94: =LOOKUP(BH2,'Cap Exp and Op Exp Assumptions'!$E$80:$E$88,'Cap Exp and Op Exp Assumptions'!$G$80:$G$88) -> 0.037 | BI94: =LOOKUP(BI2,'Cap Exp and Op Exp Assumptions'!$E$80:$E$88,'Cap Exp and Op Exp Assumptions'!$G$80:$G$88) -> 0.037 | BJ94: =LOOKUP(BJ2,'Cap Exp and Op Exp Assumptions'!$E$80:$E$88,'Cap Exp and Op Exp Assumptions'!$G$80:$G$88) -> 0.037 | BK94: =LOOKUP(BK2,'Cap Exp and Op Exp Assumptions'!$E$80:$E$88,'Cap Exp and Op Exp Assumptions'!$G$80:$G$88) -> 0.037 | BL94: =LOOKUP(BL2,'Cap Exp and Op Exp Assumptions'!$E$80:$E$88,'Cap Exp and Op Exp Assumptions'!$G$80:$G$88) -> 0.037 | BM94: =LOOKUP(BM2,'Cap Exp and Op Exp Assumptions'!$E$80:$E$88,'Cap Exp and Op Exp Assumptions'!$G$80:$G$88) -> 0.037 | BN94: =LOOKUP(BN2,'Cap Exp and Op Exp Assumptions'!$E$80:$E$88,'Cap Exp and Op Exp Assumptions'!$G$80:$G$88) -> 0.037 | BO94: =LOOKUP(BO2,'Cap Exp and Op Exp Assumptions'!$E$80:$E$88,'Cap Exp and Op Exp Assumptions'!$G$80:$G$88) -> 0.037 | BP94: =LOOKUP(BP2,'Cap Exp and Op Exp Assumptions'!$E$80:$E$88,'Cap Exp and Op Exp Assumptions'!$G$80:$G$88) -> 0.037 | BQ94: =LOOKUP(BQ2,'Cap Exp and Op Exp Assumptions'!$E$80:$E$88,'Cap Exp and Op Exp Assumptions'!$G$80:$G$88) -> 0.037
